Workbook

Sheet Grade7
A1: عدد الطلاب الغائبين | B1: =SUM('7-1'!V13,'7-2'!V13,'7-3'!V13,'7-4'!V13,'7-5'!V13,'7-6'!V13,'7-7'!V13,'7-8'!V13) -> 5
B3: تحليل نتائج الصف السابع Grade-7
B4: التقدير | C4: المجال | E4: عدد الطلاب | F4: النسبة
B5: ممتاز | C5: ≥ 90 | D5: A+ | E5: =SUM('7-1'!V4,'7-2'!V4,'7-3'!V4,'7-4'!V4,'7-5'!V4,'7-6'!V4,'7-7'!V4,'7-8'!V4) -> 6 | F5: =(E5/$E$13) -> 0.0303030303 | G5: =SUM(F5:F9) -> 0.6212121212
B6: جيد جداً | C6: ≥ 80 | D6: A | E6: =SUM('7-1'!V5,'7-2'!V5,'7-3'!V5,'7-4'!V5,'7-5'!V5,'7-6'!V5,'7-7'!V5,'7-8'!V5) -> 21 | F6: 0.1060606061
B7: جيد | C7: ≥ 70 | D7: B+ | E7: =SUM('7-1'!V6,'7-2'!V6,'7-3'!V6,'7-4'!V6,'7-5'!V6,'7-6'!V6,'7-7'!V6,'7-8'!V6) -> 26 | F7: 0.1313131313
B8: فوق المتوسط | C8: ≥ 60 | D8: B | E8: =SUM('7-1'!V7,'7-2'!V7,'7-3'!V7,'7-4'!V7,'7-5'!V7,'7-6'!V7,'7-7'!V7,'7-8'!V7) -> 26 | F8: 0.1313131313
B9: متوسط | C9: ≥ 50 | D9: C | E9: =SUM('7-1'!V8,'7-2'!V8,'7-3'!V8,'7-4'!V8,'7-5'!V8,'7-6'!V8,'7-7'!V8,'7-8'!V8) -> 44 | F9: 0.2222222222
B10: دون المتوسط | C10: ≥ 40 | D10: D | E10: =SUM('7-1'!V9,'7-2'!V9,'7-3'!V9,'7-4'!V9,'7-5'!V9,'7-6'!V9,'7-7'!V9,'7-8'!V9) -> 31 | F10: 0.1565656566 | G10: =SUM(F10:F12) -> 0.3787878788
B11: ضعيف | C11: ≥ 30 | D11: E | E11: =SUM('7-1'!V10,'7-2'!V10,'7-3'!V10,'7-4'!V10,'7-5'!V10,'7-6'!V10,'7-7'!V10,'7-8'!V10) -> 34 | F11: 0.1717171717
B12: دون الضعيف جداً | C12: < 30 | D12: F | E12: =SUM('7-1'!V11,'7-2'!V11,'7-3'!V11,'7-4'!V11,'7-5'!V11,'7-6'!V11,'7-7'!V11,'7-8'!V11) -> 10 | F12: 0.05050505051
B13: عدد طلاب الصف السابع الذي تم اختبارهم | E13: =SUM(E5:E12) -> 198 | F13: =E13/SUM(E13,B1) -> 0.9753694581
C15: الطلاب | D15: العدد | E15: النسبة
C16: الناجحين | D16: =SUM(E5:E9) -> 123 | E16: =G5 -> 0.6212121212
C17: الراسبين | D17: =SUM(E10:E12) -> 75 | E17: =G10 -> 0.3787878788
C18: المجموع | D18: =SUM(D16:D17) -> 198 | E18: =SUM(E16:E17) -> 1
C19: نسبة التحصيل | E19: =AVERAGE('7-1'!U20,'7-2'!U20,'7-3'!U20,'7-4'!U20,'7-5'!U20,'7-6'!U20,'7-7'!U20,'7-8'!U20) -> 0.5585269328
B21: الصف / النسبة | C21: الناجحين | D21: الراسبين | E21: التحصيل
B22: 7-1 | C22: ='7-1'!$U$16 -> 0.84 | D22: ='7-1'!$U$17 -> 0.16 | E22: ='7-1'!$U$20 -> 0.6384
B23: 7-2 | C23: ='7-2'!$U$16 -> 0.6923076923 | D23: ='7-2'!$U$17 -> 0.3076923077 | E23: ='7-2'!$U$20 -> 0.5746153846
B24: 7-3 | C24: ='7-3'!$U$16 -> 0.6538461538 | D24: ='7-3'!$U$17 -> 0.3461538462 | E24: ='7-3'!$U$20 -> 0.5946153846
B25: 7-4 | C25: ='7-4'!$U$16 -> 0.5185185185 | D25: ='7-4'!$U$17 -> 0.4814814815 | E25: ='7-4'!$U$20 -> 0.5488888889
B26: 7-5 | C26: ='7-5'!$U$16 -> 0.4615384615 | D26: ='7-5'!$U$17 -> 0.5384615385 | E26: ='7-5'!$U$20 -> 0.4569230769
B27: 7-6 | C27: ='7-6'!$U$16 -> 0.5909090909 | D27: ='7-6'!$U$17 -> 0.4090909091 | E27: ='7-6'!$U$20 -> 0.5527272727
B28: 7-7 | C28: ='7-7'!$U$16 -> 0.5833333333 | D28: ='7-7'!$U$17 -> 0.4166666667 | E28: ='7-7'!$U$20 -> 0.5375
B29: 7-8 | C29: ='7-8'!$U$16 -> 0.6363636364 | D29: ='7-8'!$U$17 -> 0.3636363636 | E29: ='7-8'!$U$20 -> 0.5645454545
A32: تحليل نتائج فرع | C32: ='7-1'!H2 -> Quizzes
B34: الصف | C34: الناجحين | D34: الراسبين | E34: التحصيل
B35: 7-1 | C35: ='7-1'!$T$25 -> 0.84 | D35: ='7-1'!$U$25 -> 0.16 | E35: ='7-1'!$V$25 -> 0.668
B36: 7-2 | C36: ='7-2'!$T$25 -> 0.6538461538 | D36: ='7-2'!$U$25 -> 0.3461538462 | E36: ='7-2'!$V$25 -> 0.4961538462
B37: 7-3 | C37: ='7-3'!$T$25 -> 0.6538461538 | D37: ='7-3'!$U$25 -> 0.3461538462 | E37: ='7-3'!$V$25 -> 0.5615384615
B38: 7-4 | C38: ='7-4'!$T$25 -> 0 | D38: ='7-4'!$U$25 -> 1 | E38: ='7-4'!$V$25 -> 0.2118518519
B39: 7-5 | C39: ='7-5'!$T$25 -> 0.07407407407 | D39: ='7-5'!$U$25 -> 0.9259259259 | E39: ='7-5'!$V$25 -> 0.2681481481
B40: 7-6 | C40: ='7-6'!$T$25 -> 0.04545454545 | D40: ='7-6'!$U$25 -> 0.9545454545 | E40: ='7-6'!$V$25 -> 0.2254545455
B41: 7-7 | C41: ='7-7'!$T$25 -> 0.2916666667 | D41: ='7-7'!$U$25 -> 0.7083333333 | E41: ='7-7'!$V$25 -> 0.3729166667
B42: 7-8 | C42: ='7-8'!$T$25 -> 0.3333333333 | D42: ='7-8'!$U$25 -> 0.6666666667 | E42: ='7-8'!$V$25 -> 0.3602380952
B43: المتوسط | C43: =AVERAGE(C35:C42) -> 0.3615276159 | D43: =AVERAGE(D35:D42) -> 0.6384723841 | E43: 0.3955377019
A46: تحليل نتائج فرع | C46: ='7-1'!I2 -> الواجب
B48: الصف | C48: الناجحين | D48: الراسبين | E48: التحصيل
B49: 7-1 | C49: ='7-1'!$T$26 -> 1 | D49: ='7-1'!$U$26 -> 0 | E49: ='7-1'!$V$26 -> 1
B50: 7-2 | C50: ='7-2'!$T$26 -> 1 | D50: ='7-2'!$U$26 -> 0 | E50: ='7-2'!$V$26 -> 1
B51: 7-3 | C51: ='7-3'!$T$26 -> 1 | D51: ='7-3'!$U$26 -> 0 | E51: ='7-3'!$V$26 -> 1
B52: 7-4 | C52: ='7-4'!$T$26 -> 1 | D52: ='7-4'!$U$26 -> 0 | E52: ='7-4'!$V$26 -> 0.922962963
B53: 7-5 | C53: ='7-5'!$T$26 -> 1 | D53: ='7-5'!$U$26 -> 0 | E53: ='7-5'!$V$26 -> 0.8992592593
B54: 7-6 | C54: ='7-6'!$T$26 -> 1 | D54: ='7-6'!$U$26 -> 0 | E54: ='7-6'!$V$26 -> 0.9363636364
B55: 7-7 | C55: ='7-7'!$T$26 -> 1 | D55: ='7-7'!$U$26 -> 0 | E55: ='7-7'!$V$26 -> 0.752
B56: 7-8 | C56: ='7-8'!$T$26 -> 0.9565217391 | D56: ='7-8'!$U$26 -> 0.04347826087 | E56: ='7-8'!$V$26 -> 0.8034782609
B57: المتوسط | C57: =AVERAGE(C49:C56) -> 0.9945652174 | D57: =AVERAGE(D49:D56) -> 0.005434782609 | E57: 0.9142580149
A60: تحليل نتائج فرع | C60: ='7-1'!J2 -> المشاركة
B62: الصف | C62: الناجحين | D62: الراسبين | E62: التحصيل
B63: 7-1 | C63: ='7-1'!$T$27 -> 1 | D63: ='7-1'!$U$27 -> 0 | E63: ='7-1'!$V$27 -> 1
B64: 7-2 | C64: ='7-2'!$T$27 -> 1 | D64: ='7-2'!$U$27 -> 0 | E64: ='7-2'!$V$27 -> 1
B65: 7-3 | C65: ='7-3'!$T$27 -> 1 | D65: ='7-3'!$U$27 -> 0 | E65: ='7-3'!$V$27 -> 1
B66: 7-4 | C66: ='7-4'!$T$27 -> 1 | D66: ='7-4'!$U$27 -> 0 | E66: ='7-4'!$V$27 -> 0.8395061728
B67: 7-5 | C67: ='7-5'!$T$27 -> 1 | D67: ='7-5'!$U$27 -> 0 | E67: ='7-5'!$V$27 -> 0.8419753086
B68: 7-6 | C68: ='7-6'!$T$27 -> 1 | D68: ='7-6'!$U$27 -> 0 | E68: ='7-6'!$V$27 -> 0.896969697
B69: 7-7 | C69: ='7-7'!$T$27 -> 1 | D69: ='7-7'!$U$27 -> 0 | E69: ='7-7'!$V$27 -> 0.7866666667
B70: 7-8 | C70: ='7-8'!$T$27 -> 1 | D70: ='7-8'!$U$27 -> 0 | E70: ='7-8'!$V$27 -> 0.8231884058
B71: المتوسط | C71: =AVERAGE(C63:C70) -> 1 | D71: =AVERAGE(D63:D70) -> 0 | E71: 0.8985382814
A74: تحليل نتائج فرع | C74: ='7-1'!K2 -> المشروع
B76: الصف | C76: الناجحين | D76: الراسبين | E76: التحصيل
B77: 7-1 | C77: ='7-1'!$T$28 -> 1 | D77: ='7-1'!$U$28 -> 0 | E77: ='7-1'!$V$28 -> 1
B78: 7-2 | C78: ='7-2'!$T$28 -> 1 | D78: ='7-2'!$U$28 -> 0 | E78: ='7-2'!$V$28 -> 1
B79: 7-3 | C79: ='7-3'!$T$28 -> 1 | D79: ='7-3'!$U$28 -> 0 | E79: ='7-3'!$V$28 -> 1
B80: 7-4 | C80: ='7-4'!$T$28 -> 0.7407407407 | D80: ='7-4'!$U$28 -> 0.2592592593 | E80: ='7-4'!$V$28 -> 0.6592592593
B81: 7-5 | C81: ='7-5'!$T$28 -> 0.7407407407 | D81: ='7-5'!$U$28 -> 0.2592592593 | E81: ='7-5'!$V$28 -> 0.6777777778
B82: 7-6 | C82: ='7-6'!$T$28 -> 1 | D82: ='7-6'!$U$28 -> 0 | E82: ='7-6'!$V$28 -> 0.8136363636
B83: 7-7 | C83: ='7-7'!$T$28 -> 1 | D83: ='7-7'!$U$28 -> 0 | E83: ='7-7'!$V$28 -> 0.896
B84: 7-8 | C84: ='7-8'!$T$28 -> 1 | D84: ='7-8'!$U$28 -> 0 | E84: ='7-8'!$V$28 -> 0.8260869565
B85: المتوسط | C85: =AVERAGE(C77:C84) -> 0.9351851852 | D85: =AVERAGE(D77:D84) -> 0.06481481481 | E85: 0.8590950446
A88: تحليل نتائج فرع | C88: ='7-1'!M2 -> Exam
B90: الصف | C90: الناجحين | D90: الراسبين | E90: التحصيل
B91: 7-1 | C91: ='7-1'!$T$29 -> 0.84 | D91: ='7-1'!$U$29 -> 0.16 | E91: ='7-1'!$V$29 -> 0.6384
B92: 7-2 | C92: ='7-2'!$T$29 -> 0.6923076923 | D92: ='7-2'!$U$29 -> 0.3076923077 | E92: ='7-2'!$V$29 -> 0.5746153846
B93: 7-3 | C93: ='7-3'!$T$29 -> 0.6538461538 | D93: ='7-3'!$U$29 -> 0.3461538462 | E93: ='7-3'!$V$29 -> 0.5946153846
B94: 7-4 | C94: ='7-4'!$T$29 -> 0.5185185185 | D94: ='7-4'!$U$29 -> 0.4814814815 | E94: ='7-4'!$V$29 -> 0.5488888889
B95: 7-5 | C95: ='7-5'!$T$29 -> 0.4615384615 | D95: ='7-5'!$U$29 -> 0.5384615385 | E95: ='7-5'!$V$29 -> 0.4569230769
B96: 7-6 | C96: ='7-6'!$T$29 -> 0.5909090909 | D96: ='7-6'!$U$29 -> 0.4090909091 | E96: ='7-6'!$V$29 -> 0.5527272727
B97: 7-7 | C97: ='7-7'!$T$29 -> 0.625 | D97: ='7-7'!$U$29 -> 0.375 | E97: ='7-7'!$V$29 -> 0.5375
B98: 7-8 | C98: ='7-8'!$T$29 -> 0.6818181818 | D98: ='7-8'!$U$29 -> 0.3181818182 | E98: ='7-8'!$V$29 -> 0.5645454545
B99: المتوسط | C99: =AVERAGE(C91:C98) -> 0.6329922624 | D99: =AVERAGE(D91:D98) -> 0.3670077376 | E99: 0.5585269328
A106: مقارنة تحليل نتائج | C106: جميع الفروع
A108: الفرع | C108: الناجحين | D108: الراسبين | E108: التحصيل
A109: =C32 -> Quizzes | C109: =C43 -> 0.3615276159 | D109: =D43 -> 0.6384723841 | E109: =E43 -> 0.3955377019
A110: =C46 -> الواجب | C110: =C57 -> 0.9945652174 | D110: =D57 -> 0.005434782609 | E110: =E57 -> 0.9142580149
A111: =C60 -> المشاركة | C111: =C71 -> 1 | D111: =D71 -> 0 | E111: =E71 -> 0.8985382814
A112: =C74 -> المشروع | C112: =C85 -> 0.9351851852 | D112: =D85 -> 0.06481481481 | E112: 0.8590950446
A113: =C88 -> Exam | C113: =C99 -> 0.6329922624 | D113: =D99 -> 0.3670077376 | E113: =E99 -> 0.5585269328

Sheet 7-1
A1: Grade (7-1) كشف درجات الطلاب
A2: م | B2: اسم الطالب | C2: Quiz1 | D2: Quiz2 | E2: Quiz3 | F2: Quiz4 | G2: Quiz5 | H2: Quizzes | I2: الواجب | J2: المشاركة | K2: المشروع | L2: Total | M2: Exam | N2: Final | O2: Percent | P2: Rank | Q2: التقدير | S2: تحليل النتائج على حسب التقدير
C3: 5 | D3: 5 | E3: 5 | F3: 5 | G3: درجة5 | H3: 50 | I3: 25 | J3: 15 | K3: 10 | L3: 100 | M3: 100 | N3: 22.5 | O3: (%) | P3: الترتيب | S3: التقدير | T3: المجال | V3: عدد الطلاب | W3: النسبة
A4: 1 | B4: البراء أحمد انور خضر سعد | C4: 4 | D4: 3 | E4: 4 | F4: 3 | H4: =IF(AND(C4="",D4="",E4="",F4="",G4=""),"غ",$H$3*SUM(C4:G4)/SUM($C$3:$G$3)) -> 35 | I4: 25 | J4: 15 | K4: 10 | L4: =IF(AND(C4="",D4="",E4="",F4="",G4="",I4="",J4="",K4=""),"غ",SUM(H4:K4)) -> 85 | M4: 94 | N4: =IF(M4="","غ",IF(L4="غ",M4*0.2,SUM(L4*2.5/$L$3,M4*0.2))) -> 20.925 | O4: =IF(N4="غ","غ",N4*100/$N$3/100) -> 0.93 | P4: =IF(AND(O4="غ"),"غ",RANK(O4,$O$4:$O$30)+COUNTIF(O$4:O4,O4)-1) -> 1 | Q4: =IF(O4="غ","غ",IF(O4>=90%,"ممتاز",IF(O4>=80%,"جيد جداً",IF(O4>=70%,"جيد",IF(O4>=60%,"فوق المتوسط",IF(O4>=50%,"متوسط",IF(O4>=40%,"دون المتوسط",IF(O4>=30%,"ضعيف","دون الضعيف جداً")))))))) -> ممتاز | S4: ممتاز | T4: ≥ 90 | U4: A+ | V4: =COUNTIF(Q4:Q30,"ممتاز") -> 3 | W4: =(V4/$V$12) -> 0.12 | X4: =SUM(W4:W8) -> 0.84
A5: 2 | B5: الفهد على احمد يعقوب بوشوارب | C5: 4 | D5: 4 | E5: 4 | F5: 4 | H5: 40 | I5: 25 | J5: 15 | K5: 10 | L5: 90 | M5: 88 | N5: 19.85 | O5: 0.8822222222 | P5: =IF(AND(O5="غ"),"غ",RANK(O5,$O$4:$O$30)+COUNTIF(O$4:O5,O5)-1) -> 4 | Q5: جيد جداً | S5: جيد جداً | T5: ≥ 80 | U5: A | V5: =COUNTIF(Q4:Q30,"جيد جداً") -> 3 | W5: 0.12
A6: 3 | B6: جاسم محمد عبدالله السعدى | C6: 4 | D6: 5 | E6: 4 | F6: 5 | H6: 45 | I6: 25 | J6: 15 | K6: 10 | L6: 95 | M6: 92 | N6: 20.775 | O6: 0.9233333333 | P6: =IF(AND(O6="غ"),"غ",RANK(O6,$O$4:$O$30)+COUNTIF(O$4:O6,O6)-1) -> 3 | Q6: ممتاز | S6: جيد | T6: ≥ 70 | U6: B+ | V6: =COUNTIF(Q4:Q30,"جيد") -> 4 | W6: 0.16
A7: 4 | B7: حمزه اعليوي | C7: 4 | D7: 4 | E7: 4 | F7: 4 | H7: 40 | I7: 25 | J7: 15 | K7: 10 | L7: 90 | M7: 68 | N7: 15.85 | O7: 0.7044444444 | P7: =IF(AND(O7="غ"),"غ",RANK(O7,$O$4:$O$30)+COUNTIF(O$4:O7,O7)-1) -> 10 | Q7: جيد | S7: فوق المتوسط | T7: ≥ 60 | U7: B | V7: =COUNTIF(Q4:Q30,"فوق المتوسط") -> 5 | W7: 0.2
A8: 5 | B8: حمود عبدالله هجرس العتيق الدوسرى | C8: 4 | D8: 3 | E8: 4 | F8: 3 | H8: 35 | I8: 25 | J8: 15 | K8: 10 | L8: 85 | M8: 52 | N8: 12.525 | O8: 0.5566666667 | P8: =IF(AND(O8="غ"),"غ",RANK(O8,$O$4:$O$30)+COUNTIF(O$4:O8,O8)-1) -> 19 | Q8: متوسط | S8: متوسط | T8: ≥ 50 | U8: C | V8: =COUNTIF(Q4:Q30,"متوسط") -> 6 | W8: 0.24
A9: 6 | B9: خليفه فهد جوهر سعيد المحمد | C9: 2 | D9: 5 | E9: 2 | F9: 5 | H9: 35 | I9: 25 | J9: 15 | K9: 10 | L9: 85 | M9: 30 | N9: 8.125 | O9: 0.3611111111 | P9: =IF(AND(O9="غ"),"غ",RANK(O9,$O$4:$O$30)+COUNTIF(O$4:O9,O9)-1) -> 24 | Q9: ضعيف | S9: دون المتوسط | T9: ≥ 40 | U9: D | V9: =COUNTIF(Q4:Q30,"دون المتوسط") -> 2 | W9: 0.08 | X9: =SUM(W9:W11) -> 0.16
A10: 7 | B10: سالم عبدالله سالم الالشيخ الكوارى | C10: 5 | D10: 4 | E10: 5 | F10: 4 | H10: 45 | I10: 25 | J10: 15 | K10: 10 | L10: 95 | M10: 86 | N10: 19.575 | O10: 0.87 | P10: =IF(AND(O10="غ"),"غ",RANK(O10,$O$4:$O$30)+COUNTIF(O$4:O10,O10)-1) -> 5 | Q10: جيد جداً | S10: ضعيف | T10: ≥ 30 | U10: E | V10: =COUNTIF(Q4:Q30,"ضعيف") -> 1 | W10: 0.04
A11: 8 | B11: سعود خالد ثانى على السويدى | C11: 3 | D11: 4 | E11: 3 | F11: 4 | H11: 35 | I11: 25 | J11: 15 | K11: 10 | L11: 85 | M11: 60 | N11: 14.125 | O11: 0.6277777778 | P11: =IF(AND(O11="غ"),"غ",RANK(O11,$O$4:$O$30)+COUNTIF(O$4:O11,O11)-1) -> 15 | Q11: فوق المتوسط | S11: دون الضعيف جداً | T11: < 30 | U11: F | V11: =COUNTIF(Q4:Q30,"دون الضعيف جداً") -> 1 | W11: 0.04
A12: 9 | B12: صالح موسى فرج حسن الحمد | C12: 4 | D12: 4 | E12: 4 | F12: 4 | H12: 40 | I12: 25 | J12: 15 | K12: 10 | L12: 90 | M12: 62 | N12: 14.65 | O12: 0.6511111111 | P12: =IF(AND(O12="غ"),"غ",RANK(O12,$O$4:$O$30)+COUNTIF(O$4:O12,O12)-1) -> 12 | Q12: فوق المتوسط | S12: عدد الطلاب الذي تم اختبارهم | V12: =SUM(V4:V11) -> 25 | W12: =V12/SUM(V12:V13) -> 1
A13: 10 | B13: عبدالرحمن خليل ابراهيم محمد ابراهيم | C13: 3 | D13: 2 | E13: 3 | F13: 2 | H13: 25 | I13: 25 | J13: 15 | K13: 10 | L13: 75 | M13: 44 | N13: 10.675 | O13: 0.4744444444 | P13: =IF(AND(O13="غ"),"غ",RANK(O13,$O$4:$O$30)+COUNTIF(O$4:O13,O13)-1) -> 22 | Q13: دون المتوسط | S13: عدد الطلاب الغائبين | V13: =COUNTA(B4:B30)-V12 -> 0 | W13: =V13/SUM(V12:V13) -> 0
A14: 11 | B14: عبدالرحمن عبدالله محمد قاسم الشمرى | C14: 2 | D14: 1 | E14: 2 | F14: 1 | H14: 15 | I14: 25 | J14: 15 | K14: 10 | L14: 65 | M14: 24 | N14: 6.425 | O14: 0.2855555556 | P14: =IF(AND(O14="غ"),"غ",RANK(O14,$O$4:$O$30)+COUNTIF(O$4:O14,O14)-1) -> 25 | Q14: دون الضعيف جداً
A15: 12 | B15: عبدالرحمن عماد طارق العبد | C15: 4 | D15: 3 | E15: 4 | F15: 3 | H15: 35 | I15: 25 | J15: 15 | K15: 10 | L15: 85 | M15: 78 | N15: 17.725 | O15: 0.7877777778 | P15: =IF(AND(O15="غ"),"غ",RANK(O15,$O$4:$O$30)+COUNTIF(O$4:O15,O15)-1) -> 7 | Q15: جيد | S15: الطلاب | T15: العدد | U15: النسبة
A16: 13 | B16: عبدالله المصطفى حافظ محمد مستفيض الرحمن | C16: 4 | D16: 4 | E16: 4 | F16: 4 | H16: 40 | I16: 25 | J16: 15 | K16: 10 | L16: 90 | M16: 82 | N16: 18.65 | O16: 0.8288888889 | P16: =IF(AND(O16="غ"),"غ",RANK(O16,$O$4:$O$30)+COUNTIF(O$4:O16,O16)-1) -> 6 | Q16: جيد جداً | S16: الناجحين | T16: =SUM(V4:V8) -> 21 | U16: =X4 -> 0.84
A17: 14 | B17: عبدالله انورعبدالله | C17: 3 | D17: 2 | E17: 3 | F17: 2 | H17: 25 | I17: 25 | J17: 15 | K17: 10 | L17: 75 | M17: 62 | N17: 14.275 | O17: 0.6344444444 | P17: =IF(AND(O17="غ"),"غ",RANK(O17,$O$4:$O$30)+COUNTIF(O$4:O17,O17)-1) -> 13 | Q17: فوق المتوسط | S17: الراسبين | T17: =SUM(V9:V11) -> 4 | U17: =X9 -> 0.16
A18: 15 | B18: عبدالله محمد سالم ال الشيخ الكوارى | C18: 2 | D18: 2 | E18: 2 | F18: 2 | H18: 20 | I18: 25 | J18: 15 | K18: 10 | L18: 70 | M18: 44 | N18: 10.55 | O18: 0.4688888889 | P18: =IF(AND(O18="غ"),"غ",RANK(O18,$O$4:$O$30)+COUNTIF(O$4:O18,O18)-1) -> 23 | Q18: دون المتوسط | S18: المجموع | T18: =SUM(T16:T17) -> 25 | U18: =SUM(U16:U17) -> 1
A19: 16 | B19: علي خليل مطلك | C19: 3 | D19: 4 | E19: 3 | F19: 4 | H19: 35 | I19: 25 | J19: 15 | K19: 10 | L19: 85 | M19: 50 | N19: 12.125 | O19: 0.5388888889 | P19: =IF(AND(O19="غ"),"غ",RANK(O19,$O$4:$O$30)+COUNTIF(O$4:O19,O19)-1) -> 20 | Q19: متوسط
A20: 17 | B20: عيسى على عبدالله محمود الغزال | D20: 4 | F20: 4 | H20: 20 | I20: 25 | J20: 15 | K20: 10 | L20: 70 | M20: 56 | N20: 12.95 | O20: 0.5755555556 | P20: =IF(AND(O20="غ"),"غ",RANK(O20,$O$4:$O$30)+COUNTIF(O$4:O20,O20)-1) -> 17 | Q20: متوسط | S20: التحصيل الأكاديمي | U20: =AVERAGE(M4:M30)/M$3 -> 0.6384
A21: 18 | B21: عيسى محمد راشد ناصر الكعبى | C21: 4 | D21: 1 | E21: 4 | F21: 1 | H21: 25 | I21: 25 | J21: 15 | K21: 10 | L21: 75 | M21: 50 | N21: 11.875 | O21: 0.5277777778 | P21: =IF(AND(O21="غ"),"غ",RANK(O21,$O$4:$O$30)+COUNTIF(O$4:O21,O21)-1) -> 21 | Q21: متوسط
A22: 19 | B22: مازن الهادى على حبيب | C22: 5 | D22: 4 | E22: 5 | F22: 4 | H22: 45 | I22: 25 | J22: 15 | K22: 10 | L22: 95 | M22: 70 | N22: 16.375 | O22: 0.7277777778 | P22: =IF(AND(O22="غ"),"غ",RANK(O22,$O$4:$O$30)+COUNTIF(O$4:O22,O22)-1) -> 9 | Q22: جيد
A23: 20 | B23: مازن عمر عبدالله عثمان | C23: 3 | D23: 4 | E23: 3 | F23: 4 | H23: 35 | I23: 25 | J23: 15 | K23: 10 | L23: 85 | M23: 94 | N23: 20.925 | O23: 0.93 | P23: =IF(AND(O23="غ"),"غ",RANK(O23,$O$4:$O$30)+COUNTIF(O$4:O23,O23)-1) -> 2 | Q23: ممتاز
A24: 21 | B24: مبارك سالم سلطان المهندي | C24: 3 | D24: 5 | E24: 3 | F24: 5 | H24: 40 | I24: 25 | J24: 15 | K24: 10 | L24: 90 | M24: 56 | N24: 13.45 | O24: 0.5977777778 | P24: =IF(AND(O24="غ"),"غ",RANK(O24,$O$4:$O$30)+COUNTIF(O$4:O24,O24)-1) -> 16 | Q24: متوسط | S24: الفرع | T24: الناجحين | U24: الراسبين | V24: التحصيل
A25: 22 | B25: محمد عامر احمد عامر الهلابى | C25: 2 | D25: 5 | E25: 2 | F25: 5 | H25: 35 | I25: 25 | J25: 15 | K25: 10 | L25: 85 | M25: 54 | N25: 12.925 | O25: 0.5744444444 | P25: =IF(AND(O25="غ"),"غ",RANK(O25,$O$4:$O$30)+COUNTIF(O$4:O25,O25)-1) -> 18 | Q25: متوسط | S25: =H2 -> Quizzes | T25: =COUNTIF(H4:H30,">="&H$3/2)/COUNT(H4:H30) -> 0.84 | U25: =IF(T25="","",100%-T25) -> 0.16 | V25: =IF($U25="","",AVERAGE(H4:H30)/H$3) -> 0.668
A26: 23 | B26: مهنا ناصر مهنا الحمود السليطى | C26: 3 | D26: 4 | E26: 3 | F26: 4 | H26: 35 | I26: 25 | J26: 15 | K26: 10 | L26: 85 | M26: 66 | N26: 15.325 | O26: 0.6811111111 | P26: =IF(AND(O26="غ"),"غ",RANK(O26,$O$4:$O$30)+COUNTIF(O$4:O26,O26)-1) -> 11 | Q26: فوق المتوسط | S26: =I2 -> الواجب | T26: =COUNTIF(I4:I30,">="&I$3/2)/COUNT(I4:I30) -> 1 | U26: =IF(T26="","",100%-T26) -> 0 | V26: =IF($U26="","",AVERAGE(I4:I30)/I$3) -> 1
A27: 24 | B27: ناصر سالم دخيل سالم الحمد | C27: 2 | D27: 2 | E27: 2 | F27: 2 | H27: 20 | I27: 25 | J27: 15 | K27: 10 | L27: 70 | M27: 62 | N27: 14.15 | O27: 0.6288888889 | P27: =IF(AND(O27="غ"),"غ",RANK(O27,$O$4:$O$30)+COUNTIF(O$4:O27,O27)-1) -> 14 | Q27: فوق المتوسط | S27: =J2 -> المشاركة | T27: =COUNTIF(J4:J30,">="&J$3/2)/COUNT(J4:J30) -> 1 | U27: 0 | V27: =IF($U27="","",AVERAGE(J4:J30)/J$3) -> 1
A28: 25 | B28: يوسف على يوسف عبدالرحمن العبدالجبار | C28: 3 | D28: 4 | E28: 3 | F28: 4 | H28: 35 | I28: 25 | J28: 15 | K28: 10 | L28: 85 | M28: 72 | N28: 16.525 | O28: 0.7344444444 | P28: =IF(AND(O28="غ"),"غ",RANK(O28,$O$4:$O$30)+COUNTIF(O$4:O28,O28)-1) -> 8 | Q28: جيد | S28: =K2 -> المشروع | T28: =COUNTIF(K4:K30,">="&K$3/2)/COUNT(K4:K30) -> 1 | U28: 0 | V28: =IF($U28="","",AVERAGE(K4:K30)/K$3) -> 1
S29: =M2 -> Exam | T29: =COUNTIF(M4:M30,">="&M$3/2)/COUNT(M4:M30) -> 0.84 | U29: =IF(T29="","",100%-T29) -> 0.16 | V29: =IF($U29="","",AVERAGE(M4:M30)/M$3) -> 0.6384

Sheet 7-2
A1: Grade (7-2) كشف درجات الطلاب
A2: م | B2: اسم الطالب | C2: Quiz1 | D2: Quiz2 | E2: Quiz3 | F2: Quiz4 | G2: Quiz5 | H2: Quizzes | I2: الواجب | J2: المشاركة | K2: المشروع | L2: Total | M2: Exam | N2: Final | O2: Percent | P2: Rank | Q2: التقدير | S2: تحليل النتائج على حسب التقدير
C3: 5 | D3: 5 | E3: 5 | F3: 5 | G3: درجة5 | H3: 50 | I3: 25 | J3: 15 | K3: 10 | L3: 100 | M3: 100 | N3: 22.5 | O3: (%) | P3: الترتيب | S3: التقدير | T3: المجال | V3: عدد الطلاب | W3: النسبة
A4: 1 | B4: اشرف ابراهيم عباس الصادق | C4: 4 | D4: 5 | E4: 4 | F4: 5 | H4: =IF(AND(C4="",D4="",E4="",F4="",G4=""),"غ",$H$3*SUM(C4:G4)/SUM($C$3:$G$3)) -> 45 | I4: 25 | J4: 15 | K4: 10 | L4: =IF(AND(C4="",D4="",E4="",F4="",G4="",I4="",J4="",K4=""),"غ",SUM(H4:K4)) -> 95 | M4: 94 | N4: =IF(M4="","غ",IF(L4="غ",M4*0.2,SUM(L4*2.5/$L$3,M4*0.2))) -> 21.175 | O4: =IF(N4="غ","غ",N4*100/$N$3/100) -> 0.9411111111 | P4: =IF(AND(O4="غ"),"غ",RANK(O4,$O$4:$O$30)+COUNTIF(O$4:O4,O4)-1) -> 1 | Q4: =IF(O4="غ","غ",IF(O4>=90%,"ممتاز",IF(O4>=80%,"جيد جداً",IF(O4>=70%,"جيد",IF(O4>=60%,"فوق المتوسط",IF(O4>=50%,"متوسط",IF(O4>=40%,"دون المتوسط",IF(O4>=30%,"ضعيف","دون الضعيف جداً")))))))) -> ممتاز | S4: ممتاز | T4: ≥ 90 | U4: A+ | V4: =COUNTIF(Q4:Q30,"ممتاز") -> 1 | W4: =(V4/$V$12) -> 0.03846153846 | X4: =SUM(W4:W8) -> 0.6923076923
A5: 2 | B5: جاسم سلطان جمعان وليد العلى | C5: 4 | D5: 2 | E5: 4 | F5: 2 | H5: =IF(AND(C5="",D5="",E5="",F5="",G5=""),"غ",$H$3*SUM(C5:G5)/SUM($C$3:$G$3)) -> 30 | I5: 25 | J5: 15 | K5: 10 | L5: =IF(AND(C5="",D5="",E5="",F5="",G5="",I5="",J5="",K5=""),"غ",SUM(H5:K5)) -> 80 | M5: 74 | N5: =IF(M5="","غ",IF(L5="غ",M5*0.2,SUM(L5*2.5/$L$3,M5*0.2))) -> 16.8 | O5: =IF(N5="غ","غ",N5*100/$N$3/100) -> 0.7466666667 | P5: =IF(AND(O5="غ"),"غ",RANK(O5,$O$4:$O$30)+COUNTIF(O$4:O5,O5)-1) -> 6 | Q5: =IF(O5="غ","غ",IF(O5>=90%,"ممتاز",IF(O5>=80%,"جيد جداً",IF(O5>=70%,"جيد",IF(O5>=60%,"فوق المتوسط",IF(O5>=50%,"متوسط",IF(O5>=40%,"دون المتوسط",IF(O5>=30%,"ضعيف","دون الضعيف جداً")))))))) -> جيد | S5: جيد جداً | T5: ≥ 80 | U5: A | V5: =COUNTIF(Q4:Q30,"جيد جداً") -> 2 | W5: 0.07692307692
A6: 3 | B6: جفال دهام بشير مرزوق الغانم | C6: 2 | D6: 0 | E6: 2 | F6: 0 | H6: 10 | I6: 25 | J6: 15 | K6: 10 | L6: 60 | M6: 36 | N6: 8.7 | O6: 0.3866666667 | P6: =IF(AND(O6="غ"),"غ",RANK(O6,$O$4:$O$30)+COUNTIF(O$4:O6,O6)-1) -> 22 | Q6: ضعيف | S6: جيد | T6: ≥ 70 | U6: B+ | V6: =COUNTIF(Q4:Q30,"جيد") -> 4 | W6: 0.1538461538
A7: 4 | B7: حمد محمد حمد محمد المطاوعه | C7: 3 | D7: 3 | E7: 3 | F7: 3 | H7: 30 | I7: 25 | J7: 15 | K7: 10 | L7: 80 | M7: 66 | N7: 15.2 | O7: 0.6755555556 | P7: =IF(AND(O7="غ"),"غ",RANK(O7,$O$4:$O$30)+COUNTIF(O$4:O7,O7)-1) -> 9 | Q7: فوق المتوسط | S7: فوق المتوسط | T7: ≥ 60 | U7: B | V7: =COUNTIF(Q4:Q30,"فوق المتوسط") -> 5 | W7: 0.1923076923
A8: 5 | B8: خالد احمد عبدالله احمد الباكر | D8: 2 | F8: 2 | H8: 10 | I8: 25 | J8: 15 | K8: 10 | L8: 60 | M8: 70 | N8: 15.5 | O8: 0.6888888889 | P8: =IF(AND(O8="غ"),"غ",RANK(O8,$O$4:$O$30)+COUNTIF(O$4:O8,O8)-1) -> 8 | Q8: فوق المتوسط | S8: متوسط | T8: ≥ 50 | U8: C | V8: =COUNTIF(Q4:Q30,"متوسط") -> 6 | W8: 0.2307692308
A9: 6 | B9: خليفه عبدالله محمد عبدالله البوعينين | C9: 1 | D9: 1 | E9: 1 | F9: 1 | H9: 10 | I9: 25 | J9: 15 | K9: 10 | L9: 60 | M9: 50 | N9: 11.5 | O9: 0.5111111111 | P9: =IF(AND(O9="غ"),"غ",RANK(O9,$O$4:$O$30)+COUNTIF(O$4:O9,O9)-1) -> 18 | Q9: متوسط | S9: دون المتوسط | T9: ≥ 40 | U9: D | V9: =COUNTIF(Q4:Q30,"دون المتوسط") -> 3 | W9: 0.1153846154 | X9: =SUM(W9:W11) -> 0.3076923077
A10: 7 | B10: خميس سالم سليمان احمد سويلم | C10: 2 | D10: 3 | E10: 2 | F10: 3 | H10: 25 | I10: 25 | J10: 15 | K10: 10 | L10: 75 | M10: 32 | N10: 8.275 | O10: 0.3677777778 | P10: =IF(AND(O10="غ"),"غ",RANK(O10,$O$4:$O$30)+COUNTIF(O$4:O10,O10)-1) -> 24 | Q10: ضعيف | S10: ضعيف | T10: ≥ 30 | U10: E | V10: =COUNTIF(Q4:Q30,"ضعيف") -> 4 | W10: 0.1538461538
A11: 8 | B11: سعود ابراهيم ميرزا محمد القاسمى | C11: 3 | D11: 3 | E11: 3 | F11: 3 | H11: 30 | I11: 25 | J11: 15 | K11: 10 | L11: 80 | M11: 78 | N11: 17.6 | O11: 0.7822222222 | P11: =IF(AND(O11="غ"),"غ",RANK(O11,$O$4:$O$30)+COUNTIF(O$4:O11,O11)-1) -> 4 | Q11: جيد | S11: دون الضعيف جداً | T11: < 30 | U11: F | V11: =COUNTIF(Q4:Q30,"دون الضعيف جداً") -> 1 | W11: 0.03846153846
A12: 9 | B12: سعود صالح على بورايح الكوارى | C12: 2 | D12: 2 | E12: 2 | F12: 2 | H12: 20 | I12: 25 | J12: 15 | K12: 10 | L12: 70 | M12: 66 | N12: 14.95 | O12: 0.6644444444 | P12: =IF(AND(O12="غ"),"غ",RANK(O12,$O$4:$O$30)+COUNTIF(O$4:O12,O12)-1) -> 10 | Q12: فوق المتوسط | S12: عدد الطلاب الذي تم اختبارهم | V12: =SUM(V4:V11) -> 26 | W12: =V12/SUM(V12:V13) -> 1
A13: 10 | B13: شامى محمد عايد ابراهيم الحمد | C13: 3 | D13: 2 | E13: 3 | F13: 2 | H13: 25 | I13: 25 | J13: 15 | K13: 10 | L13: 75 | M13: 46 | N13: 11.075 | O13: 0.4922222222 | P13: =IF(AND(O13="غ"),"غ",RANK(O13,$O$4:$O$30)+COUNTIF(O$4:O13,O13)-1) -> 20 | Q13: دون المتوسط | S13: عدد الطلاب الغائبين | V13: =COUNTA(B4:B30)-V12 -> 0 | W13: =V13/SUM(V12:V13) -> 0
A14: 11 | B14: عبدالرحمن حمد عيد الخويطر العجمى | C14: 2 | D14: 1 | E14: 2 | F14: 1 | H14: 15 | I14: 25 | J14: 15 | K14: 10 | L14: 65 | M14: 50 | N14: 11.625 | O14: 0.5166666667 | P14: =IF(AND(O14="غ"),"غ",RANK(O14,$O$4:$O$30)+COUNTIF(O$4:O14,O14)-1) -> 17 | Q14: متوسط
A15: 12 | B15: عبدالله خالد فرج سعد الغانم | C15: 4 | D15: 2 | E15: 4 | F15: 2 | H15: 30 | I15: 25 | J15: 15 | K15: 10 | L15: 80 | M15: 50 | N15: 12 | O15: 0.5333333333 | P15: =IF(AND(O15="غ"),"غ",RANK(O15,$O$4:$O$30)+COUNTIF(O$4:O15,O15)-1) -> 16 | Q15: متوسط | S15: الطلاب | T15: العدد | U15: النسبة
A16: 13 | B16: عبدالله محمد الياس صاحب قريشى | C16: 2 | D16: 4 | E16: 2 | F16: 4 | H16: 30 | I16: 25 | J16: 15 | K16: 10 | L16: 80 | M16: 70 | N16: 16 | O16: 0.7111111111 | P16: =IF(AND(O16="غ"),"غ",RANK(O16,$O$4:$O$30)+COUNTIF(O$4:O16,O16)-1) -> 7 | Q16: جيد | S16: الناجحين | T16: =SUM(V4:V8) -> 18 | U16: =X4 -> 0.6923076923
A17: 14 | B17: عبدالله محمد محمد صالح احمدى | C17: 3 | D17: 4 | E17: 3 | F17: 4 | H17: 35 | I17: 25 | J17: 15 | K17: 10 | L17: 85 | M17: 88 | N17: 19.725 | O17: 0.8766666667 | P17: =IF(AND(O17="غ"),"غ",RANK(O17,$O$4:$O$30)+COUNTIF(O$4:O17,O17)-1) -> 2 | Q17: جيد جداً | S17: الراسبين | T17: =SUM(V9:V11) -> 8 | U17: =X9 -> 0.3076923077
A18: 15 | B18: علي راشد الكشاشي المهندي | C18: 3 | D18: 4 | E18: 3 | F18: 4 | H18: 35 | I18: 25 | J18: 15 | K18: 10 | L18: 85 | M18: 62 | N18: 14.525 | O18: 0.6455555556 | P18: =IF(AND(O18="غ"),"غ",RANK(O18,$O$4:$O$30)+COUNTIF(O$4:O18,O18)-1) -> 11 | Q18: فوق المتوسط | S18: المجموع | T18: =SUM(T16:T17) -> 26 | U18: =SUM(U16:U17) -> 1
A19: 16 | B19: عمر خالد محمد هلال محمد | C19: 3 | D19: 3 | E19: 3 | F19: 3 | H19: 30 | I19: 25 | J19: 15 | K19: 10 | L19: 80 | M19: 78 | N19: 17.6 | O19: 0.7822222222 | P19: =IF(AND(O19="غ"),"غ",RANK(O19,$O$4:$O$30)+COUNTIF(O$4:O19,O19)-1) -> 5 | Q19: جيد
A20: 17 | B20: غانم محمد مبارك الهديفى الكوارى | C20: 2 | D20: 3 | E20: 2 | F20: 3 | H20: 25 | I20: 25 | J20: 15 | K20: 10 | L20: 75 | M20: 56 | N20: 13.075 | O20: 0.5811111111 | P20: =IF(AND(O20="غ"),"غ",RANK(O20,$O$4:$O$30)+COUNTIF(O$4:O20,O20)-1) -> 13 | Q20: متوسط | S20: التحصيل الأكاديمي | U20: =AVERAGE(M4:M30)/M$3 -> 0.5746153846
A21: 18 | B21: مازن ماهر | C21: 3 | D21: 3 | E21: 3 | F21: 3 | H21: 30 | I21: 25 | J21: 15 | K21: 10 | L21: 80 | M21: 60 | N21: 14 | O21: 0.6222222222 | P21: =IF(AND(O21="غ"),"غ",RANK(O21,$O$4:$O$30)+COUNTIF(O$4:O21,O21)-1) -> 12 | Q21: فوق المتوسط
A22: 19 | B22: مبارك زايد ماهر | C22: 2 | D22: 2 | E22: 2 | F22: 2 | H22: 20 | I22: 25 | J22: 15 | K22: 10 | L22: 70 | M22: 42 | N22: 10.15 | O22: 0.4511111111 | P22: =IF(AND(O22="غ"),"غ",RANK(O22,$O$4:$O$30)+COUNTIF(O$4:O22,O22)-1) -> 21 | Q22: دون المتوسط
A23: 20 | B23: محمد خالد على عبدالله ابراهيم | C23: 3 | D23: 2 | E23: 3 | F23: 2 | H23: 25 | I23: 25 | J23: 15 | K23: 10 | L23: 75 | M23: 32 | N23: 8.275 | O23: 0.3677777778 | P23: =IF(AND(O23="غ"),"غ",RANK(O23,$O$4:$O$30)+COUNTIF(O$4:O23,O23)-1) -> 25 | Q23: ضعيف
A24: 21 | B24: محمد سعد محمد سعيد الكوارى | D24: 1 | F24: 1 | H24: 5 | I24: 25 | J24: 15 | K24: 10 | L24: 55 | M24: 26 | N24: 6.575 | O24: 0.2922222222 | P24: =IF(AND(O24="غ"),"غ",RANK(O24,$O$4:$O$30)+COUNTIF(O$4:O24,O24)-1) -> 26 | Q24: دون الضعيف جداً | S24: الفرع | T24: الناجحين | U24: الراسبين | V24: التحصيل
A25: 22 | B25: محمد عبدالرحمن محمد طالب | C25: 3 | D25: 3 | E25: 3 | F25: 3 | H25: 30 | I25: 25 | J25: 15 | K25: 10 | L25: 80 | M25: 54 | N25: 12.8 | O25: 0.5688888889 | P25: =IF(AND(O25="غ"),"غ",RANK(O25,$O$4:$O$30)+COUNTIF(O$4:O25,O25)-1) -> 14 | Q25: متوسط | S25: =H2 -> Quizzes | T25: =COUNTIF(H4:H30,">="&H$3/2)/COUNT(H4:H30) -> 0.6538461538 | U25: =IF(T25="","",100%-T25) -> 0.3461538462 | V25: =IF($U25="","",AVERAGE(H4:H30)/H$3) -> 0.4961538462
A26: 23 | B26: مهدى ناصر مهدى يوسف الحداد | C26: 3 | D26: 5 | E26: 3 | F26: 5 | H26: 40 | I26: 25 | J26: 15 | K26: 10 | L26: 90 | M26: 80 | N26: 18.25 | O26: 0.8111111111 | P26: =IF(AND(O26="غ"),"غ",RANK(O26,$O$4:$O$30)+COUNTIF(O$4:O26,O26)-1) -> 3 | Q26: جيد جداً | S26: =I2 -> الواجب | T26: =COUNTIF(I4:I30,">="&I$3/2)/COUNT(I4:I30) -> 1 | U26: 0 | V26: =IF($U26="","",AVERAGE(I4:I30)/I$3) -> 1
A27: 24 | B27: ناصر سلمان ناصر ارشيد المسلم | C27: 2 | D27: 1 | E27: 2 | F27: 1 | H27: 15 | I27: 25 | J27: 15 | K27: 10 | L27: 65 | M27: 54 | N27: 12.425 | O27: 0.5522222222 | P27: =IF(AND(O27="غ"),"غ",RANK(O27,$O$4:$O$30)+COUNTIF(O$4:O27,O27)-1) -> 15 | Q27: متوسط | S27: =J2 -> المشاركة | T27: =COUNTIF(J4:J30,">="&J$3/2)/COUNT(J4:J30) -> 1 | U27: 0 | V27: =IF($U27="","",AVERAGE(J4:J30)/J$3) -> 1
A28: 25 | B28: يوسف عبدالعزيز احمد عبدالعزيز المهيزع | C28: 2 | E28: 2 | H28: 10 | I28: 25 | J28: 15 | K28: 10 | L28: 60 | M28: 48 | N28: 11.1 | O28: 0.4933333333 | P28: =IF(AND(O28="غ"),"غ",RANK(O28,$O$4:$O$30)+COUNTIF(O$4:O28,O28)-1) -> 19 | Q28: دون المتوسط | S28: =K2 -> المشروع | T28: =COUNTIF(K4:K30,">="&K$3/2)/COUNT(K4:K30) -> 1 | U28: 0 | V28: =IF($U28="","",AVERAGE(K4:K30)/K$3) -> 1
A29: 26 | B29: يوسف غانم على فارس البنعلى | C29: 4 | D29: 3 | E29: 4 | F29: 3 | H29: =IF(AND(C29="",D29="",E29="",F29="",G29=""),"غ",$H$3*SUM(C29:G29)/SUM($C$3:$G$3)) -> 35 | I29: 25 | J29: 15 | K29: 10 | L29: =IF(AND(C29="",D29="",E29="",F29="",G29="",I29="",J29="",K29=""),"غ",SUM(H29:K29)) -> 85 | M29: 32 | N29: =IF(M29="","غ",IF(L29="غ",M29*0.2,SUM(L29*2.5/$L$3,M29*0.2))) -> 8.525 | O29: 0.3788888889 | P29: =IF(AND(O29="غ"),"غ",RANK(O29,$O$4:$O$30)+COUNTIF(O$4:O29,O29)-1) -> 23 | Q29: =IF(O29="غ","غ",IF(O29>=90%,"ممتاز",IF(O29>=80%,"جيد جداً",IF(O29>=70%,"جيد",IF(O29>=60%,"فوق المتوسط",IF(O29>=50%,"متوسط",IF(O29>=40%,"دون المتوسط",IF(O29>=30%,"ضعيف","دون الضعيف جداً")))))))) -> ضعيف | S29: =M2 -> Exam | T29: =COUNTIF(M4:M30,">="&M$3/2)/COUNT(M4:M30) -> 0.6923076923 | U29: 0.3076923077 | V29: =IF($U29="","",AVERAGE(M4:M30)/M$3) -> 0.5746153846

Sheet 7-3
A1: Grade (7-3) كشف درجات الطلاب
A2: م | B2: اسم الطالب | C2: Quiz1 | D2: Quiz2 | E2: Quiz3 | F2: Quiz4 | G2: Quiz5 | H2: Quizzes | I2: الواجب | J2: المشاركة | K2: المشروع | L2: Total | M2: Exam | N2: Final | O2: Percent | P2: Rank | Q2: التقدير | S2: تحليل النتائج على حسب التقدير
C3: 5 | D3: 5 | E3: 5 | F3: 5 | G3: درجة5 | H3: 50 | I3: 25 | J3: 15 | K3: 10 | L3: 100 | M3: 100 | N3: 22.5 | O3: (%) | P3: الترتيب | S3: التقدير | T3: المجال | V3: عدد الطلاب | W3: النسبة
A4: 1 | B4: ابراهيم محمود ابراهيم محمود جبر | C4: 5 | D4: 5 | E4: 5 | F4: 5 | H4: =IF(AND(C4="",D4="",E4="",F4="",G4=""),"غ",$H$3*SUM(C4:G4)/SUM($C$3:$G$3)) -> 50 | I4: 25 | J4: 15 | K4: 10 | L4: =IF(AND(C4="",D4="",E4="",F4="",G4="",I4="",J4="",K4=""),"غ",SUM(H4:K4)) -> 100 | M4: 80 | N4: =IF(M4="","غ",IF(L4="غ",M4*0.2,SUM(L4*2.5/$L$3,M4*0.2))) -> 18.5 | O4: =IF(N4="غ","غ",N4*100/$N$3/100) -> 0.8222222222 | P4: =IF(AND(O4="غ"),"غ",RANK(O4,$O$4:$O$30)+COUNTIF(O$4:O4,O4)-1) -> 5 | Q4: =IF(O4="غ","غ",IF(O4>=90%,"ممتاز",IF(O4>=80%,"جيد جداً",IF(O4>=70%,"جيد",IF(O4>=60%,"فوق المتوسط",IF(O4>=50%,"متوسط",IF(O4>=40%,"دون المتوسط",IF(O4>=30%,"ضعيف","دون الضعيف جداً")))))))) -> جيد جداً | S4: ممتاز | T4: ≥ 90 | U4: A+ | V4: =COUNTIF(Q4:Q30,"ممتاز") -> 2 | W4: =(V4/$V$12) -> 0.07692307692 | X4: =SUM(W4:W8) -> 0.6538461538
A5: 2 | B5: احمد يوسف حسن عيد الكوارى | C5: 3 | D5: 3 | E5: 3 | F5: 3 | H5: =IF(AND(C5="",D5="",E5="",F5="",G5=""),"غ",$H$3*SUM(C5:G5)/SUM($C$3:$G$3)) -> 30 | I5: 25 | J5: 15 | K5: 10 | L5: =IF(AND(C5="",D5="",E5="",F5="",G5="",I5="",J5="",K5=""),"غ",SUM(H5:K5)) -> 80 | M5: 86 | N5: =IF(M5="","غ",IF(L5="غ",M5*0.2,SUM(L5*2.5/$L$3,M5*0.2))) -> 19.2 | O5: =IF(N5="غ","غ",N5*100/$N$3/100) -> 0.8533333333 | P5: =IF(AND(O5="غ"),"غ",RANK(O5,$O$4:$O$30)+COUNTIF(O$4:O5,O5)-1) -> 4 | Q5: =IF(O5="غ","غ",IF(O5>=90%,"ممتاز",IF(O5>=80%,"جيد جداً",IF(O5>=70%,"جيد",IF(O5>=60%,"فوق المتوسط",IF(O5>=50%,"متوسط",IF(O5>=40%,"دون المتوسط",IF(O5>=30%,"ضعيف","دون الضعيف جداً")))))))) -> جيد جداً | S5: جيد جداً | T5: ≥ 80 | U5: A | V5: =COUNTIF(Q4:Q30,"جيد جداً") -> 5 | W5: 0.1923076923
A6: 3 | B6: امان خالد اسماعيل سالم العدسانى | C6: 3 | E6: 3 | H6: 15 | I6: 25 | J6: 15 | K6: 10 | L6: 65 | M6: 50 | N6: 11.625 | O6: 0.5166666667 | P6: =IF(AND(O6="غ"),"غ",RANK(O6,$O$4:$O$30)+COUNTIF(O$4:O6,O6)-1) -> 16 | Q6: متوسط | S6: جيد | T6: ≥ 70 | U6: B+ | V6: =COUNTIF(Q4:Q30,"جيد") -> 1 | W6: 0.03846153846
A7: 4 | B7: جاسم راشد على راشد المهندى | C7: 3 | D7: 4 | E7: 3 | F7: 4 | H7: 35 | I7: 25 | J7: 15 | K7: 10 | L7: 85 | M7: 44 | N7: 10.925 | O7: 0.4855555556 | P7: =IF(AND(O7="غ"),"غ",RANK(O7,$O$4:$O$30)+COUNTIF(O$4:O7,O7)-1) -> 18 | Q7: دون المتوسط | S7: فوق المتوسط | T7: ≥ 60 | U7: B | V7: =COUNTIF(Q4:Q30,"فوق المتوسط") -> 4 | W7: 0.1538461538
A8: 5 | B8: حامد محمد طاهر | C8: 5 | D8: 5 | E8: 5 | F8: 5 | H8: 50 | I8: 25 | J8: 15 | K8: 10 | L8: 100 | M8: 86 | N8: 19.7 | O8: 0.8755555556 | P8: =IF(AND(O8="غ"),"غ",RANK(O8,$O$4:$O$30)+COUNTIF(O$4:O8,O8)-1) -> 3 | Q8: جيد جداً | S8: متوسط | T8: ≥ 50 | U8: C | V8: =COUNTIF(Q4:Q30,"متوسط") -> 5 | W8: 0.1923076923
A9: 6 | B9: حمد ماجد خاطر الخويطر العجمى | C9: 2 | D9: 2 | E9: 2 | F9: 2 | H9: 20 | I9: 25 | J9: 15 | K9: 10 | L9: 70 | M9: 44 | N9: 10.55 | O9: 0.4688888889 | P9: =IF(AND(O9="غ"),"غ",RANK(O9,$O$4:$O$30)+COUNTIF(O$4:O9,O9)-1) -> 20 | Q9: دون المتوسط | S9: دون المتوسط | T9: ≥ 40 | U9: D | V9: =COUNTIF(Q4:Q30,"دون المتوسط") -> 8 | W9: 0.3076923077 | X9: =SUM(W9:W11) -> 0.3461538462
A10: 7 | B10: خالد جمال غيث الخويطر العجمى | C10: 5 | D10: 4 | E10: 5 | F10: 4 | H10: 45 | I10: 25 | J10: 15 | K10: 10 | L10: 95 | M10: 92 | N10: 20.775 | O10: 0.9233333333 | P10: =IF(AND(O10="غ"),"غ",RANK(O10,$O$4:$O$30)+COUNTIF(O$4:O10,O10)-1) -> 2 | Q10: ممتاز | S10: ضعيف | T10: ≥ 30 | U10: E | V10: =COUNTIF(Q4:Q30,"ضعيف") -> 1 | W10: 0.03846153846
A11: 8 | B11: خليفه راشد جابر راشد الدوسرى | C11: 4 | D11: 4 | E11: 4 | F11: 4 | H11: 40 | I11: 25 | J11: 15 | K11: 10 | L11: 90 | M11: 58 | N11: 13.85 | O11: 0.6155555556 | P11: =IF(AND(O11="غ"),"غ",RANK(O11,$O$4:$O$30)+COUNTIF(O$4:O11,O11)-1) -> 11 | Q11: فوق المتوسط | S11: دون الضعيف جداً | T11: < 30 | U11: F | V11: =COUNTIF(Q4:Q30,"دون الضعيف جداً") -> 0 | W11: 0
A12: 9 | B12: درويش ابراهيم درويش عبدالله مشهدى | D12: 4 | F12: 4 | H12: 20 | I12: 25 | J12: 15 | K12: 10 | L12: 70 | M12: 82 | N12: 18.15 | O12: 0.8066666667 | P12: =IF(AND(O12="غ"),"غ",RANK(O12,$O$4:$O$30)+COUNTIF(O$4:O12,O12)-1) -> 6 | Q12: جيد جداً | S12: عدد الطلاب الذي تم اختبارهم | V12: =SUM(V4:V11) -> 26 | W12: =V12/SUM(V12:V13) -> 1
A13: 10 | B13: شافى ابراهيم مبارك بتال الدوسرى | C13: 3 | D13: 0 | E13: 3 | F13: 0 | H13: 15 | I13: 25 | J13: 15 | K13: 10 | L13: 65 | M13: 40 | N13: 9.625 | O13: 0.4277777778 | P13: =IF(AND(O13="غ"),"غ",RANK(O13,$O$4:$O$30)+COUNTIF(O$4:O13,O13)-1) -> 25 | Q13: دون المتوسط | S13: عدد الطلاب الغائبين | V13: =COUNTA(B4:B30)-V12 -> 0 | W13: =V13/SUM(V12:V13) -> 0
A14: 11 | B14: صباح مبارك اسماعيل فرج العبيدان | C14: 3 | E14: 3 | H14: 15 | I14: 25 | J14: 15 | K14: 10 | L14: 65 | M14: 42 | N14: 10.025 | O14: 0.4455555556 | P14: =IF(AND(O14="غ"),"غ",RANK(O14,$O$4:$O$30)+COUNTIF(O$4:O14,O14)-1) -> 21 | Q14: دون المتوسط
A15: 12 | B15: عبد الرحمن إبراهيم عبد الله المناعي | C15: 3 | D15: 2 | E15: 3 | F15: 2 | H15: 25 | I15: 25 | J15: 15 | K15: 10 | L15: 75 | M15: 40 | N15: 9.875 | O15: 0.4388888889 | P15: =IF(AND(O15="غ"),"غ",RANK(O15,$O$4:$O$30)+COUNTIF(O$4:O15,O15)-1) -> 23 | Q15: دون المتوسط | S15: الطلاب | T15: العدد | U15: النسبة
A16: 13 | B16: عبدالرحمن حفظ محمد | C16: 3 | D16: 4 | E16: 3 | F16: 4 | H16: 35 | I16: 25 | J16: 15 | K16: 10 | L16: 85 | M16: 80 | N16: 18.125 | O16: 0.8055555556 | P16: =IF(AND(O16="غ"),"غ",RANK(O16,$O$4:$O$30)+COUNTIF(O$4:O16,O16)-1) -> 7 | Q16: جيد جداً | S16: الناجحين | T16: =SUM(V4:V8) -> 17 | U16: =X4 -> 0.6538461538
A17: 14 | B17: عبدالرحمن محمد اسامه عثمان محمد | C17: 4 | D17: 3 | E17: 4 | F17: 3 | H17: 35 | I17: 25 | J17: 15 | K17: 10 | L17: 85 | M17: 68 | N17: 15.725 | O17: 0.6988888889 | P17: =IF(AND(O17="غ"),"غ",RANK(O17,$O$4:$O$30)+COUNTIF(O$4:O17,O17)-1) -> 9 | Q17: فوق المتوسط | S17: الراسبين | T17: =SUM(V9:V11) -> 9 | U17: =X9 -> 0.3461538462
A18: 15 | B18: عبدالله خالد على الشيخ الكوارى | C18: 2 | E18: 2 | H18: 10 | I18: 25 | J18: 15 | K18: 10 | L18: 60 | M18: 50 | N18: 11.5 | O18: 0.5111111111 | P18: =IF(AND(O18="غ"),"غ",RANK(O18,$O$4:$O$30)+COUNTIF(O$4:O18,O18)-1) -> 17 | Q18: متوسط | S18: المجموع | T18: =SUM(T16:T17) -> 26 | U18: =SUM(U16:U17) -> 1
A19: 16 | B19: عبدالله مبارك درويش محمد ابوهميل | C19: 2 | D19: 1 | E19: 2 | F19: 1 | H19: 15 | I19: 25 | J19: 15 | K19: 10 | L19: 65 | M19: 60 | N19: 13.625 | O19: 0.6055555556 | P19: =IF(AND(O19="غ"),"غ",RANK(O19,$O$4:$O$30)+COUNTIF(O$4:O19,O19)-1) -> 12 | Q19: فوق المتوسط
A20: 17 | B20: عبدالله ناصر عبدالله العلى المعاضيد | C20: 1 | D20: 1 | E20: 1 | F20: 1 | H20: 10 | I20: 25 | J20: 15 | K20: 10 | L20: 60 | M20: 28 | N20: 7.1 | O20: 0.3155555556 | P20: =IF(AND(O20="غ"),"غ",RANK(O20,$O$4:$O$30)+COUNTIF(O$4:O20,O20)-1) -> 26 | Q20: ضعيف | S20: التحصيل الأكاديمي | U20: =AVERAGE(M4:M30)/M$3 -> 0.5946153846
A21: 18 | B21: غيث ناصر غيث الخويطر العجمى | C21: 2 | D21: 3 | E21: 2 | F21: 3 | H21: 25 | I21: 25 | J21: 15 | K21: 10 | L21: 75 | M21: 50 | N21: 11.875 | O21: 0.5277777778 | P21: =IF(AND(O21="غ"),"غ",RANK(O21,$O$4:$O$30)+COUNTIF(O$4:O21,O21)-1) -> 15 | Q21: متوسط
A22: 19 | B22: ماجد سلطان عبدالرحمن عبدالله الغزال | D22: 2 | F22: 2 | H22: 10 | I22: 25 | J22: 15 | K22: 10 | L22: 60 | M22: 42 | N22: 9.9 | O22: 0.44 | P22: =IF(AND(O22="غ"),"غ",RANK(O22,$O$4:$O$30)+COUNTIF(O$4:O22,O22)-1) -> 22 | Q22: دون المتوسط
A23: 20 | B23: مبارك سالم محمد سالم الشحبل | C23: 3 | D23: 2 | E23: 3 | F23: 2 | H23: 25 | I23: 25 | J23: 15 | K23: 10 | L23: 75 | M23: 40 | N23: 9.875 | O23: 0.4388888889 | P23: =IF(AND(O23="غ"),"غ",RANK(O23,$O$4:$O$30)+COUNTIF(O$4:O23,O23)-1) -> 24 | Q23: دون المتوسط
A24: 21 | B24: محمد خليفه سالمين سيار المحمد | C24: 2 | D24: 3 | E24: 2 | F24: 3 | H24: 25 | I24: 25 | J24: 15 | K24: 10 | L24: 75 | M24: 44 | N24: 10.675 | O24: 0.4744444444 | P24: =IF(AND(O24="غ"),"غ",RANK(O24,$O$4:$O$30)+COUNTIF(O$4:O24,O24)-1) -> 19 | Q24: دون المتوسط | S24: الفرع | T24: الناجحين | U24: الراسبين | V24: التحصيل
A25: 22 | B25: محمد عبدالكريم عبدالرحيم عبدالله | C25: 3 | D25: 3 | E25: 3 | F25: 3 | H25: 30 | I25: 25 | J25: 15 | K25: 10 | L25: 80 | M25: 56 | N25: 13.2 | O25: 0.5866666667 | P25: =IF(AND(O25="غ"),"غ",RANK(O25,$O$4:$O$30)+COUNTIF(O$4:O25,O25)-1) -> 13 | Q25: متوسط | S25: =H2 -> Quizzes | T25: =COUNTIF(H4:H30,">="&H$3/2)/COUNT(H4:H30) -> 0.6538461538 | U25: =IF(T25="","",100%-T25) -> 0.3461538462 | V25: =IF($U25="","",AVERAGE(H4:H30)/H$3) -> 0.5615384615
A26: 23 | B26: مشعل ناصر محمد قاسم السبيعى | C26: 2 | D26: 4 | E26: 2 | F26: 4 | H26: 30 | I26: 25 | J26: 15 | K26: 10 | L26: 80 | M26: 50 | N26: 12 | O26: 0.5333333333 | P26: =IF(AND(O26="غ"),"غ",RANK(O26,$O$4:$O$30)+COUNTIF(O$4:O26,O26)-1) -> 14 | Q26: متوسط | S26: =I2 -> الواجب | T26: =COUNTIF(I4:I30,">="&I$3/2)/COUNT(I4:I30) -> 1 | U26: 0 | V26: =IF($U26="","",AVERAGE(I4:I30)/I$3) -> 1
A27: 24 | B27: ناصر على ناصر الاسود الكبيسى | C27: 2 | D27: 4 | E27: 2 | F27: 4 | H27: 30 | I27: 25 | J27: 15 | K27: 10 | L27: 80 | M27: 68 | N27: 15.6 | O27: 0.6933333333 | P27: =IF(AND(O27="غ"),"غ",RANK(O27,$O$4:$O$30)+COUNTIF(O$4:O27,O27)-1) -> 10 | Q27: فوق المتوسط | S27: =J2 -> المشاركة | T27: =COUNTIF(J4:J30,">="&J$3/2)/COUNT(J4:J30) -> 1 | U27: 0 | V27: =IF($U27="","",AVERAGE(J4:J30)/J$3) -> 1
A28: 25 | B28: يوسف صالح احمد ابوبكر حسين | C28: 4 | D28: 5 | E28: 4 | F28: 5 | H28: 45 | I28: 25 | J28: 15 | K28: 10 | L28: 95 | M28: 72 | N28: 16.775 | O28: 0.7455555556 | P28: =IF(AND(O28="غ"),"غ",RANK(O28,$O$4:$O$30)+COUNTIF(O$4:O28,O28)-1) -> 8 | Q28: جيد | S28: =K2 -> المشروع | T28: =COUNTIF(K4:K30,">="&K$3/2)/COUNT(K4:K30) -> 1 | U28: 0 | V28: =IF($U28="","",AVERAGE(K4:K30)/K$3) -> 1
A29: 26 | B29: يونس محمد محمد هيثم | C29: 4 | D29: 5 | E29: 4 | F29: 5 | H29: =IF(AND(C29="",D29="",E29="",F29="",G29=""),"غ",$H$3*SUM(C29:G29)/SUM($C$3:$G$3)) -> 45 | I29: 25 | J29: 15 | K29: 10 | L29: =IF(AND(C29="",D29="",E29="",F29="",G29="",I29="",J29="",K29=""),"غ",SUM(H29:K29)) -> 95 | M29: 94 | N29: =IF(M29="","غ",IF(L29="غ",M29*0.2,SUM(L29*2.5/$L$3,M29*0.2))) -> 21.175 | O29: 0.9411111111 | P29: =IF(AND(O29="غ"),"غ",RANK(O29,$O$4:$O$30)+COUNTIF(O$4:O29,O29)-1) -> 1 | Q29: =IF(O29="غ","غ",IF(O29>=90%,"ممتاز",IF(O29>=80%,"جيد جداً",IF(O29>=70%,"جيد",IF(O29>=60%,"فوق المتوسط",IF(O29>=50%,"متوسط",IF(O29>=40%,"دون المتوسط",IF(O29>=30%,"ضعيف","دون الضعيف جداً")))))))) -> ممتاز | S29: =M2 -> Exam | T29: =COUNTIF(M4:M30,">="&M$3/2)/COUNT(M4:M30) -> 0.6538461538 | U29: 0.3461538462 | V29: =IF($U29="","",AVERAGE(M4:M30)/M$3) -> 0.5946153846

Sheet 7-4
A1: Grade (7-4) كشف درجات الطلاب
A2: م | B2: اسم الطالب | C2: Quiz1 | D2: Quiz2 | E2: Quiz3 | F2: Quiz4 | G2: Quiz5 | H2: Quizzes | I2: الواجب | J2: المشاركة | K2: المشروع | L2: Total | M2: Exam | N2: Final | O2: Percent | P2: Rank | Q2: التقدير | S2: تحليل النتائج على حسب التقدير
C3: 5 | D3: 5 | E3: 5 | F3: 5 | G3: 5 | H3: 50 | I3: 25 | J3: 15 | K3: 10 | L3: 100 | M3: 100 | N3: 22.5 | O3: (%) | P3: الترتيب | S3: التقدير | T3: المجال | V3: عدد الطلاب | W3: النسبة
A4: 1 | B4: احمد حافظ | C4: 3.5 | D4: 2 | E4: 3.5 | F4: 2 | H4: =IF(AND(C4="",D4="",E4="",F4="",G4=""),"غ",$H$3*SUM(C4:G4)/SUM($C$3:$G$3)) -> 22 | I4: 25 | J4: 15 | K4: 10 | L4: =IF(AND(C4="",D4="",E4="",F4="",G4="",I4="",J4="",K4=""),"غ",SUM(H4:K4)) -> 72 | M4: 92 | N4: =IF(M4="","غ",IF(L4="غ",M4*0.2,SUM(L4*2.5/$L$3,M4*0.2))) -> 20.2 | O4: =IF(N4="غ","غ",N4*100/$N$3/100) -> 0.8977777778 | P4: =IF(AND(O4="غ"),"غ",RANK(O4,$O$4:$O$30)+COUNTIF(O$4:O4,O4)-1) -> 1 | Q4: =IF(O4="غ","غ",IF(O4>=90%,"ممتاز",IF(O4>=80%,"جيد جداً",IF(O4>=70%,"جيد",IF(O4>=60%,"فوق المتوسط",IF(O4>=50%,"متوسط",IF(O4>=40%,"دون المتوسط",IF(O4>=30%,"ضعيف","دون الضعيف جداً")))))))) -> جيد جداً | S4: ممتاز | T4: ≥ 90 | U4: A+ | V4: =COUNTIF(Q4:Q30,"ممتاز") -> 0 | W4: =(V4/$V$12) -> 0 | X4: =SUM(W4:W8) -> 0.5185185185
A5: 2 | B5: احمد يوسف احمد ناصر الحميدى | C5: 1.5 | D5: 1 | E5: 1.5 | F5: 1 | H5: =IF(AND(C5="",D5="",E5="",F5="",G5=""),"غ",$H$3*SUM(C5:G5)/SUM($C$3:$G$3)) -> 10 | I5: 20 | J5: 10 | K5: 3 | L5: =IF(AND(C5="",D5="",E5="",F5="",G5="",I5="",J5="",K5=""),"غ",SUM(H5:K5)) -> 43 | M5: 70 | N5: =IF(M5="","غ",IF(L5="غ",M5*0.2,SUM(L5*2.5/$L$3,M5*0.2))) -> 15.075 | O5: =IF(N5="غ","غ",N5*100/$N$3/100) -> 0.67 | P5: =IF(AND(O5="غ"),"غ",RANK(O5,$O$4:$O$30)+COUNTIF(O$4:O5,O5)-1) -> 8 | Q5: =IF(O5="غ","غ",IF(O5>=90%,"ممتاز",IF(O5>=80%,"جيد جداً",IF(O5>=70%,"جيد",IF(O5>=60%,"فوق المتوسط",IF(O5>=50%,"متوسط",IF(O5>=40%,"دون المتوسط",IF(O5>=30%,"ضعيف","دون الضعيف جداً")))))))) -> فوق المتوسط | S5: جيد جداً | T5: ≥ 80 | U5: A | V5: =COUNTIF(Q4:Q30,"جيد جداً") -> 5 | W5: 0.1851851852
A6: 3 | B6: ايمن خالد سليمان محمد | C6: 3 | D6: 3 | E6: 3 | F6: 3 | H6: 24 | I6: 25 | J6: 15 | K6: 10 | L6: 74 | M6: 90 | N6: 19.85 | O6: 0.8822222222 | P6: =IF(AND(O6="غ"),"غ",RANK(O6,$O$4:$O$30)+COUNTIF(O$4:O6,O6)-1) -> 4 | Q6: جيد جداً | S6: جيد | T6: ≥ 70 | U6: B+ | V6: =COUNTIF(Q4:Q30,"جيد") -> 2 | W6: 0.07407407407
A7: 4 | B7: جاسم احمد سعد ال سعد الكوارى | C7: 3.5 | D7: 2.5 | E7: 3.5 | F7: 2.5 | H7: 24 | I7: 25 | J7: 15 | K7: 10 | L7: 74 | M7: 78 | N7: 17.45 | O7: 0.7755555556 | P7: =IF(AND(O7="غ"),"غ",RANK(O7,$O$4:$O$30)+COUNTIF(O$4:O7,O7)-1) -> 6 | Q7: جيد | S7: فوق المتوسط | T7: ≥ 60 | U7: B | V7: =COUNTIF(Q4:Q30,"فوق المتوسط") -> 3 | W7: 0.1111111111
A8: 5 | B8: حجازى سلام عمر سلام | C8: 0.5 | D8: 2 | E8: 0.5 | F8: 2 | H8: 10 | I8: 25 | J8: 11 | K8: 5 | L8: 51 | M8: 34 | N8: 8.075 | O8: 0.3588888889 | P8: =IF(AND(O8="غ"),"غ",RANK(O8,$O$4:$O$30)+COUNTIF(O$4:O8,O8)-1) -> 21 | Q8: ضعيف | S8: متوسط | T8: ≥ 50 | U8: C | V8: =COUNTIF(Q4:Q30,"متوسط") -> 4 | W8: 0.1481481481
A9: 6 | B9: حمد فاضل فاضل جمعه مفتاح | C9: 2.5 | D9: 2 | E9: 2.5 | F9: 2 | H9: 18 | I9: 25 | J9: 15 | K9: 10 | L9: 68 | M9: 92 | N9: 20.1 | O9: 0.8933333333 | P9: =IF(AND(O9="غ"),"غ",RANK(O9,$O$4:$O$30)+COUNTIF(O$4:O9,O9)-1) -> 3 | Q9: جيد جداً | S9: دون المتوسط | T9: ≥ 40 | U9: D | V9: =COUNTIF(Q4:Q30,"دون المتوسط") -> 4 | W9: 0.1481481481 | X9: =SUM(W9:W11) -> 0.4814814815
A10: 7 | B10: خالد صالح محمد المحرى المهندى | C10: 0.5 | D10: 1.5 | E10: 0.5 | F10: 1.5 | H10: 8 | I10: 24 | J10: 12 | K10: 5 | L10: 49 | M10: 28 | N10: 6.825 | O10: 0.3033333333 | P10: =IF(AND(O10="غ"),"غ",RANK(O10,$O$4:$O$30)+COUNTIF(O$4:O10,O10)-1) -> 26 | Q10: ضعيف | S10: ضعيف | T10: ≥ 30 | U10: E | V10: =COUNTIF(Q4:Q30,"ضعيف") -> 8 | W10: 0.2962962963
A11: 8 | B11: خلف احمد خلف محمد الكبيسى | D11: 0 | F11: 0 | H11: 0 | I11: 20 | J11: 10 | K11: 3 | L11: 33 | M11: 34 | N11: 7.625 | O11: 0.3388888889 | P11: =IF(AND(O11="غ"),"غ",RANK(O11,$O$4:$O$30)+COUNTIF(O$4:O11,O11)-1) -> 24 | Q11: ضعيف | S11: دون الضعيف جداً | T11: < 30 | U11: F | V11: =COUNTIF(Q4:Q30,"دون الضعيف جداً") -> 1 | W11: 0.03703703704
A12: 9 | B12: راشد خالد عبداللطيف راشد المهندى | C12: 0.5 | D12: 1 | E12: 0.5 | F12: 1 | H12: 6 | I12: 20 | J12: 10 | K12: 3 | L12: 39 | M12: 70 | N12: 14.975 | O12: 0.6655555556 | P12: =IF(AND(O12="غ"),"غ",RANK(O12,$O$4:$O$30)+COUNTIF(O$4:O12,O12)-1) -> 9 | Q12: فوق المتوسط | S12: عدد الطلاب الذي تم اختبارهم | V12: =SUM(V4:V11) -> 27 | W12: =V12/SUM(V12:V13) -> 1
A13: 10 | B13: سعد سعيد عبدالرحيم عمر | C13: 0 | D13: 0 | E13: 0 | F13: 0 | H13: 0 | I13: 22 | J13: 11 | K13: 5 | L13: 38 | M13: 52 | N13: 11.35 | O13: 0.5044444444 | P13: =IF(AND(O13="غ"),"غ",RANK(O13,$O$4:$O$30)+COUNTIF(O$4:O13,O13)-1) -> 13 | Q13: متوسط | S13: عدد الطلاب الغائبين | V13: =COUNTA(B4:B30)-V12 -> 0 | W13: =V13/SUM(V12:V13) -> 0
A14: 11 | B14: سلمان محمود بلمهدي | C14: 3.5 | D14: 1.5 | E14: 3.5 | F14: 1.5 | H14: 20 | I14: 25 | J14: 15 | K14: 10 | L14: 70 | M14: 92 | N14: 20.15 | O14: 0.8955555556 | P14: =IF(AND(O14="غ"),"غ",RANK(O14,$O$4:$O$30)+COUNTIF(O$4:O14,O14)-1) -> 2 | Q14: جيد جداً
A15: 12 | B15: صقر على صقر الجبر النعيمى | C15: 0.5 | D15: 0 | E15: 0.5 | F15: 0 | H15: 2 | I15: 20 | J15: 11 | K15: 3 | L15: 36 | M15: 30 | N15: 6.9 | O15: 0.3066666667 | P15: =IF(AND(O15="غ"),"غ",RANK(O15,$O$4:$O$30)+COUNTIF(O$4:O15,O15)-1) -> 25 | Q15: ضعيف | S15: الطلاب | T15: العدد | U15: النسبة
A16: 13 | B16: عبد العزيز بدر النهدي | D16: 2.5 | F16: 2.5 | H16: 10 | I16: 25 | J16: 15 | K16: 10 | L16: 60 | M16: 88 | N16: 19.1 | O16: 0.8488888889 | P16: =IF(AND(O16="غ"),"غ",RANK(O16,$O$4:$O$30)+COUNTIF(O$4:O16,O16)-1) -> 5 | Q16: جيد جداً | S16: الناجحين | T16: =SUM(V4:V8) -> 14 | U16: =X4 -> 0.5185185185
A17: 14 | B17: عبدالرحمن حسن سلمان يوسف المؤمن | C17: 2.5 | D17: 2 | E17: 2.5 | F17: 2 | H17: 18 | I17: 25 | J17: 14 | K17: 10 | L17: 67 | M17: 42 | N17: 10.075 | O17: 0.4477777778 | P17: =IF(AND(O17="غ"),"غ",RANK(O17,$O$4:$O$30)+COUNTIF(O$4:O17,O17)-1) -> 15 | Q17: دون المتوسط | S17: الراسبين | T17: =SUM(V9:V11) -> 13 | U17: =X9 -> 0.4814814815
A18: 15 | B18: عبدالرحمن محمد محمد الحبابى | C18: 1 | E18: 1 | H18: 4 | I18: 22 | J18: 10 | K18: 5 | L18: 41 | M18: 38 | N18: 8.625 | O18: 0.3833333333 | P18: =IF(AND(O18="غ"),"غ",RANK(O18,$O$4:$O$30)+COUNTIF(O$4:O18,O18)-1) -> 19 | Q18: ضعيف | S18: المجموع | T18: =SUM(T16:T17) -> 27 | U18: =SUM(U16:U17) -> 1
A19: 16 | B19: عبدالله احمد مبارك الكميت الرميحى | C19: 1.5 | D19: 0 | E19: 1.5 | F19: 0 | H19: 6 | I19: 25 | J19: 13 | K19: 10 | L19: 54 | M19: 24 | N19: 6.15 | O19: 0.2733333333 | P19: =IF(AND(O19="غ"),"غ",RANK(O19,$O$4:$O$30)+COUNTIF(O$4:O19,O19)-1) -> 27 | Q19: دون الضعيف جداً
A20: 17 | B20: عبدالله خالد مبارك خميس الخليفى | C20: 0 | D20: 1 | E20: 0 | F20: 1 | H20: 4 | I20: 25 | J20: 15 | K20: 7 | L20: 51 | M20: 34 | N20: 8.075 | O20: 0.3588888889 | P20: =IF(AND(O20="غ"),"غ",RANK(O20,$O$4:$O$30)+COUNTIF(O$4:O20,O20)-1) -> 22 | Q20: ضعيف | S20: التحصيل الأكاديمي | U20: =AVERAGE(M4:M30)/M$3 -> 0.5488888889
A21: 18 | B21: عبدالله على محمد ال سند الدوسرى | C21: 2.5 | D21: 2 | E21: 2.5 | F21: 2 | H21: 18 | I21: 23 | J21: 14 | K21: 8 | L21: 63 | M21: 50 | N21: 11.575 | O21: 0.5144444444 | P21: =IF(AND(O21="غ"),"غ",RANK(O21,$O$4:$O$30)+COUNTIF(O$4:O21,O21)-1) -> 12 | Q21: متوسط
A22: 19 | B22: عبدالله ناصر حمد الجبر النعيمى | C22: 0 | D22: 2 | E22: 0 | F22: 2 | H22: 8 | I22: 20 | J22: 10 | K22: 3 | L22: 41 | M22: 38 | N22: 8.625 | O22: 0.3833333333 | P22: =IF(AND(O22="غ"),"غ",RANK(O22,$O$4:$O$30)+COUNTIF(O$4:O22,O22)-1) -> 20 | Q22: ضعيف
A23: 20 | B23: على ناصر راشد سعيد الشهرانى | C23: 2.5 | D23: 1 | E23: 2.5 | F23: 1 | H23: 14 | I23: 25 | J23: 15 | K23: 10 | L23: 64 | M23: 76 | N23: 16.8 | O23: 0.7466666667 | P23: =IF(AND(O23="غ"),"غ",RANK(O23,$O$4:$O$30)+COUNTIF(O$4:O23,O23)-1) -> 7 | Q23: جيد
A24: 21 | B24: فهد احمد فاضل الجهام الكوارى | C24: 0 | D24: 1 | E24: 0 | F24: 1 | H24: 4 | I24: 25 | J24: 13 | K24: 7 | L24: 49 | M24: 40 | N24: 9.225 | O24: 0.41 | P24: =IF(AND(O24="غ"),"غ",RANK(O24,$O$4:$O$30)+COUNTIF(O$4:O24,O24)-1) -> 17 | Q24: دون المتوسط | S24: الفرع | T24: الناجحين | U24: الراسبين | V24: التحصيل
A25: 22 | B25: محمد على سعد بونجوم السليطى | C25: 0 | D25: 2 | E25: 0 | F25: 2 | H25: 8 | I25: 20 | J25: 10 | K25: 3 | L25: 41 | M25: 40 | N25: 9.025 | O25: 0.4011111111 | P25: =IF(AND(O25="غ"),"غ",RANK(O25,$O$4:$O$30)+COUNTIF(O$4:O25,O25)-1) -> 18 | Q25: دون المتوسط | S25: =H2 -> Quizzes | T25: =COUNTIF(H4:H30,">="&H$3/2)/COUNT(H4:H30) -> 0 | U25: =IF(T25="","",100%-T25) -> 1 | V25: =IF($U25="","",AVERAGE(H4:H30)/H$3) -> 0.2118518519
A26: 23 | B26: محمود لقمان برهان الكردى | C26: 2 | D26: 2 | E26: 2 | F26: 2 | H26: 16 | I26: 22 | J26: 11 | K26: 5 | L26: 54 | M26: 50 | N26: 11.35 | O26: 0.5044444444 | P26: =IF(AND(O26="غ"),"غ",RANK(O26,$O$4:$O$30)+COUNTIF(O$4:O26,O26)-1) -> 14 | Q26: متوسط | S26: =I2 -> الواجب | T26: =COUNTIF(I4:I30,">="&I$3/2)/COUNT(I4:I30) -> 1 | U26: 0 | V26: =IF($U26="","",AVERAGE(I4:I30)/I$3) -> 0.922962963
A27: 24 | B27: مؤمن عطاالله عبدالحميد عيسى عبدالرسول | C27: 3.5 | D27: 1 | E27: 3.5 | F27: 1 | H27: 18 | I27: 25 | J27: 15 | K27: 10 | L27: 68 | M27: 66 | N27: 14.9 | O27: 0.6622222222 | P27: =IF(AND(O27="غ"),"غ",RANK(O27,$O$4:$O$30)+COUNTIF(O$4:O27,O27)-1) -> 10 | Q27: فوق المتوسط | S27: =J2 -> المشاركة | T27: =COUNTIF(J4:J30,">="&J$3/2)/COUNT(J4:J30) -> 1 | U27: 0 | V27: =IF($U27="","",AVERAGE(J4:J30)/J$3) -> 0.8395061728
A28: 25 | B28: ناصر صالح بوجلوف | C28: 0 | D28: 0 | E28: 0 | F28: 0 | H28: 0 | I28: 22 | J28: 13 | K28: 5 | L28: 40 | M28: 34 | N28: 7.8 | O28: 0.3466666667 | P28: =IF(AND(O28="غ"),"غ",RANK(O28,$O$4:$O$30)+COUNTIF(O$4:O28,O28)-1) -> 23 | Q28: ضعيف | S28: =K2 -> المشروع | T28: =COUNTIF(K4:K30,">="&K$3/2)/COUNT(K4:K30) -> 0.7407407407 | U28: 0.2592592593 | V28: =IF($U28="","",AVERAGE(K4:K30)/K$3) -> 0.6592592593
A29: 26 | B29: ناصر محمد عبدالله محمد المنصورى | C29: 2.5 | E29: 2.5 | H29: =IF(AND(C29="",D29="",E29="",F29="",G29=""),"غ",$H$3*SUM(C29:G29)/SUM($C$3:$G$3)) -> 10 | I29: 20 | J29: 10 | K29: 3 | L29: =IF(AND(C29="",D29="",E29="",F29="",G29="",I29="",J29="",K29=""),"غ",SUM(H29:K29)) -> 43 | M29: 44 | N29: =IF(M29="","غ",IF(L29="غ",M29*0.2,SUM(L29*2.5/$L$3,M29*0.2))) -> 9.875 | O29: 0.4388888889 | P29: =IF(AND(O29="غ"),"غ",RANK(O29,$O$4:$O$30)+COUNTIF(O$4:O29,O29)-1) -> 16 | Q29: =IF(O29="غ","غ",IF(O29>=90%,"ممتاز",IF(O29>=80%,"جيد جداً",IF(O29>=70%,"جيد",IF(O29>=60%,"فوق المتوسط",IF(O29>=50%,"متوسط",IF(O29>=40%,"دون المتوسط",IF(O29>=30%,"ضعيف","دون الضعيف جداً")))))))) -> دون المتوسط | S29: =M2 -> Exam | T29: =COUNTIF(M4:M30,">="&M$3/2)/COUNT(M4:M30) -> 0.5185185185 | U29: 0.4814814815 | V29: =IF($U29="","",AVERAGE(M4:M30)/M$3) -> 0.5488888889
A30: 27 | B30: يوسف جمعان بشير على الاحمد | C30: 0 | D30: 1 | E30: 0 | F30: 1 | H30: 4 | I30: 23 | J30: 12 | K30: 5 | L30: 44 | M30: 56 | N30: 12.3 | O30: 0.5466666667 | P30: =IF(AND(O30="غ"),"غ",RANK(O30,$O$4:$O$30)+COUNTIF(O$4:O30,O30)-1) -> 11 | Q30: متوسط

Sheet 7-5
A1: Grade (7-5) كشف درجات الطلاب
A2: م | B2: اسم الطالب | C2: Quiz1 | D2: Quiz2 | E2: Quiz3 | F2: Quiz4 | G2: Quiz5 | H2: Quizzes | I2: الواجب | J2: المشاركة | K2: المشروع | L2: Total | M2: Exam | N2: Final | O2: Percent | P2: Rank | Q2: التقدير | S2: تحليل النتائج على حسب التقدير
C3: 5 | D3: 5 | E3: 5 | F3: 5 | G3: 5 | H3: 50 | I3: 25 | J3: 15 | K3: 10 | L3: 100 | M3: 100 | N3: 22.5 | O3: (%) | P3: الترتيب | S3: التقدير | T3: المجال | V3: عدد الطلاب | W3: النسبة
A4: 1 | B4: احمد مبارك خلف الالشيخ الكوارى | C4: 1 | E4: 1 | H4: =IF(AND(C4="",D4="",E4="",F4="",G4=""),"غ",$H$3*SUM(C4:G4)/SUM($C$3:$G$3)) -> 4 | I4: 20 | J4: 12 | K4: 7 | L4: =IF(AND(C4="",D4="",E4="",F4="",G4="",I4="",J4="",K4=""),"غ",SUM(H4:K4)) -> 43 | M4: 38 | N4: =IF(M4="","غ",IF(L4="غ",M4*0.2,SUM(L4*2.5/$L$3,M4*0.2))) -> 8.675 | O4: =IF(N4="غ","غ",N4*100/$N$3/100) -> 0.3855555556 | P4: =IF(AND(O4="غ"),"غ",RANK(O4,$O$4:$O$30)+COUNTIF(O$4:O4,O4)-1) -> 15 | Q4: =IF(O4="غ","غ",IF(O4>=90%,"ممتاز",IF(O4>=80%,"جيد جداً",IF(O4>=70%,"جيد",IF(O4>=60%,"فوق المتوسط",IF(O4>=50%,"متوسط",IF(O4>=40%,"دون المتوسط",IF(O4>=30%,"ضعيف","دون الضعيف جداً")))))))) -> ضعيف | S4: ممتاز | T4: ≥ 90 | U4: A+ | V4: =COUNTIF(Q4:Q30,"ممتاز") -> 0 | W4: =(V4/$V$12) -> 0 | X4: =SUM(W4:W8) -> 0.4615384615
A5: 2 | B5: بدر محمد همام محمد المحمد | C5: 0 | D5: 1 | E5: 0 | F5: 1 | H5: =IF(AND(C5="",D5="",E5="",F5="",G5=""),"غ",$H$3*SUM(C5:G5)/SUM($C$3:$G$3)) -> 4 | I5: 20 | J5: 11 | K5: 3 | L5: =IF(AND(C5="",D5="",E5="",F5="",G5="",I5="",J5="",K5=""),"غ",SUM(H5:K5)) -> 38 | M5: 36 | N5: =IF(M5="","غ",IF(L5="غ",M5*0.2,SUM(L5*2.5/$L$3,M5*0.2))) -> 8.15 | O5: =IF(N5="غ","غ",N5*100/$N$3/100) -> 0.3622222222 | P5: =IF(AND(O5="غ"),"غ",RANK(O5,$O$4:$O$30)+COUNTIF(O$4:O5,O5)-1) -> 18 | Q5: =IF(O5="غ","غ",IF(O5>=90%,"ممتاز",IF(O5>=80%,"جيد جداً",IF(O5>=70%,"جيد",IF(O5>=60%,"فوق المتوسط",IF(O5>=50%,"متوسط",IF(O5>=40%,"دون المتوسط",IF(O5>=30%,"ضعيف","دون الضعيف جداً")))))))) -> ضعيف | S5: جيد جداً | T5: ≥ 80 | U5: A | V5: =COUNTIF(Q4:Q30,"جيد جداً") -> 1 | W5: 0.03846153846
A6: 3 | B6: بدر ناصر الكواري | C6: 1.5 | D6: 0 | E6: 1.5 | F6: 0 | H6: 6 | I6: 20 | J6: 10 | K6: 3 | L6: 39 | M6: 30 | N6: 6.975 | O6: 0.31 | P6: =IF(AND(O6="غ"),"غ",RANK(O6,$O$4:$O$30)+COUNTIF(O$4:O6,O6)-1) -> 21 | Q6: ضعيف | S6: جيد | T6: ≥ 70 | U6: B+ | V6: =COUNTIF(Q4:Q30,"جيد") -> 2 | W6: 0.07692307692
A7: 4 | B7: ثامر نبيل محمد العلي | C7: 2.5 | D7: 3.5 | E7: 2.5 | F7: 3.5 | H7: 24 | I7: 20 | J7: 15 | K7: 8 | L7: 67 | M7: 54 | N7: 12.475 | O7: 0.5544444444 | P7: =IF(AND(O7="غ"),"غ",RANK(O7,$O$4:$O$30)+COUNTIF(O$4:O7,O7)-1) -> 6 | Q7: متوسط | S7: فوق المتوسط | T7: ≥ 60 | U7: B | V7: =COUNTIF(Q4:Q30,"فوق المتوسط") -> 2 | W7: 0.07692307692
A8: 5 | B8: حسن جاسم المريخي | C8: 0 | D8: 1 | E8: 0 | F8: 1 | H8: 4 | I8: 20 | J8: 10 | K8: 3 | L8: 37 | M8: 26 | N8: 6.125 | O8: 0.2722222222 | P8: =IF(AND(O8="غ"),"غ",RANK(O8,$O$4:$O$30)+COUNTIF(O$4:O8,O8)-1) -> 26 | Q8: دون الضعيف جداً | S8: متوسط | T8: ≥ 50 | U8: C | V8: =COUNTIF(Q4:Q30,"متوسط") -> 7 | W8: 0.2692307692
A9: 6 | B9: حسن خليفه حسن على الفرحان | C9: 0 | D9: 0 | E9: 0 | F9: 0 | H9: 0 | I9: 25 | J9: 15 | K9: 7 | L9: 47 | M9: 26 | N9: 6.375 | O9: 0.2833333333 | P9: =IF(AND(O9="غ"),"غ",RANK(O9,$O$4:$O$30)+COUNTIF(O$4:O9,O9)-1) -> 24 | Q9: دون الضعيف جداً | S9: دون المتوسط | T9: ≥ 40 | U9: D | V9: =COUNTIF(Q4:Q30,"دون المتوسط") -> 2 | W9: 0.07692307692 | X9: =SUM(W9:W11) -> 0.5384615385
A10: 7 | B10: حمد عبدالله عبدالحميد عبدالغفار الدايل | C10: 3 | D10: 3 | E10: 3 | F10: 3 | H10: 24 | I10: 25 | J10: 15 | K10: 10 | L10: 74 | N10: غ | O10: غ | P10: =IF(AND(O10="غ"),"غ",RANK(O10,$O$4:$O$30)+COUNTIF(O$4:O10,O10)-1) -> غ | Q10: غ | S10: ضعيف | T10: ≥ 30 | U10: E | V10: =COUNTIF(Q4:Q30,"ضعيف") -> 8 | W10: 0.3076923077
A11: 8 | B11: خالد عبدالله احمد عبدالله الربيع | D11: 1 | F11: 1 | H11: 4 | I11: 23 | J11: 12 | K11: 6 | L11: 45 | M11: 46 | N11: 10.325 | O11: 0.4588888889 | P11: =IF(AND(O11="غ"),"غ",RANK(O11,$O$4:$O$30)+COUNTIF(O$4:O11,O11)-1) -> 14 | Q11: دون المتوسط | S11: دون الضعيف جداً | T11: < 30 | U11: F | V11: =COUNTIF(Q4:Q30,"دون الضعيف جداً") -> 4 | W11: 0.1538461538
A12: 9 | B12: خالد يوسف محمد بوعيسى العبيدلى | C12: 2.5 | D12: 2 | E12: 2.5 | F12: 2 | H12: 18 | I12: 25 | J12: 12 | K12: 6 | L12: 61 | M12: 68 | N12: 15.125 | O12: 0.6722222222 | P12: =IF(AND(O12="غ"),"غ",RANK(O12,$O$4:$O$30)+COUNTIF(O$4:O12,O12)-1) -> 4 | Q12: فوق المتوسط | S12: عدد الطلاب الذي تم اختبارهم | V12: =SUM(V4:V11) -> 26 | W12: =V12/SUM(V12:V13) -> 0.962962963
A13: 10 | B13: راشد سعيد غريب محكوم المسلم | C13: 2 | D13: 2 | E13: 2 | F13: 2 | H13: 16 | I13: 20 | J13: 10 | K13: 4 | L13: 50 | M13: 52 | N13: 11.65 | O13: 0.5177777778 | P13: =IF(AND(O13="غ"),"غ",RANK(O13,$O$4:$O$30)+COUNTIF(O$4:O13,O13)-1) -> 10 | Q13: متوسط | S13: عدد الطلاب الغائبين | V13: =COUNTA(B4:B30)-V12 -> 1 | W13: =V13/SUM(V12:V13) -> 0.03703703704
A14: 11 | B14: سحيم دلهم عتيق دلهم الكوارى | C14: 0 | E14: 0 | H14: 0 | I14: 25 | J14: 11 | K14: 10 | L14: 46 | M14: 26 | N14: 6.35 | O14: 0.2822222222 | P14: =IF(AND(O14="غ"),"غ",RANK(O14,$O$4:$O$30)+COUNTIF(O$4:O14,O14)-1) -> 25 | Q14: دون الضعيف جداً
A15: 12 | B15: سلمان صلاح سلمان عبدالله المنصورى | C15: 2.5 | D15: 0 | E15: 2.5 | F15: 0 | H15: 10 | I15: 25 | J15: 15 | K15: 10 | L15: 60 | M15: 52 | N15: 11.9 | O15: 0.5288888889 | P15: =IF(AND(O15="غ"),"غ",RANK(O15,$O$4:$O$30)+COUNTIF(O$4:O15,O15)-1) -> 8 | Q15: متوسط | S15: الطلاب | T15: العدد | U15: النسبة
A16: 13 | B16: طارق احمد عبدالله محمد كوليد | C16: 1 | D16: 3 | E16: 1 | F16: 3 | H16: 16 | I16: 25 | J16: 15 | K16: 10 | L16: 66 | M16: 34 | N16: 8.45 | O16: 0.3755555556 | P16: =IF(AND(O16="غ"),"غ",RANK(O16,$O$4:$O$30)+COUNTIF(O$4:O16,O16)-1) -> 16 | Q16: ضعيف | S16: الناجحين | T16: =SUM(V4:V8) -> 12 | U16: =X4 -> 0.4615384615
A17: 14 | B17: عبدالرحمن حبيب الماس عبيد الماس | C17: 0.5 | D17: 1 | E17: 0.5 | F17: 1 | H17: 6 | I17: 20 | J17: 10 | K17: 3 | L17: 39 | M17: 28 | N17: 6.575 | O17: 0.2922222222 | P17: =IF(AND(O17="غ"),"غ",RANK(O17,$O$4:$O$30)+COUNTIF(O$4:O17,O17)-1) -> 23 | Q17: دون الضعيف جداً | S17: الراسبين | T17: =SUM(V9:V11) -> 14 | U17: =X9 -> 0.5384615385
A18: 15 | B18: عبدالرحمن محمد عبدالرحمن سلطان الجابر | C18: 0.5 | D18: 2 | E18: 0.5 | F18: 2 | H18: 10 | I18: 22 | J18: 14 | K18: 8 | L18: 54 | M18: 48 | N18: 10.95 | O18: 0.4866666667 | P18: =IF(AND(O18="غ"),"غ",RANK(O18,$O$4:$O$30)+COUNTIF(O$4:O18,O18)-1) -> 13 | Q18: دون المتوسط | S18: المجموع | T18: =SUM(T16:T17) -> 26 | U18: =SUM(U16:U17) -> 1
A19: 16 | B19: عبدالرحمن يوسف على حسن المؤذن | C19: 1.5 | D19: 2 | E19: 1.5 | F19: 2 | H19: 14 | I19: 25 | J19: 15 | K19: 10 | L19: 64 | M19: 52 | N19: 12 | O19: 0.5333333333 | P19: =IF(AND(O19="غ"),"غ",RANK(O19,$O$4:$O$30)+COUNTIF(O$4:O19,O19)-1) -> 7 | Q19: متوسط
A20: 17 | B20: عبداللطيف محمد احمد عبدالعزيز المهيزع | D20: 4.5 | F20: 4.5 | H20: 18 | I20: 20 | J20: 10 | K20: 5 | L20: 53 | M20: 34 | N20: 8.125 | O20: 0.3611111111 | P20: =IF(AND(O20="غ"),"غ",RANK(O20,$O$4:$O$30)+COUNTIF(O$4:O20,O20)-1) -> 19 | Q20: ضعيف | S20: التحصيل الأكاديمي | U20: =AVERAGE(M4:M30)/M$3 -> 0.4569230769
A21: 18 | B21: عبدالله خليفه عبدالله احمد الخليفى | C21: 2 | D21: 3 | E21: 2 | F21: 3 | H21: 20 | I21: 23 | J21: 15 | K21: 8 | L21: 66 | M21: 50 | N21: 11.65 | O21: 0.5177777778 | P21: =IF(AND(O21="غ"),"غ",RANK(O21,$O$4:$O$30)+COUNTIF(O$4:O21,O21)-1) -> 11 | Q21: متوسط
A22: 19 | B22: عبدالله على سعيد محمد الشعيبى | C22: 4 | D22: 4 | E22: 4 | F22: 4 | H22: 32 | I22: 25 | J22: 15 | K22: 10 | L22: 82 | M22: 84 | N22: 18.85 | O22: 0.8377777778 | P22: =IF(AND(O22="غ"),"غ",RANK(O22,$O$4:$O$30)+COUNTIF(O$4:O22,O22)-1) -> 1 | Q22: جيد جداً
A23: 20 | B23: عبدالمطلب محمد حمود عبدالله حسين | C23: 2 | D23: 3.5 | E23: 2 | F23: 3.5 | H23: 22 | I23: 22 | J23: 11 | K23: 4 | L23: 59 | M23: 52 | N23: 11.875 | O23: 0.5277777778 | P23: =IF(AND(O23="غ"),"غ",RANK(O23,$O$4:$O$30)+COUNTIF(O$4:O23,O23)-1) -> 9 | Q23: متوسط
A24: 21 | B24: على محمد مبارك زايد الكبيسى | C24: 3.5 | D24: 1 | E24: 3.5 | F24: 1 | H24: 18 | I24: 20 | J24: 12 | K24: 5 | L24: 55 | M24: 28 | N24: 6.975 | O24: 0.31 | P24: =IF(AND(O24="غ"),"غ",RANK(O24,$O$4:$O$30)+COUNTIF(O$4:O24,O24)-1) -> 21 | Q24: ضعيف | S24: الفرع | T24: الناجحين | U24: الراسبين | V24: التحصيل
A25: 22 | B25: فهد راشد سعيد فرج السليطى | C25: 3.5 | D25: 1 | E25: 3.5 | F25: 1 | H25: 18 | I25: 23 | J25: 13 | K25: 8 | L25: 62 | M25: 26 | N25: 6.75 | O25: 0.3 | P25: =IF(AND(O25="غ"),"غ",RANK(O25,$O$4:$O$30)+COUNTIF(O$4:O25,O25)-1) -> 22 | Q25: ضعيف | S25: =H2 -> Quizzes | T25: =COUNTIF(H4:H30,">="&H$3/2)/COUNT(H4:H30) -> 0.07407407407 | U25: =IF(T25="","",100%-T25) -> 0.9259259259 | V25: =IF($U25="","",AVERAGE(H4:H30)/H$3) -> 0.2681481481
A26: 23 | B26: كريم الشربينى شوقى الشربينى | C26: 3 | D26: 4.5 | E26: 3 | F26: 4.5 | H26: 30 | I26: 25 | J26: 15 | K26: 10 | L26: 80 | M26: 78 | N26: 17.6 | O26: 0.7822222222 | P26: =IF(AND(O26="غ"),"غ",RANK(O26,$O$4:$O$30)+COUNTIF(O$4:O26,O26)-1) -> 2 | Q26: جيد | S26: =I2 -> الواجب | T26: =COUNTIF(I4:I30,">="&I$3/2)/COUNT(I4:I30) -> 1 | U26: 0 | V26: =IF($U26="","",AVERAGE(I4:I30)/I$3) -> 0.8992592593
A27: 24 | B27: مبارك مرزوق جوهر مرزوق المسلمانى | C27: 2 | E27: 2 | H27: 8 | I27: 20 | J27: 10 | K27: 3 | L27: 41 | M27: 36 | N27: 8.225 | O27: 0.3655555556 | P27: =IF(AND(O27="غ"),"غ",RANK(O27,$O$4:$O$30)+COUNTIF(O$4:O27,O27)-1) -> 17 | Q27: ضعيف | S27: =J2 -> المشاركة | T27: =COUNTIF(J4:J30,">="&J$3/2)/COUNT(J4:J30) -> 1 | U27: 0 | V27: =IF($U27="","",AVERAGE(J4:J30)/J$3) -> 0.8419753086
A28: 25 | B28: محمد عيد حميد العرابيد الشهوانى | C28: 2.5 | E28: 2.5 | H28: 10 | I28: 25 | J28: 12 | K28: 7 | L28: 54 | M28: 72 | N28: 15.75 | O28: 0.7 | P28: =IF(AND(O28="غ"),"غ",RANK(O28,$O$4:$O$30)+COUNTIF(O$4:O28,O28)-1) -> 3 | Q28: جيد | S28: =K2 -> المشروع | T28: =COUNTIF(K4:K30,">="&K$3/2)/COUNT(K4:K30) -> 0.7407407407 | U28: 0.2592592593 | V28: =IF($U28="","",AVERAGE(K4:K30)/K$3) -> 0.6777777778
A29: 26 | B29: محمود فرحان فرحان مسعود المسلمانى | C29: 0 | D29: 2 | E29: 0 | F29: 2 | H29: =IF(AND(C29="",D29="",E29="",F29="",G29=""),"غ",$H$3*SUM(C29:G29)/SUM($C$3:$G$3)) -> 8 | I29: 22 | J29: 14 | K29: 7 | L29: =IF(AND(C29="",D29="",E29="",F29="",G29="",I29="",J29="",K29=""),"غ",SUM(H29:K29)) -> 51 | M29: 50 | N29: =IF(M29="","غ",IF(L29="غ",M29*0.2,SUM(L29*2.5/$L$3,M29*0.2))) -> 11.275 | O29: 0.5011111111 | P29: =IF(AND(O29="غ"),"غ",RANK(O29,$O$4:$O$30)+COUNTIF(O$4:O29,O29)-1) -> 12 | Q29: =IF(O29="غ","غ",IF(O29>=90%,"ممتاز",IF(O29>=80%,"جيد جداً",IF(O29>=70%,"جيد",IF(O29>=60%,"فوق المتوسط",IF(O29>=50%,"متوسط",IF(O29>=40%,"دون المتوسط",IF(O29>=30%,"ضعيف","دون الضعيف جداً")))))))) -> متوسط | S29: =M2 -> Exam | T29: =COUNTIF(M4:M30,">="&M$3/2)/COUNT(M4:M30) -> 0.4615384615 | U29: 0.5384615385 | V29: =IF($U29="","",AVERAGE(M4:M30)/M$3) -> 0.4569230769
A30: 27 | B30: نايف نبيل جمعان خميس حامد | C30: 3.5 | D30: 1 | E30: 3.5 | F30: 1 | H30: 18 | I30: 22 | J30: 12 | K30: 8 | L30: 60 | M30: 62 | N30: 13.9 | O30: 0.6177777778 | P30: =IF(AND(O30="غ"),"غ",RANK(O30,$O$4:$O$30)+COUNTIF(O$4:O30,O30)-1) -> 5 | Q30: فوق المتوسط

Sheet 7-6
A1: Grade (7-6) كشف درجات الطلاب
A2: م | B2: اسم الطالب | C2: Quiz1 | D2: Quiz2 | E2: Quiz3 | F2: Quiz4 | G2: Quiz5 | H2: Quizzes | I2: الواجب | J2: المشاركة | K2: المشروع | L2: Total | M2: Exam | N2: Final | O2: Percent | P2: Rank | Q2: التقدير | S2: تحليل النتائج على حسب التقدير
C3: 5 | D3: 5 | E3: 5 | F3: 5 | G3: 5 | H3: 50 | I3: 25 | J3: 15 | K3: 10 | L3: 100 | M3: 100 | N3: 22.5 | O3: (%) | P3: الترتيب | S3: التقدير | T3: المجال | V3: عدد الطلاب | W3: النسبة
A4: 1 | B4: احمد خالد على حسين الانصارى | C4: 0 | D4: 2 | E4: 0 | F4: 2 | H4: =IF(AND(C4="",D4="",E4="",F4="",G4=""),"غ",$H$3*SUM(C4:G4)/SUM($C$3:$G$3)) -> 8 | I4: 25 | J4: 15 | K4: 10 | L4: =IF(AND(C4="",D4="",E4="",F4="",G4="",I4="",J4="",K4=""),"غ",SUM(H4:K4)) -> 58 | M4: 84 | N4: =IF(M4="","غ",IF(L4="غ",M4*0.2,SUM(L4*2.5/$L$3,M4*0.2))) -> 18.25 | O4: =IF(N4="غ","غ",N4*100/$N$3/100) -> 0.8111111111 | P4: =IF(AND(O4="غ"),"غ",RANK(O4,$O$4:$O$27)+COUNTIF(O$4:O4,O4)-1) -> 2 | Q4: =IF(O4="غ","غ",IF(O4>=90%,"ممتاز",IF(O4>=80%,"جيد جداً",IF(O4>=70%,"جيد",IF(O4>=60%,"فوق المتوسط",IF(O4>=50%,"متوسط",IF(O4>=40%,"دون المتوسط",IF(O4>=30%,"ضعيف","دون الضعيف جداً")))))))) -> جيد جداً | S4: ممتاز | T4: ≥ 90 | U4: A+ | V4: =COUNTIF(Q4:Q27,"ممتاز") -> 0 | W4: =(V4/$V$12) -> 0 | X4: =SUM(W4:W8) -> 0.5909090909
A5: 2 | B5: احمد خالد راشد يوسف المالكى | D5: 1 | F5: 1 | H5: =IF(AND(C5="",D5="",E5="",F5="",G5=""),"غ",$H$3*SUM(C5:G5)/SUM($C$3:$G$3)) -> 4 | I5: 20 | J5: 10 | K5: 5 | L5: =IF(AND(C5="",D5="",E5="",F5="",G5="",I5="",J5="",K5=""),"غ",SUM(H5:K5)) -> 39 | M5: 40 | N5: =IF(M5="","غ",IF(L5="غ",M5*0.2,SUM(L5*2.5/$L$3,M5*0.2))) -> 8.975 | O5: =IF(N5="غ","غ",N5*100/$N$3/100) -> 0.3988888889 | P5: =IF(AND(O5="غ"),"غ",RANK(O5,$O$4:$O$27)+COUNTIF(O$4:O5,O5)-1) -> 18 | Q5: =IF(O5="غ","غ",IF(O5>=90%,"ممتاز",IF(O5>=80%,"جيد جداً",IF(O5>=70%,"جيد",IF(O5>=60%,"فوق المتوسط",IF(O5>=50%,"متوسط",IF(O5>=40%,"دون المتوسط",IF(O5>=30%,"ضعيف","دون الضعيف جداً")))))))) -> ضعيف | S5: جيد جداً | T5: ≥ 80 | U5: A | V5: =COUNTIF(Q4:Q27,"جيد جداً") -> 2 | W5: 0.09090909091
A6: 3 | B6: احمد عبدالله محبوب مفتاح الغانم | C6: 1.5 | D6: 1 | E6: 1.5 | F6: 1 | H6: 10 | I6: 22 | J6: 15 | K6: 8 | L6: 55 | M6: 56 | N6: 12.575 | O6: 0.5588888889 | P6: =IF(AND(O6="غ"),"غ",RANK(O6,$O$4:$O$27)+COUNTIF(O$4:O6,O6)-1) -> 11 | Q6: متوسط | S6: جيد | T6: ≥ 70 | U6: B+ | V6: =COUNTIF(Q4:Q27,"جيد") -> 3 | W6: 0.1363636364
A7: 4 | B7: تركى برهان صالح مبارك التركى | D7: 1 | F7: 1 | H7: 4 | I7: 20 | J7: 14 | K7: 7 | L7: 45 | M7: 44 | N7: 9.925 | O7: 0.4411111111 | P7: =IF(AND(O7="غ"),"غ",RANK(O7,$O$4:$O$27)+COUNTIF(O$4:O7,O7)-1) -> 15 | Q7: دون المتوسط | S7: فوق المتوسط | T7: ≥ 60 | U7: B | V7: =COUNTIF(Q4:Q27,"فوق المتوسط") -> 2 | W7: 0.09090909091
A8: 5 | B8: ثامر محمد على محمد حميد | C8: 2.5 | D8: 2 | E8: 2.5 | F8: 2 | H8: 18 | I8: 25 | J8: 15 | K8: 10 | L8: 68 | M8: 80 | N8: 17.7 | O8: 0.7866666667 | P8: =IF(AND(O8="غ"),"غ",RANK(O8,$O$4:$O$27)+COUNTIF(O$4:O8,O8)-1) -> 3 | Q8: جيد | S8: متوسط | T8: ≥ 50 | U8: C | V8: =COUNTIF(Q4:Q27,"متوسط") -> 6 | W8: 0.2727272727
A9: 6 | B9: حسين صالح الكثيرى | C9: 0 | D9: 2 | E9: 0 | F9: 2 | H9: 8 | I9: 25 | J9: 15 | K9: 8 | L9: 56 | M9: 30 | N9: 7.4 | O9: 0.3288888889 | P9: =IF(AND(O9="غ"),"غ",RANK(O9,$O$4:$O$27)+COUNTIF(O$4:O9,O9)-1) -> 21 | Q9: ضعيف | S9: دون المتوسط | T9: ≥ 40 | U9: D | V9: =COUNTIF(Q4:Q27,"دون المتوسط") -> 4 | W9: 0.1818181818 | X9: =SUM(W9:W11) -> 0.4090909091
A10: 7 | B10: حمد عبدالعزيز ناصر ابوقراره الموسى | C10: 0.5 | D10: 1 | E10: 0.5 | F10: 1 | H10: 6 | I10: 20 | J10: 10 | K10: 5 | L10: 41 | M10: 58 | N10: 12.625 | O10: 0.5611111111 | P10: =IF(AND(O10="غ"),"غ",RANK(O10,$O$4:$O$27)+COUNTIF(O$4:O10,O10)-1) -> 10 | Q10: متوسط | S10: ضعيف | T10: ≥ 30 | U10: E | V10: =COUNTIF(Q4:Q27,"ضعيف") -> 4 | W10: 0.1818181818
A11: 8 | B11: حمد ناصر المطاوعة | C11: 2 | D11: 1.5 | E11: 2 | F11: 1.5 | H11: 14 | I11: 25 | J11: 15 | K11: 10 | L11: 64 | M11: 38 | N11: 9.2 | O11: 0.4088888889 | P11: =IF(AND(O11="غ"),"غ",RANK(O11,$O$4:$O$27)+COUNTIF(O$4:O11,O11)-1) -> 16 | Q11: دون المتوسط | S11: دون الضعيف جداً | T11: < 30 | U11: F | V11: =COUNTIF(Q4:Q27,"دون الضعيف جداً") -> 1 | W11: 0.04545454545
A12: 9 | B12: خالد عبدالله يوسف محمد عاشير | C12: 2 | D12: 1 | E12: 2 | F12: 1 | H12: 12 | I12: 24 | J12: 12 | K12: 8 | L12: 56 | M12: 36 | N12: 8.6 | O12: 0.3822222222 | P12: =IF(AND(O12="غ"),"غ",RANK(O12,$O$4:$O$27)+COUNTIF(O$4:O12,O12)-1) -> 19 | Q12: ضعيف | S12: عدد الطلاب الذي تم اختبارهم | V12: =SUM(V4:V11) -> 22 | W12: =V12/SUM(V12:V13) -> 1
A13: 10 | B13: خالد محمد صالح | C13: 3 | D13: 1 | E13: 3 | F13: 1 | H13: 16 | I13: 25 | J13: 12 | K13: 8 | L13: 61 | M13: 68 | N13: 15.125 | O13: 0.6722222222 | P13: =IF(AND(O13="غ"),"غ",RANK(O13,$O$4:$O$27)+COUNTIF(O$4:O13,O13)-1) -> 7 | Q13: فوق المتوسط | S13: عدد الطلاب الغائبين | V13: =COUNTA(B4:B27)-V12 -> 0 | W13: =V13/SUM(V12:V13) -> 0
A14: 11 | B14: راشد على راشد جمعه الكبيسى | C14: 1.5 | D14: 1 | E14: 1.5 | F14: 1 | H14: 10 | I14: 25 | J14: 13 | K14: 9 | L14: 57 | M14: 60 | N14: 13.425 | O14: 0.5966666667 | P14: =IF(AND(O14="غ"),"غ",RANK(O14,$O$4:$O$27)+COUNTIF(O$4:O14,O14)-1) -> 8 | Q14: متوسط
A15: 12 | B15: سالم ناصر سالم محفوظ | C15: 1 | D15: 1 | E15: 1 | F15: 1 | H15: 8 | I15: 20 | J15: 10 | K15: 5 | L15: 43 | M15: 46 | N15: 10.275 | O15: 0.4566666667 | P15: =IF(AND(O15="غ"),"غ",RANK(O15,$O$4:$O$27)+COUNTIF(O$4:O15,O15)-1) -> 14 | Q15: دون المتوسط | S15: الطلاب | T15: العدد | U15: النسبة
A16: 13 | B16: سعيد محمد سعيد محمد العرجانى | C16: 1 | D16: 3 | E16: 1 | F16: 3 | H16: 16 | I16: 25 | J16: 13 | K16: 8 | L16: 62 | M16: 58 | N16: 13.15 | O16: 0.5844444444 | P16: =IF(AND(O16="غ"),"غ",RANK(O16,$O$4:$O$27)+COUNTIF(O$4:O16,O16)-1) -> 9 | Q16: متوسط | S16: الناجحين | T16: =SUM(V4:V8) -> 13 | U16: =X4 -> 0.5909090909
A17: 14 | B17: طلال احمد عبدالله محمد كوليد | C17: 1.5 | D17: 1 | E17: 1.5 | F17: 1 | H17: 10 | I17: 20 | J17: 13 | K17: 7 | L17: 50 | M17: 26 | N17: 6.45 | O17: 0.2866666667 | P17: =IF(AND(O17="غ"),"غ",RANK(O17,$O$4:$O$27)+COUNTIF(O$4:O17,O17)-1) -> 22 | Q17: دون الضعيف جداً | S17: الراسبين | T17: =SUM(V9:V11) -> 9 | U17: =X9 -> 0.4090909091
A18: 15 | B18: عبداللة الباز محمد السيد ابراهيم | C18: 3.5 | D18: 1.5 | E18: 3.5 | F18: 1.5 | H18: 20 | I18: 25 | J18: 15 | K18: 10 | L18: 70 | M18: 78 | N18: 17.35 | O18: 0.7711111111 | P18: =IF(AND(O18="غ"),"غ",RANK(O18,$O$4:$O$27)+COUNTIF(O$4:O18,O18)-1) -> 5 | Q18: جيد | S18: المجموع | T18: =SUM(T16:T17) -> 22 | U18: =SUM(U16:U17) -> 1
A19: 16 | B19: عبدالله عبدالحكيم عبدالله اليزيدى اليافعى | D19: 2 | F19: 2 | H19: 8 | I19: 20 | J19: 13 | K19: 6 | L19: 47 | M19: 82 | N19: 17.575 | O19: 0.7811111111 | P19: =IF(AND(O19="غ"),"غ",RANK(O19,$O$4:$O$27)+COUNTIF(O$4:O19,O19)-1) -> 4 | Q19: جيد
A20: 17 | B20: فهد عبدالعزيز احمد يوسف المطاوعه | C20: 1 | D20: 0 | E20: 1 | F20: 0 | H20: 4 | I20: 24 | J20: 13 | K20: 7 | L20: 48 | M20: 52 | N20: 11.6 | O20: 0.5155555556 | P20: =IF(AND(O20="غ"),"غ",RANK(O20,$O$4:$O$27)+COUNTIF(O$4:O20,O20)-1) -> 13 | Q20: متوسط | S20: التحصيل الأكاديمي | U20: =AVERAGE(M4:M30)/M$3 -> 0.5527272727
A21: 18 | B21: قاسم زهير قاسم عطبه | C21: 4.5 | D21: 2.5 | E21: 4.5 | F21: 2.5 | H21: 28 | I21: 25 | J21: 15 | K21: 10 | L21: 78 | M21: 84 | N21: 18.75 | O21: 0.8333333333 | P21: =IF(AND(O21="غ"),"غ",RANK(O21,$O$4:$O$27)+COUNTIF(O$4:O21,O21)-1) -> 1 | Q21: جيد جداً
A22: 19 | B22: محمد حمد سلطان لملوم المسيفرى | C22: 2 | D22: 2 | E22: 2 | F22: 2 | H22: 16 | I22: 25 | J22: 15 | K22: 10 | L22: 66 | M22: 52 | N22: 12.05 | O22: 0.5355555556 | P22: =IF(AND(O22="غ"),"غ",RANK(O22,$O$4:$O$27)+COUNTIF(O$4:O22,O22)-1) -> 12 | Q22: متوسط
A23: 20 | B23: محمدوسام محمد نديم محمد قاسم | C23: 0.5 | D23: 0 | E23: 0.5 | F23: 0 | H23: 2 | I23: 25 | J23: 13 | K23: 8 | L23: 48 | M23: 40 | N23: 9.2 | O23: 0.4088888889 | P23: =IF(AND(O23="غ"),"غ",RANK(O23,$O$4:$O$27)+COUNTIF(O$4:O23,O23)-1) -> 18 | Q23: دون المتوسط
A24: 21 | B24: نبيل جمال عطا محمد عمر | C24: 2.5 | D24: 3 | E24: 2.5 | F24: 3 | H24: 22 | I24: 25 | J24: 15 | K24: 10 | L24: 72 | M24: 68 | N24: 15.4 | O24: 0.6844444444 | P24: =IF(AND(O24="غ"),"غ",RANK(O24,$O$4:$O$27)+COUNTIF(O$4:O24,O24)-1) -> 6 | Q24: فوق المتوسط | S24: الفرع | T24: الناجحين | U24: الراسبين | V24: التحصيل
A25: 22 | B25: وليد نور خالد نور | C25: 0 | D25: 1 | E25: 0 | F25: 1 | H25: 4 | I25: 25 | J25: 15 | K25: 10 | L25: 54 | M25: 36 | N25: 8.55 | O25: 0.38 | P25: =IF(AND(O25="غ"),"غ",RANK(O25,$O$4:$O$27)+COUNTIF(O$4:O25,O25)-1) -> 20 | Q25: ضعيف | S25: =H2 -> Quizzes | T25: =COUNTIF(H4:H27,">="&H$3/2)/COUNT(H4:H27) -> 0.04545454545 | U25: =IF(T25="","",100%-T25) -> 0.9545454545 | V25: =IF($U25="","",AVERAGE(H4:H27)/H$3) -> 0.2254545455
S26: =I2 -> الواجب | T26: =COUNTIF(I4:I27,">="&I$3/2)/COUNT(I4:I27) -> 1 | U26: 0 | V26: =IF($U26="","",AVERAGE(I4:I27)/I$3) -> 0.9363636364
S27: =J2 -> المشاركة | T27: =COUNTIF(J4:J27,">="&J$3/2)/COUNT(J4:J27) -> 1 | U27: 0 | V27: =IF($U27="","",AVERAGE(J4:J27)/J$3) -> 0.896969697
S28: =K2 -> المشروع | T28: =COUNTIF(K4:K27,">="&K$3/2)/COUNT(K4:K27) -> 1 | U28: 0 | V28: =IF($U28="","",AVERAGE(K4:K27)/K$3) -> 0.8136363636
S29: =M2 -> Exam | T29: =COUNTIF(M4:M27,">="&M$3/2)/COUNT(M4:M27) -> 0.5909090909 | U29: 0.4090909091 | V29: =IF($U29="","",AVERAGE(M4:M27)/M$3) -> 0.5527272727

Sheet 7-7
A1: Grade (7-7) كشف درجات الطلاب
A2: م | B2: اسم الطالب | C2: Quiz1 | D2: Quiz2 | E2: Quiz3 | F2: Quiz4 | G2: Quiz5 | H2: Quizzes | I2: الواجب | J2: المشاركة | K2: المشروع | L2: Total | M2: Exam | N2: Final | O2: Percent | P2: Rank | Q2: التقدير | S2: تحليل النتائج على حسب التقدير
C3: 5 | D3: 5 | E3: 5 | F3: 5 | G3: درجة5 | H3: 50 | I3: 25 | J3: 15 | K3: 10 | L3: 100 | M3: 100 | N3: 22.5 | O3: (%) | P3: الترتيب | S3: التقدير | T3: المجال | V3: عدد الطلاب | W3: النسبة
A4: 1 | B4: احمد سعود عبدالله ناصر الخليفى | C4: 2.5 | D4: 2.5 | E4: 2.5 | F4: 2.5 | H4: =IF(AND(C4="",D4="",E4="",F4="",G4=""),"غ",$H$3*SUM(C4:G4)/SUM($C$3:$G$3)) -> 25 | I4: 20 | J4: 10 | K4: 10 | L4: =IF(AND(C4="",D4="",E4="",F4="",G4="",I4="",J4="",K4=""),"غ",SUM(H4:K4)) -> 65 | M4: 74 | N4: =IF(M4="","غ",IF(L4="غ",M4*0.2,SUM(L4*2.5/$L$3,M4*0.2))) -> 16.425 | O4: =IF(N4="غ","غ",N4*100/$N$3/100) -> 0.73 | P4: =IF(AND(O4="غ"),"غ",RANK(O4,$O$4:$O$30)+COUNTIF(O$4:O4,O4)-1) -> 6 | Q4: =IF(O4="غ","غ",IF(O4>=90%,"ممتاز",IF(O4>=80%,"جيد جداً",IF(O4>=70%,"جيد",IF(O4>=60%,"فوق المتوسط",IF(O4>=50%,"متوسط",IF(O4>=40%,"دون المتوسط",IF(O4>=30%,"ضعيف","دون الضعيف جداً")))))))) -> جيد | S4: ممتاز | T4: ≥ 90 | U4: A+ | V4: =COUNTIF(Q4:Q30,"ممتاز") -> 0 | W4: =(V4/$V$12) -> 0 | X4: =SUM(W4:W8) -> 0.5833333333
A5: 2 | B5: تركى فواز خليل ابراهيم الرميحى | H5: =IF(AND(C5="",D5="",E5="",F5="",G5=""),"غ",$H$3*SUM(C5:G5)/SUM($C$3:$G$3)) -> غ | L5: =IF(AND(C5="",D5="",E5="",F5="",G5="",I5="",J5="",K5=""),"غ",SUM(H5:K5)) -> غ | N5: =IF(M5="","غ",IF(L5="غ",M5*0.2,SUM(L5*2.5/$L$3,M5*0.2))) -> غ | O5: =IF(N5="غ","غ",N5*100/$N$3/100) -> غ | P5: =IF(AND(O5="غ"),"غ",RANK(O5,$O$4:$O$30)+COUNTIF(O$4:O5,O5)-1) -> غ | Q5: =IF(O5="غ","غ",IF(O5>=90%,"ممتاز",IF(O5>=80%,"جيد جداً",IF(O5>=70%,"جيد",IF(O5>=60%,"فوق المتوسط",IF(O5>=50%,"متوسط",IF(O5>=40%,"دون المتوسط",IF(O5>=30%,"ضعيف","دون الضعيف جداً")))))))) -> غ | S5: جيد جداً | T5: ≥ 80 | U5: A | V5: =COUNTIF(Q4:Q30,"جيد جداً") -> 2 | W5: 0.08333333333
A6: 3 | B6: حسين على حسين على | C6: 2 | D6: 4 | E6: 2 | F6: 4 | H6: 30 | I6: 25 | J6: 15 | K6: 10 | L6: 80 | M6: 78 | N6: 17.6 | O6: 0.7822222222 | P6: =IF(AND(O6="غ"),"غ",RANK(O6,$O$4:$O$30)+COUNTIF(O$4:O6,O6)-1) -> 3 | Q6: جيد | S6: جيد | T6: ≥ 70 | U6: B+ | V6: =COUNTIF(Q4:Q30,"جيد") -> 6 | W6: 0.25
A7: 4 | B7: حمد سالم حمد الجبر النعيمى | C7: 2.5 | D7: 2.5 | E7: 4 | F7: 4 | H7: 32.5 | I7: 20 | J7: 10 | K7: 10 | L7: 72.5 | M7: 74 | N7: 16.6125 | O7: 0.7383333333 | P7: =IF(AND(O7="غ"),"غ",RANK(O7,$O$4:$O$30)+COUNTIF(O$4:O7,O7)-1) -> 5 | Q7: جيد | S7: فوق المتوسط | T7: ≥ 60 | U7: B | V7: =COUNTIF(Q4:Q30,"فوق المتوسط") -> 1 | W7: 0.04166666667
A8: 5 | B8: خالد عبدالله حسن جابر الحسن | C8: 1 | D8: 1 | E8: 1 | F8: 1 | H8: 10 | I8: 20 | J8: 10 | K8: 10 | L8: 50 | M8: 54 | N8: 12.05 | O8: 0.5355555556 | P8: =IF(AND(O8="غ"),"غ",RANK(O8,$O$4:$O$30)+COUNTIF(O$4:O8,O8)-1) -> 11 | Q8: متوسط | S8: متوسط | T8: ≥ 50 | U8: C | V8: =COUNTIF(Q4:Q30,"متوسط") -> 5 | W8: 0.2083333333
A9: 6 | B9: راشد محمد ضيف الله صالح الحربي | C9: 1 | D9: 1 | E9: 1 | F9: 1 | H9: 10 | I9: 15 | J9: 10 | K9: 7 | L9: 42 | M9: 50 | N9: 11.05 | O9: 0.4911111111 | P9: =IF(AND(O9="غ"),"غ",RANK(O9,$O$4:$O$30)+COUNTIF(O$4:O9,O9)-1) -> 15 | Q9: دون المتوسط | S9: دون المتوسط | T9: ≥ 40 | U9: D | V9: =COUNTIF(Q4:Q30,"دون المتوسط") -> 3 | W9: 0.125 | X9: =SUM(W9:W11) -> 0.4166666667
A10: 7 | B10: سالم ناصر التركي | C10: 1 | D10: 1 | E10: 1 | F10: 1 | H10: 10 | I10: 20 | J10: 10 | K10: 10 | L10: 50 | M10: 50 | N10: 11.25 | O10: 0.5 | P10: =IF(AND(O10="غ"),"غ",RANK(O10,$O$4:$O$30)+COUNTIF(O$4:O10,O10)-1) -> 14 | Q10: متوسط | S10: ضعيف | T10: ≥ 30 | U10: E | V10: =COUNTIF(Q4:Q30,"ضعيف") -> 5 | W10: 0.2083333333
A11: 8 | B11: سعيد محمد سعيد الابراهيم المهندى | C11: 1 | D11: 1 | E11: 1 | F11: 1 | H11: 10 | I11: 20 | J11: 15 | K11: 10 | L11: 55 | M11: 40 | N11: 9.375 | O11: 0.4166666667 | P11: =IF(AND(O11="غ"),"غ",RANK(O11,$O$4:$O$30)+COUNTIF(O$4:O11,O11)-1) -> 17 | Q11: دون المتوسط | S11: دون الضعيف جداً | T11: < 30 | U11: F | V11: =COUNTIF(Q4:Q30,"دون الضعيف جداً") -> 2 | W11: 0.08333333333
A12: 9 | B12: سلطان سعيد عامر صبيح الصيعرى | C12: 2.5 | D12: 3 | E12: 2.5 | F12: 3 | H12: 27.5 | I12: 20 | J12: 15 | K12: 10 | L12: 72.5 | M12: 82 | N12: 18.2125 | O12: 0.8094444444 | P12: =IF(AND(O12="غ"),"غ",RANK(O12,$O$4:$O$30)+COUNTIF(O$4:O12,O12)-1) -> 2 | Q12: جيد جداً | S12: عدد الطلاب الذي تم اختبارهم | V12: =SUM(V4:V11) -> 24 | W12: =V12/SUM(V12:V13) -> 0.9230769231
A13: 10 | B13: طلال محمد صالح على الحمادى | C13: 2.5 | D13: 1 | E13: 2.5 | F13: 1 | H13: 17.5 | I13: 20 | J13: 10 | K13: 10 | L13: 57.5 | M13: 50 | N13: 11.4375 | O13: 0.5083333333 | P13: =IF(AND(O13="غ"),"غ",RANK(O13,$O$4:$O$30)+COUNTIF(O$4:O13,O13)-1) -> 13 | Q13: متوسط | S13: عدد الطلاب الغائبين | V13: =COUNTA(B4:B30)-V12 -> 2 | W13: =V13/SUM(V12:V13) -> 0.07692307692
A14: 11 | B14: عامر ناصر حسن الجفالى النعيمى | C14: 4.5 | D14: 2 | E14: 2 | F14: 4.5 | H14: 32.5 | I14: 20 | J14: 15 | K14: 10 | L14: 77.5 | M14: 76 | N14: 17.1375 | O14: 0.7616666667 | P14: =IF(AND(O14="غ"),"غ",RANK(O14,$O$4:$O$30)+COUNTIF(O$4:O14,O14)-1) -> 4 | Q14: جيد
A15: 12 | B15: عبدالرحمن كدخدا | C15: 1.5 | D15: 1 | E15: 1 | F15: 1.5 | H15: 12.5 | I15: 20 | J15: 10 | K15: 10 | L15: 52.5 | M15: 62 | N15: 13.7125 | O15: 0.6094444444 | P15: =IF(AND(O15="غ"),"غ",RANK(O15,$O$4:$O$30)+COUNTIF(O$4:O15,O15)-1) -> 9 | Q15: فوق المتوسط | S15: الطلاب | T15: العدد | U15: النسبة
A16: 13 | B16: عبدالعزيز جاسم محمد خليل النجار | C16: 2 | D16: 2 | E16: 2 | F16: 2 | H16: 20 | I16: 20 | J16: 15 | K16: 10 | L16: 65 | M16: 74 | N16: 16.425 | O16: 0.73 | P16: =IF(AND(O16="غ"),"غ",RANK(O16,$O$4:$O$30)+COUNTIF(O$4:O16,O16)-1) -> 7 | Q16: جيد | S16: الناجحين | T16: =SUM(V4:V8) -> 14 | U16: =X4 -> 0.5833333333
A17: 14 | B17: عبدالعزيز هلال سالم ال مرشد الكوارى | C17: 1 | D17: 2 | E17: 1 | F17: 2 | H17: 15 | I17: 15 | J17: 10 | K17: 7 | L17: 47 | M17: 28 | N17: 6.775 | O17: 0.3011111111 | P17: =IF(AND(O17="غ"),"غ",RANK(O17,$O$4:$O$30)+COUNTIF(O$4:O17,O17)-1) -> 22 | Q17: ضعيف | S17: الراسبين | T17: =SUM(V9:V11) -> 10 | U17: =X9 -> 0.4166666667
A18: 15 | B18: عبدالله طارق ماجد امان العبدالله | C18: 1.5 | D18: 1.5 | E18: 1.5 | F18: 1.5 | H18: 15 | I18: 15 | J18: 10 | K18: 6 | L18: 46 | M18: 34 | N18: 7.95 | O18: 0.3533333333 | P18: =IF(AND(O18="غ"),"غ",RANK(O18,$O$4:$O$30)+COUNTIF(O$4:O18,O18)-1) -> 19 | Q18: ضعيف | S18: المجموع | T18: =SUM(T16:T17) -> 24 | U18: =SUM(U16:U17) -> 1
A19: 16 | B19: عبدالله محمد احمد عبدالله التميمى | C19: 3 | D19: 2 | E19: 2 | F19: 3 | H19: 25 | I19: 20 | J19: 10 | K19: 10 | L19: 65 | M19: 56 | N19: 12.825 | O19: 0.57 | P19: =IF(AND(O19="غ"),"غ",RANK(O19,$O$4:$O$30)+COUNTIF(O$4:O19,O19)-1) -> 10 | Q19: متوسط
A20: 17 | B20: عصام حسين على عبدالله الصفار | C20: 4 | D20: 3 | E20: 4 | F20: 3 | H20: 35 | I20: 20 | J20: 15 | K20: 10 | L20: 80 | M20: 70 | N20: 16 | O20: 0.7111111111 | P20: =IF(AND(O20="غ"),"غ",RANK(O20,$O$4:$O$30)+COUNTIF(O$4:O20,O20)-1) -> 8 | Q20: جيد | S20: التحصيل الأكاديمي | U20: =AVERAGE(M4:M30)/M$3 -> 0.5375
A21: 18 | B21: على عبدالله ابراهيم بودناش الرميحى | C21: 1 | D21: 1 | E21: 2 | F21: 2 | H21: 15 | I21: 20 | J21: 15 | K21: 10 | L21: 60 | M21: 32 | N21: 7.9 | O21: 0.3511111111 | P21: =IF(AND(O21="غ"),"غ",RANK(O21,$O$4:$O$30)+COUNTIF(O$4:O21,O21)-1) -> 20 | Q21: ضعيف
A22: 19 | B22: فهد عبدالله بلال بوحلوم السويدى | C22: 1.5 | D22: 1.5 | E22: 1.5 | F22: 1.5 | H22: 15 | I22: 20 | J22: 10 | K22: 10 | L22: 55 | M22: 38 | N22: 8.975 | O22: 0.3988888889 | P22: =IF(AND(O22="غ"),"غ",RANK(O22,$O$4:$O$30)+COUNTIF(O$4:O22,O22)-1) -> 18 | Q22: ضعيف
A23: 20 | B23: فيصل خالد سعد مبارك الدوسرى | C23: 1.5 | D23: 1 | E23: 1 | F23: 1.5 | H23: 12.5 | I23: 15 | J23: 10 | K23: 7 | L23: 44.5 | M23: 32 | N23: 7.5125 | O23: 0.3338888889 | P23: =IF(AND(O23="غ"),"غ",RANK(O23,$O$4:$O$30)+COUNTIF(O$4:O23,O23)-1) -> 21 | Q23: ضعيف
A24: 21 | B24: محمد الوليد عابدين عبدالكريم صالح | C24: 2.5 | D24: 2 | E24: 2 | F24: 2.5 | H24: 22.5 | I24: 25 | J24: 15 | K24: 10 | L24: 72.5 | M24: 90 | N24: 19.8125 | O24: 0.8805555556 | P24: =IF(AND(O24="غ"),"غ",RANK(O24,$O$4:$O$30)+COUNTIF(O$4:O24,O24)-1) -> 1 | Q24: جيد جداً | S24: الفرع | T24: الناجحين | U24: الراسبين | V24: التحصيل
A25: 22 | B25: محمد حسين خضير حسن السويدى | C25: 1 | D25: 1 | E25: 1 | F25: 1 | H25: 10 | I25: 15 | J25: 10 | K25: 6 | L25: 41 | M25: 24 | N25: 5.825 | O25: 0.2588888889 | P25: =IF(AND(O25="غ"),"غ",RANK(O25,$O$4:$O$30)+COUNTIF(O$4:O25,O25)-1) -> 24 | Q25: دون الضعيف جداً | S25: =H2 -> Quizzes | T25: =COUNTIF(H4:H30,">="&H$3/2)/COUNT(H4:H30) -> 0.2916666667 | U25: =IF(T25="","",100%-T25) -> 0.7083333333 | V25: =IF($U25="","",AVERAGE(H4:H30)/H$3) -> 0.3729166667
A26: 23 | B26: محمد نبيل محمد احمد الجبنى | C26: 2 | D26: 1 | E26: 1 | F26: 2 | H26: 15 | I26: 15 | J26: 10 | K26: 10 | L26: 50 | M26: 52 | N26: 11.65 | O26: 0.5177777778 | P26: =IF(AND(O26="غ"),"غ",RANK(O26,$O$4:$O$30)+COUNTIF(O$4:O26,O26)-1) -> 12 | Q26: متوسط | S26: =I2 -> الواجب | T26: =COUNTIF(I4:I30,">="&I$3/2)/COUNT(I4:I30) -> 1 | U26: 0 | V26: =IF($U26="","",AVERAGE(I4:I30)/I$3) -> 0.752
A27: 24 | B27: ناصر عبد الرحمن أحمد عبد الرحمن جابر | C27: 1 | D27: 1 | E27: 1 | F27: 1 | H27: 10 | I27: 15 | J27: 10 | K27: 5 | L27: 40 | M27: 44 | N27: 9.8 | O27: 0.4355555556 | P27: =IF(AND(O27="غ"),"غ",RANK(O27,$O$4:$O$30)+COUNTIF(O$4:O27,O27)-1) -> 16 | Q27: دون المتوسط | S27: =J2 -> المشاركة | T27: =COUNTIF(J4:J30,">="&J$3/2)/COUNT(J4:J30) -> 1 | U27: 0 | V27: =IF($U27="","",AVERAGE(J4:J30)/J$3) -> 0.7866666667
A28: 25 | B28: نعيم محمد اسدالله عبدالمتين | H28: غ | I28: 20 | J28: 15 | K28: 10 | L28: 45 | N28: غ | O28: غ | P28: =IF(AND(O28="غ"),"غ",RANK(O28,$O$4:$O$30)+COUNTIF(O$4:O28,O28)-1) -> غ | Q28: غ | S28: =K2 -> المشروع | T28: =COUNTIF(K4:K30,">="&K$3/2)/COUNT(K4:K30) -> 1 | U28: 0 | V28: =IF($U28="","",AVERAGE(K4:K30)/K$3) -> 0.896
A29: 26 | B29: وليد فرج عبدالله فرج العبدالله | C29: 2 | D29: 2 | E29: 2 | F29: 2 | H29: =IF(AND(C29="",D29="",E29="",F29="",G29=""),"غ",$H$3*SUM(C29:G29)/SUM($C$3:$G$3)) -> 20 | I29: 15 | J29: 10 | K29: 6 | L29: =IF(AND(C29="",D29="",E29="",F29="",G29="",I29="",J29="",K29=""),"غ",SUM(H29:K29)) -> 51 | M29: 26 | N29: =IF(M29="","غ",IF(L29="غ",M29*0.2,SUM(L29*2.5/$L$3,M29*0.2))) -> 6.475 | O29: 0.2877777778 | P29: =IF(AND(O29="غ"),"غ",RANK(O29,$O$4:$O$30)+COUNTIF(O$4:O29,O29)-1) -> 23 | Q29: =IF(O29="غ","غ",IF(O29>=90%,"ممتاز",IF(O29>=80%,"جيد جداً",IF(O29>=70%,"جيد",IF(O29>=60%,"فوق المتوسط",IF(O29>=50%,"متوسط",IF(O29>=40%,"دون المتوسط",IF(O29>=30%,"ضعيف","دون الضعيف جداً")))))))) -> دون الضعيف جداً | S29: =M2 -> Exam | T29: =COUNTIF(M4:M30,">="&M$3/2)/COUNT(M4:M30) -> 0.625 | U29: 0.375 | V29: =IF($U29="","",AVERAGE(M4:M30)/M$3) -> 0.5375

Sheet 7-8
A1: Grade (7-8) كشف درجات الطلاب
A2: م | B2: اسم الطالب | C2: Quiz1 | D2: Quiz2 | E2: Quiz3 | F2: Quiz4 | G2: Quiz5 | H2: Quizzes | I2: الواجب | J2: المشاركة | K2: المشروع | L2: Total | M2: Exam | N2: Final | O2: Percent | P2: Rank | Q2: التقدير | S2: تحليل النتائج على حسب التقدير
C3: 5 | D3: 5 | E3: 5 | F3: 5 | G3: درجة5 | H3: 50 | I3: 25 | J3: 15 | K3: 10 | L3: 100 | M3: 100 | N3: 22.5 | O3: (%) | P3: الترتيب | S3: التقدير | T3: المجال | V3: عدد الطلاب | W3: النسبة
A4: 1 | B4: ابراهيم حسن حمد جفال النعيمى | H4: =IF(AND(C4="",D4="",E4="",F4="",G4=""),"غ",$H$3*SUM(C4:G4)/SUM($C$3:$G$3)) -> غ | L4: =IF(AND(C4="",D4="",E4="",F4="",G4="",I4="",J4="",K4=""),"غ",SUM(H4:K4)) -> غ | N4: =IF(M4="","غ",IF(L4="غ",M4*0.2,SUM(L4*2.5/$L$3,M4*0.2))) -> غ | O4: =IF(N4="غ","غ",N4*100/$N$3/100) -> غ | P4: =IF(AND(O4="غ"),"غ",RANK(O4,$O$4:$O$29)+COUNTIF(O$4:O4,O4)-1) -> غ | Q4: =IF(O4="غ","غ",IF(O4>=90%,"ممتاز",IF(O4>=80%,"جيد جداً",IF(O4>=70%,"جيد",IF(O4>=60%,"فوق المتوسط",IF(O4>=50%,"متوسط",IF(O4>=40%,"دون المتوسط",IF(O4>=30%,"ضعيف","دون الضعيف جداً")))))))) -> غ | S4: ممتاز | T4: ≥ 90 | U4: A+ | V4: =COUNTIF(Q4:Q29,"ممتاز") -> 0 | W4: =(V4/$V$12) -> 0 | X4: =SUM(W4:W8) -> 0.6363636364
A5: 2 | B5: احمد راشد سعد محمد الكبيسى | C5: 3 | D5: 1 | E5: 1 | F5: 3 | H5: =IF(AND(C5="",D5="",E5="",F5="",G5=""),"غ",$H$3*SUM(C5:G5)/SUM($C$3:$G$3)) -> 20 | I5: 20 | J5: 13 | K5: 10 | L5: =IF(AND(C5="",D5="",E5="",F5="",G5="",I5="",J5="",K5=""),"غ",SUM(H5:K5)) -> 63 | M5: 72 | N5: =IF(M5="","غ",IF(L5="غ",M5*0.2,SUM(L5*2.5/$L$3,M5*0.2))) -> 15.975 | O5: =IF(N5="غ","غ",N5*100/$N$3/100) -> 0.71 | P5: =IF(AND(O5="غ"),"غ",RANK(O5,$O$4:$O$29)+COUNTIF(O$4:O5,O5)-1) -> 5 | Q5: =IF(O5="غ","غ",IF(O5>=90%,"ممتاز",IF(O5>=80%,"جيد جداً",IF(O5>=70%,"جيد",IF(O5>=60%,"فوق المتوسط",IF(O5>=50%,"متوسط",IF(O5>=40%,"دون المتوسط",IF(O5>=30%,"ضعيف","دون الضعيف جداً")))))))) -> جيد | S5: جيد جداً | T5: ≥ 80 | U5: A | V5: =COUNTIF(Q4:Q29,"جيد جداً") -> 1 | W5: 0.04545454545
A6: 3 | B6: أحمد محمد سيف الكواري | H6: غ | I6: 15 | J6: 10 | K6: 7 | L6: 32 | M6: 36 | N6: 8 | O6: 0.3555555556 | P6: =IF(AND(O6="غ"),"غ",RANK(O6,$O$4:$O$29)+COUNTIF(O$4:O6,O6)-1) -> 22 | Q6: ضعيف | S6: جيد | T6: ≥ 70 | U6: B+ | V6: =COUNTIF(Q4:Q29,"جيد") -> 4 | W6: 0.1818181818
A7: 4 | B7: تركى ناشى صالح مبارك التركى | C7: 1 | D7: 1 | E7: 1 | F7: 1 | H7: 10 | I7: 15 | J7: 10 | K7: 5 | L7: 40 | M7: 36 | N7: 8.2 | O7: 0.3644444444 | P7: =IF(AND(O7="غ"),"غ",RANK(O7,$O$4:$O$29)+COUNTIF(O$4:O7,O7)-1) -> 21 | Q7: ضعيف | S7: فوق المتوسط | T7: ≥ 60 | U7: B | V7: =COUNTIF(Q4:Q29,"فوق المتوسط") -> 4 | W7: 0.1818181818
A8: 5 | B8: تميم مبارك طالب مسعود المهندى | H8: غ | I8: 10 | J8: 10 | K8: 7 | L8: 27 | M8: 54 | N8: 11.475 | O8: 0.51 | P8: =IF(AND(O8="غ"),"غ",RANK(O8,$O$4:$O$29)+COUNTIF(O$4:O8,O8)-1) -> 12 | Q8: متوسط | S8: متوسط | T8: ≥ 50 | U8: C | V8: =COUNTIF(Q4:Q29,"متوسط") -> 5 | W8: 0.2272727273
A9: 6 | B9: جاسم محمد سعيد الربيعه الكوارى | C9: 1 | D9: 1 | E9: 1 | F9: 1 | H9: 10 | I9: 15 | J9: 10 | K9: 7 | L9: 42 | M9: 46 | N9: 10.25 | O9: 0.4555555556 | P9: =IF(AND(O9="غ"),"غ",RANK(O9,$O$4:$O$29)+COUNTIF(O$4:O9,O9)-1) -> 16 | Q9: دون المتوسط | S9: دون المتوسط | T9: ≥ 40 | U9: D | V9: =COUNTIF(Q4:Q29,"دون المتوسط") -> 5 | W9: 0.2272727273 | X9: =SUM(W9:W11) -> 0.3636363636
A10: 7 | B10: حمد حسين جمال محمد الجابر | C10: 0 | D10: 0 | E10: 0 | F10: 0 | H10: 0 | I10: 20 | J10: 13 | K10: 8 | L10: 41 | M10: 40 | N10: 9.025 | O10: 0.4011111111 | P10: =IF(AND(O10="غ"),"غ",RANK(O10,$O$4:$O$29)+COUNTIF(O$4:O10,O10)-1) -> 19 | Q10: دون المتوسط | S10: ضعيف | T10: ≥ 30 | U10: E | V10: =COUNTIF(Q4:Q29,"ضعيف") -> 3 | W10: 0.1363636364
A11: 8 | B11: خالد على عبدالله محمد العبيدلى | C11: 1.5 | D11: 1.5 | E11: 3 | F11: 3 | H11: 22.5 | I11: 20 | J11: 14 | K11: 8 | L11: 64.5 | M11: 42 | N11: 10.0125 | O11: 0.445 | P11: =IF(AND(O11="غ"),"غ",RANK(O11,$O$4:$O$29)+COUNTIF(O$4:O11,O11)-1) -> 17 | Q11: دون المتوسط | S11: دون الضعيف جداً | T11: < 30 | U11: F | V11: =COUNTIF(Q4:Q29,"دون الضعيف جداً") -> 0 | W11: 0
A12: 9 | B12: خالد مبارك مال الله مبارك الكبيسى | C12: 1.5 | D12: 1.5 | E12: 1.5 | F12: 1.5 | H12: 15 | I12: 20 | J12: 10 | K12: 7 | L12: 52 | M12: 50 | N12: 11.3 | O12: 0.5022222222 | P12: =IF(AND(O12="غ"),"غ",RANK(O12,$O$4:$O$29)+COUNTIF(O$4:O12,O12)-1) -> 14 | Q12: متوسط | S12: عدد الطلاب الذي تم اختبارهم | V12: =SUM(V4:V11) -> 22 | W12: =V12/SUM(V12:V13) -> 0.9166666667
A13: 10 | B13: خميس جمعه خميس جمعه الحميدى | C13: 1 | D13: 1 | E13: 1 | F13: 1 | H13: 10 | I13: 18 | J13: 12 | K13: 8 | L13: 48 | M13: 54 | N13: 12 | O13: 0.5333333333 | P13: =IF(AND(O13="غ"),"غ",RANK(O13,$O$4:$O$29)+COUNTIF(O$4:O13,O13)-1) -> 10 | Q13: متوسط | S13: عدد الطلاب الغائبين | V13: =COUNTA(B4:B29)-V12 -> 2 | W13: =V13/SUM(V12:V13) -> 0.08333333333
A14: 11 | B14: راشد محمد حسن الجفالى النعيمى | C14: 3 | D14: 3 | E14: 3 | F14: 3 | H14: 30 | I14: 25 | J14: 14 | K14: 10 | L14: 79 | M14: 78 | N14: 17.575 | O14: 0.7811111111 | P14: =IF(AND(O14="غ"),"غ",RANK(O14,$O$4:$O$29)+COUNTIF(O$4:O14,O14)-1) -> 2 | Q14: جيد
A15: 12 | B15: زايد محمد زايد بوزايد المنصورى | C15: 2.5 | D15: 2.5 | E15: 3 | F15: 3 | H15: 27.5 | I15: 22 | J15: 13 | K15: 10 | L15: 72.5 | M15: 68 | N15: 15.4125 | O15: 0.685 | P15: =IF(AND(O15="غ"),"غ",RANK(O15,$O$4:$O$29)+COUNTIF(O$4:O15,O15)-1) -> 7 | Q15: فوق المتوسط | S15: الطلاب | T15: العدد | U15: النسبة
A16: 13 | B16: سلطان خالد حسن جاسم بوهزاع | C16: 1.5 | D16: 2 | E16: 1.5 | F16: 2 | H16: 17.5 | I16: 22 | J16: 13 | K16: 7 | L16: 59.5 | M16: 36 | N16: 8.6875 | O16: 0.3861111111 | P16: =IF(AND(O16="غ"),"غ",RANK(O16,$O$4:$O$29)+COUNTIF(O$4:O16,O16)-1) -> 20 | Q16: ضعيف | S16: الناجحين | T16: =SUM(V4:V8) -> 14 | U16: =X4 -> 0.6363636364
A17: 14 | B17: طلال ناصر مبارك جمعه السليطى | C17: 3.5 | D17: 3 | E17: 3 | F17: 3.5 | H17: 32.5 | I17: 25 | J17: 13 | K17: 9 | L17: 79.5 | M17: 66 | N17: 15.1875 | O17: 0.675 | P17: =IF(AND(O17="غ"),"غ",RANK(O17,$O$4:$O$29)+COUNTIF(O$4:O17,O17)-1) -> 8 | Q17: فوق المتوسط | S17: الراسبين | T17: =SUM(V9:V11) -> 8 | U17: =X9 -> 0.3636363636
A18: 15 | B18: عبد العزيز ناصر الكواري | C18: 0 | D18: 0 | E18: 0 | F18: 0 | H18: 0 | I18: 15 | J18: 10 | K18: 8 | L18: 33 | N18: غ | O18: غ | P18: =IF(AND(O18="غ"),"غ",RANK(O18,$O$4:$O$29)+COUNTIF(O$4:O18,O18)-1) -> غ | Q18: غ | S18: المجموع | T18: =SUM(T16:T17) -> 22 | U18: =SUM(U16:U17) -> 1
A19: 16 | B19: عبدالعزيز غانم عبدالرحمن ابراهيم الغانم | C19: 0 | D19: 0 | E19: 0 | F19: 0 | H19: 0 | I19: 15 | J19: 12 | K19: 8 | L19: 35 | M19: 44 | N19: 9.675 | O19: 0.43 | P19: =IF(AND(O19="غ"),"غ",RANK(O19,$O$4:$O$29)+COUNTIF(O$4:O19,O19)-1) -> 18 | Q19: دون المتوسط
A20: 17 | B20: عبدالعزيز منصر محمد صالح موسى | C20: 2 | D20: 1 | E20: 1 | F20: 2 | H20: 15 | I20: 24 | J20: 14 | K20: 10 | L20: 63 | M20: 70 | N20: 15.575 | O20: 0.6922222222 | P20: =IF(AND(O20="غ"),"غ",RANK(O20,$O$4:$O$29)+COUNTIF(O$4:O20,O20)-1) -> 6 | Q20: فوق المتوسط | S20: التحصيل الأكاديمي | U20: =AVERAGE(M4:M30)/M$3 -> 0.5645454545
A21: 18 | B21: على اسماعيل عبدالله اسماعيل المالكى | C21: 4 | D21: 4 | E21: 4 | F21: 4 | H21: 40 | I21: 24 | J21: 14 | K21: 9 | L21: 87 | M21: 84 | N21: 18.975 | O21: 0.8433333333 | P21: =IF(AND(O21="غ"),"غ",RANK(O21,$O$4:$O$29)+COUNTIF(O$4:O21,O21)-1) -> 1 | Q21: جيد جداً
A22: 19 | B22: على حسين رحيم داد اربابي | C22: 3 | D22: 3 | E22: 3 | F22: 3 | H22: 30 | I22: 25 | J22: 15 | K22: 10 | L22: 80 | M22: 74 | N22: 16.8 | O22: 0.7466666667 | P22: =IF(AND(O22="غ"),"غ",RANK(O22,$O$4:$O$29)+COUNTIF(O$4:O22,O22)-1) -> 4 | Q22: جيد
A23: 20 | B23: فيصل ابراهيم يوسف ابراهيم الفضاله | C23: 2.5 | D23: 2.5 | E23: 3 | F23: 3 | H23: 27.5 | I23: 22 | J23: 12 | K23: 8 | L23: 69.5 | M23: 76 | N23: 16.9375 | O23: 0.7527777778 | P23: =IF(AND(O23="غ"),"غ",RANK(O23,$O$4:$O$29)+COUNTIF(O$4:O23,O23)-1) -> 3 | Q23: جيد
A24: 21 | B24: فيصل عيد الهاجري | C24: 1 | D24: 1 | E24: 1 | F24: 1 | H24: 10 | I24: 25 | J24: 12 | K24: 9 | L24: 56 | M24: 52 | N24: 11.8 | O24: 0.5244444444 | P24: =IF(AND(O24="غ"),"غ",RANK(O24,$O$4:$O$29)+COUNTIF(O$4:O24,O24)-1) -> 11 | Q24: متوسط | S24: الفرع | T24: الناجحين | U24: الراسبين | V24: التحصيل
A25: 22 | B25: محمد اياد محمود انعيم | C25: 1.5 | D25: 1.5 | E25: 0.15 | F25: 0.15 | H25: 8.25 | I25: 20 | J25: 13 | K25: 8 | L25: 49.25 | M25: 50 | N25: 11.23125 | O25: 0.4991666667 | P25: =IF(AND(O25="غ"),"غ",RANK(O25,$O$4:$O$29)+COUNTIF(O$4:O25,O25)-1) -> 15 | Q25: دون المتوسط | S25: =H2 -> Quizzes | T25: =COUNTIF(H4:H29,">="&H$3/2)/COUNT(H4:H29) -> 0.3333333333 | U25: =IF(T25="","",100%-T25) -> 0.6666666667 | V25: =IF($U25="","",AVERAGE(H4:H29)/H$3) -> 0.3602380952
A26: 23 | B26: محمد ناصر صالح الرمزانى النعيمى | C26: 4.5 | D26: 3 | E26: 3 | F26: 4.5 | H26: 37.5 | I26: 25 | J26: 14 | K26: 9 | L26: 85.5 | M26: 64 | N26: 14.9375 | O26: 0.6638888889 | P26: =IF(AND(O26="غ"),"غ",RANK(O26,$O$4:$O$29)+COUNTIF(O$4:O26,O26)-1) -> 9 | Q26: فوق المتوسط | S26: =I2 -> الواجب | T26: =COUNTIF(I4:I29,">="&I$3/2)/COUNT(I4:I29) -> 0.9565217391 | U26: 0.04347826087 | V26: =IF($U26="","",AVERAGE(I4:I29)/I$3) -> 0.8034782609
A27: 24 | B27: وليد جمعه سعيد ال حسين الكبيسى | C27: 2 | D27: 1 | E27: 1 | F27: 2 | H27: 15 | I27: 20 | J27: 13 | K27: 8 | L27: 56 | M27: 50 | N27: 11.4 | O27: 0.5066666667 | P27: =IF(AND(O27="غ"),"غ",RANK(O27,$O$4:$O$29)+COUNTIF(O$4:O27,O27)-1) -> 13 | Q27: متوسط | S27: =J2 -> المشاركة | T27: =COUNTIF(J4:J29,">="&J$3/2)/COUNT(J4:J29) -> 1 | U27: 0 | V27: =IF($U27="","",AVERAGE(J4:J29)/J$3) -> 0.8231884058
S28: =K2 -> المشروع | T28: =COUNTIF(K4:K29,">="&K$3/2)/COUNT(K4:K29) -> 1 | U28: 0 | V28: =IF($U28="","",AVERAGE(K4:K29)/K$3) -> 0.8260869565
S29: =M2 -> Exam | T29: =COUNTIF(M4:M29,">="&M$3/2)/COUNT(M4:M29) -> 0.6818181818 | U29: 0.3181818182 | V29: =IF($U29="","",AVERAGE(M4:M29)/M$3) -> 0.5645454545

Sheet Grade8
A1: عدد الطلاب الغائبين | B1: =SUM('8-1'!V13,'8-2'!V13,'8-3'!V13,'8-4'!V13,'8-5'!V13,'8-6'!V13,'8-7'!V13,'8-8'!V13) -> 6
B3: تحليل نتائج الصف الثامن Grade-8
B4: التقدير | C4: المجال | E4: عدد الطلاب | F4: النسبة
B5: ممتاز | C5: ≥ 90 | D5: A+ | E5: =SUM('8-1'!V4,'8-2'!V4,'8-3'!V4,'8-4'!V4,'8-5'!V4,'8-6'!V4,'8-7'!V4,'8-8'!V4) -> 3 | F5: =(E5/$E$13) -> 0.01578947368 | G5: =SUM(F5:F9) -> 0.7210526316
B6: جيد جداً | C6: ≥ 80 | D6: A | E6: =SUM('8-1'!V5,'8-2'!V5,'8-3'!V5,'8-4'!V5,'8-5'!V5,'8-6'!V5,'8-7'!V5,'8-8'!V5) -> 9 | F6: 0.04736842105
B7: جيد | C7: ≥ 70 | D7: B+ | E7: =SUM('8-1'!V6,'8-2'!V6,'8-3'!V6,'8-4'!V6,'8-5'!V6,'8-6'!V6,'8-7'!V6,'8-8'!V6) -> 22 | F7: 0.1157894737
B8: فوق المتوسط | C8: ≥ 60 | D8: B | E8: =SUM('8-1'!V7,'8-2'!V7,'8-3'!V7,'8-4'!V7,'8-5'!V7,'8-6'!V7,'8-7'!V7,'8-8'!V7) -> 46 | F8: 0.2421052632
B9: متوسط | C9: ≥ 50 | D9: C | E9: =SUM('8-1'!V8,'8-2'!V8,'8-3'!V8,'8-4'!V8,'8-5'!V8,'8-6'!V8,'8-7'!V8,'8-8'!V8) -> 57 | F9: 0.3
B10: دون المتوسط | C10: ≥ 40 | D10: D | E10: =SUM('8-1'!V9,'8-2'!V9,'8-3'!V9,'8-4'!V9,'8-5'!V9,'8-6'!V9,'8-7'!V9,'8-8'!V9) -> 34 | F10: 0.1789473684 | G10: =SUM(F10:F12) -> 0.2789473684
B11: ضعيف | C11: ≥ 30 | D11: E | E11: =SUM('8-1'!V10,'8-2'!V10,'8-3'!V10,'8-4'!V10,'8-5'!V10,'8-6'!V10,'8-7'!V10,'8-8'!V10) -> 16 | F11: 0.08421052632
B12: دون الضعيف جداً | C12: < 30 | D12: F | E12: =SUM('8-1'!V11,'8-2'!V11,'8-3'!V11,'8-4'!V11,'8-5'!V11,'8-6'!V11,'8-7'!V11,'8-8'!V11) -> 3 | F12: 0.01578947368
B13: عدد طلاب الصف الثامن الذي تم اختبارهم | E13: =SUM(E5:E12) -> 190 | F13: =E13/SUM(E13,B1) -> 0.9693877551
C15: الطلاب | D15: العدد | E15: النسبة
C16: الناجحين | D16: =SUM(E5:E9) -> 137 | E16: =G5 -> 0.7210526316
C17: الراسبين | D17: =SUM(E10:E12) -> 53 | E17: =G10 -> 0.2789473684
C18: المجموع | D18: =SUM(D16:D17) -> 190 | E18: =SUM(E16:E17) -> 1
C19: نسبة التحصيل | E19: =AVERAGE('8-1'!U20,'8-2'!U20,'8-3'!U20,'8-4'!U20,'8-5'!U20,'8-6'!U20,'8-7'!U20,'8-8'!U20) -> 0.5788376153
B21: الصف / النسبة | C21: الناجحين | D21: الراسبين | E21: التحصيل
B22: 8-1 | C22: ='8-1'!$U$16 -> 0.875 | D22: ='8-1'!$U$17 -> 0.125 | E22: ='8-1'!$U$20 -> 0.6333333333
B23: 8-2 | C23: ='8-2'!$U$16 -> 0.9545454545 | D23: ='8-2'!$U$17 -> 0.04545454545 | E23: ='8-2'!$U$20 -> 0.5954545455
B24: 8-3 | C24: ='8-3'!$U$16 -> 1 | D24: ='8-3'!$U$17 -> 0 | E24: ='8-3'!$U$20 -> 0.7913043478
B25: 8-4 | C25: ='8-4'!$U$16 -> 0.64 | D25: ='8-4'!$U$17 -> 0.36 | E25: ='8-4'!$U$20 -> 0.5296
B26: 8-5 | C26: ='8-5'!$U$16 -> 0.652173913 | D26: ='8-5'!$U$17 -> 0.347826087 | E26: ='8-5'!$U$20 -> 0.5295652174
B27: 8-6 | C27: ='8-6'!$U$16 -> 0.652173913 | D27: ='8-6'!$U$17 -> 0.347826087 | E27: ='8-6'!$U$20 -> 0.5530434783
B28: 8-7 | C28: ='8-7'!$U$16 -> 0.56 | D28: ='8-7'!$U$17 -> 0.44 | E28: ='8-7'!$U$20 -> 0.5096
B29: 8-8 | C29: ='8-8'!$U$16 -> 0.48 | D29: ='8-8'!$U$17 -> 0.52 | E29: ='8-8'!$U$20 -> 0.4888
A32: تحليل نتائج فرع | C32: ='8-1'!H2 -> Quizzes
B34: الصف | C34: الناجحين | D34: الراسبين | E34: التحصيل
B35: 8-1 | C35: ='8-1'!$T$25 -> 0.4166666667 | D35: ='8-1'!$U$25 -> 0.5833333333 | E35: ='8-1'!$V$25 -> 0.3875
B36: 8-2 | C36: ='8-2'!$T$25 -> 0.5652173913 | D36: ='8-2'!$U$25 -> 0.4347826087 | E36: ='8-2'!$V$25 -> 0.4260869565
B37: 8-3 | C37: ='8-3'!$T$25 -> 1 | D37: ='8-3'!$U$25 -> 0 | E37: ='8-3'!$V$25 -> 0.6520833333
B38: 8-4 | C38: ='8-4'!$T$25 -> 0.1818181818 | D38: ='8-4'!$U$25 -> 0.8181818182 | E38: ='8-4'!$V$25 -> 0.2965909091
B39: 8-5 | C39: ='8-5'!$T$25 -> 0.4761904762 | D39: ='8-5'!$U$25 -> 0.5238095238 | E39: ='8-5'!$V$25 -> 0.4928571429
B40: 8-6 | C40: ='8-6'!$T$25 -> 0.3043478261 | D40: ='8-6'!$U$25 -> 0.6956521739 | E40: ='8-6'!$V$25 -> 0.3934782609
B41: 8-7 | C41: ='8-7'!$T$25 -> 0.56 | D41: ='8-7'!$U$25 -> 0.44 | E41: ='8-7'!$V$25 -> 0.46
B42: 8-8 | C42: ='8-8'!$T$25 -> 0.25 | D42: ='8-8'!$U$25 -> 0.75 | E42: ='8-8'!$V$25 -> 0.3395833333
B43: المتوسط | C43: =AVERAGE(C35:C42) -> 0.4692800678 | D43: =AVERAGE(D35:D42) -> 0.5307199322 | E43: 0.431022492
A46: تحليل نتائج فرع | C46: ='8-1'!I2 -> الواجب
B48: الصف | C48: الناجحين | D48: الراسبين | E48: التحصيل
B49: 8-1 | C49: ='8-1'!$T$26 -> 1 | D49: ='8-1'!$U$26 -> 0 | E49: ='8-1'!$V$26 -> 0.9266666667
B50: 8-2 | C50: ='8-2'!$T$26 -> 1 | D50: ='8-2'!$U$26 -> 0 | E50: ='8-2'!$V$26 -> 0.9283333333
B51: 8-3 | C51: ='8-3'!$T$26 -> 1 | D51: ='8-3'!$U$26 -> 0 | E51: ='8-3'!$V$26 -> 0.9633333333
B52: 8-4 | C52: ='8-4'!$T$26 -> 0.8 | D52: ='8-4'!$U$26 -> 0.2 | E52: ='8-4'!$V$26 -> 0.6512
B53: 8-5 | C53: ='8-5'!$T$26 -> 0.8260869565 | D53: ='8-5'!$U$26 -> 0.1739130435 | E53: ='8-5'!$V$26 -> 0.6730434783
B54: 8-6 | C54: ='8-6'!$T$26 -> 0.5652173913 | D54: ='8-6'!$U$26 -> 0.4347826087 | E54: ='8-6'!$V$26 -> 0.5304347826
B55: 8-7 | C55: ='8-7'!$T$26 -> 0.6 | D55: ='8-7'!$U$26 -> 0.4 | E55: ='8-7'!$V$26 -> 0.5456
B56: 8-8 | C56: ='8-8'!$T$26 -> 0.52 | D56: ='8-8'!$U$26 -> 0.48 | E56: ='8-8'!$V$26 -> 0.5008
B57: المتوسط | C57: =AVERAGE(C49:C56) -> 0.7889130435 | D57: =AVERAGE(D49:D56) -> 0.2110869565 | E57: 0.7149264493
A60: تحليل نتائج فرع | C60: ='8-1'!J2 -> المشاركة
B62: الصف | C62: الناجحين | D62: الراسبين | E62: التحصيل
B63: 8-1 | C63: ='8-1'!$T$27 -> 1 | D63: ='8-1'!$U$27 -> 0 | E63: ='8-1'!$V$27 -> 0.8972222222
B64: 8-2 | C64: ='8-2'!$T$27 -> 1 | D64: ='8-2'!$U$27 -> 0 | E64: ='8-2'!$V$27 -> 0.8861111111
B65: 8-3 | C65: ='8-3'!$T$27 -> 1 | D65: ='8-3'!$U$27 -> 0 | E65: ='8-3'!$V$27 -> 0.9
B66: 8-4 | C66: ='8-4'!$T$27 -> 0.88 | D66: ='8-4'!$U$27 -> 0.12 | E66: ='8-4'!$V$27 -> 0.6666666667
B67: 8-5 | C67: ='8-5'!$T$27 -> 0.8260869565 | D67: ='8-5'!$U$27 -> 0.1739130435 | E67: ='8-5'!$V$27 -> 0.6405797101
B68: 8-6 | C68: ='8-6'!$T$27 -> 0.5652173913 | D68: ='8-6'!$U$27 -> 0.4347826087 | E68: ='8-6'!$V$27 -> 0.5304347826
B69: 8-7 | C69: ='8-7'!$T$27 -> 0.64 | D69: ='8-7'!$U$27 -> 0.36 | E69: ='8-7'!$V$27 -> 0.5973333333
B70: 8-8 | C70: ='8-8'!$T$27 -> 0.68 | D70: ='8-8'!$U$27 -> 0.32 | E70: ='8-8'!$V$27 -> 0.5626666667
B71: المتوسط | C71: =AVERAGE(C63:C70) -> 0.8239130435 | D71: =AVERAGE(D63:D70) -> 0.1760869565 | E71: 0.7101268116
A74: تحليل نتائج فرع | C74: ='8-1'!K2 -> المشروع
B76: الصف | C76: الناجحين | D76: الراسبين | E76: التحصيل
B77: 8-1 | C77: ='8-1'!$T$28 -> 1 | D77: ='8-1'!$U$28 -> 0 | E77: ='8-1'!$V$28 -> 0.8458333333
B78: 8-2 | C78: ='8-2'!$T$28 -> 1 | D78: ='8-2'!$U$28 -> 0 | E78: ='8-2'!$V$28 -> 0.8291666667
B79: 8-3 | C79: ='8-3'!$T$28 -> 1 | D79: ='8-3'!$U$28 -> 0 | E79: ='8-3'!$V$28 -> 0.85
B80: 8-4 | C80: ='8-4'!$T$28 -> 0.92 | D80: ='8-4'!$U$28 -> 0.08 | E80: ='8-4'!$V$28 -> 0.668
B81: 8-5 | C81: ='8-5'!$T$28 -> 0.8695652174 | D81: ='8-5'!$U$28 -> 0.1304347826 | E81: ='8-5'!$V$28 -> 0.6130434783
B82: 8-6 | C82: ='8-6'!$T$28 -> 0.652173913 | D82: ='8-6'!$U$28 -> 0.347826087 | E82: ='8-6'!$V$28 -> 0.5260869565
B83: 8-7 | C83: ='8-7'!$T$28 -> 0.76 | D83: ='8-7'!$U$28 -> 0.24 | E83: ='8-7'!$V$28 -> 0.596
B84: 8-8 | C84: ='8-8'!$T$28 -> 0.48 | D84: ='8-8'!$U$28 -> 0.52 | E84: ='8-8'!$V$28 -> 0.5
B85: المتوسط | C85: =AVERAGE(C77:C84) -> 0.8352173913 | D85: =AVERAGE(D77:D84) -> 0.1647826087 | E85: 0.6785163043
A88: تحليل نتائج فرع | C88: ='8-1'!M2 -> Exam
B90: الصف | C90: الناجحين | D90: الراسبين | E90: التحصيل
B91: 8-1 | C91: ='8-1'!$T$29 -> 0.875 | D91: ='8-1'!$U$29 -> 0.125 | E91: ='8-1'!$V$29 -> 0.6333333333
B92: 8-2 | C92: ='8-2'!$T$29 -> 0.9545454545 | D92: ='8-2'!$U$29 -> 0.04545454545 | E92: ='8-2'!$V$29 -> 0.5954545455
B93: 8-3 | C93: ='8-3'!$T$29 -> 1 | D93: ='8-3'!$U$29 -> 0 | E93: ='8-3'!$V$29 -> 0.7913043478
B94: 8-4 | C94: ='8-4'!$T$29 -> 0.72 | D94: ='8-4'!$U$29 -> 0.28 | E94: ='8-4'!$V$29 -> 0.5296
B95: 8-5 | C95: ='8-5'!$T$29 -> 0.652173913 | D95: ='8-5'!$U$29 -> 0.347826087 | E95: ='8-5'!$V$29 -> 0.5295652174
B96: 8-6 | C96: ='8-6'!$T$29 -> 0.7391304348 | D96: ='8-6'!$U$29 -> 0.2608695652 | E96: ='8-6'!$V$29 -> 0.5530434783
B97: 8-7 | C97: ='8-7'!$T$29 -> 0.64 | D97: ='8-7'!$U$29 -> 0.36 | E97: ='8-7'!$V$29 -> 0.5096
B98: 8-8 | C98: ='8-8'!$T$29 -> 0.52 | D98: ='8-8'!$U$29 -> 0.48 | E98: ='8-8'!$V$29 -> 0.4888
B99: المتوسط | C99: =AVERAGE(C91:C98) -> 0.7626062253 | D99: =AVERAGE(D91:D98) -> 0.2373937747 | E99: 0.5788376153
A106: مقارنة تحليل نتائج | C106: جميع الفروع
A108: الفرع | C108: الناجحين | D108: الراسبين | E108: التحصيل
A109: =C32 -> Quizzes | C109: =C43 -> 0.4692800678 | D109: =D43 -> 0.5307199322 | E109: =E43 -> 0.431022492
A110: =C46 -> الواجب | C110: =C57 -> 0.7889130435 | D110: =D57 -> 0.2110869565 | E110: =E57 -> 0.7149264493
A111: =C60 -> المشاركة | C111: =C71 -> 0.8239130435 | D111: =D71 -> 0.1760869565 | E111: =E71 -> 0.7101268116
A112: =C74 -> المشروع | C112: =C85 -> 0.8352173913 | D112: =D85 -> 0.1647826087 | E112: 0.6785163043
A113: =C88 -> Exam | C113: =C99 -> 0.7626062253 | D113: =D99 -> 0.2373937747 | E113: =E99 -> 0.5788376153

Sheet 8-1
A1: Grade (8-1) كشف درجات الطلاب
A2: م | B2: اسم الطالب | C2: Quiz1 | D2: Quiz2 | E2: Quiz3 | F2: Quiz4 | G2: Quiz5 | H2: Quizzes | I2: الواجب | J2: المشاركة | K2: المشروع | L2: Total | M2: Exam | N2: Final | O2: Percent | P2: Rank | Q2: التقدير | S2: تحليل النتائج على حسب التقدير
C3: 5 | D3: 5 | E3: 5 | F3: 5 | G3: درجة5 | H3: 50 | I3: 25 | J3: 15 | K3: 10 | L3: 100 | M3: 100 | N3: 22.5 | O3: (%) | P3: الترتيب | S3: التقدير | T3: المجال | V3: عدد الطلاب | W3: النسبة
A4: 1 | B4: ابراهيم احمد سالم بن حيدره | C4: 2 | D4: 2 | E4: 2 | F4: 2 | H4: =IF(AND(C4="",D4="",E4="",F4="",G4=""),"غ",$H$3*SUM(C4:G4)/SUM($C$3:$G$3)) -> 20 | I4: 22 | J4: 13 | K4: 8 | L4: =IF(AND(C4="",D4="",E4="",F4="",G4="",I4="",J4="",K4=""),"غ",SUM(H4:K4)) -> 63 | M4: 68 | N4: =IF(M4="","غ",IF(L4="غ",M4*0.2,SUM(L4*2.5/$L$3,M4*0.2))) -> 15.175 | O4: =IF(N4="غ","غ",N4*100/$N$3/100) -> 0.6744444444 | P4: =IF(AND(O4="غ"),"غ",RANK(O4,$O$4:$O$30)+COUNTIF(O$4:O4,O4)-1) -> 10 | Q4: =IF(O4="غ","غ",IF(O4>=90%,"ممتاز",IF(O4>=80%,"جيد جداً",IF(O4>=70%,"جيد",IF(O4>=60%,"فوق المتوسط",IF(O4>=50%,"متوسط",IF(O4>=40%,"دون المتوسط",IF(O4>=30%,"ضعيف","دون الضعيف جداً")))))))) -> فوق المتوسط | S4: ممتاز | T4: ≥ 90 | U4: A+ | V4: =COUNTIF(Q4:Q30,"ممتاز") -> 0 | W4: =(V4/$V$12) -> 0 | X4: =SUM(W4:W8) -> 0.875
A5: 2 | B5: ابراهيم عبدالمجيد ابراهيم عبدالمجيد التميمى | C5: 2 | D5: 3 | E5: 2 | F5: 3 | H5: =IF(AND(C5="",D5="",E5="",F5="",G5=""),"غ",$H$3*SUM(C5:G5)/SUM($C$3:$G$3)) -> 25 | I5: 24 | J5: 14 | K5: 9 | L5: =IF(AND(C5="",D5="",E5="",F5="",G5="",I5="",J5="",K5=""),"غ",SUM(H5:K5)) -> 72 | M5: 50 | N5: =IF(M5="","غ",IF(L5="غ",M5*0.2,SUM(L5*2.5/$L$3,M5*0.2))) -> 11.8 | O5: =IF(N5="غ","غ",N5*100/$N$3/100) -> 0.5244444444 | P5: =IF(AND(O5="غ"),"غ",RANK(O5,$O$4:$O$30)+COUNTIF(O$4:O5,O5)-1) -> 20 | Q5: =IF(O5="غ","غ",IF(O5>=90%,"ممتاز",IF(O5>=80%,"جيد جداً",IF(O5>=70%,"جيد",IF(O5>=60%,"فوق المتوسط",IF(O5>=50%,"متوسط",IF(O5>=40%,"دون المتوسط",IF(O5>=30%,"ضعيف","دون الضعيف جداً")))))))) -> متوسط | S5: جيد جداً | T5: ≥ 80 | U5: A | V5: =COUNTIF(Q4:Q30,"جيد جداً") -> 2 | W5: 0.08333333333
A6: 3 | B6: احمد عبدالله احمد حسن الجابر | C6: 0 | D6: 3 | E6: 0 | F6: 3 | H6: 15 | I6: 23 | J6: 13 | K6: 8 | L6: 59 | M6: 58 | N6: 13.075 | O6: 0.5811111111 | P6: =IF(AND(O6="غ"),"غ",RANK(O6,$O$4:$O$30)+COUNTIF(O$4:O6,O6)-1) -> 15 | Q6: متوسط | S6: جيد | T6: ≥ 70 | U6: B+ | V6: =COUNTIF(Q4:Q30,"جيد") -> 4 | W6: 0.1666666667
A7: 4 | B7: امجد عادل المهدي عبدالدائم علي | C7: 3 | D7: 5 | E7: 3 | F7: 5 | H7: 40 | I7: 24 | J7: 14 | K7: 9 | L7: 87 | M7: 82 | N7: 18.575 | O7: 0.8255555556 | P7: =IF(AND(O7="غ"),"غ",RANK(O7,$O$4:$O$30)+COUNTIF(O$4:O7,O7)-1) -> 2 | Q7: جيد جداً | S7: فوق المتوسط | T7: ≥ 60 | U7: B | V7: =COUNTIF(Q4:Q30,"فوق المتوسط") -> 8 | W7: 0.3333333333
A8: 5 | B8: جاسم محمد جاسم الربيعه الكوارى | C8: 4 | D8: 4 | E8: 4 | F8: 4 | H8: 40 | I8: 24 | J8: 14 | K8: 9 | L8: 87 | M8: 76 | N8: 17.375 | O8: 0.7722222222 | P8: =IF(AND(O8="غ"),"غ",RANK(O8,$O$4:$O$30)+COUNTIF(O$4:O8,O8)-1) -> 4 | Q8: جيد | S8: متوسط | T8: ≥ 50 | U8: C | V8: =COUNTIF(Q4:Q30,"متوسط") -> 7 | W8: 0.2916666667
A9: 6 | B9: خالد ابراهيم جمعه ناصر الشريم | C9: 0 | D9: 1 | E9: 0 | F9: 1 | H9: 5 | I9: 23 | J9: 13 | K9: 8 | L9: 49 | M9: 64 | N9: 14.025 | O9: 0.6233333333 | P9: =IF(AND(O9="غ"),"غ",RANK(O9,$O$4:$O$30)+COUNTIF(O$4:O9,O9)-1) -> 14 | Q9: فوق المتوسط | S9: دون المتوسط | T9: ≥ 40 | U9: D | V9: =COUNTIF(Q4:Q30,"دون المتوسط") -> 3 | W9: 0.125 | X9: =SUM(W9:W11) -> 0.125
A10: 7 | B10: راشد خالد محمد على المطوع | C10: 0 | D10: 1 | E10: 0 | F10: 1 | H10: 5 | I10: 22 | J10: 13 | K10: 8 | L10: 48 | M10: 56 | N10: 12.4 | O10: 0.5511111111 | P10: =IF(AND(O10="غ"),"غ",RANK(O10,$O$4:$O$30)+COUNTIF(O$4:O10,O10)-1) -> 18 | Q10: متوسط | S10: ضعيف | T10: ≥ 30 | U10: E | V10: =COUNTIF(Q4:Q30,"ضعيف") -> 0 | W10: 0
A11: 8 | B11: طلال خالد مزعل قمر عزازى | C11: 1 | D11: 2 | E11: 1 | F11: 2 | H11: 15 | I11: 23 | J11: 14 | K11: 8 | L11: 60 | M11: 54 | N11: 12.3 | O11: 0.5466666667 | P11: =IF(AND(O11="غ"),"غ",RANK(O11,$O$4:$O$30)+COUNTIF(O$4:O11,O11)-1) -> 19 | Q11: متوسط | S11: دون الضعيف جداً | T11: < 30 | U11: F | V11: =COUNTIF(Q4:Q30,"دون الضعيف جداً") -> 0 | W11: 0
A12: 9 | B12: عبدالرحمن محمد بشير عبدالله العبدالله | C12: 3 | D12: 3 | E12: 3 | F12: 3 | H12: 30 | I12: 24 | J12: 14 | K12: 9 | L12: 77 | M12: 80 | N12: 17.925 | O12: 0.7966666667 | P12: =IF(AND(O12="غ"),"غ",RANK(O12,$O$4:$O$30)+COUNTIF(O$4:O12,O12)-1) -> 3 | Q12: جيد | S12: عدد الطلاب الذي تم اختبارهم | V12: =SUM(V4:V11) -> 24 | W12: =V12/SUM(V12:V13) -> 0.96
A13: 10 | B13: عبدالرحمن محمد زيد الهجن النعيمى | C13: 3 | D13: 3 | E13: 3 | F13: 3 | H13: 30 | I13: 24 | J13: 13 | K13: 9 | L13: 76 | M13: 64 | N13: 14.7 | O13: 0.6533333333 | P13: =IF(AND(O13="غ"),"غ",RANK(O13,$O$4:$O$30)+COUNTIF(O$4:O13,O13)-1) -> 12 | Q13: فوق المتوسط | S13: عدد الطلاب الغائبين | V13: =COUNTA(B4:B30)-V12 -> 1 | W13: =V13/SUM(V12:V13) -> 0.04
A14: 11 | B14: عبدالعزيز عبدالله حسين هلال عبدالله | C14: 2 | D14: 3 | E14: 2 | F14: 3 | H14: 25 | I14: 22 | J14: 13 | K14: 8 | L14: 68 | M14: 68 | N14: 15.3 | O14: 0.68 | P14: =IF(AND(O14="غ"),"غ",RANK(O14,$O$4:$O$30)+COUNTIF(O$4:O14,O14)-1) -> 9 | Q14: فوق المتوسط
A15: 12 | B15: عبدالعزيز على احمد عبدالحميد الملا | C15: 2 | D15: 4 | E15: 2 | F15: 4 | H15: 30 | I15: 24 | J15: 14 | K15: 9 | L15: 77 | M15: 66 | N15: 15.125 | O15: 0.6722222222 | P15: =IF(AND(O15="غ"),"غ",RANK(O15,$O$4:$O$30)+COUNTIF(O$4:O15,O15)-1) -> 11 | Q15: فوق المتوسط | S15: الطلاب | T15: العدد | U15: النسبة
A16: 13 | B16: عبدالعزيز محمود يوسف محمد المرزوقى | C16: 1 | D16: 1 | E16: 1 | F16: 1 | H16: 10 | I16: 24 | J16: 14 | K16: 9 | L16: 57 | M16: 42 | N16: 9.825 | O16: 0.4366666667 | P16: =IF(AND(O16="غ"),"غ",RANK(O16,$O$4:$O$30)+COUNTIF(O$4:O16,O16)-1) -> 24 | Q16: دون المتوسط | S16: الناجحين | T16: =SUM(V4:V8) -> 21 | U16: =X4 -> 0.875
A17: 14 | B17: عبدالله حسن مفتاح مبارك الكوارى | C17: 3 | D17: 1 | E17: 3 | F17: 1 | H17: 20 | I17: 24 | J17: 14 | K17: 9 | L17: 67 | M17: 78 | N17: 17.275 | O17: 0.7677777778 | P17: =IF(AND(O17="غ"),"غ",RANK(O17,$O$4:$O$30)+COUNTIF(O$4:O17,O17)-1) -> 5 | Q17: جيد | S17: الراسبين | T17: =SUM(V9:V11) -> 3 | U17: =X9 -> 0.125
A18: 15 | B18: عبدالله عيسى محمد صندح النعيمى | C18: 1 | D18: 3 | E18: 1 | F18: 3 | H18: 20 | I18: 23 | J18: 13 | K18: 8 | L18: 64 | M18: 70 | N18: 15.6 | O18: 0.6933333333 | P18: =IF(AND(O18="غ"),"غ",RANK(O18,$O$4:$O$30)+COUNTIF(O$4:O18,O18)-1) -> 7 | Q18: فوق المتوسط | S18: المجموع | T18: =SUM(T16:T17) -> 24 | U18: =SUM(U16:U17) -> 1
A19: 16 | B19: عبدالله محمد جاسم حسن الجابر | C19: 2 | D19: 3 | E19: 2 | F19: 3 | H19: 25 | I19: 24 | J19: 14 | K19: 9 | L19: 72 | M19: 86 | N19: 19 | O19: 0.8444444444 | P19: =IF(AND(O19="غ"),"غ",RANK(O19,$O$4:$O$30)+COUNTIF(O$4:O19,O19)-1) -> 1 | Q19: جيد جداً
A20: 17 | B20: على بدر على خميس عبدالله | C20: 1 | E20: 1 | H20: 5 | I20: 23 | J20: 13 | K20: 8 | L20: 49 | M20: 58 | N20: 12.825 | O20: 0.57 | P20: =IF(AND(O20="غ"),"غ",RANK(O20,$O$4:$O$30)+COUNTIF(O$4:O20,O20)-1) -> 16 | Q20: متوسط | S20: التحصيل الأكاديمي | U20: =AVERAGE(M4:M30)/M$3 -> 0.6333333333
A21: 18 | B21: عيسى إبراهيم الذوادي | C21: 3 | D21: 1 | E21: 3 | F21: 1 | H21: 20 | I21: 24 | J21: 14 | K21: 9 | L21: 67 | M21: 64 | N21: 14.475 | O21: 0.6433333333 | P21: =IF(AND(O21="غ"),"غ",RANK(O21,$O$4:$O$30)+COUNTIF(O$4:O21,O21)-1) -> 13 | Q21: فوق المتوسط
A22: 19 | B22: غانم على محمد عبدالله الماس | C22: 2 | D22: 3 | E22: 2 | F22: 3 | H22: 25 | I22: 24 | J22: 14 | K22: 9 | L22: 72 | M22: 68 | N22: 15.4 | O22: 0.6844444444 | P22: =IF(AND(O22="غ"),"غ",RANK(O22,$O$4:$O$30)+COUNTIF(O$4:O22,O22)-1) -> 8 | Q22: فوق المتوسط
A23: 20 | B23: محمد عبدالله مبارك رومى النعيمى | C23: 2 | D23: 3 | E23: 2 | F23: 3 | H23: 25 | I23: 22 | J23: 13 | K23: 8 | L23: 68 | M23: 74 | N23: 16.5 | O23: 0.7333333333 | P23: =IF(AND(O23="غ"),"غ",RANK(O23,$O$4:$O$30)+COUNTIF(O$4:O23,O23)-1) -> 6 | Q23: جيد
A24: 21 | B24: محمد عبدالله ناصر عمران القبيسى | C24: 2 | D24: 1 | E24: 2 | F24: 1 | H24: 15 | I24: 23 | J24: 13 | K24: 8 | L24: 59 | M24: 50 | N24: 11.475 | O24: 0.51 | P24: =IF(AND(O24="غ"),"غ",RANK(O24,$O$4:$O$30)+COUNTIF(O$4:O24,O24)-1) -> 21 | Q24: متوسط | S24: الفرع | T24: الناجحين | U24: الراسبين | V24: التحصيل
A25: 22 | B25: محمد فرج سالم فرج المناعى | C25: 1 | D25: 2 | E25: 1 | F25: 2 | H25: 15 | I25: 22 | J25: 13 | K25: 8 | L25: 58 | M25: 42 | N25: 9.85 | O25: 0.4377777778 | P25: =IF(AND(O25="غ"),"غ",RANK(O25,$O$4:$O$30)+COUNTIF(O$4:O25,O25)-1) -> 23 | Q25: دون المتوسط | S25: =H2 -> Quizzes | T25: =COUNTIF(H4:H30,">="&H$3/2)/COUNT(H4:H30) -> 0.4166666667 | U25: =IF(T25="","",100%-T25) -> 0.5833333333 | V25: =IF($U25="","",AVERAGE(H4:H30)/H$3) -> 0.3875
A26: 23 | B26: محمد مهنا محمد مهنا النعيمى | H26: غ | L26: غ | N26: غ | O26: غ | P26: =IF(AND(O26="غ"),"غ",RANK(O26,$O$4:$O$30)+COUNTIF(O$4:O26,O26)-1) -> غ | Q26: غ | S26: =I2 -> الواجب | T26: =COUNTIF(I4:I30,">="&I$3/2)/COUNT(I4:I30) -> 1 | U26: 0 | V26: =IF($U26="","",AVERAGE(I4:I30)/I$3) -> 0.9266666667
A27: 24 | B27: محمد ناصر خليفه الضاعن العجمى | C27: 0 | D27: 0 | E27: 0 | F27: 0 | H27: 0 | I27: 22 | J27: 13 | K27: 8 | L27: 43 | M27: 44 | N27: 9.875 | O27: 0.4388888889 | P27: =IF(AND(O27="غ"),"غ",RANK(O27,$O$4:$O$30)+COUNTIF(O$4:O27,O27)-1) -> 22 | Q27: دون المتوسط | S27: =J2 -> المشاركة | T27: =COUNTIF(J4:J30,">="&J$3/2)/COUNT(J4:J30) -> 1 | U27: 0 | V27: =IF($U27="","",AVERAGE(J4:J30)/J$3) -> 0.8972222222
A28: 25 | B28: ناصر احمد اسماعيل مندنى عشار | C28: 1 | E28: 1 | H28: 5 | I28: 22 | J28: 13 | K28: 8 | L28: 48 | M28: 58 | N28: 12.8 | O28: 0.5688888889 | P28: =IF(AND(O28="غ"),"غ",RANK(O28,$O$4:$O$30)+COUNTIF(O$4:O28,O28)-1) -> 17 | Q28: متوسط | S28: =K2 -> المشروع | T28: =COUNTIF(K4:K30,">="&K$3/2)/COUNT(K4:K30) -> 1 | U28: 0 | V28: =IF($U28="","",AVERAGE(K4:K30)/K$3) -> 0.8458333333
S29: =M2 -> Exam | T29: =COUNTIF(M4:M30,">="&M$3/2)/COUNT(M4:M30) -> 0.875 | U29: 0.125 | V29: =IF($U29="","",AVERAGE(M4:M30)/M$3) -> 0.6333333333

Sheet 8-2
A1: Grade (8-2) كشف درجات الطلاب
A2: م | B2: اسم الطالب | C2: Quiz1 | D2: Quiz2 | E2: Quiz3 | F2: Quiz4 | G2: Quiz5 | H2: Quizzes | I2: الواجب | J2: المشاركة | K2: المشروع | L2: Total | M2: Exam | N2: Final | O2: Percent | P2: Rank | Q2: التقدير | S2: تحليل النتائج على حسب التقدير
C3: 5 | D3: 5 | E3: 5 | F3: 5 | G3: درجة5 | H3: 50 | I3: 25 | J3: 15 | K3: 10 | L3: 100 | M3: 100 | N3: 22.5 | O3: (%) | P3: الترتيب | S3: التقدير | T3: المجال | V3: عدد الطلاب | W3: النسبة
A4: 1 | B4: احمد خالد احمد اليوسف الكوارى | H4: =IF(AND(C4="",D4="",E4="",F4="",G4=""),"غ",$H$3*SUM(C4:G4)/SUM($C$3:$G$3)) -> غ | I4: 23 | J4: 13 | K4: 8 | L4: =IF(AND(C4="",D4="",E4="",F4="",G4="",I4="",J4="",K4=""),"غ",SUM(H4:K4)) -> 44 | N4: =IF(M4="","غ",IF(L4="غ",M4*0.2,SUM(L4*2.5/$L$3,M4*0.2))) -> غ | O4: =IF(N4="غ","غ",N4*100/$N$3/100) -> غ | P4: =IF(AND(O4="غ"),"غ",RANK(O4,$O$4:$O$30)+COUNTIF(O$4:O4,O4)-1) -> غ | Q4: =IF(O4="غ","غ",IF(O4>=90%,"ممتاز",IF(O4>=80%,"جيد جداً",IF(O4>=70%,"جيد",IF(O4>=60%,"فوق المتوسط",IF(O4>=50%,"متوسط",IF(O4>=40%,"دون المتوسط",IF(O4>=30%,"ضعيف","دون الضعيف جداً")))))))) -> غ | S4: ممتاز | T4: ≥ 90 | U4: A+ | V4: =COUNTIF(Q4:Q30,"ممتاز") -> 0 | W4: =(V4/$V$12) -> 0 | X4: =SUM(W4:W8) -> 0.9545454545
A5: 2 | B5: احمد عبدالله على سلطان الكوارى | C5: 1 | D5: 2 | E5: 1 | F5: 2 | H5: =IF(AND(C5="",D5="",E5="",F5="",G5=""),"غ",$H$3*SUM(C5:G5)/SUM($C$3:$G$3)) -> 15 | I5: 22 | J5: 13 | K5: 8 | L5: =IF(AND(C5="",D5="",E5="",F5="",G5="",I5="",J5="",K5=""),"غ",SUM(H5:K5)) -> 58 | M5: 50 | N5: =IF(M5="","غ",IF(L5="غ",M5*0.2,SUM(L5*2.5/$L$3,M5*0.2))) -> 11.45 | O5: =IF(N5="غ","غ",N5*100/$N$3/100) -> 0.5088888889 | P5: =IF(AND(O5="غ"),"غ",RANK(O5,$O$4:$O$30)+COUNTIF(O$4:O5,O5)-1) -> 20 | Q5: =IF(O5="غ","غ",IF(O5>=90%,"ممتاز",IF(O5>=80%,"جيد جداً",IF(O5>=70%,"جيد",IF(O5>=60%,"فوق المتوسط",IF(O5>=50%,"متوسط",IF(O5>=40%,"دون المتوسط",IF(O5>=30%,"ضعيف","دون الضعيف جداً")))))))) -> متوسط | S5: جيد جداً | T5: ≥ 80 | U5: A | V5: =COUNTIF(Q4:Q30,"جيد جداً") -> 0 | W5: 0
A6: 3 | B6: حسن محمد حسن عبدالله المهيزع | C6: 3 | D6: 3 | E6: 3 | F6: 3 | H6: 30 | I6: 22 | J6: 13 | K6: 8 | L6: 73 | M6: 52 | N6: 12.225 | O6: 0.5433333333 | P6: =IF(AND(O6="غ"),"غ",RANK(O6,$O$4:$O$30)+COUNTIF(O$4:O6,O6)-1) -> 14 | Q6: متوسط | S6: جيد | T6: ≥ 70 | U6: B+ | V6: =COUNTIF(Q4:Q30,"جيد") -> 4 | W6: 0.1818181818
A7: 4 | B7: حمزه احمد حسن عبدالله تركتر | D7: 3 | F7: 3 | H7: 15 | I7: 24 | J7: 14 | K7: 9 | L7: 62 | M7: 76 | N7: 16.75 | O7: 0.7444444444 | P7: =IF(AND(O7="غ"),"غ",RANK(O7,$O$4:$O$30)+COUNTIF(O$4:O7,O7)-1) -> 2 | Q7: جيد | S7: فوق المتوسط | T7: ≥ 60 | U7: B | V7: =COUNTIF(Q4:Q30,"فوق المتوسط") -> 8 | W7: 0.3636363636
A8: 5 | B8: خالد عادل حسين عسكر | C8: 3 | D8: 2 | E8: 3 | F8: 2 | H8: 25 | I8: 24 | J8: 14 | K8: 8 | L8: 71 | M8: 70 | N8: 15.775 | O8: 0.7011111111 | P8: =IF(AND(O8="غ"),"غ",RANK(O8,$O$4:$O$30)+COUNTIF(O$4:O8,O8)-1) -> 4 | Q8: جيد | S8: متوسط | T8: ≥ 50 | U8: C | V8: =COUNTIF(Q4:Q30,"متوسط") -> 9 | W8: 0.4090909091
A9: 6 | B9: راشد خالد عيد الالشيخ الكوارى | C9: 0 | D9: 1 | E9: 0 | F9: 1 | H9: 5 | I9: 23 | J9: 13 | K9: 8 | L9: 49 | M9: 62 | N9: 13.625 | O9: 0.6055555556 | P9: =IF(AND(O9="غ"),"غ",RANK(O9,$O$4:$O$30)+COUNTIF(O$4:O9,O9)-1) -> 12 | Q9: فوق المتوسط | S9: دون المتوسط | T9: ≥ 40 | U9: D | V9: =COUNTIF(Q4:Q30,"دون المتوسط") -> 1 | W9: 0.04545454545 | X9: =SUM(W9:W11) -> 0.04545454545
A10: 7 | B10: راشد سعد سالم صقر الكوارى | C10: 3 | D10: 2 | E10: 3 | F10: 2 | H10: 25 | I10: 23 | J10: 13 | K10: 8 | L10: 69 | M10: 50 | N10: 11.725 | O10: 0.5211111111 | P10: =IF(AND(O10="غ"),"غ",RANK(O10,$O$4:$O$30)+COUNTIF(O$4:O10,O10)-1) -> 16 | Q10: متوسط | S10: ضعيف | T10: ≥ 30 | U10: E | V10: =COUNTIF(Q4:Q30,"ضعيف") -> 0 | W10: 0
A11: 8 | B11: سالم محمد سالم محمد العبيدلى | C11: 3 | D11: 2 | E11: 3 | F11: 2 | H11: 25 | I11: 24 | J11: 14 | K11: 9 | L11: 72 | M11: 66 | N11: 15 | O11: 0.6666666667 | P11: =IF(AND(O11="غ"),"غ",RANK(O11,$O$4:$O$30)+COUNTIF(O$4:O11,O11)-1) -> 6 | Q11: فوق المتوسط | S11: دون الضعيف جداً | T11: < 30 | U11: F | V11: =COUNTIF(Q4:Q30,"دون الضعيف جداً") -> 0 | W11: 0
A12: 9 | B12: سعود جمعه خميس جمعه الحميدى | C12: 2 | E12: 2 | H12: 10 | I12: 23 | J12: 13 | K12: 8 | L12: 54 | M12: 50 | N12: 11.35 | O12: 0.5044444444 | P12: =IF(AND(O12="غ"),"غ",RANK(O12,$O$4:$O$30)+COUNTIF(O$4:O12,O12)-1) -> 21 | Q12: متوسط | S12: عدد الطلاب الذي تم اختبارهم | V12: =SUM(V4:V11) -> 22 | W12: =V12/SUM(V12:V13) -> 0.88
A13: 10 | B13: صالح محمد نوبى زايد الخليفى | C13: 2 | D13: 5 | E13: 2 | F13: 5 | H13: 35 | I13: 24 | J13: 14 | K13: 9 | L13: 82 | M13: 60 | N13: 14.05 | O13: 0.6244444444 | P13: =IF(AND(O13="غ"),"غ",RANK(O13,$O$4:$O$30)+COUNTIF(O$4:O13,O13)-1) -> 11 | Q13: فوق المتوسط | S13: عدد الطلاب الغائبين | V13: =COUNTA(B4:B30)-V12 -> 3 | W13: =V13/SUM(V12:V13) -> 0.12
A14: 11 | B14: طلال عبدالعزيز عبدالرحيم اليافعى | C14: 3 | D14: 2 | E14: 3 | F14: 2 | H14: 25 | I14: 23 | J14: 13 | K14: 8 | L14: 69 | M14: 50 | N14: 11.725 | O14: 0.5211111111 | P14: =IF(AND(O14="غ"),"غ",RANK(O14,$O$4:$O$30)+COUNTIF(O$4:O14,O14)-1) -> 17 | Q14: متوسط
A15: 12 | B15: عبدالعزيز عبدالله فيصل لسود الكبيسى | C15: 1 | D15: 2 | E15: 1 | F15: 2 | H15: 15 | I15: 23 | J15: 13 | K15: 8 | L15: 59 | M15: 56 | N15: 12.675 | O15: 0.5633333333 | P15: =IF(AND(O15="غ"),"غ",RANK(O15,$O$4:$O$30)+COUNTIF(O$4:O15,O15)-1) -> 13 | Q15: متوسط | S15: الطلاب | T15: العدد | U15: النسبة
A16: 13 | B16: عبدالله عتيق عبدالله محمد ابوهميل | D16: 3 | F16: 3 | H16: 15 | I16: 23 | J16: 13 | K16: 9 | L16: 60 | M16: 52 | N16: 11.9 | O16: 0.5288888889 | P16: =IF(AND(O16="غ"),"غ",RANK(O16,$O$4:$O$30)+COUNTIF(O$4:O16,O16)-1) -> 15 | Q16: متوسط | S16: الناجحين | T16: =SUM(V4:V8) -> 21 | U16: =X4 -> 0.9545454545
A17: 14 | B17: عبدالله عفيف عبدالله محمد غزو | H17: غ | L17: غ | N17: غ | O17: غ | P17: =IF(AND(O17="غ"),"غ",RANK(O17,$O$4:$O$30)+COUNTIF(O$4:O17,O17)-1) -> غ | Q17: غ | S17: الراسبين | T17: =SUM(V9:V11) -> 1 | U17: =X9 -> 0.04545454545
A18: 15 | B18: علي محمد جابر بوشوارب | C18: 3 | D18: 4 | E18: 3 | F18: 4 | H18: 35 | I18: 24 | J18: 14 | K18: 9 | L18: 82 | M18: 78 | N18: 17.65 | O18: 0.7844444444 | P18: =IF(AND(O18="غ"),"غ",RANK(O18,$O$4:$O$30)+COUNTIF(O$4:O18,O18)-1) -> 1 | Q18: جيد | S18: المجموع | T18: =SUM(T16:T17) -> 22 | U18: =SUM(U16:U17) -> 1
A19: 16 | B19: عيسى محمد عيسى عبدالله النعيمى | C19: 2 | D19: 1 | E19: 2 | F19: 1 | H19: 15 | I19: 24 | J19: 13 | K19: 8 | L19: 60 | M19: 68 | N19: 15.1 | O19: 0.6711111111 | P19: =IF(AND(O19="غ"),"غ",RANK(O19,$O$4:$O$30)+COUNTIF(O$4:O19,O19)-1) -> 5 | Q19: فوق المتوسط
A20: 17 | B20: فهد عبدالله جبر محمد المسلم | C20: 3 | D20: 4 | E20: 3 | F20: 4 | H20: 35 | I20: 23 | J20: 13 | K20: 8 | L20: 79 | M20: 70 | N20: 15.975 | O20: 0.71 | P20: =IF(AND(O20="غ"),"غ",RANK(O20,$O$4:$O$30)+COUNTIF(O$4:O20,O20)-1) -> 3 | Q20: جيد | S20: التحصيل الأكاديمي | U20: =AVERAGE(M4:M30)/M$3 -> 0.5954545455
A21: 18 | B21: فهد ناصر عبدالهادى ال فهيد الهاجرى | C21: 2 | D21: 3 | E21: 2 | F21: 3 | H21: 25 | I21: 24 | J21: 14 | K21: 9 | L21: 72 | M21: 62 | N21: 14.2 | O21: 0.6311111111 | P21: =IF(AND(O21="غ"),"غ",RANK(O21,$O$4:$O$30)+COUNTIF(O$4:O21,O21)-1) -> 9 | Q21: فوق المتوسط
A22: 19 | B22: فيصل محمد عبدالله جمعه الكبيسى | C22: 3 | D22: 3 | E22: 3 | F22: 3 | H22: 30 | I22: 23 | J22: 14 | K22: 9 | L22: 76 | M22: 62 | N22: 14.3 | O22: 0.6355555556 | P22: =IF(AND(O22="غ"),"غ",RANK(O22,$O$4:$O$30)+COUNTIF(O$4:O22,O22)-1) -> 8 | Q22: فوق المتوسط
A23: 20 | B23: مبارك عيسى خليفه عبدالله المسلمانى | C23: 3 | D23: 2 | E23: 3 | F23: 2 | H23: 25 | I23: 23 | J23: 13 | K23: 8 | L23: 69 | M23: 50 | N23: 11.725 | O23: 0.5211111111 | P23: =IF(AND(O23="غ"),"غ",RANK(O23,$O$4:$O$30)+COUNTIF(O$4:O23,O23)-1) -> 18 | Q23: متوسط
A24: 21 | B24: محمد احمد غلوم امان الله لارى | C24: 1 | D24: 1 | E24: 1 | F24: 1 | H24: 10 | I24: 23 | J24: 13 | K24: 8 | L24: 54 | M24: 64 | N24: 14.15 | O24: 0.6288888889 | P24: =IF(AND(O24="غ"),"غ",RANK(O24,$O$4:$O$30)+COUNTIF(O$4:O24,O24)-1) -> 10 | Q24: فوق المتوسط | S24: الفرع | T24: الناجحين | U24: الراسبين | V24: التحصيل
A25: 22 | B25: محمد بن ابراهيم العقربي | C25: 0 | D25: 1 | E25: 0 | F25: 1 | H25: 5 | I25: 23 | J25: 13 | K25: 8 | L25: 49 | M25: 52 | N25: 11.625 | O25: 0.5166666667 | P25: =IF(AND(O25="غ"),"غ",RANK(O25,$O$4:$O$30)+COUNTIF(O$4:O25,O25)-1) -> 19 | Q25: متوسط | S25: =H2 -> Quizzes | T25: =COUNTIF(H4:H30,">="&H$3/2)/COUNT(H4:H30) -> 0.5652173913 | U25: =IF(T25="","",100%-T25) -> 0.4347826087 | V25: =IF($U25="","",AVERAGE(H4:H30)/H$3) -> 0.4260869565
A26: 23 | B26: محمد عيسى على محمد الحمر | C26: 3 | D26: 2 | E26: 3 | F26: 2 | H26: 25 | I26: 23 | J26: 13 | K26: 8 | L26: 69 | M26: 44 | N26: 10.525 | O26: 0.4677777778 | P26: =IF(AND(O26="غ"),"غ",RANK(O26,$O$4:$O$30)+COUNTIF(O$4:O26,O26)-1) -> 22 | Q26: دون المتوسط | S26: =I2 -> الواجب | T26: =COUNTIF(I4:I30,">="&I$3/2)/COUNT(I4:I30) -> 1 | U26: 0 | V26: =IF($U26="","",AVERAGE(I4:I30)/I$3) -> 0.9283333333
A27: 24 | B27: ناصر نجيب مبارك سالم العبدالله | C27: 2 | D27: 2 | E27: 2 | F27: 2 | H27: 20 | I27: 23 | J27: 13 | K27: 8 | L27: 64 | M27: 66 | N27: 14.8 | O27: 0.6577777778 | P27: =IF(AND(O27="غ"),"غ",RANK(O27,$O$4:$O$30)+COUNTIF(O$4:O27,O27)-1) -> 7 | Q27: فوق المتوسط | S27: =J2 -> المشاركة | T27: =COUNTIF(J4:J30,">="&J$3/2)/COUNT(J4:J30) -> 1 | U27: 0 | V27: =IF($U27="","",AVERAGE(J4:J30)/J$3) -> 0.8861111111
A28: 25 | B28: يوسف محمد يوسف محمد الاسحاق | C28: 2 | D28: 3 | E28: 2 | F28: 3 | H28: 25 | I28: 23 | J28: 13 | K28: 8 | L28: 69 | N28: غ | O28: غ | P28: =IF(AND(O28="غ"),"غ",RANK(O28,$O$4:$O$30)+COUNTIF(O$4:O28,O28)-1) -> غ | Q28: غ | S28: =K2 -> المشروع | T28: =COUNTIF(K4:K30,">="&K$3/2)/COUNT(K4:K30) -> 1 | U28: 0 | V28: =IF($U28="","",AVERAGE(K4:K30)/K$3) -> 0.8291666667
S29: =M2 -> Exam | T29: =COUNTIF(M4:M30,">="&M$3/2)/COUNT(M4:M30) -> 0.9545454545 | U29: 0.04545454545 | V29: =IF($U29="","",AVERAGE(M4:M30)/M$3) -> 0.5954545455

Sheet 8-3
A1: Grade (8-3) كشف درجات الطلاب
A2: م | B2: اسم الطالب | C2: Quiz1 | D2: Quiz2 | E2: Quiz3 | F2: Quiz4 | G2: Quiz5 | H2: Quizzes | I2: الواجب | J2: المشاركة | K2: المشروع | L2: Total | M2: Exam | N2: Final | O2: Percent | P2: Rank | Q2: التقدير | S2: تحليل النتائج على حسب التقدير
C3: 5 | D3: 5 | E3: 5 | F3: 5 | G3: درجة5 | H3: 50 | I3: 25 | J3: 15 | K3: 10 | L3: 100 | M3: 100 | N3: 22.5 | O3: (%) | P3: الترتيب | S3: التقدير | T3: المجال | V3: عدد الطلاب | W3: النسبة
A4: 1 | B4: ابراهيم عبدالله ابراهيم خليل السيد | C4: 3.5 | D4: 3 | E4: 3.5 | F4: 3 | H4: =IF(AND(C4="",D4="",E4="",F4="",G4=""),"غ",$H$3*SUM(C4:G4)/SUM($C$3:$G$3)) -> 32.5 | I4: 25 | J4: 15 | K4: 9 | L4: =IF(AND(C4="",D4="",E4="",F4="",G4="",I4="",J4="",K4=""),"غ",SUM(H4:K4)) -> 81.5 | M4: 62 | N4: =IF(M4="","غ",IF(L4="غ",M4*0.2,SUM(L4*2.5/$L$3,M4*0.2))) -> 14.4375 | O4: =IF(N4="غ","غ",N4*100/$N$3/100) -> 0.6416666667 | P4: =IF(AND(O4="غ"),"غ",RANK(O4,$O$4:$O$29)+COUNTIF(O$4:O4,O4)-1) -> 23 | Q4: =IF(O4="غ","غ",IF(O4>=90%,"ممتاز",IF(O4>=80%,"جيد جداً",IF(O4>=70%,"جيد",IF(O4>=60%,"فوق المتوسط",IF(O4>=50%,"متوسط",IF(O4>=40%,"دون المتوسط",IF(O4>=30%,"ضعيف","دون الضعيف جداً")))))))) -> فوق المتوسط | S4: ممتاز | T4: ≥ 90 | U4: A+ | V4: =COUNTIF(Q4:Q29,"ممتاز") -> 3 | W4: =(V4/$V$12) -> 0.1304347826 | X4: =SUM(W4:W8) -> 1
A5: 2 | B5: ابوبكر يحيى بشرى | C5: 3.5 | D5: 3 | E5: 3.5 | F5: 3 | H5: =IF(AND(C5="",D5="",E5="",F5="",G5=""),"غ",$H$3*SUM(C5:G5)/SUM($C$3:$G$3)) -> 32.5 | I5: 23 | J5: 11 | K5: 9 | L5: =IF(AND(C5="",D5="",E5="",F5="",G5="",I5="",J5="",K5=""),"غ",SUM(H5:K5)) -> 75.5 | M5: 70 | N5: =IF(M5="","غ",IF(L5="غ",M5*0.2,SUM(L5*2.5/$L$3,M5*0.2))) -> 15.8875 | O5: =IF(N5="غ","غ",N5*100/$N$3/100) -> 0.7061111111 | P5: =IF(AND(O5="غ"),"غ",RANK(O5,$O$4:$O$29)+COUNTIF(O$4:O5,O5)-1) -> 21 | Q5: =IF(O5="غ","غ",IF(O5>=90%,"ممتاز",IF(O5>=80%,"جيد جداً",IF(O5>=70%,"جيد",IF(O5>=60%,"فوق المتوسط",IF(O5>=50%,"متوسط",IF(O5>=40%,"دون المتوسط",IF(O5>=30%,"ضعيف","دون الضعيف جداً")))))))) -> جيد | S5: جيد جداً | T5: ≥ 80 | U5: A | V5: =COUNTIF(Q4:Q29,"جيد جداً") -> 7 | W5: 0.3043478261
A6: 3 | B6: احمد سعيد السيد احمد موسى | C6: 4 | D6: 2 | E6: 4 | F6: 2 | H6: 30 | I6: 24 | J6: 11 | K6: 7 | L6: 72 | M6: 74 | N6: 16.6 | O6: 0.7377777778 | P6: =IF(AND(O6="غ"),"غ",RANK(O6,$O$4:$O$29)+COUNTIF(O$4:O6,O6)-1) -> 17 | Q6: جيد | S6: جيد | T6: ≥ 70 | U6: B+ | V6: =COUNTIF(Q4:Q29,"جيد") -> 11 | W6: 0.4782608696
A7: 4 | B7: احمد ولد محمد ولد ميناط | C7: 4 | D7: 3 | E7: 4 | F7: 3 | H7: 35 | I7: 25 | J7: 15 | K7: 9 | L7: 84 | M7: 80 | N7: 18.1 | O7: 0.8044444444 | P7: =IF(AND(O7="غ"),"غ",RANK(O7,$O$4:$O$29)+COUNTIF(O$4:O7,O7)-1) -> 9 | Q7: جيد جداً | S7: فوق المتوسط | T7: ≥ 60 | U7: B | V7: =COUNTIF(Q4:Q29,"فوق المتوسط") -> 2 | W7: 0.08695652174
A8: 5 | B8: اسماعيل حافظ محمد الياس سراج الحق | C8: 3.5 | D8: 2 | E8: 3.5 | F8: 2 | H8: 27.5 | I8: 25 | J8: 15 | K8: 9 | L8: 76.5 | M8: 72 | N8: 16.3125 | O8: 0.725 | P8: =IF(AND(O8="غ"),"غ",RANK(O8,$O$4:$O$29)+COUNTIF(O$4:O8,O8)-1) -> 20 | Q8: جيد | S8: متوسط | T8: ≥ 50 | U8: C | V8: =COUNTIF(Q4:Q29,"متوسط") -> 0 | W8: 0
A9: 6 | B9: المعز نجم الدين احمد | C9: 4.5 | D9: 3 | E9: 4.5 | F9: 3 | H9: 37.5 | I9: 25 | J9: 15 | K9: 9 | L9: 86.5 | M9: 86 | N9: 19.3625 | O9: 0.8605555556 | P9: =IF(AND(O9="غ"),"غ",RANK(O9,$O$4:$O$29)+COUNTIF(O$4:O9,O9)-1) -> 4 | Q9: جيد جداً | S9: دون المتوسط | T9: ≥ 40 | U9: D | V9: =COUNTIF(Q4:Q29,"دون المتوسط") -> 0 | W9: 0 | X9: =SUM(W9:W11) -> 0
A10: 7 | B10: حمد عزالدين محمد البشير محمد | C10: 3 | D10: 2 | E10: 3 | F10: 2 | H10: 25 | I10: 24 | J10: 13 | K10: 9 | L10: 71 | M10: 74 | N10: 16.575 | O10: 0.7366666667 | P10: =IF(AND(O10="غ"),"غ",RANK(O10,$O$4:$O$29)+COUNTIF(O$4:O10,O10)-1) -> 18 | Q10: جيد | S10: ضعيف | T10: ≥ 30 | U10: E | V10: =COUNTIF(Q4:Q29,"ضعيف") -> 0 | W10: 0
A11: 8 | B11: خالد محمد السر | C11: 3 | D11: 3 | E11: 3 | F11: 3 | H11: 30 | I11: 25 | J11: 11 | K11: 7 | L11: 73 | M11: 76 | N11: 17.025 | O11: 0.7566666667 | P11: =IF(AND(O11="غ"),"غ",RANK(O11,$O$4:$O$29)+COUNTIF(O$4:O11,O11)-1) -> 14 | Q11: جيد | S11: دون الضعيف جداً | T11: < 30 | U11: F | V11: =COUNTIF(Q4:Q29,"دون الضعيف جداً") -> 0 | W11: 0
A12: 9 | B12: سلطان مسفر عبدالله السند المسيفرى | C12: 2.5 | D12: 3 | E12: 2.5 | F12: 3 | H12: 27.5 | I12: 24 | J12: 13 | K12: 8 | L12: 72.5 | M12: 68 | N12: 15.4125 | O12: 0.685 | P12: =IF(AND(O12="غ"),"غ",RANK(O12,$O$4:$O$29)+COUNTIF(O$4:O12,O12)-1) -> 22 | Q12: فوق المتوسط | S12: عدد الطلاب الذي تم اختبارهم | V12: =SUM(V4:V11) -> 23 | W12: =V12/SUM(V12:V13) -> 0.9583333333
A13: 10 | B13: شهاب ممدوح عبدالفاضل الليثي سالم | C13: 3.5 | D13: 3 | E13: 3.5 | F13: 3 | H13: 32.5 | I13: 25 | J13: 15 | K13: 9 | L13: 81.5 | M13: 84 | N13: 18.8375 | O13: 0.8372222222 | P13: =IF(AND(O13="غ"),"غ",RANK(O13,$O$4:$O$29)+COUNTIF(O$4:O13,O13)-1) -> 6 | Q13: جيد جداً | S13: عدد الطلاب الغائبين | V13: =COUNTA(B4:B29)-V12 -> 1 | W13: =V13/SUM(V12:V13) -> 0.04166666667
A14: 11 | B14: عبدالرحمن احمد حسين | C14: 4 | D14: 2 | E14: 4 | F14: 2 | H14: 30 | I14: 23 | J14: 11 | K14: 8 | L14: 72 | N14: غ | O14: غ | P14: =IF(AND(O14="غ"),"غ",RANK(O14,$O$4:$O$29)+COUNTIF(O$4:O14,O14)-1) -> غ | Q14: غ
A15: 12 | B15: عبدالرحمن خليفه ابراهيم محمد الهاجرى | C15: 4 | D15: 3 | E15: 4 | F15: 3 | H15: 35 | I15: 24 | J15: 15 | K15: 9 | L15: 83 | M15: 96 | N15: 21.275 | O15: 0.9455555556 | P15: =IF(AND(O15="غ"),"غ",RANK(O15,$O$4:$O$29)+COUNTIF(O$4:O15,O15)-1) -> 2 | Q15: ممتاز | S15: الطلاب | T15: العدد | U15: النسبة
A16: 13 | B16: عبدالعزيز أيمن عزيز سليم الصفدي | C16: 4 | D16: 3 | E16: 4 | F16: 3 | H16: 35 | I16: 25 | J16: 15 | K16: 9 | L16: 84 | M16: 86 | N16: 19.3 | O16: 0.8577777778 | P16: =IF(AND(O16="غ"),"غ",RANK(O16,$O$4:$O$29)+COUNTIF(O$4:O16,O16)-1) -> 5 | Q16: جيد جداً | S16: الناجحين | T16: =SUM(V4:V8) -> 23 | U16: =X4 -> 1
A17: 14 | B17: على حسن على الرمزانى النعيمى | C17: 4 | D17: 3 | E17: 4 | F17: 3 | H17: 35 | I17: 22 | J17: 11 | K17: 8 | L17: 76 | M17: 82 | N17: 18.3 | O17: 0.8133333333 | P17: =IF(AND(O17="غ"),"غ",RANK(O17,$O$4:$O$29)+COUNTIF(O$4:O17,O17)-1) -> 7 | Q17: جيد جداً | S17: الراسبين | T17: =SUM(V9:V11) -> 0 | U17: =X9 -> 0
A18: 15 | B18: على عبدالله على عيسى الكوارى | C18: 3.5 | D18: 4 | E18: 3.5 | F18: 4 | H18: 37.5 | I18: 22 | J18: 11 | K18: 8 | L18: 78.5 | M18: 80 | N18: 17.9625 | O18: 0.7983333333 | P18: =IF(AND(O18="غ"),"غ",RANK(O18,$O$4:$O$29)+COUNTIF(O$4:O18,O18)-1) -> 11 | Q18: جيد | S18: المجموع | T18: =SUM(T16:T17) -> 23 | U18: =SUM(U16:U17) -> 1
A19: 16 | B19: فهد اظهر خان | C19: 3.5 | D19: 3 | E19: 3.5 | F19: 3 | H19: 32.5 | I19: 25 | J19: 14 | K19: 9 | L19: 80.5 | M19: 74 | N19: 16.8125 | O19: 0.7472222222 | P19: =IF(AND(O19="غ"),"غ",RANK(O19,$O$4:$O$29)+COUNTIF(O$4:O19,O19)-1) -> 15 | Q19: جيد
A20: 17 | B20: فهد عبدالله عبدالرحيم عبدالله العبادى | C20: 2.5 | D20: 3 | E20: 2.5 | F20: 3 | H20: 27.5 | I20: 25 | J20: 15 | K20: 9 | L20: 76.5 | M20: 74 | N20: 16.7125 | O20: 0.7427777778 | P20: =IF(AND(O20="غ"),"غ",RANK(O20,$O$4:$O$29)+COUNTIF(O$4:O20,O20)-1) -> 16 | Q20: جيد | S20: التحصيل الأكاديمي | U20: =AVERAGE(M4:M30)/M$3 -> 0.7913043478
A21: 18 | B21: مبارك سلطان مبارك الهديفى الكوارى | C21: 4 | D21: 3 | E21: 4 | F21: 3 | H21: 35 | I21: 25 | J21: 15 | K21: 9 | L21: 84 | M21: 80 | N21: 18.1 | O21: 0.8044444444 | P21: =IF(AND(O21="غ"),"غ",RANK(O21,$O$4:$O$29)+COUNTIF(O$4:O21,O21)-1) -> 10 | Q21: جيد جداً
A22: 19 | B22: محمد رياض | C22: 4 | D22: 3 | E22: 4 | F22: 3 | H22: 35 | I22: 25 | J22: 15 | K22: 9 | L22: 84 | M22: 78 | N22: 17.7 | O22: 0.7866666667 | P22: =IF(AND(O22="غ"),"غ",RANK(O22,$O$4:$O$29)+COUNTIF(O$4:O22,O22)-1) -> 12 | Q22: جيد
A23: 20 | B23: محمد حسن عبدالرحمن احمد المطوع | C23: 3.5 | D23: 3 | E23: 3.5 | F23: 3 | H23: 32.5 | I23: 25 | J23: 15 | K23: 9 | L23: 81.5 | M23: 78 | N23: 17.6375 | O23: 0.7838888889 | P23: =IF(AND(O23="غ"),"غ",RANK(O23,$O$4:$O$29)+COUNTIF(O$4:O23,O23)-1) -> 13 | Q23: جيد
A24: 21 | B24: محمد على عبدالله الطعان الخليفى | C24: 3 | D24: 3 | E24: 3 | F24: 3 | H24: 30 | I24: 22 | J24: 11 | K24: 7 | L24: 70 | M24: 74 | N24: 16.55 | O24: 0.7355555556 | P24: =IF(AND(O24="غ"),"غ",RANK(O24,$O$4:$O$29)+COUNTIF(O$4:O24,O24)-1) -> 19 | Q24: جيد | S24: الفرع | T24: الناجحين | U24: الراسبين | V24: التحصيل
A25: 22 | B25: ناصر خالد عمر سالم | C25: 3.5 | D25: 2 | E25: 3.5 | F25: 2 | H25: 27.5 | I25: 23 | J25: 13 | K25: 8 | L25: 71.5 | M25: 82 | N25: 18.1875 | O25: 0.8083333333 | P25: =IF(AND(O25="غ"),"غ",RANK(O25,$O$4:$O$29)+COUNTIF(O$4:O25,O25)-1) -> 8 | Q25: جيد جداً | S25: =H2 -> Quizzes | T25: =COUNTIF(H4:H29,">="&H$3/2)/COUNT(H4:H29) -> 1 | U25: =IF(T25="","",100%-T25) -> 0 | V25: =IF($U25="","",AVERAGE(H4:H29)/H$3) -> 0.6520833333
A26: 23 | B26: يوسف احمد جمالى | C26: 3.5 | D26: 4 | E26: 3.5 | F26: 4 | H26: 37.5 | I26: 23 | J26: 15 | K26: 9 | L26: 84.5 | M26: 94 | N26: 20.9125 | O26: 0.9294444444 | P26: =IF(AND(O26="غ"),"غ",RANK(O26,$O$4:$O$29)+COUNTIF(O$4:O26,O26)-1) -> 3 | Q26: ممتاز | S26: =I2 -> الواجب | T26: =COUNTIF(I4:I29,">="&I$3/2)/COUNT(I4:I29) -> 1 | U26: 0 | V26: =IF($U26="","",AVERAGE(I4:I29)/I$3) -> 0.9633333333
A27: 24 | B27: يونس يحيى علي سالم | C27: 4.5 | D27: 4 | E27: 4.5 | F27: 4 | H27: 42.5 | I27: 24 | J27: 14 | K27: 8 | L27: 88.5 | M27: 96 | N27: 21.4125 | O27: 0.9516666667 | P27: =IF(AND(O27="غ"),"غ",RANK(O27,$O$4:$O$29)+COUNTIF(O$4:O27,O27)-1) -> 1 | Q27: ممتاز | S27: =J2 -> المشاركة | T27: =COUNTIF(J4:J29,">="&J$3/2)/COUNT(J4:J29) -> 1 | U27: 0 | V27: =IF($U27="","",AVERAGE(J4:J29)/J$3) -> 0.9
S28: =K2 -> المشروع | T28: =COUNTIF(K4:K29,">="&K$3/2)/COUNT(K4:K29) -> 1 | U28: 0 | V28: =IF($U28="","",AVERAGE(K4:K29)/K$3) -> 0.85
S29: =M2 -> Exam | T29: =COUNTIF(M4:M29,">="&M$3/2)/COUNT(M4:M29) -> 1 | U29: 0 | V29: =IF($U29="","",AVERAGE(M4:M29)/M$3) -> 0.7913043478

Sheet 8-4
A1: Grade (8-4) كشف درجات الطلاب
A2: م | B2: اسم الطالب | C2: Quiz1 | D2: Quiz2 | E2: Quiz3 | F2: Quiz4 | G2: Quiz5 | H2: Quizzes | I2: الواجب | J2: المشاركة | K2: المشروع | L2: Total | M2: Exam | N2: Final | O2: Percent | P2: Rank | Q2: التقدير | S2: تحليل النتائج على حسب التقدير
C3: 5 | D3: 5 | E3: 5 | F3: 5 | G3: درجة5 | H3: 50 | I3: 25 | J3: 15 | K3: 10 | L3: 100 | M3: 100 | N3: 22.5 | O3: (%) | P3: الترتيب | S3: التقدير | T3: المجال | V3: عدد الطلاب | W3: النسبة
A4: 1 | B4: احمد جمال سالم محمد هلال | C4: 1 | D4: 0 | E4: 1 | F4: 0 | H4: =IF(AND(C4="",D4="",E4="",F4="",G4=""),"غ",$H$3*SUM(C4:G4)/SUM($C$3:$G$3)) -> 5 | I4: 14 | J4: 10 | K4: 7 | L4: =IF(AND(C4="",D4="",E4="",F4="",G4="",I4="",J4="",K4=""),"غ",SUM(H4:K4)) -> 36 | M4: 54 | N4: =IF(M4="","غ",IF(L4="غ",M4*0.2,SUM(L4*2.5/$L$3,M4*0.2))) -> 11.7 | O4: =IF(N4="غ","غ",N4*100/$N$3/100) -> 0.52 | P4: =IF(AND(O4="غ"),"غ",RANK(O4,$O$4:$O$30)+COUNTIF(O$4:O4,O4)-1) -> 14 | Q4: =IF(O4="غ","غ",IF(O4>=90%,"ممتاز",IF(O4>=80%,"جيد جداً",IF(O4>=70%,"جيد",IF(O4>=60%,"فوق المتوسط",IF(O4>=50%,"متوسط",IF(O4>=40%,"دون المتوسط",IF(O4>=30%,"ضعيف","دون الضعيف جداً")))))))) -> متوسط | S4: ممتاز | T4: ≥ 90 | U4: A+ | V4: =COUNTIF(Q4:Q30,"ممتاز") -> 0 | W4: =(V4/$V$12) -> 0 | X4: =SUM(W4:W8) -> 0.64
A5: 2 | B5: تركي صالح مفتاح العلي | C5: 2 | D5: 2 | E5: 2 | F5: 2 | H5: =IF(AND(C5="",D5="",E5="",F5="",G5=""),"غ",$H$3*SUM(C5:G5)/SUM($C$3:$G$3)) -> 20 | I5: 20 | J5: 12 | K5: 7 | L5: =IF(AND(C5="",D5="",E5="",F5="",G5="",I5="",J5="",K5=""),"غ",SUM(H5:K5)) -> 59 | M5: 50 | N5: =IF(M5="","غ",IF(L5="غ",M5*0.2,SUM(L5*2.5/$L$3,M5*0.2))) -> 11.475 | O5: =IF(N5="غ","غ",N5*100/$N$3/100) -> 0.51 | P5: =IF(AND(O5="غ"),"غ",RANK(O5,$O$4:$O$30)+COUNTIF(O$4:O5,O5)-1) -> 15 | Q5: =IF(O5="غ","غ",IF(O5>=90%,"ممتاز",IF(O5>=80%,"جيد جداً",IF(O5>=70%,"جيد",IF(O5>=60%,"فوق المتوسط",IF(O5>=50%,"متوسط",IF(O5>=40%,"دون المتوسط",IF(O5>=30%,"ضعيف","دون الضعيف جداً")))))))) -> متوسط | S5: جيد جداً | T5: ≥ 80 | U5: A | V5: =COUNTIF(Q4:Q30,"جيد جداً") -> 0 | W5: 0
A6: 3 | B6: ثانى سالم خالد سالم الدوسرى | C6: 1.5 | E6: 1.5 | H6: 7.5 | I6: 12 | J6: 10 | K6: 5 | L6: 34.5 | M6: 62 | N6: 13.2625 | O6: 0.5894444444 | P6: =IF(AND(O6="غ"),"غ",RANK(O6,$O$4:$O$30)+COUNTIF(O$4:O6,O6)-1) -> 8 | Q6: متوسط | S6: جيد | T6: ≥ 70 | U6: B+ | V6: =COUNTIF(Q4:Q30,"جيد") -> 0 | W6: 0
A7: 4 | B7: جاسم محمد على احمد السندى | C7: 2.5 | D7: 0 | E7: 2.5 | F7: 0 | H7: 12.5 | I7: 10 | J7: 11 | K7: 4 | L7: 37.5 | M7: 50 | N7: 10.9375 | O7: 0.4861111111 | P7: =IF(AND(O7="غ"),"غ",RANK(O7,$O$4:$O$30)+COUNTIF(O$4:O7,O7)-1) -> 18 | Q7: دون المتوسط | S7: فوق المتوسط | T7: ≥ 60 | U7: B | V7: =COUNTIF(Q4:Q30,"فوق المتوسط") -> 6 | W7: 0.24
A8: 5 | B8: حسن حسين غريب غلوم ابوالفين | H8: غ | I8: 22 | J8: 14 | K8: 9 | L8: 45 | M8: 56 | N8: 12.325 | O8: 0.5477777778 | P8: =IF(AND(O8="غ"),"غ",RANK(O8,$O$4:$O$30)+COUNTIF(O$4:O8,O8)-1) -> 9 | Q8: متوسط | S8: متوسط | T8: ≥ 50 | U8: C | V8: =COUNTIF(Q4:Q30,"متوسط") -> 10 | W8: 0.4
A9: 6 | B9: خالد سلطان مبارك خميس الخليفى | C9: 1.5 | D9: 2 | E9: 1.5 | F9: 2.5 | H9: 18.75 | I9: 16 | J9: 12 | K9: 5 | L9: 51.75 | M9: 70 | N9: 15.29375 | O9: 0.6797222222 | P9: =IF(AND(O9="غ"),"غ",RANK(O9,$O$4:$O$30)+COUNTIF(O$4:O9,O9)-1) -> 2 | Q9: فوق المتوسط | S9: دون المتوسط | T9: ≥ 40 | U9: D | V9: =COUNTIF(Q4:Q30,"دون المتوسط") -> 6 | W9: 0.24 | X9: =SUM(W9:W11) -> 0.36
A10: 7 | B10: خليفه ناصر ابراهيم احمد المالكى | C10: 0 | D10: 3 | E10: 0 | F10: 3 | H10: 15 | I10: 20 | J10: 13 | K10: 8 | L10: 56 | M10: 50 | N10: 11.4 | O10: 0.5066666667 | P10: =IF(AND(O10="غ"),"غ",RANK(O10,$O$4:$O$30)+COUNTIF(O$4:O10,O10)-1) -> 16 | Q10: متوسط | S10: ضعيف | T10: ≥ 30 | U10: E | V10: =COUNTIF(Q4:Q30,"ضعيف") -> 2 | W10: 0.08
A11: 8 | B11: سعد مبارك جمعه البكر الكوارى | H11: غ | I11: 20 | J11: 12 | K11: 9 | L11: 41 | M11: 54 | N11: 11.825 | O11: 0.5255555556 | P11: =IF(AND(O11="غ"),"غ",RANK(O11,$O$4:$O$30)+COUNTIF(O$4:O11,O11)-1) -> 13 | Q11: متوسط | S11: دون الضعيف جداً | T11: < 30 | U11: F | V11: =COUNTIF(Q4:Q30,"دون الضعيف جداً") -> 1 | W11: 0.04
A12: 9 | B12: سلطان سالم سلطان الكشاشى المهندى | C12: 1 | D12: 1 | E12: 1 | F12: 1 | H12: 10 | I12: 20 | J12: 11 | K12: 8 | L12: 49 | M12: 22 | N12: 5.625 | O12: 0.25 | P12: =IF(AND(O12="غ"),"غ",RANK(O12,$O$4:$O$30)+COUNTIF(O$4:O12,O12)-1) -> 25 | Q12: دون الضعيف جداً | S12: عدد الطلاب الذي تم اختبارهم | V12: =SUM(V4:V11) -> 25 | W12: =V12/SUM(V12:V13) -> 1
A13: 10 | B13: صالح عبدالله صالح حسن الجابر | H13: غ | I13: 7 | J13: 5 | K13: 4 | L13: 16 | M13: 44 | N13: 9.2 | O13: 0.4088888889 | P13: =IF(AND(O13="غ"),"غ",RANK(O13,$O$4:$O$30)+COUNTIF(O$4:O13,O13)-1) -> 22 | Q13: دون المتوسط | S13: عدد الطلاب الغائبين | V13: =COUNTA(B4:B30)-V12 -> 0 | W13: =V13/SUM(V12:V13) -> 0
A14: 11 | B14: عبدالرحمن على عبدالله حمد الادهم | C14: 2.5 | D14: 0 | E14: 2.5 | F14: 0 | H14: 12.5 | I14: 6 | J14: 5 | K14: 5 | L14: 28.5 | M14: 44 | N14: 9.5125 | O14: 0.4227777778 | P14: =IF(AND(O14="غ"),"غ",RANK(O14,$O$4:$O$30)+COUNTIF(O$4:O14,O14)-1) -> 21 | Q14: دون المتوسط
A15: 12 | B15: عبدالله احمد محمد عبدالرحمن المنصور | C15: 1.5 | D15: 2 | E15: 1.5 | F15: 2 | H15: 17.5 | I15: 23 | J15: 13 | K15: 8 | L15: 61.5 | M15: 64 | N15: 14.3375 | O15: 0.6372222222 | P15: =IF(AND(O15="غ"),"غ",RANK(O15,$O$4:$O$30)+COUNTIF(O$4:O15,O15)-1) -> 5 | Q15: فوق المتوسط | S15: الطلاب | T15: العدد | U15: النسبة
A16: 13 | B16: عبدالله محمد يوسف البكر الكوارى | C16: 2.5 | D16: 4 | E16: 2.5 | F16: 4 | H16: 32.5 | I16: 13 | J16: 11 | K16: 7 | L16: 63.5 | M16: 70 | N16: 15.5875 | O16: 0.6927777778 | P16: =IF(AND(O16="غ"),"غ",RANK(O16,$O$4:$O$30)+COUNTIF(O$4:O16,O16)-1) -> 1 | Q16: فوق المتوسط | S16: الناجحين | T16: =SUM(V4:V8) -> 16 | U16: =X4 -> 0.64
A17: 14 | B17: عبدالله محمود ارحمه محمود الكعبى | C17: 1 | D17: 2 | E17: 1 | F17: 2 | H17: 15 | I17: 13 | J17: 9 | K17: 8 | L17: 45 | M17: 50 | N17: 11.125 | O17: 0.4944444444 | P17: =IF(AND(O17="غ"),"غ",RANK(O17,$O$4:$O$30)+COUNTIF(O$4:O17,O17)-1) -> 17 | Q17: دون المتوسط | S17: الراسبين | T17: =SUM(V9:V11) -> 9 | U17: =X9 -> 0.36
A18: 15 | B18: على ماجد خاطر الخويطر العجمى | C18: 1 | D18: 0 | E18: 1 | F18: 0 | H18: 5 | I18: 13 | J18: 8 | K18: 7 | L18: 33 | M18: 56 | N18: 12.025 | O18: 0.5344444444 | P18: =IF(AND(O18="غ"),"غ",RANK(O18,$O$4:$O$30)+COUNTIF(O$4:O18,O18)-1) -> 11 | Q18: متوسط | S18: المجموع | T18: =SUM(T16:T17) -> 25 | U18: =SUM(U16:U17) -> 1
A19: 16 | B19: عمر محمد حسين محمدين | C19: 1.5 | D19: 1 | E19: 1.5 | F19: 1 | H19: 12.5 | I19: 14 | J19: 9 | K19: 6 | L19: 41.5 | M19: 56 | N19: 12.2375 | O19: 0.5438888889 | P19: =IF(AND(O19="غ"),"غ",RANK(O19,$O$4:$O$30)+COUNTIF(O$4:O19,O19)-1) -> 10 | Q19: متوسط
A20: 17 | B20: عيسى عبدالله عيسى محمد الذوادى | C20: 2 | D20: 3 | E20: 2 | F20: 3 | H20: 25 | I20: 22 | J20: 10 | K20: 6 | L20: 63 | M20: 64 | N20: 14.375 | O20: 0.6388888889 | P20: =IF(AND(O20="غ"),"غ",RANK(O20,$O$4:$O$30)+COUNTIF(O$4:O20,O20)-1) -> 4 | Q20: فوق المتوسط | S20: التحصيل الأكاديمي | U20: =AVERAGE(M4:M30)/M$3 -> 0.5296
A21: 18 | B21: غانم حسن شكرالله على العمادى | C21: 1.5 | D21: 0 | E21: 1.5 | F21: 0 | H21: 7.5 | I21: 22 | J21: 11 | K21: 9 | L21: 49.5 | M21: 44 | N21: 10.0375 | O21: 0.4461111111 | P21: =IF(AND(O21="غ"),"غ",RANK(O21,$O$4:$O$30)+COUNTIF(O$4:O21,O21)-1) -> 19 | Q21: دون المتوسط
A22: 19 | B22: فهد محمد امعبد العبادي | C22: 1 | D22: 0 | E22: 1 | F22: 0 | H22: 5 | I22: 11 | J22: 5 | K22: 5 | L22: 26 | M22: 38 | N22: 8.25 | O22: 0.3666666667 | P22: =IF(AND(O22="غ"),"غ",RANK(O22,$O$4:$O$30)+COUNTIF(O$4:O22,O22)-1) -> 24 | Q22: ضعيف
A23: 20 | B23: محمد جمعان بشير على الاحمد | C23: 2.5 | D23: 3 | E23: 2.5 | F23: 3 | H23: 27.5 | I23: 18 | J23: 9 | K23: 5 | L23: 59.5 | M23: 36 | N23: 8.6875 | O23: 0.3861111111 | P23: =IF(AND(O23="غ"),"غ",RANK(O23,$O$4:$O$30)+COUNTIF(O$4:O23,O23)-1) -> 23 | Q23: ضعيف
A24: 21 | B24: محمد راشد على راشد المهندى | C24: 1 | D24: 3 | E24: 1 | F24: 3 | H24: 20 | I24: 14 | J24: 8 | K24: 7 | L24: 49 | M24: 70 | N24: 15.225 | O24: 0.6766666667 | P24: =IF(AND(O24="غ"),"غ",RANK(O24,$O$4:$O$30)+COUNTIF(O$4:O24,O24)-1) -> 3 | Q24: فوق المتوسط | S24: الفرع | T24: الناجحين | U24: الراسبين | V24: التحصيل
A25: 22 | B25: محمد كمال ابوندا | D25: 0 | F25: 0 | H25: 0 | I25: 14 | J25: 8 | K25: 6 | L25: 28 | M25: 46 | N25: 9.9 | O25: 0.44 | P25: =IF(AND(O25="غ"),"غ",RANK(O25,$O$4:$O$30)+COUNTIF(O$4:O25,O25)-1) -> 20 | Q25: دون المتوسط | S25: =H2 -> Quizzes | T25: =COUNTIF(H4:H30,">="&H$3/2)/COUNT(H4:H30) -> 0.1818181818 | U25: =IF(T25="","",100%-T25) -> 0.8181818182 | V25: =IF($U25="","",AVERAGE(H4:H30)/H$3) -> 0.2965909091
A26: 23 | B26: معتصم طاهر النظيف خاطر | C26: 2.5 | D26: 4 | E26: 2.5 | F26: 4 | H26: 32.5 | I26: 23 | J26: 11 | K26: 9 | L26: 75.5 | M26: 58 | N26: 13.4875 | O26: 0.5994444444 | P26: =IF(AND(O26="غ"),"غ",RANK(O26,$O$4:$O$30)+COUNTIF(O$4:O26,O26)-1) -> 7 | Q26: متوسط | S26: =I2 -> الواجب | T26: =COUNTIF(I4:I30,">="&I$3/2)/COUNT(I4:I30) -> 0.8 | U26: 0.2 | V26: =IF($U26="","",AVERAGE(I4:I30)/I$3) -> 0.6512
A27: 24 | B27: ناصر راشد عيد الخويطر العجمى | C27: 1 | D27: 1 | E27: 1 | F27: 1 | H27: 10 | I27: 17 | J27: 11 | K27: 5 | L27: 43 | M27: 64 | N27: 13.875 | O27: 0.6166666667 | P27: =IF(AND(O27="غ"),"غ",RANK(O27,$O$4:$O$30)+COUNTIF(O$4:O27,O27)-1) -> 6 | Q27: فوق المتوسط | S27: =J2 -> المشاركة | T27: =COUNTIF(J4:J30,">="&J$3/2)/COUNT(J4:J30) -> 0.88 | U27: 0.12 | V27: =IF($U27="","",AVERAGE(J4:J30)/J$3) -> 0.6666666667
A28: 25 | B28: ناصر سرور عنبر المالكى الجهنى | C28: 0 | D28: 3 | E28: 0 | F28: 3 | H28: 15 | I28: 23 | J28: 12 | K28: 8 | L28: 58 | M28: 52 | N28: 11.85 | O28: 0.5266666667 | P28: =IF(AND(O28="غ"),"غ",RANK(O28,$O$4:$O$30)+COUNTIF(O$4:O28,O28)-1) -> 12 | Q28: متوسط | S28: =K2 -> المشروع | T28: =COUNTIF(K4:K30,">="&K$3/2)/COUNT(K4:K30) -> 0.92 | U28: 0.08 | V28: =IF($U28="","",AVERAGE(K4:K30)/K$3) -> 0.668
S29: =M2 -> Exam | T29: =COUNTIF(M4:M30,">="&M$3/2)/COUNT(M4:M30) -> 0.72 | U29: 0.28 | V29: =IF($U29="","",AVERAGE(M4:M30)/M$3) -> 0.5296

Sheet 8-5
A1: Grade (8-5) كشف درجات الطلاب
A2: م | B2: اسم الطالب | C2: Quiz1 | D2: Quiz2 | E2: Quiz3 | F2: Quiz4 | G2: Quiz5 | H2: Quizzes | I2: الواجب | J2: المشاركة | K2: المشروع | L2: Total | M2: Exam | N2: Final | O2: Percent | P2: Rank | Q2: التقدير | S2: تحليل النتائج على حسب التقدير
C3: 5 | D3: 5 | E3: 5 | F3: 5 | G3: درجة5 | H3: 50 | I3: 25 | J3: 15 | K3: 10 | L3: 100 | M3: 100 | N3: 22.5 | O3: (%) | P3: الترتيب | S3: التقدير | T3: المجال | V3: عدد الطلاب | W3: النسبة
A4: 1 | B4: احمد محمد على محمد البلوشى | C4: 1.5 | D4: 4 | E4: 1.5 | F4: 4 | H4: =IF(AND(C4="",D4="",E4="",F4="",G4=""),"غ",$H$3*SUM(C4:G4)/SUM($C$3:$G$3)) -> 27.5 | I4: 23 | J4: 13 | K4: 9 | L4: =IF(AND(C4="",D4="",E4="",F4="",G4="",I4="",J4="",K4=""),"غ",SUM(H4:K4)) -> 72.5 | M4: 46 | N4: =IF(M4="","غ",IF(L4="غ",M4*0.2,SUM(L4*2.5/$L$3,M4*0.2))) -> 11.0125 | O4: =IF(N4="غ","غ",N4*100/$N$3/100) -> 0.4894444444 | P4: =IF(AND(O4="غ"),"غ",RANK(O4,$O$4:$O$28)+COUNTIF(O$4:O4,O4)-1) -> 16 | Q4: =IF(O4="غ","غ",IF(O4>=90%,"ممتاز",IF(O4>=80%,"جيد جداً",IF(O4>=70%,"جيد",IF(O4>=60%,"فوق المتوسط",IF(O4>=50%,"متوسط",IF(O4>=40%,"دون المتوسط",IF(O4>=30%,"ضعيف","دون الضعيف جداً")))))))) -> دون المتوسط | S4: ممتاز | T4: ≥ 90 | U4: A+ | V4: =COUNTIF(Q4:Q28,"ممتاز") -> 0 | W4: =(V4/$V$12) -> 0 | X4: =SUM(W4:W8) -> 0.652173913
A5: 2 | B5: جبر راشد مبارك دعفوس المناعى | C5: 1.5 | D5: 3 | E5: 1.5 | F5: 3 | H5: =IF(AND(C5="",D5="",E5="",F5="",G5=""),"غ",$H$3*SUM(C5:G5)/SUM($C$3:$G$3)) -> 22.5 | I5: 22 | J5: 12 | K5: 8 | L5: =IF(AND(C5="",D5="",E5="",F5="",G5="",I5="",J5="",K5=""),"غ",SUM(H5:K5)) -> 64.5 | M5: 54 | N5: =IF(M5="","غ",IF(L5="غ",M5*0.2,SUM(L5*2.5/$L$3,M5*0.2))) -> 12.4125 | O5: =IF(N5="غ","غ",N5*100/$N$3/100) -> 0.5516666667 | P5: =IF(AND(O5="غ"),"غ",RANK(O5,$O$4:$O$28)+COUNTIF(O$4:O5,O5)-1) -> 11 | Q5: =IF(O5="غ","غ",IF(O5>=90%,"ممتاز",IF(O5>=80%,"جيد جداً",IF(O5>=70%,"جيد",IF(O5>=60%,"فوق المتوسط",IF(O5>=50%,"متوسط",IF(O5>=40%,"دون المتوسط",IF(O5>=30%,"ضعيف","دون الضعيف جداً")))))))) -> متوسط | S5: جيد جداً | T5: ≥ 80 | U5: A | V5: =COUNTIF(Q4:Q28,"جيد جداً") -> 0 | W5: 0
A6: 3 | B6: حمد مطر امان مبارك الخاطر | C6: 1.5 | D6: 2 | E6: 1.5 | F6: 2 | H6: 17.5 | I6: 13 | J6: 11 | K6: 5 | L6: 46.5 | M6: 32 | N6: 7.5625 | O6: 0.3361111111 | P6: =IF(AND(O6="غ"),"غ",RANK(O6,$O$4:$O$28)+COUNTIF(O$4:O6,O6)-1) -> 22 | Q6: ضعيف | S6: جيد | T6: ≥ 70 | U6: B+ | V6: =COUNTIF(Q4:Q28,"جيد") -> 1 | W6: 0.04347826087
A7: 4 | B7: خليفه محمد عبدالله خليفه المطاوعه | C7: 2.5 | D7: 3 | E7: 2.5 | F7: 3 | H7: 27.5 | I7: 15 | J7: 11 | K7: 7 | L7: 60.5 | M7: 30 | N7: 7.5125 | O7: 0.3338888889 | P7: =IF(AND(O7="غ"),"غ",RANK(O7,$O$4:$O$28)+COUNTIF(O$4:O7,O7)-1) -> 23 | Q7: ضعيف | S7: فوق المتوسط | T7: ≥ 60 | U7: B | V7: =COUNTIF(Q4:Q28,"فوق المتوسط") -> 7 | W7: 0.3043478261
A8: 5 | B8: راشد خليفه احمد محمد المهندى | D8: 4 | F8: 4 | H8: 20 | I8: 13 | J8: 10 | K8: 5 | L8: 48 | M8: 36 | N8: 8.4 | O8: 0.3733333333 | P8: =IF(AND(O8="غ"),"غ",RANK(O8,$O$4:$O$28)+COUNTIF(O$4:O8,O8)-1) -> 21 | Q8: ضعيف | S8: متوسط | T8: ≥ 50 | U8: C | V8: =COUNTIF(Q4:Q28,"متوسط") -> 7 | W8: 0.3043478261
A9: 6 | B9: سعيد عبدالكريم صالح محسن | C9: 3.5 | D9: 3 | E9: 3.5 | F9: 3 | H9: 32.5 | I9: 24 | J9: 13 | K9: 9 | L9: 78.5 | M9: 70 | N9: 15.9625 | O9: 0.7094444444 | P9: =IF(AND(O9="غ"),"غ",RANK(O9,$O$4:$O$28)+COUNTIF(O$4:O9,O9)-1) -> 1 | Q9: جيد | S9: دون المتوسط | T9: ≥ 40 | U9: D | V9: =COUNTIF(Q4:Q28,"دون المتوسط") -> 5 | W9: 0.2173913043 | X9: =SUM(W9:W11) -> 0.347826087
A10: 7 | B10: عبدالعزيز فهد عبدالعزيز جاسم الخنجى | C10: 0 | D10: 3 | F10: 3 | H10: 15 | I10: 13 | J10: 7 | K10: 4 | L10: 39 | M10: 52 | N10: 11.375 | O10: 0.5055555556 | P10: =IF(AND(O10="غ"),"غ",RANK(O10,$O$4:$O$28)+COUNTIF(O$4:O10,O10)-1) -> 15 | Q10: متوسط | S10: ضعيف | T10: ≥ 30 | U10: E | V10: =COUNTIF(Q4:Q28,"ضعيف") -> 3 | W10: 0.1304347826
A11: 8 | B11: عبدالعزيز مسعد عبدالله ناجى العجى | C11: 2.5 | D11: 3 | E11: 2.5 | F11: 3 | H11: 27.5 | I11: 12 | J11: 7 | K11: 5 | L11: 51.5 | M11: 64 | N11: 14.0875 | O11: 0.6261111111 | P11: =IF(AND(O11="غ"),"غ",RANK(O11,$O$4:$O$28)+COUNTIF(O$4:O11,O11)-1) -> 7 | Q11: فوق المتوسط | S11: دون الضعيف جداً | T11: < 30 | U11: F | V11: =COUNTIF(Q4:Q28,"دون الضعيف جداً") -> 0 | W11: 0
A12: 9 | B12: عبدالله ابراهيم عبدالله الجاتى الرميحى | C12: 2.5 | D12: 4 | E12: 2.5 | F12: 4 | H12: 32.5 | I12: 18 | J12: 12 | K12: 6 | L12: 68.5 | M12: 64 | N12: 14.5125 | O12: 0.645 | P12: =IF(AND(O12="غ"),"غ",RANK(O12,$O$4:$O$28)+COUNTIF(O$4:O12,O12)-1) -> 6 | Q12: فوق المتوسط | S12: عدد الطلاب الذي تم اختبارهم | V12: =SUM(V4:V11) -> 23 | W12: =V12/SUM(V12:V13) -> 1
A13: 10 | B13: عبدالله مهدى راشد مهدى الكعبى | C13: 2.5 | D13: 4 | E13: 2.5 | F13: 4 | H13: 32.5 | I13: 17 | J13: 11 | K13: 7 | L13: 67.5 | M13: 66 | N13: 14.8875 | O13: 0.6616666667 | P13: =IF(AND(O13="غ"),"غ",RANK(O13,$O$4:$O$28)+COUNTIF(O$4:O13,O13)-1) -> 4 | Q13: فوق المتوسط | S13: عدد الطلاب الغائبين | V13: =COUNTA(B4:B28)-V12 -> 0 | W13: =V13/SUM(V12:V13) -> 0
A14: 11 | B14: عبدالمجيد محمد محمد الحبابى | C14: 2.5 | E14: 2.5 | H14: 12.5 | I14: 22 | J14: 11 | K14: 6 | L14: 51.5 | M14: 52 | N14: 11.6875 | O14: 0.5194444444 | P14: =IF(AND(O14="غ"),"غ",RANK(O14,$O$4:$O$28)+COUNTIF(O$4:O14,O14)-1) -> 13 | Q14: متوسط
A15: 12 | B15: على خالد دهام دهام النعيمى | C15: 2.5 | D15: 3 | E15: 2.5 | F15: 3 | H15: 27.5 | I15: 18 | J15: 9 | K15: 7 | L15: 61.5 | M15: 50 | N15: 11.5375 | O15: 0.5127777778 | P15: =IF(AND(O15="غ"),"غ",RANK(O15,$O$4:$O$28)+COUNTIF(O$4:O15,O15)-1) -> 14 | Q15: متوسط | S15: الطلاب | T15: العدد | U15: النسبة
A16: 13 | B16: على عبدالله محمد ناصر حسن | C16: 2.5 | D16: 4 | E16: 2.5 | F16: 4 | H16: 32.5 | I16: 17 | J16: 8 | K16: 5 | L16: 62.5 | M16: 46 | N16: 10.7625 | O16: 0.4783333333 | P16: =IF(AND(O16="غ"),"غ",RANK(O16,$O$4:$O$28)+COUNTIF(O$4:O16,O16)-1) -> 17 | Q16: دون المتوسط | S16: الناجحين | T16: =SUM(V4:V8) -> 15 | U16: =X4 -> 0.652173913
A17: 14 | B17: عمير محمد حمد ادغام النعيمى | C17: 3 | D17: 4 | E17: 3 | F17: 4 | H17: 35 | I17: 22 | J17: 11 | K17: 9 | L17: 77 | M17: 64 | N17: 14.725 | O17: 0.6544444444 | P17: =IF(AND(O17="غ"),"غ",RANK(O17,$O$4:$O$28)+COUNTIF(O$4:O17,O17)-1) -> 5 | Q17: فوق المتوسط | S17: الراسبين | T17: =SUM(V9:V11) -> 8 | U17: =X9 -> 0.347826087
A18: 15 | B18: فهد عبدالله محمد بوعيسى العبيدلى | C18: 2.5 | D18: 2 | E18: 2.5 | F18: 2 | H18: 22.5 | I18: 18 | J18: 9 | K18: 6 | L18: 55.5 | M18: 70 | N18: 15.3875 | O18: 0.6838888889 | P18: =IF(AND(O18="غ"),"غ",RANK(O18,$O$4:$O$28)+COUNTIF(O$4:O18,O18)-1) -> 2 | Q18: فوق المتوسط | S18: المجموع | T18: =SUM(T16:T17) -> 23 | U18: =SUM(U16:U17) -> 1
A19: 16 | B19: فواز صلاح احمد ابوبكر | C19: 1 | D19: 4 | E19: 1 | F19: 4 | H19: 25 | I19: 23 | J19: 12 | K19: 8 | L19: 68 | M19: 66 | N19: 14.9 | O19: 0.6622222222 | P19: =IF(AND(O19="غ"),"غ",RANK(O19,$O$4:$O$28)+COUNTIF(O$4:O19,O19)-1) -> 3 | Q19: فوق المتوسط
A20: 17 | B20: مبارك عبدالله يوسف الاحمد البوعينين | C20: 1 | D20: 3 | E20: 1 | F20: 3 | H20: 20 | I20: 17 | J20: 11 | K20: 6 | L20: 54 | M20: 56 | N20: 12.55 | O20: 0.5577777778 | P20: =IF(AND(O20="غ"),"غ",RANK(O20,$O$4:$O$28)+COUNTIF(O$4:O20,O20)-1) -> 9 | Q20: متوسط | S20: التحصيل الأكاديمي | U20: =AVERAGE(M4:M30)/M$3 -> 0.5295652174
A21: 18 | B21: مبارك محمد مبارك زايد الكبيسى | C21: 2.5 | D21: 2 | E21: 2.5 | F21: 2 | H21: 22.5 | I21: 16 | J21: 9 | K21: 5 | L21: 52.5 | M21: 54 | N21: 12.1125 | O21: 0.5383333333 | P21: =IF(AND(O21="غ"),"غ",RANK(O21,$O$4:$O$28)+COUNTIF(O$4:O21,O21)-1) -> 12 | Q21: متوسط
A22: 19 | B22: محمد حسن محمد سليمان الشيخ | C22: 0 | D22: 4 | F22: 4 | H22: 20 | I22: 16 | J22: 8 | K22: 6 | L22: 50 | M22: 62 | N22: 13.65 | O22: 0.6066666667 | P22: =IF(AND(O22="غ"),"غ",RANK(O22,$O$4:$O$28)+COUNTIF(O$4:O22,O22)-1) -> 8 | Q22: فوق المتوسط
A23: 20 | B23: محمد سرور عيد وليد الاحمد | C23: 2.5 | D23: 2 | E23: 2.5 | F23: 2 | H23: 22.5 | I23: 11 | J23: 7 | K23: 4 | L23: 44.5 | M23: 42 | N23: 9.5125 | O23: 0.4227777778 | P23: =IF(AND(O23="غ"),"غ",RANK(O23,$O$4:$O$28)+COUNTIF(O$4:O23,O23)-1) -> 18 | Q23: دون المتوسط
A24: 21 | B24: محمد نورالدين جلال الدين حسين | C24: 2.5 | D24: 2 | E24: 2.5 | F24: 2 | H24: 22.5 | I24: 15 | J24: 8 | K24: 5 | L24: 50.5 | M24: 56 | N24: 12.4625 | O24: 0.5538888889 | P24: =IF(AND(O24="غ"),"غ",RANK(O24,$O$4:$O$28)+COUNTIF(O$4:O24,O24)-1) -> 10 | Q24: متوسط | S24: الفرع | T24: الناجحين | U24: الراسبين | V24: التحصيل
A25: 22 | B25: منصور عبدالله ناصر جابر الحبابى | H25: غ | I25: 10 | J25: 3 | K25: 3 | L25: 16 | M25: 44 | N25: 9.2 | O25: 0.4088888889 | P25: =IF(AND(O25="غ"),"غ",RANK(O25,$O$4:$O$28)+COUNTIF(O$4:O25,O25)-1) -> 19 | Q25: دون المتوسط | S25: =H2 -> Quizzes | T25: =COUNTIF(H4:H28,">="&H$3/2)/COUNT(H4:H28) -> 0.4761904762 | U25: =IF(T25="","",100%-T25) -> 0.5238095238 | V25: =IF($U25="","",AVERAGE(H4:H28)/H$3) -> 0.4928571429
A26: 23 | B26: هلال راشد جمعه مبارك الخويطر | H26: غ | I26: 12 | J26: 8 | K26: 6 | L26: 26 | M26: 42 | N26: 9.05 | O26: 0.4022222222 | P26: =IF(AND(O26="غ"),"غ",RANK(O26,$O$4:$O$28)+COUNTIF(O$4:O26,O26)-1) -> 20 | Q26: دون المتوسط | S26: =I2 -> الواجب | T26: =COUNTIF(I4:I28,">="&I$3/2)/COUNT(I4:I28) -> 0.8260869565 | U26: 0.1739130435 | V26: =IF($U26="","",AVERAGE(I4:I28)/I$3) -> 0.6730434783
S27: =J2 -> المشاركة | T27: =COUNTIF(J4:J28,">="&J$3/2)/COUNT(J4:J28) -> 0.8260869565 | U27: 0.1739130435 | V27: =IF($U27="","",AVERAGE(J4:J28)/J$3) -> 0.6405797101
S28: =K2 -> المشروع | T28: =COUNTIF(K4:K28,">="&K$3/2)/COUNT(K4:K28) -> 0.8695652174 | U28: 0.1304347826 | V28: =IF($U28="","",AVERAGE(K4:K28)/K$3) -> 0.6130434783
S29: =M2 -> Exam | T29: =COUNTIF(M4:M28,">="&M$3/2)/COUNT(M4:M28) -> 0.652173913 | U29: 0.347826087 | V29: =IF($U29="","",AVERAGE(M4:M28)/M$3) -> 0.5295652174

Sheet 8-6
A1: Grade (8-6) كشف درجات الطلاب
A2: م | B2: اسم الطالب | C2: Quiz1 | D2: Quiz2 | E2: Quiz3 | F2: Quiz4 | G2: Quiz5 | H2: Quizzes | I2: الواجب | J2: المشاركة | K2: المشروع | L2: Total | M2: Exam | N2: Final | O2: Percent | P2: Rank | Q2: التقدير | S2: تحليل النتائج على حسب التقدير
C3: 5 | D3: 5 | E3: 5 | F3: 5 | G3: درجة5 | H3: 50 | I3: 25 | J3: 15 | K3: 10 | L3: 100 | M3: 100 | N3: 22.5 | O3: (%) | P3: الترتيب | S3: التقدير | T3: المجال | V3: عدد الطلاب | W3: النسبة
A4: 1 | B4: ابراهيم عبدالرحمن | C4: 3 | D4: 4 | E4: 3 | F4: 4 | H4: =IF(AND(C4="",D4="",E4="",F4="",G4=""),"غ",$H$3*SUM(C4:G4)/SUM($C$3:$G$3)) -> 35 | I4: 15 | J4: 5 | K4: 5 | L4: =IF(AND(C4="",D4="",E4="",F4="",G4="",I4="",J4="",K4=""),"غ",SUM(H4:K4)) -> 60 | M4: 72 | N4: =IF(M4="","غ",IF(L4="غ",M4*0.2,SUM(L4*2.5/$L$3,M4*0.2))) -> 15.9 | O4: =IF(N4="غ","غ",N4*100/$N$3/100) -> 0.7066666667 | P4: =IF(AND(O4="غ"),"غ",RANK(O4,$O$4:$O$27)+COUNTIF(O$4:O4,O4)-1) -> 1 | Q4: =IF(O4="غ","غ",IF(O4>=90%,"ممتاز",IF(O4>=80%,"جيد جداً",IF(O4>=70%,"جيد",IF(O4>=60%,"فوق المتوسط",IF(O4>=50%,"متوسط",IF(O4>=40%,"دون المتوسط",IF(O4>=30%,"ضعيف","دون الضعيف جداً")))))))) -> جيد | S4: ممتاز | T4: ≥ 90 | U4: A+ | V4: =COUNTIF(Q4:Q27,"ممتاز") -> 0 | W4: =(V4/$V$12) -> 0 | X4: =SUM(W4:W8) -> 0.652173913
A5: 2 | B5: احمد إبراهيم أحمد إبراهيم المناعي | D5: 1 | F5: 1 | H5: =IF(AND(C5="",D5="",E5="",F5="",G5=""),"غ",$H$3*SUM(C5:G5)/SUM($C$3:$G$3)) -> 5 | I5: 5 | J5: 5 | K5: 5 | L5: =IF(AND(C5="",D5="",E5="",F5="",G5="",I5="",J5="",K5=""),"غ",SUM(H5:K5)) -> 20 | M5: 40 | N5: =IF(M5="","غ",IF(L5="غ",M5*0.2,SUM(L5*2.5/$L$3,M5*0.2))) -> 8.5 | O5: =IF(N5="غ","غ",N5*100/$N$3/100) -> 0.3777777778 | P5: =IF(AND(O5="غ"),"غ",RANK(O5,$O$4:$O$27)+COUNTIF(O$4:O5,O5)-1) -> 21 | Q5: =IF(O5="غ","غ",IF(O5>=90%,"ممتاز",IF(O5>=80%,"جيد جداً",IF(O5>=70%,"جيد",IF(O5>=60%,"فوق المتوسط",IF(O5>=50%,"متوسط",IF(O5>=40%,"دون المتوسط",IF(O5>=30%,"ضعيف","دون الضعيف جداً")))))))) -> ضعيف | S5: جيد جداً | T5: ≥ 80 | U5: A | V5: =COUNTIF(Q4:Q27,"جيد جداً") -> 0 | W5: 0
A6: 3 | B6: احمد عبدالله راشد صالح فارس | C6: 2.5 | D6: 1 | E6: 2.5 | F6: 1 | H6: 17.5 | I6: 20 | J6: 9 | K6: 6 | L6: 52.5 | M6: 70 | N6: 15.3125 | O6: 0.6805555556 | P6: =IF(AND(O6="غ"),"غ",RANK(O6,$O$4:$O$27)+COUNTIF(O$4:O6,O6)-1) -> 4 | Q6: فوق المتوسط | S6: جيد | T6: ≥ 70 | U6: B+ | V6: =COUNTIF(Q4:Q27,"جيد") -> 1 | W6: 0.04347826087
A7: 4 | B7: الوليد خالد عبدالله نصف السليطى | C7: 3.5 | D7: 2 | E7: 3.5 | F7: 2 | H7: 27.5 | I7: 22 | J7: 10 | K7: 7 | L7: 66.5 | M7: 66 | N7: 14.8625 | O7: 0.6605555556 | P7: =IF(AND(O7="غ"),"غ",RANK(O7,$O$4:$O$27)+COUNTIF(O$4:O7,O7)-1) -> 5 | Q7: فوق المتوسط | S7: فوق المتوسط | T7: ≥ 60 | U7: B | V7: =COUNTIF(Q4:Q27,"فوق المتوسط") -> 6 | W7: 0.2608695652
A8: 5 | B8: أحمد أسامه أحمد الأسمر | C8: 3.5 | D8: 3 | E8: 3.5 | F8: 3 | H8: 32.5 | I8: 5 | J8: 3 | K8: 2 | L8: 42.5 | M8: 50 | N8: 11.0625 | O8: 0.4916666667 | P8: =IF(AND(O8="غ"),"غ",RANK(O8,$O$4:$O$27)+COUNTIF(O$4:O8,O8)-1) -> 16 | Q8: دون المتوسط | S8: متوسط | T8: ≥ 50 | U8: C | V8: =COUNTIF(Q4:Q27,"متوسط") -> 8 | W8: 0.347826087
A9: 6 | B9: تركى مبارك راشد ابوغارب النعيمى | D9: 3 | F9: 3 | H9: 15 | I9: 5 | J9: 3 | K9: 2 | L9: 25 | M9: 36 | N9: 7.825 | O9: 0.3477777778 | P9: =IF(AND(O9="غ"),"غ",RANK(O9,$O$4:$O$27)+COUNTIF(O$4:O9,O9)-1) -> 22 | Q9: ضعيف | S9: دون المتوسط | T9: ≥ 40 | U9: D | V9: =COUNTIF(Q4:Q27,"دون المتوسط") -> 5 | W9: 0.2173913043 | X9: =SUM(W9:W11) -> 0.347826087
A10: 7 | B10: جاسم ابراهيم عبدالرحيم | C10: 2.5 | D10: 4 | E10: 2.5 | F10: 4 | H10: 32.5 | I10: 15 | J10: 12 | K10: 5 | L10: 64.5 | M10: 62 | N10: 14.0125 | O10: 0.6227777778 | P10: =IF(AND(O10="غ"),"غ",RANK(O10,$O$4:$O$27)+COUNTIF(O$4:O10,O10)-1) -> 7 | Q10: فوق المتوسط | S10: ضعيف | T10: ≥ 30 | U10: E | V10: =COUNTIF(Q4:Q27,"ضعيف") -> 3 | W10: 0.1304347826
A11: 8 | B11: حمد شبيب محمد شبيب الهاجرى | C11: 0 | D11: 2 | E11: 0 | F11: 2 | H11: 10 | I11: 5 | J11: 2 | K11: 2 | L11: 19 | M11: 58 | N11: 12.075 | O11: 0.5366666667 | P11: =IF(AND(O11="غ"),"غ",RANK(O11,$O$4:$O$27)+COUNTIF(O$4:O11,O11)-1) -> 14 | Q11: متوسط | S11: دون الضعيف جداً | T11: < 30 | U11: F | V11: =COUNTIF(Q4:Q27,"دون الضعيف جداً") -> 0 | W11: 0
A12: 9 | B12: خالد جمال عبدالله العثمان الخليفى | D12: 4 | F12: 4 | H12: 20 | I12: 3 | J12: 3 | K12: 2 | L12: 28 | M12: 58 | N12: 12.3 | O12: 0.5466666667 | P12: =IF(AND(O12="غ"),"غ",RANK(O12,$O$4:$O$27)+COUNTIF(O$4:O12,O12)-1) -> 11 | Q12: متوسط | S12: عدد الطلاب الذي تم اختبارهم | V12: =SUM(V4:V11) -> 23 | W12: =V12/SUM(V12:V13) -> 1
A13: 10 | B13: راشد عيسى احمد ال سيف الكوارى | C13: 1 | D13: 2 | E13: 1 | F13: 2 | H13: 15 | I13: 5 | J13: 5 | K13: 3 | L13: 28 | M13: 34 | N13: 7.5 | O13: 0.3333333333 | P13: =IF(AND(O13="غ"),"غ",RANK(O13,$O$4:$O$27)+COUNTIF(O$4:O13,O13)-1) -> 23 | Q13: ضعيف | S13: عدد الطلاب الغائبين | V13: =COUNTA(B4:B27)-V12 -> 0 | W13: =V13/SUM(V12:V13) -> 0
A14: 11 | B14: زايد مبارك زايد مبارك المريخى | C14: 2 | D14: 2 | E14: 2 | F14: 2 | H14: 20 | I14: 20 | J14: 12 | K14: 8 | L14: 60 | M14: 66 | N14: 14.7 | O14: 0.6533333333 | P14: =IF(AND(O14="غ"),"غ",RANK(O14,$O$4:$O$27)+COUNTIF(O$4:O14,O14)-1) -> 6 | Q14: فوق المتوسط
A15: 12 | B15: عبد الله حسام حسني الكردي | C15: 1.5 | D15: 1 | E15: 1.5 | F15: 1 | H15: 12.5 | I15: 23 | J15: 13 | K15: 6 | L15: 54.5 | M15: 54 | N15: 12.1625 | O15: 0.5405555556 | P15: =IF(AND(O15="غ"),"غ",RANK(O15,$O$4:$O$27)+COUNTIF(O$4:O15,O15)-1) -> 13 | Q15: متوسط | S15: الطلاب | T15: العدد | U15: النسبة
A16: 13 | B16: عبدالرحمن على ابراهيم باكر الهيدوس | C16: 1.5 | D16: 2 | E16: 1.5 | F16: 2 | H16: 17.5 | I16: 10 | J16: 6 | K16: 4 | L16: 37.5 | M16: 46 | N16: 10.1375 | O16: 0.4505555556 | P16: =IF(AND(O16="غ"),"غ",RANK(O16,$O$4:$O$27)+COUNTIF(O$4:O16,O16)-1) -> 20 | Q16: دون المتوسط | S16: الناجحين | T16: =SUM(V4:V8) -> 15 | U16: =X4 -> 0.652173913
A17: 14 | B17: عبداللة طاهر محمد باحكم | C17: 1.5 | D17: 1 | E17: 1.5 | F17: 1 | H17: 12.5 | I17: 23 | J17: 13 | K17: 8 | L17: 56.5 | M17: 56 | N17: 12.6125 | O17: 0.5605555556 | P17: =IF(AND(O17="غ"),"غ",RANK(O17,$O$4:$O$27)+COUNTIF(O$4:O17,O17)-1) -> 10 | Q17: متوسط | S17: الراسبين | T17: =SUM(V9:V11) -> 8 | U17: =X9 -> 0.347826087
A18: 15 | B18: عبدالله راشد سعد همام العبدالله | C18: 3.5 | D18: 1 | E18: 3.5 | F18: 1 | H18: 22.5 | I18: 15 | J18: 10 | K18: 8 | L18: 55.5 | M18: 54 | N18: 12.1875 | O18: 0.5416666667 | P18: =IF(AND(O18="غ"),"غ",RANK(O18,$O$4:$O$27)+COUNTIF(O$4:O18,O18)-1) -> 12 | Q18: متوسط | S18: المجموع | T18: =SUM(T16:T17) -> 23 | U18: =SUM(U16:U17) -> 1
A19: 16 | B19: عمر ناصر عبدالله العطشان السليطى | C19: 3 | D19: 4 | E19: 3 | F19: 4 | H19: 35 | I19: 5 | J19: 3 | K19: 4 | L19: 47 | M19: 46 | N19: 10.375 | O19: 0.4611111111 | P19: =IF(AND(O19="غ"),"غ",RANK(O19,$O$4:$O$27)+COUNTIF(O$4:O19,O19)-1) -> 18 | Q19: دون المتوسط
A20: 17 | B20: عيسى زايد نوبى زايد الخليفى | C20: 2.5 | D20: 1 | E20: 2.5 | F20: 1 | H20: 17.5 | I20: 15 | J20: 10 | K20: 7 | L20: 49.5 | M20: 58 | N20: 12.8375 | O20: 0.5705555556 | P20: =IF(AND(O20="غ"),"غ",RANK(O20,$O$4:$O$27)+COUNTIF(O$4:O20,O20)-1) -> 8 | Q20: متوسط | S20: التحصيل الأكاديمي | U20: =AVERAGE(M4:M30)/M$3 -> 0.5530434783
A21: 18 | B21: عيسى عبدالله عيسى الخويطر العجمى | C21: 1.5 | D21: 1 | E21: 1.5 | F21: 1 | H21: 12.5 | I21: 15 | J21: 11 | K21: 8 | L21: 46.5 | M21: 46 | N21: 10.3625 | O21: 0.4605555556 | P21: =IF(AND(O21="غ"),"غ",RANK(O21,$O$4:$O$27)+COUNTIF(O$4:O21,O21)-1) -> 19 | Q21: دون المتوسط
A22: 19 | B22: مبارك بدر مبارك سالم العبدالله | C22: 2.5 | D22: 4 | E22: 2.5 | F22: 4 | H22: 32.5 | I22: 20 | J22: 10 | K22: 6 | L22: 68.5 | M22: 70 | N22: 15.7125 | O22: 0.6983333333 | P22: =IF(AND(O22="غ"),"غ",RANK(O22,$O$4:$O$27)+COUNTIF(O$4:O22,O22)-1) -> 2 | Q22: فوق المتوسط
A23: 20 | B23: محمد حسن محمد احمد العبدالله | C23: 1.5 | D23: 1 | E23: 1.5 | F23: 1 | H23: 12.5 | I23: 24 | J23: 13 | K23: 9 | L23: 58.5 | M23: 56 | N23: 12.6625 | O23: 0.5627777778 | P23: =IF(AND(O23="غ"),"غ",RANK(O23,$O$4:$O$27)+COUNTIF(O$4:O23,O23)-1) -> 9 | Q23: متوسط
A24: 21 | B24: محمد عبدالله جاسم الربيعه الكوارى | C24: 1.5 | D24: غ | E24: 1.5 | F24: غ | H24: 7.5 | I24: 10 | J24: 8 | K24: 6 | L24: 31.5 | M24: 50 | N24: 10.7875 | O24: 0.4794444444 | P24: =IF(AND(O24="غ"),"غ",RANK(O24,$O$4:$O$27)+COUNTIF(O$4:O24,O24)-1) -> 17 | Q24: دون المتوسط | S24: الفرع | T24: الناجحين | U24: الراسبين | V24: التحصيل
A25: 22 | B25: محمد عبدالله غانم عبدالله الخليفى | C25: 1.5 | D25: 0 | E25: 1.5 | F25: 0 | H25: 7.5 | I25: 5 | J25: 4 | K25: 3 | L25: 19.5 | M25: 56 | N25: 11.6875 | O25: 0.5194444444 | P25: =IF(AND(O25="غ"),"غ",RANK(O25,$O$4:$O$27)+COUNTIF(O$4:O25,O25)-1) -> 15 | Q25: متوسط | S25: =H2 -> Quizzes | T25: =COUNTIF(H4:H27,">="&H$3/2)/COUNT(H4:H27) -> 0.3043478261 | U25: =IF(T25="","",100%-T25) -> 0.6956521739 | V25: =IF($U25="","",AVERAGE(H4:H27)/H$3) -> 0.3934782609
A26: 23 | B26: همام الامين | C26: 2.5 | D26: 4 | E26: 2.5 | F26: 4 | H26: 32.5 | I26: 20 | J26: 13 | K26: 5 | L26: 70.5 | M26: 68 | N26: 15.3625 | O26: 0.6827777778 | P26: =IF(AND(O26="غ"),"غ",RANK(O26,$O$4:$O$27)+COUNTIF(O$4:O26,O26)-1) -> 3 | Q26: فوق المتوسط | S26: =I2 -> الواجب | T26: =COUNTIF(I4:I27,">="&I$3/2)/COUNT(I4:I27) -> 0.5652173913 | U26: 0.4347826087 | V26: =IF($U26="","",AVERAGE(I4:I27)/I$3) -> 0.5304347826
S27: =J2 -> المشاركة | T27: =COUNTIF(J4:J27,">="&J$3/2)/COUNT(J4:J27) -> 0.5652173913 | U27: 0.4347826087 | V27: =IF($U27="","",AVERAGE(J4:J27)/J$3) -> 0.5304347826
S28: =K2 -> المشروع | T28: =COUNTIF(K4:K27,">="&K$3/2)/COUNT(K4:K27) -> 0.652173913 | U28: 0.347826087 | V28: =IF($U28="","",AVERAGE(K4:K27)/K$3) -> 0.5260869565
S29: =M2 -> Exam | T29: =COUNTIF(M4:M27,">="&M$3/2)/COUNT(M4:M27) -> 0.7391304348 | U29: 0.2608695652 | V29: =IF($U29="","",AVERAGE(M4:M27)/M$3) -> 0.5530434783

Sheet 8-7
A1: Grade (8-7) كشف درجات الطلاب
A2: م | B2: اسم الطالب | C2: Quiz1 | D2: Quiz2 | E2: Quiz3 | F2: Quiz4 | G2: Quiz5 | H2: Quizzes | I2: الواجب | J2: المشاركة | K2: المشروع | L2: Total | M2: Exam | N2: Final | O2: Percent | P2: Rank | Q2: التقدير | S2: تحليل النتائج على حسب التقدير
C3: 5 | D3: 5 | E3: 5 | F3: 5 | G3: درجة5 | H3: 50 | I3: 25 | J3: 15 | K3: 10 | L3: 100 | M3: 100 | N3: 22.5 | O3: (%) | P3: الترتيب | S3: التقدير | T3: المجال | V3: عدد الطلاب | W3: النسبة
A4: 1 | B4: ابراهيم مصطفى طاهر عبدالله الصفار | C4: 2.5 | E4: 2.5 | H4: =IF(AND(C4="",D4="",E4="",F4="",G4=""),"غ",$H$3*SUM(C4:G4)/SUM($C$3:$G$3)) -> 12.5 | I4: 5 | J4: 5 | K4: 5 | L4: =IF(AND(C4="",D4="",E4="",F4="",G4="",I4="",J4="",K4=""),"غ",SUM(H4:K4)) -> 27.5 | M4: 30 | N4: =IF(M4="","غ",IF(L4="غ",M4*0.2,SUM(L4*2.5/$L$3,M4*0.2))) -> 6.6875 | O4: =IF(N4="غ","غ",N4*100/$N$3/100) -> 0.2972222222 | P4: =IF(AND(O4="غ"),"غ",RANK(O4,$O$4:$O$30)+COUNTIF(O$4:O4,O4)-1) -> 25 | Q4: =IF(O4="غ","غ",IF(O4>=90%,"ممتاز",IF(O4>=80%,"جيد جداً",IF(O4>=70%,"جيد",IF(O4>=60%,"فوق المتوسط",IF(O4>=50%,"متوسط",IF(O4>=40%,"دون المتوسط",IF(O4>=30%,"ضعيف","دون الضعيف جداً")))))))) -> دون الضعيف جداً | S4: ممتاز | T4: ≥ 90 | U4: A+ | V4: =COUNTIF(Q4:Q30,"ممتاز") -> 0 | W4: =(V4/$V$12) -> 0 | X4: =SUM(W4:W8) -> 0.56
A5: 2 | B5: احمد ابراهيم عبدالله عبداللطيف الساده | C5: 1.5 | D5: 4 | E5: 1.5 | F5: 4 | H5: =IF(AND(C5="",D5="",E5="",F5="",G5=""),"غ",$H$3*SUM(C5:G5)/SUM($C$3:$G$3)) -> 27.5 | I5: 7 | J5: 6 | K5: 5 | L5: =IF(AND(C5="",D5="",E5="",F5="",G5="",I5="",J5="",K5=""),"غ",SUM(H5:K5)) -> 45.5 | M5: 42 | N5: =IF(M5="","غ",IF(L5="غ",M5*0.2,SUM(L5*2.5/$L$3,M5*0.2))) -> 9.5375 | O5: =IF(N5="غ","غ",N5*100/$N$3/100) -> 0.4238888889 | P5: =IF(AND(O5="غ"),"غ",RANK(O5,$O$4:$O$30)+COUNTIF(O$4:O5,O5)-1) -> 19 | Q5: =IF(O5="غ","غ",IF(O5>=90%,"ممتاز",IF(O5>=80%,"جيد جداً",IF(O5>=70%,"جيد",IF(O5>=60%,"فوق المتوسط",IF(O5>=50%,"متوسط",IF(O5>=40%,"دون المتوسط",IF(O5>=30%,"ضعيف","دون الضعيف جداً")))))))) -> دون المتوسط | S5: جيد جداً | T5: ≥ 80 | U5: A | V5: =COUNTIF(Q4:Q30,"جيد جداً") -> 0 | W5: 0
A6: 3 | B6: احمد راشد يوسف البوعفره الكوارى | C6: 1 | D6: 4 | E6: 1 | F6: 4 | H6: 25 | I6: 5 | J6: 5 | K6: 5 | L6: 40 | M6: 56 | N6: 12.2 | O6: 0.5422222222 | P6: =IF(AND(O6="غ"),"غ",RANK(O6,$O$4:$O$30)+COUNTIF(O$4:O6,O6)-1) -> 10 | Q6: متوسط | S6: جيد | T6: ≥ 70 | U6: B+ | V6: =COUNTIF(Q4:Q30,"جيد") -> 1 | W6: 0.04
A7: 4 | B7: احمد ماهر احمد | C7: 2.5 | D7: 4 | E7: 2.5 | F7: 4 | H7: 32.5 | I7: 20 | J7: 12 | K7: 7 | L7: 71.5 | M7: 62 | N7: 14.1875 | O7: 0.6305555556 | P7: =IF(AND(O7="غ"),"غ",RANK(O7,$O$4:$O$30)+COUNTIF(O$4:O7,O7)-1) -> 4 | Q7: فوق المتوسط | S7: فوق المتوسط | T7: ≥ 60 | U7: B | V7: =COUNTIF(Q4:Q30,"فوق المتوسط") -> 5 | W7: 0.2
A8: 5 | B8: تميم عبدالحميد صالح الحميرى اليافعى | C8: 2.5 | D8: 4 | E8: 2.5 | F8: 4 | H8: 32.5 | I8: 15 | J8: 10 | K8: 6 | L8: 63.5 | M8: 50 | N8: 11.5875 | O8: 0.515 | P8: =IF(AND(O8="غ"),"غ",RANK(O8,$O$4:$O$30)+COUNTIF(O$4:O8,O8)-1) -> 12 | Q8: متوسط | S8: متوسط | T8: ≥ 50 | U8: C | V8: =COUNTIF(Q4:Q30,"متوسط") -> 8 | W8: 0.32
A9: 6 | B9: ثانى سعد ثانى المسيفرى الهاجرى | C9: 1.5 | D9: 2 | E9: 1.5 | F9: 2 | H9: 17.5 | I9: 10 | J9: 6 | K9: 4 | L9: 37.5 | M9: 50 | N9: 10.9375 | O9: 0.4861111111 | P9: =IF(AND(O9="غ"),"غ",RANK(O9,$O$4:$O$30)+COUNTIF(O$4:O9,O9)-1) -> 16 | Q9: دون المتوسط | S9: دون المتوسط | T9: ≥ 40 | U9: D | V9: =COUNTIF(Q4:Q30,"دون المتوسط") -> 7 | W9: 0.28 | X9: =SUM(W9:W11) -> 0.44
A10: 7 | B10: حسن نعمه على احمد النعمه | C10: 1.5 | E10: 1.5 | H10: 7.5 | I10: 20 | J10: 10 | K10: 5 | L10: 42.5 | M10: 44 | N10: 9.8625 | O10: 0.4383333333 | P10: =IF(AND(O10="غ"),"غ",RANK(O10,$O$4:$O$30)+COUNTIF(O$4:O10,O10)-1) -> 18 | Q10: دون المتوسط | S10: ضعيف | T10: ≥ 30 | U10: E | V10: =COUNTIF(Q4:Q30,"ضعيف") -> 3 | W10: 0.12
A11: 8 | B11: حمد نصف عبدالله نصف السليطى | C11: 2.5 | D11: 4 | E11: 2.5 | F11: 4 | H11: 32.5 | I11: 20 | J11: 10 | K11: 8 | L11: 70.5 | M11: 56 | N11: 12.9625 | O11: 0.5761111111 | P11: =IF(AND(O11="غ"),"غ",RANK(O11,$O$4:$O$30)+COUNTIF(O$4:O11,O11)-1) -> 8 | Q11: متوسط | S11: دون الضعيف جداً | T11: < 30 | U11: F | V11: =COUNTIF(Q4:Q30,"دون الضعيف جداً") -> 1 | W11: 0.04
A12: 9 | B12: خالد صالح حسن عوض بوجلوف | D12: 4 | F12: 4 | H12: 20 | I12: 20 | J12: 10 | K12: 8 | L12: 58 | M12: 66 | N12: 14.65 | O12: 0.6511111111 | P12: =IF(AND(O12="غ"),"غ",RANK(O12,$O$4:$O$30)+COUNTIF(O$4:O12,O12)-1) -> 2 | Q12: فوق المتوسط | S12: عدد الطلاب الذي تم اختبارهم | V12: =SUM(V4:V11) -> 25 | W12: =V12/SUM(V12:V13) -> 0.9615384615
A13: 10 | B13: خالد فياض جاسم الفياض الخالدى | C13: 1.5 | D13: 3 | E13: 1.5 | F13: 3 | H13: 22.5 | I13: 20 | J13: 12 | K13: 8 | L13: 62.5 | M13: 60 | N13: 13.5625 | O13: 0.6027777778 | P13: =IF(AND(O13="غ"),"غ",RANK(O13,$O$4:$O$30)+COUNTIF(O$4:O13,O13)-1) -> 6 | Q13: فوق المتوسط | S13: عدد الطلاب الغائبين | V13: =COUNTA(B4:B30)-V12 -> 1 | W13: =V13/SUM(V12:V13) -> 0.03846153846
A14: 11 | B14: خليفه حمد عبدالله راشد السبيعى | C14: 1 | D14: 4 | E14: 1 | F14: 4 | H14: 25 | I14: 15 | J14: 10 | K14: 6 | L14: 56 | M14: 52 | N14: 11.8 | O14: 0.5244444444 | P14: =IF(AND(O14="غ"),"غ",RANK(O14,$O$4:$O$30)+COUNTIF(O$4:O14,O14)-1) -> 11 | Q14: متوسط
A15: 12 | B15: راشد احمد حسين محمد الفائق | H15: غ | L15: غ | N15: غ | O15: غ | P15: =IF(AND(O15="غ"),"غ",RANK(O15,$O$4:$O$30)+COUNTIF(O$4:O15,O15)-1) -> غ | Q15: غ | S15: الطلاب | T15: العدد | U15: النسبة
A16: 13 | B16: سعد عبدالله احمد الشيخ اللنقاوى | C16: 1.5 | D16: 4 | E16: 1.5 | F16: 4 | H16: 27.5 | I16: 22 | J16: 12 | K16: 8 | L16: 69.5 | M16: 38 | N16: 9.3375 | O16: 0.415 | P16: =IF(AND(O16="غ"),"غ",RANK(O16,$O$4:$O$30)+COUNTIF(O$4:O16,O16)-1) -> 20 | Q16: دون المتوسط | S16: الناجحين | T16: =SUM(V4:V8) -> 14 | U16: =X4 -> 0.56
A17: 14 | B17: سعيد محمد كليب الربيعه الكوارى | C17: 1.5 | D17: 1 | E17: 1.5 | F17: 1 | H17: 12.5 | I17: 5 | J17: 5 | K17: 4 | L17: 26.5 | M17: 64 | N17: 13.4625 | O17: 0.5983333333 | P17: =IF(AND(O17="غ"),"غ",RANK(O17,$O$4:$O$30)+COUNTIF(O$4:O17,O17)-1) -> 7 | Q17: متوسط | S17: الراسبين | T17: =SUM(V9:V11) -> 11 | U17: =X9 -> 0.44
A18: 15 | B18: عبدالرحمن عبدالله محمد عبدالرحمن عبدالله | C18: 2.5 | D18: 4 | E18: 2.5 | F18: 4 | H18: 32.5 | I18: 24 | J18: 13 | K18: 9 | L18: 78.5 | M18: 78 | N18: 17.5625 | O18: 0.7805555556 | P18: =IF(AND(O18="غ"),"غ",RANK(O18,$O$4:$O$30)+COUNTIF(O$4:O18,O18)-1) -> 1 | Q18: جيد | S18: المجموع | T18: =SUM(T16:T17) -> 25 | U18: =SUM(U16:U17) -> 1
A19: 16 | B19: عبدالعزيز عبدالرحمن صالح خالد الخليفى | D19: 4 | F19: 4 | H19: 20 | I19: 15 | J19: 10 | K19: 8 | L19: 53 | M19: 62 | N19: 13.725 | O19: 0.61 | P19: =IF(AND(O19="غ"),"غ",RANK(O19,$O$4:$O$30)+COUNTIF(O$4:O19,O19)-1) -> 5 | Q19: فوق المتوسط
A20: 17 | B20: عبدالعزيز محمد عبدالله محمد الخليفى | D20: 4 | F20: 4 | H20: 20 | I20: 15 | J20: 12 | K20: 8 | L20: 55 | M20: 50 | N20: 11.375 | O20: 0.5055555556 | P20: =IF(AND(O20="غ"),"غ",RANK(O20,$O$4:$O$30)+COUNTIF(O$4:O20,O20)-1) -> 14 | Q20: متوسط | S20: التحصيل الأكاديمي | U20: =AVERAGE(M4:M30)/M$3 -> 0.5096
A21: 18 | B21: عبداللطيف خالد عبداللطيف راشد المهندى | C21: 2.5 | E21: 2.5 | H21: 12.5 | I21: 15 | J21: 10 | K21: 6 | L21: 43.5 | M21: 44 | N21: 9.8875 | O21: 0.4394444444 | P21: =IF(AND(O21="غ"),"غ",RANK(O21,$O$4:$O$30)+COUNTIF(O$4:O21,O21)-1) -> 17 | Q21: دون المتوسط
A22: 19 | B22: على المال سالم المال المناعى | C22: 2.5 | D22: 3 | E22: 2.5 | F22: 3 | H22: 27.5 | I22: 10 | J22: 6 | K22: 5 | L22: 48.5 | M22: 38 | N22: 8.8125 | O22: 0.3916666667 | P22: =IF(AND(O22="غ"),"غ",RANK(O22,$O$4:$O$30)+COUNTIF(O$4:O22,O22)-1) -> 23 | Q22: ضعيف
A23: 20 | B23: على شاهين راشد على النعيمى | C23: 0 | D23: 2 | E23: 0 | F23: 2 | H23: 10 | I23: 5 | J23: 5 | K23: 3 | L23: 23 | M23: 42 | N23: 8.975 | O23: 0.3988888889 | P23: =IF(AND(O23="غ"),"غ",RANK(O23,$O$4:$O$30)+COUNTIF(O$4:O23,O23)-1) -> 22 | Q23: ضعيف
A24: 21 | B24: عمران عتيق نوبى زايد الخليفى | C24: 1 | D24: 4 | E24: 1 | F24: 4 | H24: 25 | I24: 5 | J24: 4 | K24: 3 | L24: 37 | M24: 30 | N24: 6.925 | O24: 0.3077777778 | P24: =IF(AND(O24="غ"),"غ",RANK(O24,$O$4:$O$30)+COUNTIF(O$4:O24,O24)-1) -> 24 | Q24: ضعيف | S24: الفرع | T24: الناجحين | U24: الراسبين | V24: التحصيل
A25: 22 | B25: غيث محمد غيث الربيعه الكوارى | C25: 2.5 | D25: 4 | E25: 2.5 | F25: 4 | H25: 32.5 | I25: 15 | J25: 13 | K25: 6 | L25: 66.5 | M25: 56 | N25: 12.8625 | O25: 0.5716666667 | P25: =IF(AND(O25="غ"),"غ",RANK(O25,$O$4:$O$30)+COUNTIF(O$4:O25,O25)-1) -> 9 | Q25: متوسط | S25: =H2 -> Quizzes | T25: =COUNTIF(H4:H30,">="&H$3/2)/COUNT(H4:H30) -> 0.56 | U25: =IF(T25="","",100%-T25) -> 0.44 | V25: =IF($U25="","",AVERAGE(H4:H30)/H$3) -> 0.46
A26: 23 | B26: محمد سعيد سالم سعيد هلابى | C26: 1.5 | D26: 4 | E26: 1.5 | F26: 4 | H26: 27.5 | I26: 24 | J26: 13 | K26: 9 | L26: 73.5 | M26: 64 | N26: 14.6375 | O26: 0.6505555556 | P26: =IF(AND(O26="غ"),"غ",RANK(O26,$O$4:$O$30)+COUNTIF(O$4:O26,O26)-1) -> 3 | Q26: فوق المتوسط | S26: =I2 -> الواجب | T26: =COUNTIF(I4:I30,">="&I$3/2)/COUNT(I4:I30) -> 0.6 | U26: 0.4 | V26: =IF($U26="","",AVERAGE(I4:I30)/I$3) -> 0.5456
A27: 24 | B27: محمد سعيد سيف سعيد العلوى | C27: 1 | D27: 3 | E27: 1 | F27: 3 | H27: 20 | I27: 9 | J27: 8 | K27: 2 | L27: 39 | M27: 50 | N27: 10.975 | O27: 0.4877777778 | P27: =IF(AND(O27="غ"),"غ",RANK(O27,$O$4:$O$30)+COUNTIF(O$4:O27,O27)-1) -> 15 | Q27: دون المتوسط | S27: =J2 -> المشاركة | T27: =COUNTIF(J4:J30,">="&J$3/2)/COUNT(J4:J30) -> 0.64 | U27: 0.36 | V27: =IF($U27="","",AVERAGE(J4:J30)/J$3) -> 0.5973333333
A28: 25 | B28: محمد عبدالعزيز حسن محمد فلامرزى | C28: 1 | D28: 4 | E28: 1 | F28: 4 | H28: 25 | I28: 15 | J28: 12 | K28: 8 | L28: 60 | M28: 38 | N28: 9.1 | O28: 0.4044444444 | P28: =IF(AND(O28="غ"),"غ",RANK(O28,$O$4:$O$30)+COUNTIF(O$4:O28,O28)-1) -> 21 | Q28: دون المتوسط | S28: =K2 -> المشروع | T28: =COUNTIF(K4:K30,">="&K$3/2)/COUNT(K4:K30) -> 0.76 | U28: 0.24 | V28: =IF($U28="","",AVERAGE(K4:K30)/K$3) -> 0.596
A29: 26 | B29: مسعود سالم مصبح الربيعى | C29: 1.5 | D29: 4 | E29: 1.5 | F29: 4 | H29: =IF(AND(C29="",D29="",E29="",F29="",G29=""),"غ",$H$3*SUM(C29:G29)/SUM($C$3:$G$3)) -> 27.5 | I29: 5 | J29: 5 | K29: 3 | L29: =IF(AND(C29="",D29="",E29="",F29="",G29="",I29="",J29="",K29=""),"غ",SUM(H29:K29)) -> 40.5 | M29: 52 | N29: =IF(M29="","غ",IF(L29="غ",M29*0.2,SUM(L29*2.5/$L$3,M29*0.2))) -> 11.4125 | O29: =IF(N29="غ","غ",N29*100/$N$3/100) -> 0.5072222222 | P29: =IF(AND(O29="غ"),"غ",RANK(O29,$O$4:$O$30)+COUNTIF(O$4:O29,O29)-1) -> 13 | Q29: =IF(O29="غ","غ",IF(O29>=90%,"ممتاز",IF(O29>=80%,"جيد جداً",IF(O29>=70%,"جيد",IF(O29>=60%,"فوق المتوسط",IF(O29>=50%,"متوسط",IF(O29>=40%,"دون المتوسط",IF(O29>=30%,"ضعيف","دون الضعيف جداً")))))))) -> متوسط | S29: =M2 -> Exam | T29: =COUNTIF(M4:M30,">="&M$3/2)/COUNT(M4:M30) -> 0.64 | U29: 0.36 | V29: =IF($U29="","",AVERAGE(M4:M30)/M$3) -> 0.5096

Sheet 8-8
A1: Grade (8-8) كشف درجات الطلاب
A2: م | B2: اسم الطالب | C2: Quiz1 | D2: Quiz2 | E2: Quiz3 | F2: Quiz4 | G2: Quiz5 | H2: Quizzes | I2: الواجب | J2: المشاركة | K2: المشروع | L2: Total | M2: Exam | N2: Final | O2: Percent | P2: Rank | Q2: التقدير | S2: تحليل النتائج على حسب التقدير
C3: 5 | D3: 5 | E3: 5 | F3: 5 | G3: درجة5 | H3: 50 | I3: 25 | J3: 15 | K3: 10 | L3: 100 | M3: 100 | N3: 22.5 | O3: (%) | P3: الترتيب | S3: التقدير | T3: المجال | V3: عدد الطلاب | W3: النسبة
A4: 1 | B4: ابراهيم محمد هاشم الشمسان الساده | C4: 1 | D4: 1 | E4: 1 | F4: 1 | H4: =IF(AND(C4="",D4="",E4="",F4="",G4=""),"غ",$H$3*SUM(C4:G4)/SUM($C$3:$G$3)) -> 10 | I4: 15 | J4: 10 | K4: 5 | L4: =IF(AND(C4="",D4="",E4="",F4="",G4="",I4="",J4="",K4=""),"غ",SUM(H4:K4)) -> 40 | M4: 34 | N4: =IF(M4="","غ",IF(L4="غ",M4*0.2,SUM(L4*2.5/$L$3,M4*0.2))) -> 7.8 | O4: =IF(N4="غ","غ",N4*100/$N$3/100) -> 0.3466666667 | P4: =IF(AND(O4="غ"),"غ",RANK(O4,$O$4:$O$30)+COUNTIF(O$4:O4,O4)-1) -> 24 | Q4: =IF(O4="غ","غ",IF(O4>=90%,"ممتاز",IF(O4>=80%,"جيد جداً",IF(O4>=70%,"جيد",IF(O4>=60%,"فوق المتوسط",IF(O4>=50%,"متوسط",IF(O4>=40%,"دون المتوسط",IF(O4>=30%,"ضعيف","دون الضعيف جداً")))))))) -> ضعيف | S4: ممتاز | T4: ≥ 90 | U4: A+ | V4: =COUNTIF(Q4:Q30,"ممتاز") -> 0 | W4: =(V4/$V$12) -> 0 | X4: =SUM(W4:W8) -> 0.48
A5: 2 | B5: احمد مبارك خلفان احمد الخلفان | C5: 2.5 | D5: 4 | E5: 2.5 | F5: 4 | H5: =IF(AND(C5="",D5="",E5="",F5="",G5=""),"غ",$H$3*SUM(C5:G5)/SUM($C$3:$G$3)) -> 32.5 | I5: 15 | J5: 12 | K5: 6 | L5: =IF(AND(C5="",D5="",E5="",F5="",G5="",I5="",J5="",K5=""),"غ",SUM(H5:K5)) -> 65.5 | M5: 66 | N5: =IF(M5="","غ",IF(L5="غ",M5*0.2,SUM(L5*2.5/$L$3,M5*0.2))) -> 14.8375 | O5: =IF(N5="غ","غ",N5*100/$N$3/100) -> 0.6594444444 | P5: =IF(AND(O5="غ"),"غ",RANK(O5,$O$4:$O$30)+COUNTIF(O$4:O5,O5)-1) -> 2 | Q5: =IF(O5="غ","غ",IF(O5>=90%,"ممتاز",IF(O5>=80%,"جيد جداً",IF(O5>=70%,"جيد",IF(O5>=60%,"فوق المتوسط",IF(O5>=50%,"متوسط",IF(O5>=40%,"دون المتوسط",IF(O5>=30%,"ضعيف","دون الضعيف جداً")))))))) -> فوق المتوسط | S5: جيد جداً | T5: ≥ 80 | U5: A | V5: =COUNTIF(Q4:Q30,"جيد جداً") -> 0 | W5: 0
A6: 3 | B6: احمد مبارك صقر عبدالكريم الجاسم | C6: 2.5 | D6: 1 | E6: 2.5 | F6: 1 | H6: 17.5 | I6: 5 | J6: 5 | K6: 3 | L6: 30.5 | M6: 40 | N6: 8.7625 | O6: 0.3894444444 | P6: =IF(AND(O6="غ"),"غ",RANK(O6,$O$4:$O$30)+COUNTIF(O$4:O6,O6)-1) -> 21 | Q6: ضعيف | S6: جيد | T6: ≥ 70 | U6: B+ | V6: =COUNTIF(Q4:Q30,"جيد") -> 0 | W6: 0
A7: 4 | B7: حمد سعيد سعيد مبارك العبدالله | D7: 4 | F7: 4 | H7: 20 | I7: 20 | J7: 10 | K7: 7 | L7: 57 | M7: 70 | N7: 15.425 | O7: 0.6855555556 | P7: =IF(AND(O7="غ"),"غ",RANK(O7,$O$4:$O$30)+COUNTIF(O$4:O7,O7)-1) -> 1 | Q7: فوق المتوسط | S7: فوق المتوسط | T7: ≥ 60 | U7: B | V7: =COUNTIF(Q4:Q30,"فوق المتوسط") -> 4 | W7: 0.16
A8: 5 | B8: حمد عبدالله سعد الزمامى الدوسرى | C8: 1 | E8: 1 | H8: 5 | I8: 5 | J8: 5 | K8: 3 | L8: 18 | M8: 54 | N8: 11.25 | O8: 0.5 | P8: =IF(AND(O8="غ"),"غ",RANK(O8,$O$4:$O$30)+COUNTIF(O$4:O8,O8)-1) -> 12 | Q8: متوسط | S8: متوسط | T8: ≥ 50 | U8: C | V8: =COUNTIF(Q4:Q30,"متوسط") -> 8 | W8: 0.32
A9: 6 | B9: راشد عبدالرحمن يوسف احمد السليطى | C9: 1 | D9: 4 | E9: 1 | F9: 4 | H9: 25 | I9: 9 | J9: 9 | K9: 6 | L9: 49 | M9: 54 | N9: 12.025 | O9: 0.5344444444 | P9: =IF(AND(O9="غ"),"غ",RANK(O9,$O$4:$O$30)+COUNTIF(O$4:O9,O9)-1) -> 7 | Q9: متوسط | S9: دون المتوسط | T9: ≥ 40 | U9: D | V9: =COUNTIF(Q4:Q30,"دون المتوسط") -> 7 | W9: 0.28 | X9: =SUM(W9:W11) -> 0.52
A10: 7 | B10: راشد محمد على احمد العبيدلى | C10: 1.5 | D10: 2 | E10: 1.5 | F10: 2 | H10: 17.5 | I10: 20 | J10: 10 | K10: 7 | L10: 54.5 | M10: 38 | N10: 8.9625 | O10: 0.3983333333 | P10: =IF(AND(O10="غ"),"غ",RANK(O10,$O$4:$O$30)+COUNTIF(O$4:O10,O10)-1) -> 20 | Q10: ضعيف | S10: ضعيف | T10: ≥ 30 | U10: E | V10: =COUNTIF(Q4:Q30,"ضعيف") -> 5 | W10: 0.2
A11: 8 | B11: سالم احمد سالم مبارك الهتمى | C11: 0 | D11: 1 | E11: 0 | F11: 1 | H11: 5 | I11: 5 | J11: 5 | K11: 3 | L11: 18 | M11: 38 | N11: 8.05 | O11: 0.3577777778 | P11: =IF(AND(O11="غ"),"غ",RANK(O11,$O$4:$O$30)+COUNTIF(O$4:O11,O11)-1) -> 23 | Q11: ضعيف | S11: دون الضعيف جداً | T11: < 30 | U11: F | V11: =COUNTIF(Q4:Q30,"دون الضعيف جداً") -> 1 | W11: 0.04
A12: 9 | B12: سالم محمد عبدالرحمن عبدالله الدسم | C12: 1.5 | D12: 2 | E12: 1.5 | F12: 2 | H12: 17.5 | I12: 22 | J12: 12 | K12: 8 | L12: 59.5 | M12: 56 | N12: 12.6875 | O12: 0.5638888889 | P12: =IF(AND(O12="غ"),"غ",RANK(O12,$O$4:$O$30)+COUNTIF(O$4:O12,O12)-1) -> 5 | Q12: متوسط | S12: عدد الطلاب الذي تم اختبارهم | V12: =SUM(V4:V11) -> 25 | W12: =V12/SUM(V12:V13) -> 1
A13: 10 | B13: سعد همام سعد همام العبدالله | C13: 1 | D13: 2 | E13: 1 | F13: 2 | H13: 15 | I13: 15 | J13: 10 | K13: 4 | L13: 44 | M13: 64 | N13: 13.9 | O13: 0.6177777778 | P13: =IF(AND(O13="غ"),"غ",RANK(O13,$O$4:$O$30)+COUNTIF(O$4:O13,O13)-1) -> 4 | Q13: فوق المتوسط | S13: عدد الطلاب الغائبين | V13: =COUNTA(B4:B30)-V12 -> 0 | W13: =V13/SUM(V12:V13) -> 0
A14: 11 | B14: سعود حسين جمال محمد الجابر | C14: 1.5 | D14: 3 | E14: 1.5 | F14: 3 | H14: 22.5 | I14: 16 | J14: 9 | K14: 6 | L14: 53.5 | M14: 50 | N14: 11.3375 | O14: 0.5038888889 | P14: =IF(AND(O14="غ"),"غ",RANK(O14,$O$4:$O$30)+COUNTIF(O$4:O14,O14)-1) -> 11 | Q14: متوسط
A15: 12 | B15: سعود يوسف عبدالعزيز دراج الدوسرى | C15: 0 | E15: 0 | H15: 0 | I15: 10 | J15: 8 | K15: 4 | L15: 22 | M15: 28 | N15: 6.15 | O15: 0.2733333333 | P15: =IF(AND(O15="غ"),"غ",RANK(O15,$O$4:$O$30)+COUNTIF(O$4:O15,O15)-1) -> 25 | Q15: دون الضعيف جداً | S15: الطلاب | T15: العدد | U15: النسبة
A16: 13 | B16: سيف عبدالعزيز محمد راشد السميح | H16: غ | I16: 5 | J16: 4 | K16: 2 | L16: 11 | M16: 44 | N16: 9.075 | O16: 0.4033333333 | P16: =IF(AND(O16="غ"),"غ",RANK(O16,$O$4:$O$30)+COUNTIF(O$4:O16,O16)-1) -> 19 | Q16: دون المتوسط | S16: الناجحين | T16: =SUM(V4:V8) -> 12 | U16: =X4 -> 0.48
A17: 14 | B17: عبدالرحمن احمد على هاشم الساده | C17: 2.5 | D17: 3 | E17: 2.5 | F17: 3 | H17: 27.5 | I17: 5 | J17: 5 | K17: 4 | L17: 41.5 | M17: 52 | N17: 11.4375 | O17: 0.5083333333 | P17: =IF(AND(O17="غ"),"غ",RANK(O17,$O$4:$O$30)+COUNTIF(O$4:O17,O17)-1) -> 10 | Q17: متوسط | S17: الراسبين | T17: =SUM(V9:V11) -> 13 | U17: =X9 -> 0.52
A18: 15 | B18: عبدالرحمن فهد محمد الفهد النعيمى | C18: 1 | D18: 2 | E18: 1 | F18: 2 | H18: 15 | I18: 6 | J18: 4 | K18: 4 | L18: 29 | M18: 56 | N18: 11.925 | O18: 0.53 | P18: =IF(AND(O18="غ"),"غ",RANK(O18,$O$4:$O$30)+COUNTIF(O$4:O18,O18)-1) -> 8 | Q18: متوسط | S18: المجموع | T18: =SUM(T16:T17) -> 25 | U18: =SUM(U16:U17) -> 1
A19: 16 | B19: عبدالعزيز محسن | C19: 1.5 | D19: 2 | E19: 1.5 | F19: 2 | H19: 17.5 | I19: 23 | J19: 12 | K19: 9 | L19: 61.5 | M19: 62 | N19: 13.9375 | O19: 0.6194444444 | P19: =IF(AND(O19="غ"),"غ",RANK(O19,$O$4:$O$30)+COUNTIF(O$4:O19,O19)-1) -> 3 | Q19: فوق المتوسط
A20: 17 | B20: عبدالعزيز على محمد ال الشيخ الكوارى | C20: 0 | D20: 1 | E20: 0 | F20: 1 | H20: 5 | I20: 19 | J20: 12 | K20: 9 | L20: 45 | M20: 42 | N20: 9.525 | O20: 0.4233333333 | P20: =IF(AND(O20="غ"),"غ",RANK(O20,$O$4:$O$30)+COUNTIF(O$4:O20,O20)-1) -> 17 | Q20: دون المتوسط | S20: التحصيل الأكاديمي | U20: =AVERAGE(M4:M30)/M$3 -> 0.4888
A21: 18 | B21: عبدالله احمد عبدالله حمد عبدالله | C21: 1.5 | D21: 0 | E21: 1.5 | F21: 0 | H21: 7.5 | I21: 16 | J21: 11 | K21: 4 | L21: 38.5 | M21: 46 | N21: 10.1625 | O21: 0.4516666667 | P21: =IF(AND(O21="غ"),"غ",RANK(O21,$O$4:$O$30)+COUNTIF(O$4:O21,O21)-1) -> 15 | Q21: دون المتوسط
A22: 19 | B22: عبدالله عبدالوهاب عبدالله عبدالوهاب الشيب | C22: 3 | D22: 4 | E22: 3 | F22: 4 | H22: 35 | I22: 18 | J22: 11 | K22: 3 | L22: 67 | M22: 54 | N22: 12.475 | O22: 0.5544444444 | P22: =IF(AND(O22="غ"),"غ",RANK(O22,$O$4:$O$30)+COUNTIF(O$4:O22,O22)-1) -> 6 | Q22: متوسط
A23: 20 | B23: عمر مبارك عمر الحمد المناعى | C23: 1.5 | E23: 1.5 | H23: 7.5 | I23: 10 | J23: 9 | K23: 4 | L23: 30.5 | M23: 40 | N23: 8.7625 | O23: 0.3894444444 | P23: =IF(AND(O23="غ"),"غ",RANK(O23,$O$4:$O$30)+COUNTIF(O$4:O23,O23)-1) -> 22 | Q23: ضعيف
A24: 21 | B24: محبوب عبدالله محبوب مفتاح الغانم | C24: 0 | D24: 3 | E24: 0 | F24: 3 | H24: 15 | I24: 4 | J24: 3 | K24: 3 | L24: 25 | M24: 44 | N24: 9.425 | O24: 0.4188888889 | P24: =IF(AND(O24="غ"),"غ",RANK(O24,$O$4:$O$30)+COUNTIF(O$4:O24,O24)-1) -> 18 | Q24: دون المتوسط | S24: الفرع | T24: الناجحين | U24: الراسبين | V24: التحصيل
A25: 22 | B25: محمد غانم على حسن النعيمى | C25: 1 | D25: 1 | E25: 1 | F25: 1 | H25: 10 | I25: 9 | J25: 8 | K25: 6 | L25: 33 | M25: 52 | N25: 11.225 | O25: 0.4988888889 | P25: =IF(AND(O25="غ"),"غ",RANK(O25,$O$4:$O$30)+COUNTIF(O$4:O25,O25)-1) -> 13 | Q25: دون المتوسط | S25: =H2 -> Quizzes | T25: =COUNTIF(H4:H30,">="&H$3/2)/COUNT(H4:H30) -> 0.25 | U25: =IF(T25="","",100%-T25) -> 0.75 | V25: =IF($U25="","",AVERAGE(H4:H30)/H$3) -> 0.3395833333
A26: 23 | B26: ناصر محمد سالم فرج السويدى | D26: 4 | F26: 4 | H26: 20 | I26: 5 | J26: 4 | K26: 2 | L26: 31 | M26: 44 | N26: 9.575 | O26: 0.4255555556 | P26: =IF(AND(O26="غ"),"غ",RANK(O26,$O$4:$O$30)+COUNTIF(O$4:O26,O26)-1) -> 16 | Q26: دون المتوسط | S26: =I2 -> الواجب | T26: =COUNTIF(I4:I30,">="&I$3/2)/COUNT(I4:I30) -> 0.52 | U26: 0.48 | V26: =IF($U26="","",AVERAGE(I4:I30)/I$3) -> 0.5008
A27: 24 | B27: نايف حسين جمال محمد الجابر | C27: 1.5 | D27: 4 | E27: 1.5 | F27: 4 | H27: 27.5 | I27: 18 | J27: 12 | K27: 6 | L27: 63.5 | M27: 50 | N27: 11.5875 | O27: 0.515 | P27: =IF(AND(O27="غ"),"غ",RANK(O27,$O$4:$O$30)+COUNTIF(O$4:O27,O27)-1) -> 9 | Q27: متوسط | S27: =J2 -> المشاركة | T27: =COUNTIF(J4:J30,">="&J$3/2)/COUNT(J4:J30) -> 0.68 | U27: 0.32 | V27: =IF($U27="","",AVERAGE(J4:J30)/J$3) -> 0.5626666667
A28: 25 | B28: يوسف محمد ناصر راشد البدر | C28: 2.5 | D28: 4 | E28: 2.5 | F28: 4 | H28: 32.5 | I28: 18 | J28: 11 | K28: 7 | L28: 68.5 | M28: 44 | N28: 10.5125 | O28: 0.4672222222 | P28: =IF(AND(O28="غ"),"غ",RANK(O28,$O$4:$O$30)+COUNTIF(O$4:O28,O28)-1) -> 14 | Q28: دون المتوسط | S28: =K2 -> المشروع | T28: =COUNTIF(K4:K30,">="&K$3/2)/COUNT(K4:K30) -> 0.48 | U28: 0.52 | V28: =IF($U28="","",AVERAGE(K4:K30)/K$3) -> 0.5
S29: =M2 -> Exam | T29: =COUNTIF(M4:M30,">="&M$3/2)/COUNT(M4:M30) -> 0.52 | U29: 0.48 | V29: =IF($U29="","",AVERAGE(M4:M30)/M$3) -> 0.4888

Sheet Grade9
A1: عدد الطلاب الغائبين | B1: =SUM('9-1'!V13,'9-2'!V13,'9-3'!V13,'9-4'!V13,'9-5'!V13,'9-6'!V13,'9-7'!V13,'9-8'!V13,'9-9'!V13) -> 7
B3: تحليل نتائج الصف التاسع Grade-9
B4: التقدير | C4: المجال | E4: عدد الطلاب | F4: النسبة
B5: ممتاز | C5: ≥ 90 | D5: A+ | E5: =SUM('9-1'!V4,'9-2'!V4,'9-3'!V4,'9-4'!V4,'9-5'!V4,'9-6'!V4,'9-7'!V4,'9-8'!V4,'9-9'!V4) -> 0 | F5: =(E5/$E$13) -> 0 | G5: =SUM(F5:F9) -> 0.8355555556
B6: جيد جداً | C6: ≥ 80 | D6: A | E6: =SUM('9-1'!V5,'9-2'!V5,'9-3'!V5,'9-4'!V5,'9-5'!V5,'9-6'!V5,'9-7'!V5,'9-8'!V5,'9-9'!V5) -> 24 | F6: 0.1066666667
B7: جيد | C7: ≥ 70 | D7: B+ | E7: =SUM('9-1'!V6,'9-2'!V6,'9-3'!V6,'9-4'!V6,'9-5'!V6,'9-6'!V6,'9-7'!V6,'9-8'!V6,'9-9'!V6) -> 39 | F7: 0.1733333333
B8: فوق المتوسط | C8: ≥ 60 | D8: B | E8: =SUM('9-1'!V7,'9-2'!V7,'9-3'!V7,'9-4'!V7,'9-5'!V7,'9-6'!V7,'9-7'!V7,'9-8'!V7,'9-9'!V7) -> 52 | F8: 0.2311111111
B9: متوسط | C9: ≥ 50 | D9: C | E9: =SUM('9-1'!V8,'9-2'!V8,'9-3'!V8,'9-4'!V8,'9-5'!V8,'9-6'!V8,'9-7'!V8,'9-8'!V8,'9-9'!V8) -> 73 | F9: 0.3244444444
B10: دون المتوسط | C10: ≥ 40 | D10: D | E10: =SUM('9-1'!V9,'9-2'!V9,'9-3'!V9,'9-4'!V9,'9-5'!V9,'9-6'!V9,'9-7'!V9,'9-8'!V9,'9-9'!V9) -> 31 | F10: 0.1377777778 | G10: =SUM(F10:F12) -> 0.1644444444
B11: ضعيف | C11: ≥ 30 | D11: E | E11: =SUM('9-1'!V10,'9-2'!V10,'9-3'!V10,'9-4'!V10,'9-5'!V10,'9-6'!V10,'9-7'!V10,'9-8'!V10,'9-9'!V10) -> 6 | F11: 0.02666666667
B12: دون الضعيف جداً | C12: < 30 | D12: F | E12: =SUM('9-1'!V11,'9-2'!V11,'9-3'!V11,'9-4'!V11,'9-5'!V11,'9-6'!V11,'9-7'!V11,'9-8'!V11,'9-9'!V11) -> 0 | F12: 0
B13: عدد طلاب الصف التاسع الذي تم اختبارهم | E13: =SUM(E5:E12) -> 225 | F13: =E13/SUM(E13,B1) -> 0.9698275862
C15: الطلاب | D15: العدد | E15: النسبة
C16: الناجحين | D16: =SUM(E5:E9) -> 188 | E16: =G5 -> 0.8355555556
C17: الراسبين | D17: =SUM(E10:E12) -> 37 | E17: =G10 -> 0.1644444444
C18: المجموع | D18: =SUM(D16:D17) -> 225 | E18: =SUM(E16:E17) -> 1
C19: نسبة التحصيل | E19: =AVERAGE('9-1'!U20,'9-2'!U20,'9-3'!U20,'9-4'!U20,'9-5'!U20,'9-6'!U20,'9-7'!U20,'9-8'!U20) -> 0.6163824009
B21: الصف / النسبة | C21: الناجحين | D21: الراسبين | E21: التحصيل
B22: 9-1 | C22: ='9-1'!$U$16 -> 0.6363636364 | D22: ='9-1'!$U$17 -> 0.3636363636 | E22: ='9-1'!$U$20 -> 0.5568181818
B23: 9-2 | C23: ='9-2'!$U$16 -> 0.88 | D23: ='9-2'!$U$17 -> 0.12 | E23: ='9-2'!$U$20 -> 0.6216
B24: 9-3 | C24: ='9-3'!$U$16 -> 1 | D24: ='9-3'!$U$17 -> 0 | E24: ='9-3'!$U$20 -> 0.8196153846
B25: 9-4 | C25: ='9-4'!$U$16 -> 0.84 | D25: ='9-4'!$U$17 -> 0.16 | E25: ='9-4'!$U$20 -> 0.6232
B26: 9-5 | C26: ='9-5'!$U$16 -> 0.8518518519 | D26: ='9-5'!$U$17 -> 0.1481481481 | E26: ='9-5'!$U$20 -> 0.6066666667
B27: 9-6 | C27: ='9-6'!$U$16 -> 0.76 | D27: ='9-6'!$U$17 -> 0.24 | E27: ='9-6'!$U$20 -> 0.5488
B28: 9-7 | C28: ='9-7'!$U$16 -> 0.8076923077 | D28: ='9-7'!$U$17 -> 0.1923076923 | E28: ='9-7'!$U$20 -> 0.5576923077
B29: 9-8 | C29: ='9-8'!$U$16 -> 0.875 | D29: ='9-8'!$U$17 -> 0.125 | E29: ='9-8'!$U$20 -> 0.5966666667
B30: 9-9 | C30: ='9-9'!$U$16 -> 0.84 | D30: ='9-9'!$U$17 -> 0.16 | E30: ='9-9'!$U$20 -> 0.5568
A32: تحليل نتائج فرع | C32: ='9-1'!H2 -> Quizzes
B34: الصف | C34: الناجحين | D34: الراسبين | E34: التحصيل
B35: 9-1 | C35: ='9-1'!$T$25 -> 0.3684210526 | D35: ='9-1'!$U$25 -> 0.6315789474 | E35: ='9-1'!$V$25 -> 0.4447368421
B36: 9-2 | C36: ='9-2'!$T$25 -> 0.347826087 | D36: ='9-2'!$U$25 -> 0.652173913 | E36: ='9-2'!$V$25 -> 0.452173913
B37: 9-3 | C37: ='9-3'!$T$25 -> 1 | D37: ='9-3'!$U$25 -> 0 | E37: ='9-3'!$V$25 -> 0.89
B38: 9-4 | C38: ='9-4'!$T$25 -> 0.8 | D38: ='9-4'!$U$25 -> 0.2 | E38: ='9-4'!$V$25 -> 0.576
B39: 9-5 | C39: ='9-5'!$T$25 -> 0.6666666667 | D39: ='9-5'!$U$25 -> 0.3333333333 | E39: ='9-5'!$V$25 -> 0.5555555556
B40: 9-6 | C40: ='9-6'!$T$25 -> 0.56 | D40: ='9-6'!$U$25 -> 0.44 | E40: ='9-6'!$V$25 -> 0.54
B41: 9-7 | C41: ='9-7'!$T$25 -> 0.5 | D41: ='9-7'!$U$25 -> 0.5 | E41: ='9-7'!$V$25 -> 0.4576923077
B42: 9-8 | C42: ='9-8'!$T$25 -> 0.68 | D42: ='9-8'!$U$25 -> 0.32 | E42: ='9-8'!$V$25 -> 0.572
B43: 9-9 | C43: ='9-9'!$T$25 -> 0.7692307692 | D43: ='9-9'!$U$25 -> 0.2307692308 | E43: ='9-9'!$V$25 -> 0.5692307692
B44: المتوسط | C44: =AVERAGE(C35:C42) -> 0.6153642258 | D44: =AVERAGE(D35:D42) -> 0.3846357742 | E44: =AVERAGE(E35:E42) -> 0.5610198273
A47: تحليل نتائج فرع | C47: ='9-1'!I2 -> الواجب
B49: الصف | C49: الناجحين | D49: الراسبين | E49: التحصيل
B50: 9-1 | C50: ='9-1'!$T$26 -> 1 | D50: ='9-1'!$U$26 -> 0 | E50: ='9-1'!$V$26 -> 0.7783333333
B51: 9-2 | C51: ='9-2'!$T$26 -> 1 | D51: ='9-2'!$U$26 -> 0 | E51: ='9-2'!$V$26 -> 0.776
B52: 9-3 | C52: ='9-3'!$T$26 -> 1 | D52: ='9-3'!$U$26 -> 0 | E52: ='9-3'!$V$26 -> 0.9046153846
B53: 9-4 | C53: ='9-4'!$T$26 -> 1 | D53: ='9-4'!$U$26 -> 0 | E53: ='9-4'!$V$26 -> 0.9008
B54: 9-5 | C54: ='9-5'!$T$26 -> 1 | D54: ='9-5'!$U$26 -> 0 | E54: ='9-5'!$V$26 -> 0.9392592593
B55: 9-6 | C55: ='9-6'!$T$26 -> 1 | D55: ='9-6'!$U$26 -> 0 | E55: ='9-6'!$V$26 -> 0.9153846154
B56: 9-7 | C56: ='9-7'!$T$26 -> 0.9615384615 | D56: ='9-7'!$U$26 -> 0.03846153846 | E56: ='9-7'!$V$26 -> 0.7215384615
B57: 9-8 | C57: ='9-8'!$T$26 -> 1 | D57: ='9-8'!$U$26 -> 0 | E57: ='9-8'!$V$26 -> 0.9104
B58: 9-9 | C58: ='9-9'!$T$26 -> 1 | D58: ='9-9'!$U$26 -> 0 | E58: ='9-9'!$V$26 -> 0.8723076923
B59: المتوسط | C59: =AVERAGE(C50:C57) -> 0.9951923077 | D59: =AVERAGE(D50:D57) -> 0.004807692308 | E59: =AVERAGE(E50:E57) -> 0.8557913818
A60: تحليل نتائج فرع | C60: ='9-1'!J2 -> المشاركة
B62: الصف | C62: الناجحين | D62: الراسبين | E62: التحصيل
B63: 9-1 | C63: ='9-1'!$T$27 -> 1 | D63: ='9-1'!$U$27 -> 0 | E63: ='9-1'!$V$27 -> 0.7
B64: 9-2 | C64: ='9-2'!$T$27 -> 1 | D64: ='9-2'!$U$27 -> 0 | E64: ='9-2'!$V$27 -> 0.6853333333
B65: 9-3 | C65: ='9-3'!$T$27 -> 1 | D65: ='9-3'!$U$27 -> 0 | E65: ='9-3'!$V$27 -> 0.8769230769
B66: 9-4 | C66: ='9-4'!$T$27 -> 1 | D66: ='9-4'!$U$27 -> 0 | E66: ='9-4'!$V$27 -> 0.864
B67: 9-5 | C67: ='9-5'!$T$27 -> 1 | D67: ='9-5'!$U$27 -> 0 | E67: ='9-5'!$V$27 -> 0.9061728395
B68: 9-6 | C68: ='9-6'!$T$27 -> 1 | D68: ='9-6'!$U$27 -> 0 | E68: ='9-6'!$V$27 -> 0.8512820513
B69: 9-7 | C69: ='9-7'!$T$27 -> 0.6153846154 | D69: ='9-7'!$U$27 -> 0.3846153846 | E69: ='9-7'!$V$27 -> 0.558974359
B70: 9-8 | C70: ='9-8'!$T$27 -> 1 | D70: ='9-8'!$U$27 -> 0 | E70: ='9-8'!$V$27 -> 0.8666666667
B71: 9-9 | C71: ='9-9'!$T$27 -> 1 | D71: ='9-9'!$U$27 -> 0 | E71: ='9-9'!$V$27 -> 0.8384615385
B72: المتوسط | C72: =AVERAGE(C63:C70) -> 0.9519230769 | D72: =AVERAGE(D63:D70) -> 0.04807692308 | E72: =AVERAGE(E63:E70) -> 0.7886690408
A75: تحليل نتائج فرع | C75: ='9-1'!K2 -> المشروع
B77: الصف | C77: الناجحين | D77: الراسبين | E77: التحصيل
B78: 9-1 | C78: ='9-1'!$T$28 -> 1 | D78: ='9-1'!$U$28 -> 0 | E78: ='9-1'!$V$28 -> 0.8041666667
B79: 9-2 | C79: ='9-2'!$T$28 -> 1 | D79: ='9-2'!$U$28 -> 0 | E79: ='9-2'!$V$28 -> 0.756
B80: 9-3 | C80: ='9-3'!$T$28 -> 1 | D80: ='9-3'!$U$28 -> 0 | E80: ='9-3'!$V$28 -> 0.8961538462
B81: 9-4 | C81: ='9-4'!$T$28 -> 1 | D81: ='9-4'!$U$28 -> 0 | E81: ='9-4'!$V$28 -> 0.832
B82: 9-5 | C82: ='9-5'!$T$28 -> 1 | D82: ='9-5'!$U$28 -> 0 | E82: ='9-5'!$V$28 -> 0.8703703704
B83: 9-6 | C83: ='9-6'!$T$28 -> 1 | D83: ='9-6'!$U$28 -> 0 | E83: ='9-6'!$V$28 -> 0.7961538462
B84: 9-7 | C84: ='9-7'!$T$28 -> 0.9615384615 | D84: ='9-7'!$U$28 -> 0.03846153846 | E84: ='9-7'!$V$28 -> 0.6192307692
B85: 9-8 | C85: ='9-8'!$T$28 -> 1 | D85: ='9-8'!$U$28 -> 0 | E85: ='9-8'!$V$28 -> 0.816
B86: 9-9 | C86: ='9-9'!$T$28 -> 1 | D86: ='9-9'!$U$28 -> 0 | E86: ='9-9'!$V$28 -> 0.7807692308
B87: المتوسط | C87: =AVERAGE(C78:C85) -> 0.9951923077 | D87: =AVERAGE(D78:D85) -> 0.004807692308 | E87: =AVERAGE(E78:E85) -> 0.7987594373
A88: تحليل نتائج فرع | C88: ='9-1'!M2 -> Exam
B90: الصف | C90: الناجحين | D90: الراسبين | E90: التحصيل
B91: 9-1 | C91: ='9-1'!$T$29 -> 0.6818181818 | D91: ='9-1'!$U$29 -> 0.3181818182 | E91: ='9-1'!$V$29 -> 0.5568181818
B92: 9-2 | C92: ='9-2'!$T$29 -> 0.88 | D92: ='9-2'!$U$29 -> 0.12 | E92: ='9-2'!$V$29 -> 0.6216
B93: 9-3 | C93: ='9-3'!$T$29 -> 1 | D93: ='9-3'!$U$29 -> 0 | E93: ='9-3'!$V$29 -> 0.8196153846
B94: 9-4 | C94: ='9-4'!$T$29 -> 0.88 | D94: ='9-4'!$U$29 -> 0.12 | E94: ='9-4'!$V$29 -> 0.6232
B95: 9-5 | C95: ='9-5'!$T$29 -> 0.8518518519 | D95: ='9-5'!$U$29 -> 0.1481481481 | E95: ='9-5'!$V$29 -> 0.6066666667
B96: 9-6 | C96: ='9-6'!$T$29 -> 0.76 | D96: ='9-6'!$U$29 -> 0.24 | E96: ='9-6'!$V$29 -> 0.5488
B97: 9-7 | C97: ='9-7'!$T$29 -> 0.8461538462 | D97: ='9-7'!$U$29 -> 0.1538461538 | E97: ='9-7'!$V$29 -> 0.5576923077
B98: 9-8 | C98: ='9-8'!$T$29 -> 0.875 | D98: ='9-8'!$U$29 -> 0.125 | E98: ='9-8'!$V$29 -> 0.5966666667
B99: 9-9 | C99: ='9-9'!$T$29 -> 0.8 | D99: ='9-9'!$U$29 -> 0.2 | E99: ='9-9'!$V$29 -> 0.5568
B100: المتوسط | C100: =AVERAGE(C91:C98) -> 0.846852985 | D100: =AVERAGE(D91:D98) -> 0.153147015 | E100: 0.6163824009
A106: مقارنة تحليل نتائج | C106: جميع الفروع
A108: الفرع | C108: الناجحين | D108: الراسبين | E108: التحصيل
A109: =C32 -> Quizzes | C109: =C44 -> 0.6153642258 | D109: =D44 -> 0.3846357742 | E109: =E44 -> 0.5610198273
A110: =C47 -> الواجب | C110: =C59 -> 0.9951923077 | D110: =D59 -> 0.004807692308 | E110: =E59 -> 0.8557913818
A111: =C60 -> المشاركة | C111: =C72 -> 0.9519230769 | D111: =D72 -> 0.04807692308 | E111: =E72 -> 0.7886690408
A112: =C75 -> المشروع | C112: =C87 -> 0.9951923077 | D112: =D87 -> 0.004807692308 | E112: 0.7987594373
A113: =C88 -> Exam | C113: =C100 -> 0.846852985 | D113: =D100 -> 0.153147015 | E113: =E100 -> 0.6163824009

Sheet 9-1
A1: Grade (9-1) كشف درجات الطلاب
A2: م | B2: اسم الطالب | C2: Quiz1 | D2: Quiz2 | E2: Quiz3 | F2: Quiz4 | G2: Quiz5 | H2: Quizzes | I2: الواجب | J2: المشاركة | K2: المشروع | L2: Total | M2: Exam | N2: Final | O2: Percent | P2: Rank | Q2: التقدير | S2: تحليل النتائج على حسب التقدير
C3: 5 | D3: 5 | E3: 5 | F3: 5 | G3: درجة5 | H3: 50 | I3: 25 | J3: 15 | K3: 10 | L3: 100 | M3: 100 | N3: 22.5 | O3: (%) | P3: الترتيب | S3: التقدير | T3: المجال | V3: عدد الطلاب | W3: النسبة
A4: 1 | B4: احمد محمد احمد البوعفره الكوارى | C4: 3 | D4: 3 | E4: 3 | F4: 3 | H4: =IF(AND(C4="",D4="",E4="",F4="",G4=""),"غ",$H$3*SUM(C4:G4)/SUM($C$3:$G$3)) -> 30 | I4: 20 | J4: 10 | K4: 8 | L4: =IF(AND(C4="",D4="",E4="",F4="",G4="",I4="",J4="",K4=""),"غ",SUM(H4:K4)) -> 68 | M4: 46 | N4: =IF(M4="","غ",IF(L4="غ",M4*0.2,SUM(L4*2.5/$L$3,M4*0.2))) -> 10.9 | O4: =IF(N4="غ","غ",N4*100/$N$3/100) -> 0.4844444444 | P4: =IF(AND(O4="غ"),"غ",RANK(O4,$O$4:$O$30)+COUNTIF(O$4:O4,O4)-1) -> 16 | Q4: =IF(O4="غ","غ",IF(O4>=90%,"ممتاز",IF(O4>=80%,"جيد جداً",IF(O4>=70%,"جيد",IF(O4>=60%,"فوق المتوسط",IF(O4>=50%,"متوسط",IF(O4>=40%,"دون المتوسط",IF(O4>=30%,"ضعيف","دون الضعيف جداً")))))))) -> دون المتوسط | S4: ممتاز | T4: ≥ 90 | U4: A+ | V4: =COUNTIF(Q4:Q30,"ممتاز") -> 0 | W4: =(V4/$V$12) -> 0 | X4: =SUM(W4:W8) -> 0.6363636364
A5: 2 | B5: تركي عبد الهادي الماجد | C5: 2.5 | E5: 2.5 | F5: 3 | H5: =IF(AND(C5="",D5="",E5="",F5="",G5=""),"غ",$H$3*SUM(C5:G5)/SUM($C$3:$G$3)) -> 20 | I5: 21 | J5: 11 | K5: 8 | L5: =IF(AND(C5="",D5="",E5="",F5="",G5="",I5="",J5="",K5=""),"غ",SUM(H5:K5)) -> 60 | M5: 60 | N5: =IF(M5="","غ",IF(L5="غ",M5*0.2,SUM(L5*2.5/$L$3,M5*0.2))) -> 13.5 | O5: =IF(N5="غ","غ",N5*100/$N$3/100) -> 0.6 | P5: =IF(AND(O5="غ"),"غ",RANK(O5,$O$4:$O$30)+COUNTIF(O$4:O5,O5)-1) -> 8 | Q5: =IF(O5="غ","غ",IF(O5>=90%,"ممتاز",IF(O5>=80%,"جيد جداً",IF(O5>=70%,"جيد",IF(O5>=60%,"فوق المتوسط",IF(O5>=50%,"متوسط",IF(O5>=40%,"دون المتوسط",IF(O5>=30%,"ضعيف","دون الضعيف جداً")))))))) -> فوق المتوسط | S5: جيد جداً | T5: ≥ 80 | U5: A | V5: =COUNTIF(Q4:Q30,"جيد جداً") -> 0 | W5: 0
A6: 3 | B6: جمعه حمد علي جمعه الكعبى | C6: 1.5 | E6: 1.5 | F6: 3 | H6: 15 | I6: 21 | J6: 11 | K6: 9 | L6: 56 | M6: 68 | N6: 15 | O6: 0.6666666667 | P6: =IF(AND(O6="غ"),"غ",RANK(O6,$O$4:$O$30)+COUNTIF(O$4:O6,O6)-1) -> 4 | Q6: فوق المتوسط | S6: جيد | T6: ≥ 70 | U6: B+ | V6: =COUNTIF(Q4:Q30,"جيد") -> 2 | W6: 0.09090909091
A7: 4 | B7: حسن ناصر حسن نصرالله عبدالقادر | C7: 3.5 | D7: 3.5 | E7: 3.5 | F7: 3.5 | H7: 35 | I7: 22 | J7: 12 | K7: 9 | L7: 78 | M7: 70 | N7: 15.95 | O7: 0.7088888889 | P7: =IF(AND(O7="غ"),"غ",RANK(O7,$O$4:$O$30)+COUNTIF(O$4:O7,O7)-1) -> 2 | Q7: جيد | S7: فوق المتوسط | T7: ≥ 60 | U7: B | V7: =COUNTIF(Q4:Q30,"فوق المتوسط") -> 6 | W7: 0.2727272727
A8: 5 | B8: حسن يوسف علي ميرزا جوهر | C8: 3.5 | D8: 4 | E8: 3.5 | F8: 4 | H8: 37.5 | I8: 20 | J8: 11 | K8: 9 | L8: 77.5 | M8: 56 | N8: 13.1375 | O8: 0.5838888889 | P8: =IF(AND(O8="غ"),"غ",RANK(O8,$O$4:$O$30)+COUNTIF(O$4:O8,O8)-1) -> 9 | Q8: متوسط | S8: متوسط | T8: ≥ 50 | U8: C | V8: =COUNTIF(Q4:Q30,"متوسط") -> 6 | W8: 0.2727272727
A9: 6 | B9: حسين علي حسين محمد هيثم | H9: غ | I9: 19 | J9: 11 | K9: 7 | L9: 37 | M9: 52 | N9: 11.325 | O9: 0.5033333333 | P9: =IF(AND(O9="غ"),"غ",RANK(O9,$O$4:$O$30)+COUNTIF(O$4:O9,O9)-1) -> 14 | Q9: متوسط | S9: دون المتوسط | T9: ≥ 40 | U9: D | V9: =COUNTIF(Q4:Q30,"دون المتوسط") -> 8 | W9: 0.3636363636 | X9: =SUM(W9:W11) -> 0.3636363636
A10: 7 | B10: حمد راشد حمد غزوان الكعبى | H10: غ | I10: 18 | J10: 10 | K10: 7 | L10: 35 | N10: غ | O10: غ | P10: =IF(AND(O10="غ"),"غ",RANK(O10,$O$4:$O$30)+COUNTIF(O$4:O10,O10)-1) -> غ | Q10: غ | S10: ضعيف | T10: ≥ 30 | U10: E | V10: =COUNTIF(Q4:Q30,"ضعيف") -> 0 | W10: 0
A11: 8 | B11: حمد شاهين سالم ال مرشد الكوارى | D11: 4 | F11: 4 | H11: 20 | I11: 20 | J11: 11 | K11: 9 | L11: 60 | M11: 44 | N11: 10.3 | O11: 0.4577777778 | P11: =IF(AND(O11="غ"),"غ",RANK(O11,$O$4:$O$30)+COUNTIF(O$4:O11,O11)-1) -> 19 | Q11: دون المتوسط | S11: دون الضعيف جداً | T11: < 30 | U11: F | V11: =COUNTIF(Q4:Q30,"دون الضعيف جداً") -> 0 | W11: 0
A12: 9 | B12: حمد عيسى عبدالرحمن يوسف السبيعى | H12: غ | I12: 18 | J12: 8 | K12: 7 | L12: 33 | N12: غ | O12: غ | P12: =IF(AND(O12="غ"),"غ",RANK(O12,$O$4:$O$30)+COUNTIF(O$4:O12,O12)-1) -> غ | Q12: غ | S12: عدد الطلاب الذي تم اختبارهم | V12: =SUM(V4:V11) -> 22 | W12: =V12/SUM(V12:V13) -> 0.88
A13: 10 | B13: حمد ناصر ابراهيم محمد الصائغ | C13: 1.5 | D13: 3 | E13: 1.5 | F13: 3 | H13: 22.5 | I13: 20 | J13: 11 | K13: 9 | L13: 62.5 | M13: 66 | N13: 14.7625 | O13: 0.6561111111 | P13: =IF(AND(O13="غ"),"غ",RANK(O13,$O$4:$O$30)+COUNTIF(O$4:O13,O13)-1) -> 5 | Q13: فوق المتوسط | S13: عدد الطلاب الغائبين | V13: =COUNTA(B4:B30)-V12 -> 3 | W13: =V13/SUM(V12:V13) -> 0.12
A14: 11 | B14: خالد عايد عجاج الفدعانى العنزى | F14: 3 | H14: 7.5 | I14: 21 | J14: 11 | K14: 9 | L14: 48.5 | M14: 62 | N14: 13.6125 | O14: 0.605 | P14: =IF(AND(O14="غ"),"غ",RANK(O14,$O$4:$O$30)+COUNTIF(O$4:O14,O14)-1) -> 7 | Q14: فوق المتوسط
A15: 12 | B15: خالد عبدالحميد صالح الحميرى اليافعى | C15: 1.5 | D15: 4 | E15: 1.5 | F15: 4 | H15: 27.5 | I15: 21 | J15: 11 | K15: 9 | L15: 68.5 | M15: 52 | N15: 12.1125 | O15: 0.5383333333 | P15: =IF(AND(O15="غ"),"غ",RANK(O15,$O$4:$O$30)+COUNTIF(O$4:O15,O15)-1) -> 13 | Q15: متوسط | S15: الطلاب | T15: العدد | U15: النسبة
A16: 13 | B16: سعيد حمد سعيد جابر عفيفه | H16: غ | L16: غ | N16: غ | O16: غ | P16: =IF(AND(O16="غ"),"غ",RANK(O16,$O$4:$O$30)+COUNTIF(O$4:O16,O16)-1) -> غ | Q16: غ | S16: الناجحين | T16: =SUM(V4:V8) -> 14 | U16: =X4 -> 0.6363636364
A17: 14 | B17: عبدالعزيز حسن محمد هندى الكعبى | C17: 1.5 | D17: 2 | E17: 1.5 | F17: 2 | H17: 17.5 | I17: 19 | J17: 10 | K17: 8 | L17: 54.5 | M17: 44 | N17: 10.1625 | O17: 0.4516666667 | P17: =IF(AND(O17="غ"),"غ",RANK(O17,$O$4:$O$30)+COUNTIF(O$4:O17,O17)-1) -> 21 | Q17: دون المتوسط | S17: الراسبين | T17: =SUM(V9:V11) -> 8 | U17: =X9 -> 0.3636363636
A18: 15 | B18: عبدالعزيز محمد عبدالله محمد المنصورى | C18: 2.5 | D18: 2 | E18: 2.5 | F18: 2 | H18: 22.5 | I18: 16 | J18: 9 | K18: 7 | L18: 54.5 | M18: 46 | N18: 10.5625 | O18: 0.4694444444 | P18: =IF(AND(O18="غ"),"غ",RANK(O18,$O$4:$O$30)+COUNTIF(O$4:O18,O18)-1) -> 17 | Q18: دون المتوسط | S18: المجموع | T18: =SUM(T16:T17) -> 22 | U18: =SUM(U16:U17) -> 1
A19: 16 | B19: عبدالله جاسم محمد عبدالله الكعبى | D19: 4 | F19: 4 | H19: 20 | I19: 21 | J19: 12 | K19: 9 | L19: 62 | M19: 70 | N19: 15.55 | O19: 0.6911111111 | P19: =IF(AND(O19="غ"),"غ",RANK(O19,$O$4:$O$30)+COUNTIF(O$4:O19,O19)-1) -> 3 | Q19: فوق المتوسط
A20: 17 | B20: عبدالله عيسى عبدالله عيسى المسلم | D20: 2 | F20: 2 | H20: 10 | I20: 16 | J20: 9 | K20: 6 | L20: 41 | M20: 46 | N20: 10.225 | O20: 0.4544444444 | P20: =IF(AND(O20="غ"),"غ",RANK(O20,$O$4:$O$30)+COUNTIF(O$4:O20,O20)-1) -> 20 | Q20: دون المتوسط | S20: التحصيل الأكاديمي | U20: =AVERAGE(M4:M30)/M$3 -> 0.5568181818
A21: 18 | B21: عيسى علي راشد جمعه الكبيسى | C21: 4 | D21: 3 | E21: 4 | F21: 3 | H21: 35 | I21: 23 | J21: 12 | K21: 9 | L21: 79 | M21: 72 | N21: 16.375 | O21: 0.7277777778 | P21: =IF(AND(O21="غ"),"غ",RANK(O21,$O$4:$O$30)+COUNTIF(O$4:O21,O21)-1) -> 1 | Q21: جيد
A22: 19 | B22: فهد طلال فهد العرجانى العجمى | C22: 1.5 | D22: 3 | E22: 1.5 | F22: 3 | H22: 22.5 | I22: 19 | J22: 11 | K22: 8 | L22: 60.5 | M22: 56 | N22: 12.7125 | O22: 0.565 | P22: =IF(AND(O22="غ"),"غ",RANK(O22,$O$4:$O$30)+COUNTIF(O$4:O22,O22)-1) -> 11 | Q22: متوسط
A23: 20 | B23: مبارك ناصر عبدالله العطشان السليطى | H23: غ | I23: 19 | J23: 11 | K23: 8 | L23: 38 | M23: 50 | N23: 10.95 | O23: 0.4866666667 | P23: =IF(AND(O23="غ"),"غ",RANK(O23,$O$4:$O$30)+COUNTIF(O$4:O23,O23)-1) -> 15 | Q23: دون المتوسط
A24: 21 | B24: محمد هلال سالم ال مرشد الكوارى | D24: 4 | F24: 4 | H24: 20 | I24: 18 | J24: 10 | K24: 7 | L24: 55 | M24: 56 | N24: 12.575 | O24: 0.5588888889 | P24: =IF(AND(O24="غ"),"غ",RANK(O24,$O$4:$O$30)+COUNTIF(O$4:O24,O24)-1) -> 12 | Q24: متوسط | S24: الفرع | T24: الناجحين | U24: الراسبين | V24: التحصيل
A25: 22 | B25: محمد يوسف حسن جابر الحسن | D25: 1 | F25: 1 | H25: 5 | I25: 21 | J25: 11 | K25: 9 | L25: 46 | M25: 46 | N25: 10.35 | O25: 0.46 | P25: =IF(AND(O25="غ"),"غ",RANK(O25,$O$4:$O$30)+COUNTIF(O$4:O25,O25)-1) -> 18 | Q25: دون المتوسط | S25: =H2 -> Quizzes | T25: =COUNTIF(H4:H30,">="&H$3/2)/COUNT(H4:H30) -> 0.3684210526 | U25: =IF(T25="","",100%-T25) -> 0.6315789474 | V25: =IF($U25="","",AVERAGE(H4:H30)/H$3) -> 0.4447368421
A26: 23 | B26: منصور عيد الهاجري | H26: غ | I26: 21 | J26: 11 | K26: 9 | L26: 41 | M26: 60 | N26: 13.025 | O26: 0.5788888889 | P26: =IF(AND(O26="غ"),"غ",RANK(O26,$O$4:$O$30)+COUNTIF(O$4:O26,O26)-1) -> 10 | Q26: متوسط | S26: =I2 -> الواجب | T26: =COUNTIF(I4:I30,">="&I$3/2)/COUNT(I4:I30) -> 1 | U26: 0 | V26: =IF($U26="","",AVERAGE(I4:I30)/I$3) -> 0.7783333333
A27: 24 | B27: ناصر مقبل السبيعي | C27: 2 | D27: 3 | E27: 2 | F27: 3 | H27: 25 | I27: 15 | J27: 9 | K27: 6 | L27: 55 | M27: 40 | N27: 9.375 | O27: 0.4166666667 | P27: =IF(AND(O27="غ"),"غ",RANK(O27,$O$4:$O$30)+COUNTIF(O$4:O27,O27)-1) -> 22 | Q27: دون المتوسط | S27: =J2 -> المشاركة | T27: =COUNTIF(J4:J30,">="&J$3/2)/COUNT(J4:J30) -> 1 | U27: 0 | V27: =IF($U27="","",AVERAGE(J4:J30)/J$3) -> 0.7
A28: 25 | B28: هلال محمد هلال الهجن النعيمى | C28: 2 | D28: 4 | E28: 2 | F28: 4 | H28: 30 | I28: 18 | J28: 9 | K28: 7 | L28: 64 | M28: 63 | N28: 14.2 | O28: 0.6311111111 | P28: =IF(AND(O28="غ"),"غ",RANK(O28,$O$4:$O$30)+COUNTIF(O$4:O28,O28)-1) -> 6 | Q28: فوق المتوسط | S28: =K2 -> المشروع | T28: =COUNTIF(K4:K30,">="&K$3/2)/COUNT(K4:K30) -> 1 | U28: 0 | V28: =IF($U28="","",AVERAGE(K4:K30)/K$3) -> 0.8041666667
S29: =M2 -> Exam | T29: =COUNTIF(M4:M30,">="&M$3/2)/COUNT(M4:M30) -> 0.6818181818 | U29: 0.3181818182 | V29: =IF($U29="","",AVERAGE(M4:M30)/M$3) -> 0.5568181818

Sheet 9-2
A1: Grade (9-2) كشف درجات الطلاب
A2: م | B2: اسم الطالب | C2: Quiz1 | D2: Quiz2 | E2: Quiz3 | F2: Quiz4 | G2: Quiz5 | H2: Quizzes | I2: الواجب | J2: المشاركة | K2: المشروع | L2: Total | M2: Exam | N2: Final | O2: Percent | P2: Rank | Q2: التقدير | S2: تحليل النتائج على حسب التقدير
C3: 5 | D3: 5 | E3: 5 | F3: 5 | G3: درجة5 | H3: 50 | I3: 25 | J3: 15 | K3: 10 | L3: 100 | M3: 100 | N3: 22.5 | O3: (%) | P3: الترتيب | S3: التقدير | T3: المجال | V3: عدد الطلاب | W3: النسبة
A4: 1 | B4: احمد عيسى محمود احمد العبدالله | C4: 2.5 | D4: 4 | E4: 3 | F4: 4 | H4: =IF(AND(C4="",D4="",E4="",F4="",G4=""),"غ",$H$3*SUM(C4:G4)/SUM($C$3:$G$3)) -> 33.75 | I4: 21 | J4: 11 | K4: 9 | L4: =IF(AND(C4="",D4="",E4="",F4="",G4="",I4="",J4="",K4=""),"غ",SUM(H4:K4)) -> 74.75 | M4: 74 | N4: =IF(M4="","غ",IF(L4="غ",M4*0.2,SUM(L4*2.5/$L$3,M4*0.2))) -> 16.66875 | O4: =IF(N4="غ","غ",N4*100/$N$3/100) -> 0.7408333333 | P4: =IF(AND(O4="غ"),"غ",RANK(O4,$O$4:$O$30)+COUNTIF(O$4:O4,O4)-1) -> 3 | Q4: =IF(O4="غ","غ",IF(O4>=90%,"ممتاز",IF(O4>=80%,"جيد جداً",IF(O4>=70%,"جيد",IF(O4>=60%,"فوق المتوسط",IF(O4>=50%,"متوسط",IF(O4>=40%,"دون المتوسط",IF(O4>=30%,"ضعيف","دون الضعيف جداً")))))))) -> جيد | S4: ممتاز | T4: ≥ 90 | U4: A+ | V4: =COUNTIF(Q4:Q30,"ممتاز") -> 0 | W4: =(V4/$V$12) -> 0 | X4: =SUM(W4:W8) -> 0.88
A5: 2 | B5: احمد فيروز جمعه خميس الجبر | C5: 1.5 | E5: 1.5 | H5: =IF(AND(C5="",D5="",E5="",F5="",G5=""),"غ",$H$3*SUM(C5:G5)/SUM($C$3:$G$3)) -> 7.5 | I5: 18 | J5: 10 | K5: 6 | L5: =IF(AND(C5="",D5="",E5="",F5="",G5="",I5="",J5="",K5=""),"غ",SUM(H5:K5)) -> 41.5 | M5: 68 | N5: =IF(M5="","غ",IF(L5="غ",M5*0.2,SUM(L5*2.5/$L$3,M5*0.2))) -> 14.6375 | O5: =IF(N5="غ","غ",N5*100/$N$3/100) -> 0.6505555556 | P5: =IF(AND(O5="غ"),"غ",RANK(O5,$O$4:$O$30)+COUNTIF(O$4:O5,O5)-1) -> 10 | Q5: =IF(O5="غ","غ",IF(O5>=90%,"ممتاز",IF(O5>=80%,"جيد جداً",IF(O5>=70%,"جيد",IF(O5>=60%,"فوق المتوسط",IF(O5>=50%,"متوسط",IF(O5>=40%,"دون المتوسط",IF(O5>=30%,"ضعيف","دون الضعيف جداً")))))))) -> فوق المتوسط | S5: جيد جداً | T5: ≥ 80 | U5: A | V5: =COUNTIF(Q4:Q30,"جيد جداً") -> 0 | W5: 0
A6: 3 | B6: احمد ناصر صالح احمد الخلاقى | C6: 3.5 | D6: 3.5 | E6: 3 | F6: 4 | H6: 35 | I6: 23 | J6: 12 | K6: 9 | L6: 79 | M6: 80 | N6: 17.975 | O6: 0.7988888889 | P6: =IF(AND(O6="غ"),"غ",RANK(O6,$O$4:$O$30)+COUNTIF(O$4:O6,O6)-1) -> 1 | Q6: جيد | S6: جيد | T6: ≥ 70 | U6: B+ | V6: =COUNTIF(Q4:Q30,"جيد") -> 5 | W6: 0.2
A7: 4 | B7: تركى ناصر فرج مبارك العلي | C7: 4 | D7: 1 | E7: 2 | F7: 2 | H7: 22.5 | I7: 18 | J7: 10 | K7: 6 | L7: 56.5 | M7: 62 | N7: 13.8125 | O7: 0.6138888889 | P7: =IF(AND(O7="غ"),"غ",RANK(O7,$O$4:$O$30)+COUNTIF(O$4:O7,O7)-1) -> 13 | Q7: فوق المتوسط | S7: فوق المتوسط | T7: ≥ 60 | U7: B | V7: =COUNTIF(Q4:Q30,"فوق المتوسط") -> 9 | W7: 0.36
A8: 5 | B8: جابر احمد جابر الجهام الكوارى | D8: 2 | F8: 2 | H8: 10 | I8: 19 | J8: 11 | K8: 7 | L8: 47 | M8: 60 | N8: 13.175 | O8: 0.5855555556 | P8: =IF(AND(O8="غ"),"غ",RANK(O8,$O$4:$O$30)+COUNTIF(O$4:O8,O8)-1) -> 17 | Q8: متوسط | S8: متوسط | T8: ≥ 50 | U8: C | V8: =COUNTIF(Q4:Q30,"متوسط") -> 8 | W8: 0.32
A9: 6 | B9: حمد محمد دهام فرج السويدى | C9: 2 | D9: 3 | E9: 3 | F9: 3 | H9: 27.5 | I9: 20 | J9: 12 | K9: 8 | L9: 67.5 | M9: 46 | N9: 10.8875 | O9: 0.4838888889 | P9: =IF(AND(O9="غ"),"غ",RANK(O9,$O$4:$O$30)+COUNTIF(O$4:O9,O9)-1) -> 23 | Q9: دون المتوسط | S9: دون المتوسط | T9: ≥ 40 | U9: D | V9: =COUNTIF(Q4:Q30,"دون المتوسط") -> 3 | W9: 0.12 | X9: =SUM(W9:W11) -> 0.12
A10: 7 | B10: حمد محمد منصر الجبرى | D10: 3.5 | F10: 3.5 | H10: 17.5 | I10: 18 | J10: 9 | K10: 7 | L10: 51.5 | M10: 54 | N10: 12.0875 | O10: 0.5372222222 | P10: =IF(AND(O10="غ"),"غ",RANK(O10,$O$4:$O$30)+COUNTIF(O$4:O10,O10)-1) -> 21 | Q10: متوسط | S10: ضعيف | T10: ≥ 30 | U10: E | V10: =COUNTIF(Q4:Q30,"ضعيف") -> 0 | W10: 0
A11: 8 | B11: خالد محمد هلال حسين ابوحدود | C11: 1.5 | E11: 2 | F11: 2 | H11: 13.75 | I11: 18 | J11: 10 | K11: 7 | L11: 48.75 | M11: 40 | N11: 9.21875 | O11: 0.4097222222 | P11: =IF(AND(O11="غ"),"غ",RANK(O11,$O$4:$O$30)+COUNTIF(O$4:O11,O11)-1) -> 25 | Q11: دون المتوسط | S11: دون الضعيف جداً | T11: < 30 | U11: F | V11: =COUNTIF(Q4:Q30,"دون الضعيف جداً") -> 0 | W11: 0
A12: 9 | B12: راشد ناصر راشد سعيد الشهرانى | C12: 1 | D12: 5 | E12: 3 | F12: 4 | H12: 32.5 | I12: 20 | J12: 11 | K12: 8 | L12: 71.5 | M12: 60 | N12: 13.7875 | O12: 0.6127777778 | P12: =IF(AND(O12="غ"),"غ",RANK(O12,$O$4:$O$30)+COUNTIF(O$4:O12,O12)-1) -> 14 | Q12: فوق المتوسط | S12: عدد الطلاب الذي تم اختبارهم | V12: =SUM(V4:V11) -> 25 | W12: =V12/SUM(V12:V13) -> 0.9615384615
A13: 10 | B13: سعد علي سعد بونجوم السليطى | C13: 2.5 | D13: 1 | E13: 2 | F13: 2 | H13: 18.75 | I13: 18 | J13: 9 | K13: 8 | L13: 53.75 | M13: 40 | N13: 9.34375 | O13: 0.4152777778 | P13: =IF(AND(O13="غ"),"غ",RANK(O13,$O$4:$O$30)+COUNTIF(O$4:O13,O13)-1) -> 24 | Q13: دون المتوسط | S13: عدد الطلاب الغائبين | V13: =COUNTA(B4:B30)-V12 -> 1 | W13: =V13/SUM(V12:V13) -> 0.03846153846
A14: 11 | B14: سعود خليفه فرج مبارك العلى | H14: غ | L14: غ | N14: غ | O14: غ | P14: =IF(AND(O14="غ"),"غ",RANK(O14,$O$4:$O$30)+COUNTIF(O$4:O14,O14)-1) -> غ | Q14: غ
A15: 12 | B15: سعود وليد عبدالله صالح دويسان | D15: 2.5 | F15: 2.5 | H15: 12.5 | I15: 22 | J15: 12 | K15: 9 | L15: 55.5 | M15: 66 | N15: 14.5875 | O15: 0.6483333333 | P15: =IF(AND(O15="غ"),"غ",RANK(O15,$O$4:$O$30)+COUNTIF(O$4:O15,O15)-1) -> 11 | Q15: فوق المتوسط | S15: الطلاب | T15: العدد | U15: النسبة
A16: 13 | B16: سلمان ابراهيم عبدالله سعد المناعى | C16: 3.5 | D16: 1 | E16: 3 | F16: 2 | H16: 23.75 | I16: 19 | J16: 10 | K16: 7 | L16: 59.75 | M16: 52 | N16: 11.89375 | O16: 0.5286111111 | P16: =IF(AND(O16="غ"),"غ",RANK(O16,$O$4:$O$30)+COUNTIF(O$4:O16,O16)-1) -> 22 | Q16: متوسط | S16: الناجحين | T16: =SUM(V4:V8) -> 22 | U16: =X4 -> 0.88
A17: 14 | B17: صالح عقيل احمد محمد احمد | C17: 1 | D17: 2 | E17: 1 | F17: 2 | H17: 15 | I17: 19 | J17: 10 | K17: 7 | L17: 51 | M17: 60 | N17: 13.275 | O17: 0.59 | P17: =IF(AND(O17="غ"),"غ",RANK(O17,$O$4:$O$30)+COUNTIF(O$4:O17,O17)-1) -> 15 | Q17: متوسط | S17: الراسبين | T17: =SUM(V9:V11) -> 3 | U17: =X9 -> 0.12
A18: 15 | B18: عبد العزيز علي مبارك سعيد المهندي | H18: غ | I18: 16 | J18: 8 | K18: 6 | L18: 30 | M18: 58 | N18: 12.35 | O18: 0.5488888889 | P18: =IF(AND(O18="غ"),"غ",RANK(O18,$O$4:$O$30)+COUNTIF(O$4:O18,O18)-1) -> 20 | Q18: متوسط | S18: المجموع | T18: =SUM(T16:T17) -> 25 | U18: =SUM(U16:U17) -> 1
A19: 16 | B19: عبدالعزيز مبارك خميس عبدالله العلي | D19: 4 | F19: 4 | H19: 20 | I19: 16 | J19: 8 | K19: 7 | L19: 51 | M19: 68 | N19: 14.875 | O19: 0.6611111111 | P19: =IF(AND(O19="غ"),"غ",RANK(O19,$O$4:$O$30)+COUNTIF(O$4:O19,O19)-1) -> 9 | Q19: فوق المتوسط
A20: 17 | B20: عبدالعزيز محمد يوسف سهل السهل | C20: 1.5 | D20: 3 | E20: 1.5 | F20: 3 | H20: 22.5 | I20: 19 | J20: 11 | K20: 8 | L20: 60.5 | M20: 72 | N20: 15.9125 | O20: 0.7072222222 | P20: =IF(AND(O20="غ"),"غ",RANK(O20,$O$4:$O$30)+COUNTIF(O$4:O20,O20)-1) -> 5 | Q20: جيد | S20: التحصيل الأكاديمي | U20: =AVERAGE(M4:M30)/M$3 -> 0.6216
A21: 18 | B21: عبدالله ابراهيم احمد علي الانصارى | D21: 4 | F21: 4 | H21: 20 | I21: 20 | J21: 10 | K21: 8 | L21: 58 | M21: 68 | N21: 15.05 | O21: 0.6688888889 | P21: =IF(AND(O21="غ"),"غ",RANK(O21,$O$4:$O$30)+COUNTIF(O$4:O21,O21)-1) -> 8 | Q21: فوق المتوسط
A22: 19 | B22: عبدالله وحيد خميس جمعه العبدالله | C22: 4 | D22: 4 | E22: 4 | F22: 4 | H22: 40 | I22: 18 | J22: 10 | K22: 6 | L22: 74 | M22: 54 | N22: 12.65 | O22: 0.5622222222 | P22: =IF(AND(O22="غ"),"غ",RANK(O22,$O$4:$O$30)+COUNTIF(O$4:O22,O22)-1) -> 19 | Q22: متوسط
A23: 20 | B23: فهد مرشد شاهين ال مرشد الكوارى | C23: 4 | D23: 3 | E23: 4 | F23: 3 | H23: 35 | I23: 18 | J23: 9 | K23: 6 | L23: 68 | M23: 68 | N23: 15.3 | O23: 0.68 | P23: =IF(AND(O23="غ"),"غ",RANK(O23,$O$4:$O$30)+COUNTIF(O$4:O23,O23)-1) -> 7 | Q23: فوق المتوسط
A24: 21 | B24: مبارك عبدالله مبارك الجباره الرميحى | H24: غ | I24: 21 | J24: 11 | K24: 9 | L24: 41 | M24: 80 | N24: 17.025 | O24: 0.7566666667 | P24: =IF(AND(O24="غ"),"غ",RANK(O24,$O$4:$O$30)+COUNTIF(O$4:O24,O24)-1) -> 2 | Q24: جيد | S24: الفرع | T24: الناجحين | U24: الراسبين | V24: التحصيل
A25: 22 | B25: محمد احمد سعد ال سعد الكوارى | C25: 3 | D25: 4 | E25: 3 | F25: 4 | H25: 35 | I25: 23 | J25: 12 | K25: 9 | L25: 79 | M25: 68 | N25: 15.575 | O25: 0.6922222222 | P25: =IF(AND(O25="غ"),"غ",RANK(O25,$O$4:$O$30)+COUNTIF(O$4:O25,O25)-1) -> 6 | Q25: فوق المتوسط | S25: =H2 -> Quizzes | T25: =COUNTIF(H4:H30,">="&H$3/2)/COUNT(H4:H30) -> 0.347826087 | U25: =IF(T25="","",100%-T25) -> 0.652173913 | V25: =IF($U25="","",AVERAGE(H4:H30)/H$3) -> 0.452173913
A26: 23 | B26: محمد صالح صلاح | C26: 1.5 | D26: 1 | E26: 1.5 | F26: 1 | H26: 12.5 | I26: 20 | J26: 9 | K26: 7 | L26: 48.5 | M26: 64 | N26: 14.0125 | O26: 0.6227777778 | P26: =IF(AND(O26="غ"),"غ",RANK(O26,$O$4:$O$30)+COUNTIF(O$4:O26,O26)-1) -> 12 | Q26: فوق المتوسط | S26: =I2 -> الواجب | T26: =COUNTIF(I4:I30,">="&I$3/2)/COUNT(I4:I30) -> 1 | U26: 0 | V26: =IF($U26="","",AVERAGE(I4:I30)/I$3) -> 0.776
A27: 24 | B27: محمد عبدالله باجهدوم | D27: 0 | F27: 0 | H27: 0 | I27: 18 | J27: 9 | K27: 7 | L27: 34 | M27: 62 | N27: 13.25 | O27: 0.5888888889 | P27: =IF(AND(O27="غ"),"غ",RANK(O27,$O$4:$O$30)+COUNTIF(O$4:O27,O27)-1) -> 16 | Q27: متوسط | S27: =J2 -> المشاركة | T27: =COUNTIF(J4:J30,">="&J$3/2)/COUNT(J4:J30) -> 1 | U27: 0 | V27: =IF($U27="","",AVERAGE(J4:J30)/J$3) -> 0.6853333333
A28: 25 | B28: محمد يوسف علي محمد الملك | C28: 2.5 | D28: 1.5 | E28: 2.5 | F28: 1.5 | H28: 20 | I28: 21 | J28: 11 | K28: 9 | L28: 61 | M28: 58 | N28: 13.125 | O28: 0.5833333333 | P28: =IF(AND(O28="غ"),"غ",RANK(O28,$O$4:$O$30)+COUNTIF(O$4:O28,O28)-1) -> 18 | Q28: متوسط | S28: =K2 -> المشروع | T28: =COUNTIF(K4:K30,">="&K$3/2)/COUNT(K4:K30) -> 1 | U28: 0 | V28: =IF($U28="","",AVERAGE(K4:K30)/K$3) -> 0.756
A29: 26 | B29: نعيم عصام أبو ناهية | C29: 4.5 | D29: 4.5 | E29: 4.5 | F29: 4.5 | H29: =IF(AND(C29="",D29="",E29="",F29="",G29=""),"غ",$H$3*SUM(C29:G29)/SUM($C$3:$G$3)) -> 45 | I29: 22 | J29: 12 | K29: 9 | L29: =IF(AND(C29="",D29="",E29="",F29="",G29="",I29="",J29="",K29=""),"غ",SUM(H29:K29)) -> 88 | M29: 72 | N29: =IF(M29="","غ",IF(L29="غ",M29*0.2,SUM(L29*2.5/$L$3,M29*0.2))) -> 16.6 | O29: 0.7377777778 | P29: =IF(AND(O29="غ"),"غ",RANK(O29,$O$4:$O$30)+COUNTIF(O$4:O29,O29)-1) -> 4 | Q29: =IF(O29="غ","غ",IF(O29>=90%,"ممتاز",IF(O29>=80%,"جيد جداً",IF(O29>=70%,"جيد",IF(O29>=60%,"فوق المتوسط",IF(O29>=50%,"متوسط",IF(O29>=40%,"دون المتوسط",IF(O29>=30%,"ضعيف","دون الضعيف جداً")))))))) -> جيد | S29: =M2 -> Exam | T29: =COUNTIF(M4:M30,">="&M$3/2)/COUNT(M4:M30) -> 0.88 | U29: 0.12 | V29: =IF($U29="","",AVERAGE(M4:M30)/M$3) -> 0.6216

Sheet 9-3
A1: Grade (9-3) كشف درجات الطلاب
A2: م | B2: اسم الطالب | C2: Quiz1 | D2: Quiz2 | E2: Quiz3 | F2: Quiz4 | G2: Quiz5 | H2: Quizzes | I2: الواجب | J2: المشاركة | K2: المشروع | L2: Total | M2: Exam | N2: Final | O2: Percent | P2: Rank | Q2: التقدير | S2: تحليل النتائج على حسب التقدير
C3: 5 | D3: 5 | E3: 5 | F3: 5 | G3: درجة5 | H3: 50 | I3: 25 | J3: 15 | K3: 10 | L3: 100 | M3: 100 | N3: 22.5 | O3: (%) | P3: الترتيب | S3: التقدير | T3: المجال | V3: عدد الطلاب | W3: النسبة
A4: 1 | B4: ابراهيم احمد سيد مهتاب الدين احمد | C4: 4 | D4: 5 | E4: 4 | F4: 5 | H4: =IF(AND(C4="",D4="",E4="",F4="",G4=""),"غ",$H$3*SUM(C4:G4)/SUM($C$3:$G$3)) -> 45 | I4: 22 | J4: 13 | K4: 9 | L4: =IF(AND(C4="",D4="",E4="",F4="",G4="",I4="",J4="",K4=""),"غ",SUM(H4:K4)) -> 89 | M4: 89 | N4: =IF(M4="","غ",IF(L4="غ",M4*0.2,SUM(L4*2.5/$L$3,M4*0.2))) -> 20.025 | O4: =IF(N4="غ","غ",N4*100/$N$3/100) -> 0.89 | P4: =IF(AND(O4="غ"),"غ",RANK(O4,$O$4:$O$30)+COUNTIF(O$4:O4,O4)-1) -> 2 | Q4: =IF(O4="غ","غ",IF(O4>=90%,"ممتاز",IF(O4>=80%,"جيد جداً",IF(O4>=70%,"جيد",IF(O4>=60%,"فوق المتوسط",IF(O4>=50%,"متوسط",IF(O4>=40%,"دون المتوسط",IF(O4>=30%,"ضعيف","دون الضعيف جداً")))))))) -> جيد جداً | S4: ممتاز | T4: ≥ 90 | U4: A+ | V4: =COUNTIF(Q4:Q30,"ممتاز") -> 0 | W4: =(V4/$V$12) -> 0 | X4: =SUM(W4:W8) -> 1
A5: 2 | B5: ابراهيم سعيد ابراهيم محمد صالح | C5: 4.5 | D5: 4 | E5: 4.5 | F5: 4 | H5: =IF(AND(C5="",D5="",E5="",F5="",G5=""),"غ",$H$3*SUM(C5:G5)/SUM($C$3:$G$3)) -> 42.5 | I5: 22 | J5: 13 | K5: 9 | L5: =IF(AND(C5="",D5="",E5="",F5="",G5="",I5="",J5="",K5=""),"غ",SUM(H5:K5)) -> 86.5 | M5: 75 | N5: =IF(M5="","غ",IF(L5="غ",M5*0.2,SUM(L5*2.5/$L$3,M5*0.2))) -> 17.1625 | O5: =IF(N5="غ","غ",N5*100/$N$3/100) -> 0.7627777778 | P5: =IF(AND(O5="غ"),"غ",RANK(O5,$O$4:$O$30)+COUNTIF(O$4:O5,O5)-1) -> 25 | Q5: =IF(O5="غ","غ",IF(O5>=90%,"ممتاز",IF(O5>=80%,"جيد جداً",IF(O5>=70%,"جيد",IF(O5>=60%,"فوق المتوسط",IF(O5>=50%,"متوسط",IF(O5>=40%,"دون المتوسط",IF(O5>=30%,"ضعيف","دون الضعيف جداً")))))))) -> جيد | S5: جيد جداً | T5: ≥ 80 | U5: A | V5: =COUNTIF(Q4:Q30,"جيد جداً") -> 21 | W5: 0.8076923077
A6: 3 | B6: احمد عاطف محمد محمود عمار | C6: 3 | D6: 5 | E6: 3 | F6: 5 | H6: 40 | I6: 23 | J6: 13 | K6: 9 | L6: 85 | M6: 90 | N6: 20.125 | O6: 0.8944444444 | P6: =IF(AND(O6="غ"),"غ",RANK(O6,$O$4:$O$30)+COUNTIF(O$4:O6,O6)-1) -> 1 | Q6: جيد جداً | S6: جيد | T6: ≥ 70 | U6: B+ | V6: =COUNTIF(Q4:Q30,"جيد") -> 4 | W6: 0.1538461538
A7: 4 | B7: بهاء ممدوح عبدالفاضل الليثي | C7: 5 | D7: 5 | E7: 5 | F7: 5 | H7: 50 | I7: 23 | J7: 14 | K7: 9 | L7: 96 | M7: 82 | N7: 18.8 | O7: 0.8355555556 | P7: =IF(AND(O7="غ"),"غ",RANK(O7,$O$4:$O$30)+COUNTIF(O$4:O7,O7)-1) -> 11 | Q7: جيد جداً | S7: فوق المتوسط | T7: ≥ 60 | U7: B | V7: =COUNTIF(Q4:Q30,"فوق المتوسط") -> 1 | W7: 0.03846153846
A8: 5 | B8: حسام ايت القاضي | C8: 5 | D8: 5 | E8: 5 | F8: 5 | H8: 50 | I8: 23 | J8: 14 | K8: 9 | L8: 96 | M8: 82 | N8: 18.8 | O8: 0.8355555556 | P8: =IF(AND(O8="غ"),"غ",RANK(O8,$O$4:$O$30)+COUNTIF(O$4:O8,O8)-1) -> 12 | Q8: جيد جداً | S8: متوسط | T8: ≥ 50 | U8: C | V8: =COUNTIF(Q4:Q30,"متوسط") -> 0 | W8: 0
A9: 6 | B9: حمد سالم عبدالله حسن السيد | C9: 3 | D9: 5 | E9: 3 | F9: 5 | H9: 40 | I9: 23 | J9: 14 | K9: 9 | L9: 86 | M9: 82 | N9: 18.55 | O9: 0.8244444444 | P9: =IF(AND(O9="غ"),"غ",RANK(O9,$O$4:$O$30)+COUNTIF(O$4:O9,O9)-1) -> 17 | Q9: جيد جداً | S9: دون المتوسط | T9: ≥ 40 | U9: D | V9: =COUNTIF(Q4:Q30,"دون المتوسط") -> 0 | W9: 0 | X9: =SUM(W9:W11) -> 0
A10: 7 | B10: سعيد عجينه | C10: 3 | D10: 4.5 | E10: 3 | F10: 4.5 | H10: 37.5 | I10: 24 | J10: 14 | K10: 9 | L10: 84.5 | M10: 82 | N10: 18.5125 | O10: 0.8227777778 | P10: =IF(AND(O10="غ"),"غ",RANK(O10,$O$4:$O$30)+COUNTIF(O$4:O10,O10)-1) -> 18 | Q10: جيد جداً | S10: ضعيف | T10: ≥ 30 | U10: E | V10: =COUNTIF(Q4:Q30,"ضعيف") -> 0 | W10: 0
A11: 8 | B11: عبدالرحمن عدنان مصطفى علي الخطيب | C11: 5 | D11: 5 | E11: 5 | F11: 5 | H11: 50 | I11: 23 | J11: 13 | K11: 9 | L11: 95 | M11: 86 | N11: 19.575 | O11: 0.87 | P11: =IF(AND(O11="غ"),"غ",RANK(O11,$O$4:$O$30)+COUNTIF(O$4:O11,O11)-1) -> 3 | Q11: جيد جداً | S11: دون الضعيف جداً | T11: < 30 | U11: F | V11: =COUNTIF(Q4:Q30,"دون الضعيف جداً") -> 0 | W11: 0
A12: 9 | B12: عبداللطيف سمير عبدالله احمد الباكر | C12: 5 | D12: 5 | E12: 5 | F12: 5 | H12: 50 | I12: 23 | J12: 14 | K12: 9 | L12: 96 | M12: 84 | N12: 19.2 | O12: 0.8533333333 | P12: =IF(AND(O12="غ"),"غ",RANK(O12,$O$4:$O$30)+COUNTIF(O$4:O12,O12)-1) -> 6 | Q12: جيد جداً | S12: عدد الطلاب الذي تم اختبارهم | V12: =SUM(V4:V11) -> 26 | W12: =V12/SUM(V12:V13) -> 1
A13: 10 | B13: عبدالله احمد سعيد | C13: 4.5 | D13: 5 | E13: 4.5 | F13: 5 | H13: 47.5 | I13: 22 | J13: 13 | K13: 9 | L13: 91.5 | M13: 78 | N13: 17.8875 | O13: 0.795 | P13: =IF(AND(O13="غ"),"غ",RANK(O13,$O$4:$O$30)+COUNTIF(O$4:O13,O13)-1) -> 22 | Q13: جيد | S13: عدد الطلاب الغائبين | V13: =COUNTA(B4:B30)-V12 -> 0 | W13: =V13/SUM(V12:V13) -> 0
A14: 11 | B14: عبدالله سعيد عبدالرحيم الزينى | C14: 5 | D14: 5 | E14: 5 | F14: 5 | H14: 50 | I14: 23 | J14: 13 | K14: 9 | L14: 95 | M14: 79 | N14: 18.175 | O14: 0.8077777778 | P14: =IF(AND(O14="غ"),"غ",RANK(O14,$O$4:$O$30)+COUNTIF(O$4:O14,O14)-1) -> 21 | Q14: جيد جداً
A15: 12 | B15: عبدالله عباس سامى عباس العيساوى | C15: 5 | D15: 5 | E15: 4.5 | F15: 4.5 | H15: 47.5 | I15: 22 | J15: 13 | K15: 9 | L15: 91.5 | M15: 80 | N15: 18.2875 | O15: 0.8127777778 | P15: =IF(AND(O15="غ"),"غ",RANK(O15,$O$4:$O$30)+COUNTIF(O$4:O15,O15)-1) -> 20 | Q15: جيد جداً | S15: الطلاب | T15: العدد | U15: النسبة
A16: 13 | B16: عدنان فاتك كريم كريم | C16: 5 | D16: 5 | E16: 5 | F16: 5 | H16: 50 | I16: 23 | J16: 13 | K16: 9 | L16: 95 | M16: 84 | N16: 19.175 | O16: 0.8522222222 | P16: =IF(AND(O16="غ"),"غ",RANK(O16,$O$4:$O$30)+COUNTIF(O$4:O16,O16)-1) -> 8 | Q16: جيد جداً | S16: الناجحين | T16: =SUM(V4:V8) -> 26 | U16: =X4 -> 1
A17: 14 | B17: عمر أحمد انور خضر سعد | C17: 3 | D17: 5 | E17: 3 | F17: 5 | H17: 40 | I17: 22 | J17: 13 | K17: 9 | L17: 84 | M17: 84 | N17: 18.9 | O17: 0.84 | P17: =IF(AND(O17="غ"),"غ",RANK(O17,$O$4:$O$30)+COUNTIF(O$4:O17,O17)-1) -> 10 | Q17: جيد جداً | S17: الراسبين | T17: =SUM(V9:V11) -> 0 | U17: =X9 -> 0
A18: 15 | B18: عمرو توفيق محمد | C18: 5 | D18: 5 | E18: 5 | F18: 5 | H18: 50 | I18: 23 | J18: 13 | K18: 9 | L18: 95 | M18: 82 | N18: 18.775 | O18: 0.8344444444 | P18: =IF(AND(O18="غ"),"غ",RANK(O18,$O$4:$O$30)+COUNTIF(O$4:O18,O18)-1) -> 13 | Q18: جيد جداً | S18: المجموع | T18: =SUM(T16:T17) -> 26 | U18: =SUM(U16:U17) -> 1
A19: 16 | B19: غانم ابراهيم جاسم النصف المنصورى | C19: 4.5 | D19: 4.5 | E19: 4.5 | F19: 4.5 | H19: 45 | I19: 22 | J19: 13 | K19: 9 | L19: 89 | M19: 82 | N19: 18.625 | O19: 0.8277777778 | P19: =IF(AND(O19="غ"),"غ",RANK(O19,$O$4:$O$30)+COUNTIF(O$4:O19,O19)-1) -> 14 | Q19: جيد جداً
A20: 17 | B20: فيصل محمد بنهنو | C20: 5 | D20: 5 | E20: 5 | F20: 5 | H20: 50 | I20: 23 | J20: 13 | K20: 9 | L20: 95 | M20: 80 | N20: 18.375 | O20: 0.8166666667 | P20: =IF(AND(O20="غ"),"غ",RANK(O20,$O$4:$O$30)+COUNTIF(O$4:O20,O20)-1) -> 19 | Q20: جيد جداً | S20: التحصيل الأكاديمي | U20: =AVERAGE(M4:M30)/M$3 -> 0.8196153846
A21: 18 | B21: ماجد محمد درويش ناصر | H21: غ | I21: 22 | J21: 12 | K21: 8 | L21: 42 | M21: 70 | N21: 15.05 | O21: 0.6688888889 | P21: =IF(AND(O21="غ"),"غ",RANK(O21,$O$4:$O$30)+COUNTIF(O$4:O21,O21)-1) -> 26 | Q21: فوق المتوسط
A22: 19 | B22: محمد احمد حاج قاسم | C22: 4.5 | D22: 5 | E22: 4.5 | F22: 5 | H22: 47.5 | I22: 22 | J22: 13 | K22: 9 | L22: 91.5 | M22: 84 | N22: 19.0875 | O22: 0.8483333333 | P22: =IF(AND(O22="غ"),"غ",RANK(O22,$O$4:$O$30)+COUNTIF(O$4:O22,O22)-1) -> 9 | Q22: جيد جداً
A23: 20 | B23: محمد عجينة | C23: 5 | D23: 3 | E23: 5 | F23: 3 | H23: 40 | I23: 24 | J23: 14 | K23: 9 | L23: 87 | M23: 82 | N23: 18.575 | O23: 0.8255555556 | P23: =IF(AND(O23="غ"),"غ",RANK(O23,$O$4:$O$30)+COUNTIF(O$4:O23,O23)-1) -> 16 | Q23: جيد جداً
A24: 21 | B24: محمد احمد محمد ناصر حسن | D24: 5 | F24: 5 | H24: 25 | I24: 22 | J24: 13 | K24: 9 | L24: 69 | M24: 78 | N24: 17.325 | O24: 0.77 | P24: =IF(AND(O24="غ"),"غ",RANK(O24,$O$4:$O$30)+COUNTIF(O$4:O24,O24)-1) -> 24 | Q24: جيد | S24: الفرع | T24: الناجحين | U24: الراسبين | V24: التحصيل
A25: 22 | B25: محمد حاتم ابراهيم السيد | C25: 3 | D25: 4 | E25: 3 | F25: 4 | H25: 35 | I25: 23 | J25: 13 | K25: 9 | L25: 80 | M25: 83 | N25: 18.6 | O25: 0.8266666667 | P25: =IF(AND(O25="غ"),"غ",RANK(O25,$O$4:$O$30)+COUNTIF(O$4:O25,O25)-1) -> 15 | Q25: جيد جداً | S25: =H2 -> Quizzes | T25: =COUNTIF(H4:H30,">="&H$3/2)/COUNT(H4:H30) -> 1 | U25: =IF(T25="","",100%-T25) -> 0 | V25: =IF($U25="","",AVERAGE(H4:H30)/H$3) -> 0.89
A26: 23 | B26: محمد خالد السيد بدوى | C26: 5 | D26: 4.5 | E26: 5 | F26: 4.5 | H26: 47.5 | I26: 22 | J26: 12 | K26: 9 | L26: 90.5 | M26: 86 | N26: 19.4625 | O26: 0.865 | P26: =IF(AND(O26="غ"),"غ",RANK(O26,$O$4:$O$30)+COUNTIF(O$4:O26,O26)-1) -> 5 | Q26: جيد جداً | S26: =I2 -> الواجب | T26: =COUNTIF(I4:I30,">="&I$3/2)/COUNT(I4:I30) -> 1 | U26: 0 | V26: =IF($U26="","",AVERAGE(I4:I30)/I$3) -> 0.9046153846
A27: 24 | B27: معاذ شعبان رمضان محمد السنهورى | C27: 4.5 | D27: 5 | E27: 4.5 | F27: 5 | H27: 47.5 | I27: 22 | J27: 13 | K27: 9 | L27: 91.5 | M27: 86 | N27: 19.4875 | O27: 0.8661111111 | P27: =IF(AND(O27="غ"),"غ",RANK(O27,$O$4:$O$30)+COUNTIF(O$4:O27,O27)-1) -> 4 | Q27: جيد جداً | S27: =J2 -> المشاركة | T27: =COUNTIF(J4:J30,">="&J$3/2)/COUNT(J4:J30) -> 1 | U27: 0 | V27: =IF($U27="","",AVERAGE(J4:J30)/J$3) -> 0.8769230769
A28: 25 | B28: مناف ماهر محمد شحاده زيد | C28: 3 | D28: 4 | E28: 3 | F28: 4 | H28: 35 | I28: 23 | J28: 13 | K28: 9 | L28: 80 | M28: 86 | N28: 19.2 | O28: 0.8533333333 | P28: =IF(AND(O28="غ"),"غ",RANK(O28,$O$4:$O$30)+COUNTIF(O$4:O28,O28)-1) -> 7 | Q28: جيد جداً | S28: =K2 -> المشروع | T28: =COUNTIF(K4:K30,">="&K$3/2)/COUNT(K4:K30) -> 1 | U28: 0 | V28: =IF($U28="","",AVERAGE(K4:K30)/K$3) -> 0.8961538462
A29: 26 | B29: يوسف احمد سالم حيدر | C29: 5 | D29: 5 | E29: 5 | F29: 5 | H29: =IF(AND(C29="",D29="",E29="",F29="",G29=""),"غ",$H$3*SUM(C29:G29)/SUM($C$3:$G$3)) -> 50 | I29: 22 | J29: 13 | K29: 9 | L29: =IF(AND(C29="",D29="",E29="",F29="",G29="",I29="",J29="",K29=""),"غ",SUM(H29:K29)) -> 94 | M29: 75 | N29: =IF(M29="","غ",IF(L29="غ",M29*0.2,SUM(L29*2.5/$L$3,M29*0.2))) -> 17.35 | O29: 0.7711111111 | P29: =IF(AND(O29="غ"),"غ",RANK(O29,$O$4:$O$30)+COUNTIF(O$4:O29,O29)-1) -> 23 | Q29: =IF(O29="غ","غ",IF(O29>=90%,"ممتاز",IF(O29>=80%,"جيد جداً",IF(O29>=70%,"جيد",IF(O29>=60%,"فوق المتوسط",IF(O29>=50%,"متوسط",IF(O29>=40%,"دون المتوسط",IF(O29>=30%,"ضعيف","دون الضعيف جداً")))))))) -> جيد | S29: =M2 -> Exam | T29: =COUNTIF(M4:M30,">="&M$3/2)/COUNT(M4:M30) -> 1 | U29: 0 | V29: =IF($U29="","",AVERAGE(M4:M30)/M$3) -> 0.8196153846

Sheet 9-4
A1: Grade (9-4) كشف درجات الطلاب
A2: م | B2: اسم الطالب | C2: Quiz1 | D2: Quiz2 | E2: Quiz3 | F2: Quiz4 | G2: Quiz5 | H2: Quizzes | I2: الواجب | J2: المشاركة | K2: المشروع | L2: Total | M2: Exam | N2: Final | O2: Percent | P2: Rank | Q2: التقدير | S2: تحليل النتائج على حسب التقدير
C3: 5 | D3: 5 | E3: 5 | F3: 5 | G3: درجة5 | H3: 50 | I3: 25 | J3: 15 | K3: 10 | L3: 100 | M3: 100 | N3: 22.5 | O3: (%) | P3: الترتيب | S3: التقدير | T3: المجال | V3: عدد الطلاب | W3: النسبة
A4: 1 | B4: احمد فريد عبدالعزيز اكبر حاجى | C4: 3 | D4: 4 | E4: 3 | F4: 4 | H4: =IF(AND(C4="",D4="",E4="",F4="",G4=""),"غ",$H$3*SUM(C4:G4)/SUM($C$3:$G$3)) -> 35 | I4: 24 | J4: 14 | K4: 9 | L4: =IF(AND(C4="",D4="",E4="",F4="",G4="",I4="",J4="",K4=""),"غ",SUM(H4:K4)) -> 82 | M4: 72 | N4: =IF(M4="","غ",IF(L4="غ",M4*0.2,SUM(L4*2.5/$L$3,M4*0.2))) -> 16.45 | O4: =IF(N4="غ","غ",N4*100/$N$3/100) -> 0.7311111111 | P4: =IF(AND(O4="غ"),"غ",RANK(O4,$O$4:$O$30)+COUNTIF(O$4:O4,O4)-1) -> 10 | Q4: =IF(O4="غ","غ",IF(O4>=90%,"ممتاز",IF(O4>=80%,"جيد جداً",IF(O4>=70%,"جيد",IF(O4>=60%,"فوق المتوسط",IF(O4>=50%,"متوسط",IF(O4>=40%,"دون المتوسط",IF(O4>=30%,"ضعيف","دون الضعيف جداً")))))))) -> جيد | S4: ممتاز | T4: ≥ 90 | U4: A+ | V4: =COUNTIF(Q4:Q30,"ممتاز") -> 0 | W4: =(V4/$V$12) -> 0 | X4: =SUM(W4:W8) -> 0.84
A5: 2 | B5: خالد عبدالرحمن محمد ناجى العجى | C5: 2 | D5: 3 | E5: 2 | F5: 3 | H5: =IF(AND(C5="",D5="",E5="",F5="",G5=""),"غ",$H$3*SUM(C5:G5)/SUM($C$3:$G$3)) -> 25 | I5: 21 | J5: 12 | K5: 8 | L5: =IF(AND(C5="",D5="",E5="",F5="",G5="",I5="",J5="",K5=""),"غ",SUM(H5:K5)) -> 66 | M5: 44 | N5: =IF(M5="","غ",IF(L5="غ",M5*0.2,SUM(L5*2.5/$L$3,M5*0.2))) -> 10.45 | O5: =IF(N5="غ","غ",N5*100/$N$3/100) -> 0.4644444444 | P5: =IF(AND(O5="غ"),"غ",RANK(O5,$O$4:$O$30)+COUNTIF(O$4:O5,O5)-1) -> 23 | Q5: =IF(O5="غ","غ",IF(O5>=90%,"ممتاز",IF(O5>=80%,"جيد جداً",IF(O5>=70%,"جيد",IF(O5>=60%,"فوق المتوسط",IF(O5>=50%,"متوسط",IF(O5>=40%,"دون المتوسط",IF(O5>=30%,"ضعيف","دون الضعيف جداً")))))))) -> دون المتوسط | S5: جيد جداً | T5: ≥ 80 | U5: A | V5: =COUNTIF(Q4:Q30,"جيد جداً") -> 0 | W5: 0
A6: 3 | B6: راشد عبدالرحمن يوسف البوعفره الكوارى | C6: 3 | D6: 3 | E6: 3 | F6: 3 | H6: 30 | I6: 23 | J6: 13 | K6: 8 | L6: 74 | M6: 74 | N6: 16.65 | O6: 0.74 | P6: =IF(AND(O6="غ"),"غ",RANK(O6,$O$4:$O$30)+COUNTIF(O$4:O6,O6)-1) -> 7 | Q6: جيد | S6: جيد | T6: ≥ 70 | U6: B+ | V6: =COUNTIF(Q4:Q30,"جيد") -> 10 | W6: 0.4
A7: 4 | B7: راشد عبدالله راشد صالح فارس | C7: 3 | D7: 5 | E7: 3 | F7: 5 | H7: 40 | I7: 23 | J7: 13 | K7: 8 | L7: 84 | M7: 66 | N7: 15.3 | O7: 0.68 | P7: =IF(AND(O7="غ"),"غ",RANK(O7,$O$4:$O$30)+COUNTIF(O$4:O7,O7)-1) -> 12 | Q7: فوق المتوسط | S7: فوق المتوسط | T7: ≥ 60 | U7: B | V7: =COUNTIF(Q4:Q30,"فوق المتوسط") -> 5 | W7: 0.2
A8: 5 | B8: سعد ثانى علي بوشايع الخليفى | C8: 2 | D8: 3 | E8: 2 | F8: 3 | H8: 25 | I8: 23 | J8: 14 | K8: 8 | L8: 70 | M8: 74 | N8: 16.55 | O8: 0.7355555556 | P8: =IF(AND(O8="غ"),"غ",RANK(O8,$O$4:$O$30)+COUNTIF(O$4:O8,O8)-1) -> 9 | Q8: جيد | S8: متوسط | T8: ≥ 50 | U8: C | V8: =COUNTIF(Q4:Q30,"متوسط") -> 6 | W8: 0.24
A9: 6 | B9: عبدالرحمن بدر صالح حسن الجابر | C9: 3 | D9: 2 | E9: 3 | F9: 2 | H9: 25 | I9: 21 | J9: 13 | K9: 8 | L9: 67 | M9: 52 | N9: 12.075 | O9: 0.5366666667 | P9: =IF(AND(O9="غ"),"غ",RANK(O9,$O$4:$O$30)+COUNTIF(O$4:O9,O9)-1) -> 19 | Q9: متوسط | S9: دون المتوسط | T9: ≥ 40 | U9: D | V9: =COUNTIF(Q4:Q30,"دون المتوسط") -> 3 | W9: 0.12 | X9: =SUM(W9:W11) -> 0.16
A10: 7 | B10: عبدالرحمن عبدالله جمال اسد جمال | C10: 4 | D10: 4 | E10: 4 | F10: 4 | H10: 40 | I10: 24 | J10: 14 | K10: 9 | L10: 87 | M10: 72 | N10: 16.575 | O10: 0.7366666667 | P10: =IF(AND(O10="غ"),"غ",RANK(O10,$O$4:$O$30)+COUNTIF(O$4:O10,O10)-1) -> 8 | Q10: جيد | S10: ضعيف | T10: ≥ 30 | U10: E | V10: =COUNTIF(Q4:Q30,"ضعيف") -> 1 | W10: 0.04
A11: 8 | B11: عبدالعزيز حسين صالح الحميرى اليافعى | C11: 4 | D11: 4 | E11: 4 | F11: 4 | H11: 40 | I11: 24 | J11: 14 | K11: 9 | L11: 87 | M11: 76 | N11: 17.375 | O11: 0.7722222222 | P11: =IF(AND(O11="غ"),"غ",RANK(O11,$O$4:$O$30)+COUNTIF(O$4:O11,O11)-1) -> 4 | Q11: جيد | S11: دون الضعيف جداً | T11: < 30 | U11: F | V11: =COUNTIF(Q4:Q30,"دون الضعيف جداً") -> 0 | W11: 0
A12: 9 | B12: عبدالعزيز مسعد محمد احمد العولقى | D12: 2 | F12: 2 | H12: 10 | I12: 20 | J12: 12 | K12: 8 | L12: 50 | M12: 58 | N12: 12.85 | O12: 0.5711111111 | P12: =IF(AND(O12="غ"),"غ",RANK(O12,$O$4:$O$30)+COUNTIF(O$4:O12,O12)-1) -> 16 | Q12: متوسط | S12: عدد الطلاب الذي تم اختبارهم | V12: =SUM(V4:V11) -> 25 | W12: =V12/SUM(V12:V13) -> 1
A13: 10 | B13: عبداللة محمد حمود عبدالله حسين | C13: 4 | D13: 3 | E13: 4 | F13: 3 | H13: 35 | I13: 24 | J13: 14 | K13: 9 | L13: 82 | M13: 76 | N13: 17.25 | O13: 0.7666666667 | P13: =IF(AND(O13="غ"),"غ",RANK(O13,$O$4:$O$30)+COUNTIF(O$4:O13,O13)-1) -> 5 | Q13: جيد | S13: عدد الطلاب الغائبين | V13: =COUNTA(B4:B30)-V12 -> 0 | W13: =V13/SUM(V12:V13) -> 0
A14: 11 | B14: عبدالله سعد شاهين محمد الكعبى | C14: 5 | D14: 4 | E14: 5 | F14: 4 | H14: 45 | I14: 24 | J14: 14 | K14: 9 | L14: 92 | M14: 76 | N14: 17.5 | O14: 0.7777777778 | P14: =IF(AND(O14="غ"),"غ",RANK(O14,$O$4:$O$30)+COUNTIF(O$4:O14,O14)-1) -> 2 | Q14: جيد
A15: 12 | B15: عبدالله فهد محمد الفهد النعيمى | C15: 2 | D15: 3 | E15: 2 | F15: 3 | H15: 25 | I15: 20 | J15: 12 | K15: 8 | L15: 65 | M15: 32 | N15: 8.025 | O15: 0.3566666667 | P15: =IF(AND(O15="غ"),"غ",RANK(O15,$O$4:$O$30)+COUNTIF(O$4:O15,O15)-1) -> 25 | Q15: ضعيف | S15: الطلاب | T15: العدد | U15: النسبة
A16: 13 | B16: علي احمد غلوم امان الله لارى | C16: 3 | D16: 2 | E16: 3 | F16: 2 | H16: 25 | I16: 23 | J16: 12 | K16: 8 | L16: 68 | M16: 52 | N16: 12.1 | O16: 0.5377777778 | P16: =IF(AND(O16="غ"),"غ",RANK(O16,$O$4:$O$30)+COUNTIF(O$4:O16,O16)-1) -> 18 | Q16: متوسط | S16: الناجحين | T16: =SUM(V4:V8) -> 21 | U16: =X4 -> 0.84
A17: 14 | B17: علي طارق عبدالحميد علي الحجر | C17: 3 | D17: 5 | E17: 3 | F17: 5 | H17: 40 | I17: 24 | J17: 14 | K17: 9 | L17: 87 | M17: 66 | N17: 15.375 | O17: 0.6833333333 | P17: =IF(AND(O17="غ"),"غ",RANK(O17,$O$4:$O$30)+COUNTIF(O$4:O17,O17)-1) -> 11 | Q17: فوق المتوسط | S17: الراسبين | T17: =SUM(V9:V11) -> 4 | U17: =X9 -> 0.16
A18: 15 | B18: علي محمد علي حسن الخاجه | C18: 3 | D18: 4 | E18: 3 | F18: 4 | H18: 35 | I18: 24 | J18: 14 | K18: 9 | L18: 82 | M18: 62 | N18: 14.45 | O18: 0.6422222222 | P18: =IF(AND(O18="غ"),"غ",RANK(O18,$O$4:$O$30)+COUNTIF(O$4:O18,O18)-1) -> 14 | Q18: فوق المتوسط | S18: المجموع | T18: =SUM(T16:T17) -> 25 | U18: =SUM(U16:U17) -> 1
A19: 16 | B19: علي ناصر حسين شكرى المحسن | C19: 1 | D19: 2 | E19: 1 | F19: 2 | H19: 15 | I19: 22 | J19: 12 | K19: 8 | L19: 57 | M19: 68 | N19: 15.025 | O19: 0.6677777778 | P19: =IF(AND(O19="غ"),"غ",RANK(O19,$O$4:$O$30)+COUNTIF(O$4:O19,O19)-1) -> 13 | Q19: فوق المتوسط
A20: 17 | B20: فرج عبدالهادى صالح عبدالهادى المرى | C20: 3 | D20: 3 | E20: 3 | F20: 3 | H20: 30 | I20: 23 | J20: 12 | K20: 8 | L20: 73 | M20: 54 | N20: 12.625 | O20: 0.5611111111 | P20: =IF(AND(O20="غ"),"غ",RANK(O20,$O$4:$O$30)+COUNTIF(O$4:O20,O20)-1) -> 17 | Q20: متوسط | S20: التحصيل الأكاديمي | U20: =AVERAGE(M4:M30)/M$3 -> 0.6232
A21: 18 | B21: مبارك ابراهيم مبارك بتال الدوسرى | C21: 0 | D21: 1 | E21: 0 | F21: 1 | H21: 5 | I21: 21 | J21: 12 | K21: 8 | L21: 46 | M21: 50 | N21: 11.15 | O21: 0.4955555556 | P21: =IF(AND(O21="غ"),"غ",RANK(O21,$O$4:$O$30)+COUNTIF(O$4:O21,O21)-1) -> 22 | Q21: دون المتوسط
A22: 19 | B22: مبارك محمد عبدالله محمد المالكى | C22: 3 | D22: 2 | E22: 3 | F22: 2 | H22: 25 | I22: 20 | J22: 13 | K22: 8 | L22: 66 | M22: 62 | N22: 14.05 | O22: 0.6244444444 | P22: =IF(AND(O22="غ"),"غ",RANK(O22,$O$4:$O$30)+COUNTIF(O$4:O22,O22)-1) -> 15 | Q22: فوق المتوسط
A23: 20 | B23: محمد راشد سعيد فرج السليطى | C23: 2 | D23: 1 | E23: 2 | F23: 1 | H23: 15 | I23: 20 | J23: 11 | K23: 7 | L23: 53 | M23: 40 | N23: 9.325 | O23: 0.4144444444 | P23: =IF(AND(O23="غ"),"غ",RANK(O23,$O$4:$O$30)+COUNTIF(O$4:O23,O23)-1) -> 24 | Q23: دون المتوسط
A24: 21 | B24: محمد رافت رجب احمد العدوى | C24: 5 | D24: 4 | E24: 5 | F24: 4 | H24: 45 | I24: 24 | J24: 14 | K24: 9 | L24: 92 | M24: 76 | N24: 17.5 | O24: 0.7777777778 | P24: =IF(AND(O24="غ"),"غ",RANK(O24,$O$4:$O$30)+COUNTIF(O$4:O24,O24)-1) -> 3 | Q24: جيد | S24: الفرع | T24: الناجحين | U24: الراسبين | V24: التحصيل
A25: 22 | B25: محمد صالح علي بورايح الكوارى | C25: 3 | D25: 3 | E25: 3 | F25: 3 | H25: 30 | I25: 24 | J25: 13 | K25: 8 | L25: 75 | M25: 76 | N25: 17.075 | O25: 0.7588888889 | P25: =IF(AND(O25="غ"),"غ",RANK(O25,$O$4:$O$30)+COUNTIF(O$4:O25,O25)-1) -> 6 | Q25: جيد | S25: =H2 -> Quizzes | T25: =COUNTIF(H4:H30,">="&H$3/2)/COUNT(H4:H30) -> 0.8 | U25: =IF(T25="","",100%-T25) -> 0.2 | V25: =IF($U25="","",AVERAGE(H4:H30)/H$3) -> 0.576
A26: 23 | B26: محمد عتيق زايد حارب المهندى | C26: 3 | D26: 2 | E26: 3 | F26: 2 | H26: 25 | I26: 20 | J26: 11 | K26: 8 | L26: 64 | M26: 50 | N26: 11.6 | O26: 0.5155555556 | P26: =IF(AND(O26="غ"),"غ",RANK(O26,$O$4:$O$30)+COUNTIF(O$4:O26,O26)-1) -> 21 | Q26: متوسط | S26: =I2 -> الواجب | T26: =COUNTIF(I4:I30,">="&I$3/2)/COUNT(I4:I30) -> 1 | U26: 0 | V26: =IF($U26="","",AVERAGE(I4:I30)/I$3) -> 0.9008
A27: 24 | B27: محمد نبيل محمد نصرالله العمادى | C27: 3 | D27: 4 | E27: 3 | F27: 4 | H27: 35 | I27: 24 | J27: 14 | K27: 9 | L27: 82 | M27: 78 | N27: 17.65 | O27: 0.7844444444 | P27: =IF(AND(O27="غ"),"غ",RANK(O27,$O$4:$O$30)+COUNTIF(O$4:O27,O27)-1) -> 1 | Q27: جيد | S27: =J2 -> المشاركة | T27: =COUNTIF(J4:J30,">="&J$3/2)/COUNT(J4:J30) -> 1 | U27: 0 | V27: =IF($U27="","",AVERAGE(J4:J30)/J$3) -> 0.864
A28: 25 | B28: ناصر راشد عرار الرمزانى النعيمى | C28: 2 | D28: 2 | E28: 2 | F28: 2 | H28: 20 | I28: 23 | J28: 13 | K28: 8 | L28: 64 | M28: 52 | N28: 12 | O28: 0.5333333333 | P28: =IF(AND(O28="غ"),"غ",RANK(O28,$O$4:$O$30)+COUNTIF(O$4:O28,O28)-1) -> 20 | Q28: متوسط | S28: =K2 -> المشروع | T28: =COUNTIF(K4:K30,">="&K$3/2)/COUNT(K4:K30) -> 1 | U28: 0 | V28: =IF($U28="","",AVERAGE(K4:K30)/K$3) -> 0.832
S29: =M2 -> Exam | T29: =COUNTIF(M4:M30,">="&M$3/2)/COUNT(M4:M30) -> 0.88 | U29: 0.12 | V29: =IF($U29="","",AVERAGE(M4:M30)/M$3) -> 0.6232

Sheet 9-5
A1: Grade (9-5) كشف درجات الطلاب
A2: م | B2: اسم الطالب | C2: Quiz1 | D2: Quiz2 | E2: Quiz3 | F2: Quiz4 | G2: Quiz5 | H2: Quizzes | I2: الواجب | J2: المشاركة | K2: المشروع | L2: Total | M2: Exam | N2: Final | O2: Percent | P2: Rank | Q2: التقدير | S2: تحليل النتائج على حسب التقدير
C3: 5 | D3: 5 | E3: 5 | F3: 5 | G3: درجة5 | H3: 50 | I3: 25 | J3: 15 | K3: 10 | L3: 100 | M3: 100 | N3: 22.5 | O3: (%) | P3: الترتيب | S3: التقدير | T3: المجال | V3: عدد الطلاب | W3: النسبة
A4: 1 | B4: ابراهيم خالد ابودية | C4: 3 | D4: 4 | E4: 3 | F4: 4 | H4: =IF(AND(C4="",D4="",E4="",F4="",G4=""),"غ",$H$3*SUM(C4:G4)/SUM($C$3:$G$3)) -> 35 | I4: 24 | J4: 14 | K4: 9 | L4: =IF(AND(C4="",D4="",E4="",F4="",G4="",I4="",J4="",K4=""),"غ",SUM(H4:K4)) -> 82 | M4: 56 | N4: =IF(M4="","غ",IF(L4="غ",M4*0.2,SUM(L4*2.5/$L$3,M4*0.2))) -> 13.25 | O4: =IF(N4="غ","غ",N4*100/$N$3/100) -> 0.5888888889 | P4: =IF(AND(O4="غ"),"غ",RANK(O4,$O$4:$O$30)+COUNTIF(O$4:O4,O4)-1) -> 17 | Q4: =IF(O4="غ","غ",IF(O4>=90%,"ممتاز",IF(O4>=80%,"جيد جداً",IF(O4>=70%,"جيد",IF(O4>=60%,"فوق المتوسط",IF(O4>=50%,"متوسط",IF(O4>=40%,"دون المتوسط",IF(O4>=30%,"ضعيف","دون الضعيف جداً")))))))) -> متوسط | S4: ممتاز | T4: ≥ 90 | U4: A+ | V4: =COUNTIF(Q4:Q30,"ممتاز") -> 0 | W4: =(V4/$V$12) -> 0 | X4: =SUM(W4:W8) -> 0.8518518519
A5: 2 | B5: احمد نجيب خليفه هزيم الساده | C5: 1 | D5: 3 | E5: 1 | F5: 3 | H5: =IF(AND(C5="",D5="",E5="",F5="",G5=""),"غ",$H$3*SUM(C5:G5)/SUM($C$3:$G$3)) -> 20 | I5: 23 | J5: 13 | K5: 8 | L5: =IF(AND(C5="",D5="",E5="",F5="",G5="",I5="",J5="",K5=""),"غ",SUM(H5:K5)) -> 64 | M5: 62 | N5: =IF(M5="","غ",IF(L5="غ",M5*0.2,SUM(L5*2.5/$L$3,M5*0.2))) -> 14 | O5: =IF(N5="غ","غ",N5*100/$N$3/100) -> 0.6222222222 | P5: =IF(AND(O5="غ"),"غ",RANK(O5,$O$4:$O$30)+COUNTIF(O$4:O5,O5)-1) -> 14 | Q5: =IF(O5="غ","غ",IF(O5>=90%,"ممتاز",IF(O5>=80%,"جيد جداً",IF(O5>=70%,"جيد",IF(O5>=60%,"فوق المتوسط",IF(O5>=50%,"متوسط",IF(O5>=40%,"دون المتوسط",IF(O5>=30%,"ضعيف","دون الضعيف جداً")))))))) -> فوق المتوسط | S5: جيد جداً | T5: ≥ 80 | U5: A | V5: =COUNTIF(Q4:Q30,"جيد جداً") -> 2 | W5: 0.07407407407
A6: 3 | B6: جابر عبدالله سلطان محمد المحمدى | C6: 1 | D6: 4 | E6: 1 | F6: 4 | H6: 25 | I6: 23 | J6: 13 | K6: 9 | L6: 70 | M6: 62 | N6: 14.15 | O6: 0.6288888889 | P6: =IF(AND(O6="غ"),"غ",RANK(O6,$O$4:$O$30)+COUNTIF(O$4:O6,O6)-1) -> 13 | Q6: فوق المتوسط | S6: جيد | T6: ≥ 70 | U6: B+ | V6: =COUNTIF(Q4:Q30,"جيد") -> 3 | W6: 0.1111111111
A7: 4 | B7: جاسم ناصر عبداللطيف المحياس الكوارى | C7: 2 | D7: 5 | E7: 2 | F7: 5 | H7: 35 | I7: 24 | J7: 14 | K7: 9 | L7: 82 | M7: 50 | N7: 12.05 | O7: 0.5355555556 | P7: =IF(AND(O7="غ"),"غ",RANK(O7,$O$4:$O$30)+COUNTIF(O$4:O7,O7)-1) -> 23 | Q7: متوسط | S7: فوق المتوسط | T7: ≥ 60 | U7: B | V7: =COUNTIF(Q4:Q30,"فوق المتوسط") -> 11 | W7: 0.4074074074
A8: 5 | B8: خالد علي خليفه ال محمد النعيمى | C8: 3 | D8: 2 | E8: 3 | F8: 2 | H8: 25 | I8: 24 | J8: 14 | K8: 9 | L8: 72 | M8: 54 | N8: 12.6 | O8: 0.56 | P8: =IF(AND(O8="غ"),"غ",RANK(O8,$O$4:$O$30)+COUNTIF(O$4:O8,O8)-1) -> 20 | Q8: متوسط | S8: متوسط | T8: ≥ 50 | U8: C | V8: =COUNTIF(Q4:Q30,"متوسط") -> 7 | W8: 0.2592592593
A9: 6 | B9: راشد سعد سلطان لملوم المسيفرى | C9: 2 | D9: 2 | E9: 2 | F9: 2 | H9: 20 | I9: 23 | J9: 13 | K9: 8 | L9: 64 | M9: 62 | N9: 14 | O9: 0.6222222222 | P9: =IF(AND(O9="غ"),"غ",RANK(O9,$O$4:$O$30)+COUNTIF(O$4:O9,O9)-1) -> 15 | Q9: فوق المتوسط | S9: دون المتوسط | T9: ≥ 40 | U9: D | V9: =COUNTIF(Q4:Q30,"دون المتوسط") -> 3 | W9: 0.1111111111 | X9: =SUM(W9:W11) -> 0.1481481481
A10: 7 | B10: سالم جاسم ظاعن ال الشيخ الكوارى | C10: 3 | D10: 3 | E10: 3 | F10: 3 | H10: 30 | I10: 23 | J10: 13 | K10: 8 | L10: 74 | M10: 56 | N10: 13.05 | O10: 0.58 | P10: =IF(AND(O10="غ"),"غ",RANK(O10,$O$4:$O$30)+COUNTIF(O$4:O10,O10)-1) -> 18 | Q10: متوسط | S10: ضعيف | T10: ≥ 30 | U10: E | V10: =COUNTIF(Q4:Q30,"ضعيف") -> 1 | W10: 0.03703703704
A11: 8 | B11: سعد احمد سعد الجهام الكوارى | C11: 3 | D11: 4 | E11: 3 | F11: 4 | H11: 35 | I11: 24 | J11: 14 | K11: 9 | L11: 82 | M11: 64 | N11: 14.85 | O11: 0.66 | P11: =IF(AND(O11="غ"),"غ",RANK(O11,$O$4:$O$30)+COUNTIF(O$4:O11,O11)-1) -> 11 | Q11: فوق المتوسط | S11: دون الضعيف جداً | T11: < 30 | U11: F | V11: =COUNTIF(Q4:Q30,"دون الضعيف جداً") -> 0 | W11: 0
A12: 9 | B12: سعد راشد الكشاشي المهندي | C12: 2 | D12: 5 | E12: 2 | F12: 5 | H12: 35 | I12: 24 | J12: 14 | K12: 9 | L12: 82 | M12: 68 | N12: 15.65 | O12: 0.6955555556 | P12: =IF(AND(O12="غ"),"غ",RANK(O12,$O$4:$O$30)+COUNTIF(O$4:O12,O12)-1) -> 6 | Q12: فوق المتوسط | S12: عدد الطلاب الذي تم اختبارهم | V12: =SUM(V4:V11) -> 27 | W12: =V12/SUM(V12:V13) -> 1
A13: 10 | B13: سلطان فهد محمد ناصر الدهيمى | C13: 5 | D13: 4 | E13: 5 | F13: 4 | H13: 45 | I13: 24 | J13: 14 | K13: 9 | L13: 92 | M13: 86 | N13: 19.5 | O13: 0.8666666667 | P13: =IF(AND(O13="غ"),"غ",RANK(O13,$O$4:$O$30)+COUNTIF(O$4:O13,O13)-1) -> 1 | Q13: جيد جداً | S13: عدد الطلاب الغائبين | V13: =COUNTA(B4:B30)-V12 -> 0 | W13: =V13/SUM(V12:V13) -> 0
A14: 11 | B14: عبد الرحمن سمير عبد العزيز عبد الونيس | C14: 3 | D14: 4 | E14: 3 | F14: 4 | H14: 35 | I14: 24 | J14: 14 | K14: 9 | L14: 82 | M14: 66 | N14: 15.25 | O14: 0.6777777778 | P14: =IF(AND(O14="غ"),"غ",RANK(O14,$O$4:$O$30)+COUNTIF(O$4:O14,O14)-1) -> 9 | Q14: فوق المتوسط
A15: 12 | B15: عبدالرحمن سعود عبدالله ناصر الخليفى | C15: 3 | D15: 2 | E15: 3 | F15: 2 | H15: 25 | I15: 22 | J15: 13 | K15: 8 | L15: 68 | M15: 54 | N15: 12.5 | O15: 0.5555555556 | P15: =IF(AND(O15="غ"),"غ",RANK(O15,$O$4:$O$30)+COUNTIF(O$4:O15,O15)-1) -> 21 | Q15: متوسط | S15: الطلاب | T15: العدد | U15: النسبة
A16: 13 | B16: عبدالرحمن محمد ميزارا ابراهيم ابراهيم | C16: 1 | D16: 3 | E16: 1 | F16: 3 | H16: 20 | I16: 23 | J16: 13 | K16: 8 | L16: 64 | M16: 38 | N16: 9.2 | O16: 0.4088888889 | P16: =IF(AND(O16="غ"),"غ",RANK(O16,$O$4:$O$30)+COUNTIF(O$4:O16,O16)-1) -> 26 | Q16: دون المتوسط | S16: الناجحين | T16: =SUM(V4:V8) -> 23 | U16: =X4 -> 0.8518518519
A17: 14 | B17: عبدالرحمن ناصر احمد عامر الهلابى | D17: 2 | F17: 2 | H17: 10 | I17: 24 | J17: 14 | K17: 9 | L17: 57 | M17: 70 | N17: 15.425 | O17: 0.6855555556 | P17: =IF(AND(O17="غ"),"غ",RANK(O17,$O$4:$O$30)+COUNTIF(O$4:O17,O17)-1) -> 7 | Q17: فوق المتوسط | S17: الراسبين | T17: =SUM(V9:V11) -> 4 | U17: =X9 -> 0.1481481481
A18: 15 | B18: عبدالعزيز محمد مهدى عبدالله العجمى | C18: 2 | D18: 1 | E18: 2 | F18: 1 | H18: 15 | I18: 23 | J18: 13 | K18: 8 | L18: 59 | M18: 34 | N18: 8.275 | O18: 0.3677777778 | P18: =IF(AND(O18="غ"),"غ",RANK(O18,$O$4:$O$30)+COUNTIF(O$4:O18,O18)-1) -> 27 | Q18: ضعيف | S18: المجموع | T18: =SUM(T16:T17) -> 27 | U18: =SUM(U16:U17) -> 1
A19: 16 | B19: عبدالله جاسم صالح عبدالله الغزال | C19: 4 | D19: 5 | E19: 4 | F19: 5 | H19: 45 | I19: 24 | J19: 14 | K19: 9 | L19: 92 | M19: 68 | N19: 15.9 | O19: 0.7066666667 | P19: =IF(AND(O19="غ"),"غ",RANK(O19,$O$4:$O$30)+COUNTIF(O$4:O19,O19)-1) -> 5 | Q19: جيد
A20: 17 | B20: عبدالله خليفه عبدالله مالالله احمد | C20: 1 | D20: 2 | E20: 1 | F20: 2 | H20: 15 | I20: 23 | J20: 14 | K20: 9 | L20: 61 | M20: 56 | N20: 12.725 | O20: 0.5655555556 | P20: =IF(AND(O20="غ"),"غ",RANK(O20,$O$4:$O$30)+COUNTIF(O$4:O20,O20)-1) -> 19 | Q20: متوسط | S20: التحصيل الأكاديمي | U20: =AVERAGE(M4:M30)/M$3 -> 0.6066666667
A21: 18 | B21: عبدالله سلمان الماس جمعه احمد | C21: 1 | D21: 2 | E21: 1 | F21: 2 | H21: 15 | I21: 23 | J21: 14 | K21: 8 | L21: 60 | M21: 46 | N21: 10.7 | O21: 0.4755555556 | P21: =IF(AND(O21="غ"),"غ",RANK(O21,$O$4:$O$30)+COUNTIF(O$4:O21,O21)-1) -> 24 | Q21: دون المتوسط
A22: 19 | B22: عبدالله ناصر عيسى سعد النصف | C22: 3 | D22: 4 | E22: 3 | F22: 4 | H22: 35 | I22: 24 | J22: 14 | K22: 9 | L22: 82 | M22: 74 | N22: 16.85 | O22: 0.7488888889 | P22: =IF(AND(O22="غ"),"غ",RANK(O22,$O$4:$O$30)+COUNTIF(O$4:O22,O22)-1) -> 4 | Q22: جيد
A23: 20 | B23: علي عبدالرحمن يوسف عبدالله الغزال | C23: 4 | D23: 5 | E23: 4 | F23: 5 | H23: 45 | I23: 24 | J23: 14 | K23: 9 | L23: 92 | M23: 82 | N23: 18.7 | O23: 0.8311111111 | P23: =IF(AND(O23="غ"),"غ",RANK(O23,$O$4:$O$30)+COUNTIF(O$4:O23,O23)-1) -> 2 | Q23: جيد جداً
A24: 21 | B24: علي محمد علي خميس المسلمانى | C24: 3 | D24: 3 | E24: 3 | F24: 3 | H24: 30 | I24: 23 | J24: 14 | K24: 9 | L24: 76 | M24: 58 | N24: 13.5 | O24: 0.6 | P24: =IF(AND(O24="غ"),"غ",RANK(O24,$O$4:$O$30)+COUNTIF(O$4:O24,O24)-1) -> 16 | Q24: فوق المتوسط | S24: الفرع | T24: الناجحين | U24: الراسبين | V24: التحصيل
A25: 22 | B25: عيد علي عيد الخويطر العجمى | C25: 3 | D25: 2 | E25: 3 | F25: 2 | H25: 25 | I25: 23 | J25: 13 | K25: 8 | L25: 69 | M25: 66 | N25: 14.925 | O25: 0.6633333333 | P25: =IF(AND(O25="غ"),"غ",RANK(O25,$O$4:$O$30)+COUNTIF(O$4:O25,O25)-1) -> 10 | Q25: فوق المتوسط | S25: =H2 -> Quizzes | T25: =COUNTIF(H4:H30,">="&H$3/2)/COUNT(H4:H30) -> 0.6666666667 | U25: =IF(T25="","",100%-T25) -> 0.3333333333 | V25: =IF($U25="","",AVERAGE(H4:H30)/H$3) -> 0.5555555556
A26: 23 | B26: مبارك فرج سويد فرج العبدالله | C26: 3 | D26: 5 | E26: 3 | F26: 5 | H26: 40 | I26: 24 | J26: 14 | K26: 9 | L26: 87 | M26: 74 | N26: 16.975 | O26: 0.7544444444 | P26: =IF(AND(O26="غ"),"غ",RANK(O26,$O$4:$O$30)+COUNTIF(O$4:O26,O26)-1) -> 3 | Q26: جيد | S26: =I2 -> الواجب | T26: =COUNTIF(I4:I30,">="&I$3/2)/COUNT(I4:I30) -> 1 | U26: 0 | V26: =IF($U26="","",AVERAGE(I4:I30)/I$3) -> 0.9392592593
A27: 24 | B27: محمد ناصر عبدالله العطشان السليطى | C27: 3 | D27: 4 | E27: 3 | F27: 4 | H27: 35 | I27: 24 | J27: 13 | K27: 9 | L27: 81 | M27: 64 | N27: 14.825 | O27: 0.6588888889 | P27: =IF(AND(O27="غ"),"غ",RANK(O27,$O$4:$O$30)+COUNTIF(O$4:O27,O27)-1) -> 12 | Q27: فوق المتوسط | S27: =J2 -> المشاركة | T27: =COUNTIF(J4:J30,">="&J$3/2)/COUNT(J4:J30) -> 1 | U27: 0 | V27: =IF($U27="","",AVERAGE(J4:J30)/J$3) -> 0.9061728395
A28: 25 | B28: محمد يوسف عبدالله جاسم الشملان | C28: 3 | D28: 0 | E28: 3 | F28: 0 | H28: 15 | I28: 23 | J28: 13 | K28: 9 | L28: 60 | M28: 46 | N28: 10.7 | O28: 0.4755555556 | P28: =IF(AND(O28="غ"),"غ",RANK(O28,$O$4:$O$30)+COUNTIF(O$4:O28,O28)-1) -> 25 | Q28: دون المتوسط | S28: =K2 -> المشروع | T28: =COUNTIF(K4:K30,">="&K$3/2)/COUNT(K4:K30) -> 1 | U28: 0 | V28: =IF($U28="","",AVERAGE(K4:K30)/K$3) -> 0.8703703704
A29: 26 | B29: مساعد خالد عبدالله حسين اليافعى | C29: 3 | D29: 2 | E29: 3 | F29: 2 | H29: =IF(AND(C29="",D29="",E29="",F29="",G29=""),"غ",$H$3*SUM(C29:G29)/SUM($C$3:$G$3)) -> 25 | I29: 24 | J29: 14 | K29: 9 | L29: =IF(AND(C29="",D29="",E29="",F29="",G29="",I29="",J29="",K29=""),"غ",SUM(H29:K29)) -> 72 | M29: 68 | N29: =IF(M29="","غ",IF(L29="غ",M29*0.2,SUM(L29*2.5/$L$3,M29*0.2))) -> 15.4 | O29: 0.6844444444 | P29: =IF(AND(O29="غ"),"غ",RANK(O29,$O$4:$O$30)+COUNTIF(O$4:O29,O29)-1) -> 8 | Q29: =IF(O29="غ","غ",IF(O29>=90%,"ممتاز",IF(O29>=80%,"جيد جداً",IF(O29>=70%,"جيد",IF(O29>=60%,"فوق المتوسط",IF(O29>=50%,"متوسط",IF(O29>=40%,"دون المتوسط",IF(O29>=30%,"ضعيف","دون الضعيف جداً")))))))) -> فوق المتوسط | S29: =M2 -> Exam | T29: =COUNTIF(M4:M30,">="&M$3/2)/COUNT(M4:M30) -> 0.8518518519 | U29: 0.1481481481 | V29: =IF($U29="","",AVERAGE(M4:M30)/M$3) -> 0.6066666667
A30: 27 | B30: يوسف محمد يوسف عبدالله حاجى | C30: 2 | D30: 1 | E30: 2 | F30: 1 | H30: =IF(AND(C30="",D30="",E30="",F30="",G30=""),"غ",$H$3*SUM(C30:G30)/SUM($C$3:$G$3)) -> 15 | I30: 23 | J30: 13 | K30: 9 | L30: =IF(AND(C30="",D30="",E30="",F30="",G30="",I30="",J30="",K30=""),"غ",SUM(H30:K30)) -> 60 | M30: 54 | N30: =IF(M30="","غ",IF(L30="غ",M30*0.2,SUM(L30*2.5/$L$3,M30*0.2))) -> 12.3 | O30: =IF(N30="غ","غ",N30*100/$N$3/100) -> 0.5466666667 | P30: =IF(AND(O30="غ"),"غ",RANK(O30,$O$4:$O$30)+COUNTIF(O$4:O30,O30)-1) -> 22 | Q30: =IF(O30="غ","غ",IF(O30>=90%,"ممتاز",IF(O30>=80%,"جيد جداً",IF(O30>=70%,"جيد",IF(O30>=60%,"فوق المتوسط",IF(O30>=50%,"متوسط",IF(O30>=40%,"دون المتوسط",IF(O30>=30%,"ضعيف","دون الضعيف جداً")))))))) -> متوسط
A31: 28

Sheet 9-6
A1: Grade (9-6) كشف درجات الطلاب
A2: م | B2: اسم الطالب | C2: Quiz1 | D2: Quiz2 | E2: Quiz3 | F2: Quiz4 | G2: Quiz5 | H2: Quizzes | I2: الواجب | J2: المشاركة | K2: المشروع | L2: Total | M2: Exam | N2: Final | O2: Percent | P2: Rank | Q2: التقدير | S2: تحليل النتائج على حسب التقدير
C3: 5 | D3: 5 | E3: 5 | F3: 5 | G3: درجة5 | H3: 50 | I3: 25 | J3: 15 | K3: 10 | L3: 100 | M3: 100 | N3: 22.5 | O3: (%) | P3: الترتيب | S3: التقدير | T3: المجال | V3: عدد الطلاب | W3: النسبة
A4: 1 | B4: ابراهيم فيصل ابراهيم محمد الجذيع | C4: 4 | D4: 4 | E4: 4 | F4: 4 | H4: =IF(AND(C4="",D4="",E4="",F4="",G4=""),"غ",$H$3*SUM(C4:G4)/SUM($C$3:$G$3)) -> 40 | I4: 24 | J4: 13 | K4: 9 | L4: =IF(AND(C4="",D4="",E4="",F4="",G4="",I4="",J4="",K4=""),"غ",SUM(H4:K4)) -> 86 | M4: 58 | N4: =IF(M4="","غ",IF(L4="غ",M4*0.2,SUM(L4*2.5/$L$3,M4*0.2))) -> 13.75 | O4: =IF(N4="غ","غ",N4*100/$N$3/100) -> 0.6111111111 | P4: =IF(AND(O4="غ"),"غ",RANK(O4,$O$4:$O$30)+COUNTIF(O$4:O4,O4)-1) -> 9 | Q4: =IF(O4="غ","غ",IF(O4>=90%,"ممتاز",IF(O4>=80%,"جيد جداً",IF(O4>=70%,"جيد",IF(O4>=60%,"فوق المتوسط",IF(O4>=50%,"متوسط",IF(O4>=40%,"دون المتوسط",IF(O4>=30%,"ضعيف","دون الضعيف جداً")))))))) -> فوق المتوسط | S4: ممتاز | T4: ≥ 90 | U4: A+ | V4: =COUNTIF(Q4:Q30,"ممتاز") -> 0 | W4: =(V4/$V$12) -> 0 | X4: =SUM(W4:W8) -> 0.76
A5: 2 | B5: اسامه السيد عبدالعال | C5: 5 | D5: 5 | E5: 5 | F5: 5 | H5: =IF(AND(C5="",D5="",E5="",F5="",G5=""),"غ",$H$3*SUM(C5:G5)/SUM($C$3:$G$3)) -> 50 | I5: 24 | J5: 14 | K5: 9 | L5: =IF(AND(C5="",D5="",E5="",F5="",G5="",I5="",J5="",K5=""),"غ",SUM(H5:K5)) -> 97 | M5: 68 | N5: =IF(M5="","غ",IF(L5="غ",M5*0.2,SUM(L5*2.5/$L$3,M5*0.2))) -> 16.025 | O5: =IF(N5="غ","غ",N5*100/$N$3/100) -> 0.7122222222 | P5: =IF(AND(O5="غ"),"غ",RANK(O5,$O$4:$O$30)+COUNTIF(O$4:O5,O5)-1) -> 4 | Q5: =IF(O5="غ","غ",IF(O5>=90%,"ممتاز",IF(O5>=80%,"جيد جداً",IF(O5>=70%,"جيد",IF(O5>=60%,"فوق المتوسط",IF(O5>=50%,"متوسط",IF(O5>=40%,"دون المتوسط",IF(O5>=30%,"ضعيف","دون الضعيف جداً")))))))) -> جيد | S5: جيد جداً | T5: ≥ 80 | U5: A | V5: =COUNTIF(Q4:Q30,"جيد جداً") -> 0 | W5: 0
A6: 3 | B6: تميم فهد جوهر سعيد المحمد | D6: 2 | F6: 2 | H6: 10 | I6: 21 | J6: 12 | K6: 7 | L6: 50 | M6: 54 | N6: 12.05 | O6: 0.5355555556 | P6: =IF(AND(O6="غ"),"غ",RANK(O6,$O$4:$O$30)+COUNTIF(O$4:O6,O6)-1) -> 15 | Q6: متوسط | S6: جيد | T6: ≥ 70 | U6: B+ | V6: =COUNTIF(Q4:Q30,"جيد") -> 5 | W6: 0.2
A7: 4 | B7: خالد حسن محمد احمد المحمود | D7: 3 | F7: 3 | H7: 15 | I7: 23 | J7: 12 | K7: 8 | L7: 58 | M7: 42 | N7: 9.85 | O7: 0.4377777778 | P7: =IF(AND(O7="غ"),"غ",RANK(O7,$O$4:$O$30)+COUNTIF(O$4:O7,O7)-1) -> 22 | Q7: دون المتوسط | S7: فوق المتوسط | T7: ≥ 60 | U7: B | V7: =COUNTIF(Q4:Q30,"فوق المتوسط") -> 4 | W7: 0.16
A8: 5 | B8: خالد محمد عمران علي الكوارى | C8: 3 | D8: 4 | E8: 3 | F8: 4 | H8: 35 | I8: 23 | J8: 13 | K8: 8 | L8: 79 | M8: 50 | N8: 11.975 | O8: 0.5322222222 | P8: =IF(AND(O8="غ"),"غ",RANK(O8,$O$4:$O$30)+COUNTIF(O$4:O8,O8)-1) -> 16 | Q8: متوسط | S8: متوسط | T8: ≥ 50 | U8: C | V8: =COUNTIF(Q4:Q30,"متوسط") -> 10 | W8: 0.4
A9: 6 | B9: خليفه عبدالله محمد اسماعيل البوعينين | C9: 2 | D9: 3 | E9: 2 | F9: 3 | H9: 25 | I9: 23 | J9: 13 | K9: 8 | L9: 69 | M9: 54 | N9: 12.525 | O9: 0.5566666667 | P9: =IF(AND(O9="غ"),"غ",RANK(O9,$O$4:$O$30)+COUNTIF(O$4:O9,O9)-1) -> 13 | Q9: متوسط | S9: دون المتوسط | T9: ≥ 40 | U9: D | V9: =COUNTIF(Q4:Q30,"دون المتوسط") -> 4 | W9: 0.16 | X9: =SUM(W9:W11) -> 0.24
A10: 7 | B10: راشد محمد راشد سالم المريخى | C10: 4 | D10: 4 | E10: 4 | F10: 4 | H10: 40 | I10: 24 | J10: 14 | K10: 9 | L10: 87 | M10: 72 | N10: 16.575 | O10: 0.7366666667 | P10: =IF(AND(O10="غ"),"غ",RANK(O10,$O$4:$O$30)+COUNTIF(O$4:O10,O10)-1) -> 2 | Q10: جيد | S10: ضعيف | T10: ≥ 30 | U10: E | V10: =COUNTIF(Q4:Q30,"ضعيف") -> 2 | W10: 0.08
A11: 8 | B11: سعود منصور مرزوق حسن المنصور | D11: 3 | F11: 3 | H11: 15 | I11: 23 | J11: 12 | K11: 8 | L11: 58 | M11: 64 | N11: 14.25 | O11: 0.6333333333 | P11: =IF(AND(O11="غ"),"غ",RANK(O11,$O$4:$O$30)+COUNTIF(O$4:O11,O11)-1) -> 8 | Q11: فوق المتوسط | S11: دون الضعيف جداً | T11: < 30 | U11: F | V11: =COUNTIF(Q4:Q30,"دون الضعيف جداً") -> 0 | W11: 0
A12: 9 | B12: صالح جوهر مفتاح الحسن المهندى | D12: 3 | F12: 3 | H12: 15 | I12: 23 | J12: 12 | K12: 8 | L12: 58 | M12: 54 | N12: 12.25 | O12: 0.5444444444 | P12: =IF(AND(O12="غ"),"غ",RANK(O12,$O$4:$O$30)+COUNTIF(O$4:O12,O12)-1) -> 14 | Q12: متوسط | S12: عدد الطلاب الذي تم اختبارهم | V12: =SUM(V4:V11) -> 25 | W12: =V12/SUM(V12:V13) -> 0.9615384615
A13: 10 | B13: طارق نبيل محمد العلي | D13: 4 | F13: 4 | H13: 20 | I13: 24 | J13: 14 | K13: 9 | L13: 67 | M13: 68 | N13: 15.275 | O13: 0.6788888889 | P13: =IF(AND(O13="غ"),"غ",RANK(O13,$O$4:$O$30)+COUNTIF(O$4:O13,O13)-1) -> 6 | Q13: فوق المتوسط | S13: عدد الطلاب الغائبين | V13: =COUNTA(B4:B30)-V12 -> 1 | W13: =V13/SUM(V12:V13) -> 0.03846153846
A14: 11 | B14: عبدالرحمن محمد غلوم مندنى العشار | C14: 4 | D14: 2 | E14: 4 | F14: 2 | H14: 30 | I14: 23 | J14: 12 | K14: 8 | L14: 73 | M14: 50 | N14: 11.825 | O14: 0.5255555556 | P14: =IF(AND(O14="غ"),"غ",RANK(O14,$O$4:$O$30)+COUNTIF(O$4:O14,O14)-1) -> 17 | Q14: متوسط
A15: 12 | B15: عبدالرحمن يعقوب علي حسين الكاظم | C15: 2 | D15: 2 | E15: 2 | F15: 2 | H15: 20 | I15: 22 | J15: 12 | K15: 7 | L15: 61 | M15: 50 | N15: 11.525 | O15: 0.5122222222 | P15: =IF(AND(O15="غ"),"غ",RANK(O15,$O$4:$O$30)+COUNTIF(O$4:O15,O15)-1) -> 19 | Q15: متوسط | S15: الطلاب | T15: العدد | U15: النسبة
A16: 13 | B16: عبدالعزيز سعيد ابراهيم ابوزناد | C16: 2 | D16: 5 | E16: 2 | F16: 5 | H16: 35 | I16: 24 | J16: 14 | K16: 9 | L16: 82 | M16: 72 | N16: 16.45 | O16: 0.7311111111 | P16: =IF(AND(O16="غ"),"غ",RANK(O16,$O$4:$O$30)+COUNTIF(O$4:O16,O16)-1) -> 3 | Q16: جيد | S16: الناجحين | T16: =SUM(V4:V8) -> 19 | U16: =X4 -> 0.76
A17: 14 | B17: عبداللة عيسى عبدالله بابصيل | C17: 3 | D17: 3 | E17: 3 | F17: 3 | H17: 30 | I17: 23 | J17: 13 | K17: 8 | L17: 74 | M17: 46 | N17: 11.05 | O17: 0.4911111111 | P17: =IF(AND(O17="غ"),"غ",RANK(O17,$O$4:$O$30)+COUNTIF(O$4:O17,O17)-1) -> 20 | Q17: دون المتوسط | S17: الراسبين | T17: =SUM(V9:V11) -> 6 | U17: =X9 -> 0.24
A18: 15 | B18: عبداللطيف محمد حمود الدحيم الدوسرى | C18: 3 | D18: 5 | E18: 3 | F18: 5 | H18: 40 | I18: 24 | J18: 14 | K18: 9 | L18: 87 | M18: 54 | N18: 12.975 | O18: 0.5766666667 | P18: =IF(AND(O18="غ"),"غ",RANK(O18,$O$4:$O$30)+COUNTIF(O$4:O18,O18)-1) -> 11 | Q18: متوسط | S18: المجموع | T18: =SUM(T16:T17) -> 25 | U18: =SUM(U16:U17) -> 1
A19: 16 | B19: عبدالله اسماعيل محمد عرسان | C19: 3 | D19: 5 | E19: 3 | F19: 5 | H19: 40 | I19: 23 | J19: 13 | K19: 8 | L19: 84 | M19: 54 | N19: 12.9 | O19: 0.5733333333 | P19: =IF(AND(O19="غ"),"غ",RANK(O19,$O$4:$O$30)+COUNTIF(O$4:O19,O19)-1) -> 12 | Q19: متوسط
A20: 17 | B20: عبدالله فرج عباس فرج الماس | H20: غ | I20: 20 | J20: 12 | K20: 7 | L20: 39 | N20: غ | O20: غ | P20: =IF(AND(O20="غ"),"غ",RANK(O20,$O$4:$O$30)+COUNTIF(O$4:O20,O20)-1) -> غ | Q20: غ | S20: التحصيل الأكاديمي | U20: =AVERAGE(M4:M30)/M$3 -> 0.5488
A21: 18 | B21: فيصل احمد محمد طرار الرميحى | D21: 4 | F21: 4 | H21: 20 | I21: 23 | J21: 12 | K21: 7 | L21: 62 | M21: 50 | N21: 11.55 | O21: 0.5133333333 | P21: =IF(AND(O21="غ"),"غ",RANK(O21,$O$4:$O$30)+COUNTIF(O$4:O21,O21)-1) -> 18 | Q21: متوسط
A22: 19 | B22: ماجد خالد حسن صالح الكوارى | D22: 2 | F22: 2 | H22: 10 | I22: 22 | J22: 12 | K22: 7 | L22: 51 | M22: 42 | N22: 9.675 | O22: 0.43 | P22: =IF(AND(O22="غ"),"غ",RANK(O22,$O$4:$O$30)+COUNTIF(O$4:O22,O22)-1) -> 23 | Q22: دون المتوسط
A23: 20 | B23: مبارك عبدالله مبارك عيسى الكعبى | D23: 2 | F23: 2 | H23: 10 | I23: 22 | J23: 12 | K23: 7 | L23: 51 | M23: 30 | N23: 7.275 | O23: 0.3233333333 | P23: =IF(AND(O23="غ"),"غ",RANK(O23,$O$4:$O$30)+COUNTIF(O$4:O23,O23)-1) -> 25 | Q23: ضعيف
A24: 21 | B24: مبارك محمد عبدالقادر محمد جلال | C24: 3 | D24: 4 | E24: 3 | F24: 4 | H24: 35 | I24: 23 | J24: 13 | K24: 8 | L24: 79 | M24: 62 | N24: 14.375 | O24: 0.6388888889 | P24: =IF(AND(O24="غ"),"غ",RANK(O24,$O$4:$O$30)+COUNTIF(O$4:O24,O24)-1) -> 7 | Q24: فوق المتوسط | S24: الفرع | T24: الناجحين | U24: الراسبين | V24: التحصيل
A25: 22 | B25: محمد صالح محمد المحرى المهندى | C25: 2 | D25: 5 | E25: 2 | F25: 5 | H25: 35 | I25: 22 | J25: 12 | K25: 7 | L25: 76 | M25: 56 | N25: 13.1 | O25: 0.5822222222 | P25: =IF(AND(O25="غ"),"غ",RANK(O25,$O$4:$O$30)+COUNTIF(O$4:O25,O25)-1) -> 10 | Q25: متوسط | S25: =H2 -> Quizzes | T25: =COUNTIF(H4:H30,">="&H$3/2)/COUNT(H4:H30) -> 0.56 | U25: =IF(T25="","",100%-T25) -> 0.44 | V25: =IF($U25="","",AVERAGE(H4:H30)/H$3) -> 0.54
A26: 23 | B26: ناصر شاهين خميس بوجسوم البدر | D26: 2 | F26: 2 | H26: 10 | I26: 22 | J26: 12 | K26: 7 | L26: 51 | M26: 46 | N26: 10.475 | O26: 0.4655555556 | P26: =IF(AND(O26="غ"),"غ",RANK(O26,$O$4:$O$30)+COUNTIF(O$4:O26,O26)-1) -> 21 | Q26: دون المتوسط | S26: =I2 -> الواجب | T26: =COUNTIF(I4:I30,">="&I$3/2)/COUNT(I4:I30) -> 1 | U26: 0 | V26: =IF($U26="","",AVERAGE(I4:I30)/I$3) -> 0.9153846154
A27: 24 | B27: ناصر علي عيسى عبدالله النعيمى | C27: 3 | D27: 5 | E27: 3 | F27: 5 | H27: 40 | I27: 24 | J27: 14 | K27: 9 | L27: 87 | M27: 76 | N27: 17.375 | O27: 0.7722222222 | P27: =IF(AND(O27="غ"),"غ",RANK(O27,$O$4:$O$30)+COUNTIF(O$4:O27,O27)-1) -> 1 | Q27: جيد | S27: =J2 -> المشاركة | T27: =COUNTIF(J4:J30,">="&J$3/2)/COUNT(J4:J30) -> 1 | U27: 0 | V27: =IF($U27="","",AVERAGE(J4:J30)/J$3) -> 0.8512820513
A28: 25 | B28: ناصر محمد جاسم ناصر المسلمانى | C28: 3 | D28: 5 | E28: 3 | F28: 5 | H28: 40 | I28: 24 | J28: 14 | K28: 9 | L28: 87 | M28: 68 | N28: 15.775 | O28: 0.7011111111 | P28: =IF(AND(O28="غ"),"غ",RANK(O28,$O$4:$O$30)+COUNTIF(O$4:O28,O28)-1) -> 5 | Q28: جيد | S28: =K2 -> المشروع | T28: =COUNTIF(K4:K30,">="&K$3/2)/COUNT(K4:K30) -> 1 | U28: 0 | V28: =IF($U28="","",AVERAGE(K4:K30)/K$3) -> 0.7961538462
A29: 26 | B29: يوسف خالد هلال العنزي | C29: 2 | D29: 1 | E29: 2 | F29: 1 | H29: =IF(AND(C29="",D29="",E29="",F29="",G29=""),"غ",$H$3*SUM(C29:G29)/SUM($C$3:$G$3)) -> 15 | I29: 22 | J29: 12 | K29: 7 | L29: =IF(AND(C29="",D29="",E29="",F29="",G29="",I29="",J29="",K29=""),"غ",SUM(H29:K29)) -> 56 | M29: 32 | N29: =IF(M29="","غ",IF(L29="غ",M29*0.2,SUM(L29*2.5/$L$3,M29*0.2))) -> 7.8 | O29: 0.3466666667 | P29: =IF(AND(O29="غ"),"غ",RANK(O29,$O$4:$O$30)+COUNTIF(O$4:O29,O29)-1) -> 24 | Q29: =IF(O29="غ","غ",IF(O29>=90%,"ممتاز",IF(O29>=80%,"جيد جداً",IF(O29>=70%,"جيد",IF(O29>=60%,"فوق المتوسط",IF(O29>=50%,"متوسط",IF(O29>=40%,"دون المتوسط",IF(O29>=30%,"ضعيف","دون الضعيف جداً")))))))) -> ضعيف | S29: =M2 -> Exam | T29: =COUNTIF(M4:M30,">="&M$3/2)/COUNT(M4:M30) -> 0.76 | U29: 0.24 | V29: =IF($U29="","",AVERAGE(M4:M30)/M$3) -> 0.5488

Sheet 9-7
A1: Grade (9-7) كشف درجات الطلاب
A2: م | B2: اسم الطالب | C2: Quiz1 | D2: Quiz2 | E2: Quiz3 | F2: Quiz4 | G2: Quiz5 | H2: Quizzes | I2: الواجب | J2: المشاركة | K2: المشروع | L2: Total | M2: Exam | N2: Final | O2: Percent | P2: Rank | Q2: التقدير | S2: تحليل النتائج على حسب التقدير
C3: 5 | D3: 5 | E3: 5 | F3: 5 | G3: درجة5 | H3: 50 | I3: 25 | J3: 15 | K3: 10 | L3: 100 | M3: 100 | N3: 22.5 | O3: (%) | P3: الترتيب | S3: التقدير | T3: المجال | V3: عدد الطلاب | W3: النسبة
A4: 1 | B4: احمد خليفه عبدالله البطى الكعبى | C4: 2 | D4: 2.5 | E4: 2 | F4: 2.5 | H4: =IF(AND(C4="",D4="",E4="",F4="",G4=""),"غ",$H$3*SUM(C4:G4)/SUM($C$3:$G$3)) -> 22.5 | I4: 16 | J4: 11 | K4: 6 | L4: =IF(AND(C4="",D4="",E4="",F4="",G4="",I4="",J4="",K4=""),"غ",SUM(H4:K4)) -> 55.5 | M4: 38 | N4: =IF(M4="","غ",IF(L4="غ",M4*0.2,SUM(L4*2.5/$L$3,M4*0.2))) -> 8.9875 | O4: =IF(N4="غ","غ",N4*100/$N$3/100) -> 0.3994444444 | P4: =IF(AND(O4="غ"),"غ",RANK(O4,$O$4:$O$30)+COUNTIF(O$4:O4,O4)-1) -> 25 | Q4: =IF(O4="غ","غ",IF(O4>=90%,"ممتاز",IF(O4>=80%,"جيد جداً",IF(O4>=70%,"جيد",IF(O4>=60%,"فوق المتوسط",IF(O4>=50%,"متوسط",IF(O4>=40%,"دون المتوسط",IF(O4>=30%,"ضعيف","دون الضعيف جداً")))))))) -> ضعيف | S4: ممتاز | T4: ≥ 90 | U4: A+ | V4: =COUNTIF(Q4:Q30,"ممتاز") -> 0 | W4: =(V4/$V$12) -> 0 | X4: =SUM(W4:W8) -> 0.8076923077
A5: 2 | B5: احمد فهد علي خميس المسلمانى | C5: 4 | D5: 3.5 | E5: 4 | F5: 3.5 | H5: =IF(AND(C5="",D5="",E5="",F5="",G5=""),"غ",$H$3*SUM(C5:G5)/SUM($C$3:$G$3)) -> 37.5 | I5: 23 | J5: 12 | K5: 8 | L5: =IF(AND(C5="",D5="",E5="",F5="",G5="",I5="",J5="",K5=""),"غ",SUM(H5:K5)) -> 80.5 | M5: 70 | N5: =IF(M5="","غ",IF(L5="غ",M5*0.2,SUM(L5*2.5/$L$3,M5*0.2))) -> 16.0125 | O5: =IF(N5="غ","غ",N5*100/$N$3/100) -> 0.7116666667 | P5: =IF(AND(O5="غ"),"غ",RANK(O5,$O$4:$O$30)+COUNTIF(O$4:O5,O5)-1) -> 3 | Q5: =IF(O5="غ","غ",IF(O5>=90%,"ممتاز",IF(O5>=80%,"جيد جداً",IF(O5>=70%,"جيد",IF(O5>=60%,"فوق المتوسط",IF(O5>=50%,"متوسط",IF(O5>=40%,"دون المتوسط",IF(O5>=30%,"ضعيف","دون الضعيف جداً")))))))) -> جيد | S5: جيد جداً | T5: ≥ 80 | U5: A | V5: =COUNTIF(Q4:Q30,"جيد جداً") -> 0 | W5: 0
A6: 3 | B6: بلال جوهر بلال جوهر العبدالله | C6: 3 | D6: 1.5 | E6: 3 | F6: 1.5 | H6: 22.5 | I6: 22 | J6: 11 | K6: 5 | L6: 60.5 | M6: 54 | N6: 12.3125 | O6: 0.5472222222 | P6: =IF(AND(O6="غ"),"غ",RANK(O6,$O$4:$O$30)+COUNTIF(O$4:O6,O6)-1) -> 14 | Q6: متوسط | S6: جيد | T6: ≥ 70 | U6: B+ | V6: =COUNTIF(Q4:Q30,"جيد") -> 3 | W6: 0.1153846154
A7: 4 | B7: حمود خالد عيسى عبدالرزاق المريخى | C7: 2 | D7: 3 | E7: 2 | F7: 3 | H7: 25 | I7: 17 | J7: 9 | K7: 5 | L7: 56 | M7: 52 | N7: 11.8 | O7: 0.5244444444 | P7: =IF(AND(O7="غ"),"غ",RANK(O7,$O$4:$O$30)+COUNTIF(O$4:O7,O7)-1) -> 18 | Q7: متوسط | S7: فوق المتوسط | T7: ≥ 60 | U7: B | V7: =COUNTIF(Q4:Q30,"فوق المتوسط") -> 2 | W7: 0.07692307692
A8: 5 | B8: خالد أدريس محمد احمد | C8: 1 | D8: 3 | E8: 1 | F8: 3 | H8: 20 | I8: 23 | J8: 13 | K8: 9 | L8: 65 | M8: 72 | N8: 16.025 | O8: 0.7122222222 | P8: =IF(AND(O8="غ"),"غ",RANK(O8,$O$4:$O$30)+COUNTIF(O$4:O8,O8)-1) -> 2 | Q8: جيد | S8: متوسط | T8: ≥ 50 | U8: C | V8: =COUNTIF(Q4:Q30,"متوسط") -> 16 | W8: 0.6153846154
A9: 6 | B9: خالد جابر ابراهيم الجباره الرميحى | C9: 2 | D9: 3.5 | E9: 2 | F9: 3.5 | H9: 27.5 | I9: 18 | J9: 11 | K9: 6 | L9: 62.5 | M9: 52 | N9: 11.9625 | O9: 0.5316666667 | P9: =IF(AND(O9="غ"),"غ",RANK(O9,$O$4:$O$30)+COUNTIF(O$4:O9,O9)-1) -> 16 | Q9: متوسط | S9: دون المتوسط | T9: ≥ 40 | U9: D | V9: =COUNTIF(Q4:Q30,"دون المتوسط") -> 3 | W9: 0.1153846154 | X9: =SUM(W9:W11) -> 0.1923076923
A10: 7 | B10: خليفه سعيد سالم سعيد الخليفى | D10: 4 | F10: 4 | H10: 20 | I10: 19 | J10: 11 | K10: 7 | L10: 57 | M10: 60 | N10: 13.425 | O10: 0.5966666667 | P10: =IF(AND(O10="غ"),"غ",RANK(O10,$O$4:$O$30)+COUNTIF(O$4:O10,O10)-1) -> 6 | Q10: متوسط | S10: ضعيف | T10: ≥ 30 | U10: E | V10: =COUNTIF(Q4:Q30,"ضعيف") -> 2 | W10: 0.07692307692
A11: 8 | B11: خليل ابراهيم مهدى يوسف الحداد | C11: 0 | D11: 1 | E11: 0 | F11: 1 | H11: 5 | I11: 11 | J11: 5 | K11: 4 | L11: 25 | M11: 40 | N11: 8.625 | O11: 0.3833333333 | P11: =IF(AND(O11="غ"),"غ",RANK(O11,$O$4:$O$30)+COUNTIF(O$4:O11,O11)-1) -> 26 | Q11: ضعيف | S11: دون الضعيف جداً | T11: < 30 | U11: F | V11: =COUNTIF(Q4:Q30,"دون الضعيف جداً") -> 0 | W11: 0
A12: 9 | B12: سالم مبارك طالب مسعود المهندى | C12: 1 | D12: 1 | E12: 1 | F12: 1 | H12: 10 | I12: 16 | J12: 8 | K12: 7 | L12: 41 | M12: 50 | N12: 11.025 | O12: 0.49 | P12: =IF(AND(O12="غ"),"غ",RANK(O12,$O$4:$O$30)+COUNTIF(O$4:O12,O12)-1) -> 22 | Q12: دون المتوسط | S12: عدد الطلاب الذي تم اختبارهم | V12: =SUM(V4:V11) -> 26 | W12: =V12/SUM(V12:V13) -> 1
A13: 10 | B13: سلطان كريم دريعان الرمالى الشمرى | C13: 3 | D13: 2.5 | E13: 3 | F13: 2.5 | H13: 27.5 | I13: 14 | J13: 5 | K13: 5 | L13: 51.5 | M13: 46 | N13: 10.4875 | O13: 0.4661111111 | P13: =IF(AND(O13="غ"),"غ",RANK(O13,$O$4:$O$30)+COUNTIF(O$4:O13,O13)-1) -> 23 | Q13: دون المتوسط | S13: عدد الطلاب الغائبين | V13: =COUNTA(B4:B30)-V12 -> 0 | W13: =V13/SUM(V12:V13) -> 0
A14: 11 | B14: صقر فهد حمد ال جبر النعيمى | C14: 2 | D14: 3 | E14: 2 | F14: 3 | H14: 25 | I14: 19 | J14: 7 | K14: 6 | L14: 57 | M14: 76 | N14: 16.625 | O14: 0.7388888889 | P14: =IF(AND(O14="غ"),"غ",RANK(O14,$O$4:$O$30)+COUNTIF(O$4:O14,O14)-1) -> 1 | Q14: جيد
A15: 12 | B15: صقر منصور صقر منصور الخليفى | C15: 5 | D15: 2.5 | E15: 5 | F15: 2.5 | H15: 37.5 | I15: 23 | J15: 9 | K15: 7 | L15: 76.5 | M15: 62 | N15: 14.3125 | O15: 0.6361111111 | P15: =IF(AND(O15="غ"),"غ",RANK(O15,$O$4:$O$30)+COUNTIF(O$4:O15,O15)-1) -> 5 | Q15: فوق المتوسط | S15: الطلاب | T15: العدد | U15: النسبة
A16: 13 | B16: عبدالعزيز عادل جاسم احمد الكوارى | C16: 3 | D16: 4.5 | E16: 3 | F16: 4.5 | H16: 37.5 | I16: 19 | J16: 8 | K16: 7 | L16: 71.5 | M16: 56 | N16: 12.9875 | O16: 0.5772222222 | P16: =IF(AND(O16="غ"),"غ",RANK(O16,$O$4:$O$30)+COUNTIF(O$4:O16,O16)-1) -> 10 | Q16: متوسط | S16: الناجحين | T16: =SUM(V4:V8) -> 21 | U16: =X4 -> 0.8076923077
A17: 14 | B17: عبدالله حمد عبدالله راشد السبيعى | C17: 2 | E17: 2 | H17: 10 | I17: 15 | J17: 7 | K17: 5 | L17: 37 | M17: 56 | N17: 12.125 | O17: 0.5388888889 | P17: =IF(AND(O17="غ"),"غ",RANK(O17,$O$4:$O$30)+COUNTIF(O$4:O17,O17)-1) -> 15 | Q17: متوسط | S17: الراسبين | T17: =SUM(V9:V11) -> 5 | U17: =X9 -> 0.1923076923
A18: 15 | B18: عبدالله يوسف احمد علي فريدون | C18: 1 | D18: 3 | E18: 1 | F18: 3 | H18: 20 | I18: 19 | J18: 7 | K18: 6 | L18: 52 | M18: 56 | N18: 12.5 | O18: 0.5555555556 | P18: =IF(AND(O18="غ"),"غ",RANK(O18,$O$4:$O$30)+COUNTIF(O$4:O18,O18)-1) -> 12 | Q18: متوسط | S18: المجموع | T18: =SUM(T16:T17) -> 26 | U18: =SUM(U16:U17) -> 1
A19: 16 | B19: عبدالمحسن أحمد عزالدين | C19: 4 | D19: 3 | E19: 4 | F19: 3 | H19: 35 | I19: 18 | J19: 6 | K19: 6 | L19: 65 | M19: 54 | N19: 12.425 | O19: 0.5522222222 | P19: =IF(AND(O19="غ"),"غ",RANK(O19,$O$4:$O$30)+COUNTIF(O$4:O19,O19)-1) -> 13 | Q19: متوسط
A20: 17 | B20: علي خالد علي احمد التميمى | D20: 2 | F20: 2 | H20: 10 | I20: 16 | J20: 8 | K20: 5 | L20: 39 | M20: 54 | N20: 11.775 | O20: 0.5233333333 | P20: =IF(AND(O20="غ"),"غ",RANK(O20,$O$4:$O$30)+COUNTIF(O$4:O20,O20)-1) -> 19 | Q20: متوسط | S20: التحصيل الأكاديمي | U20: =AVERAGE(M4:M30)/M$3 -> 0.5576923077
A21: 18 | B21: علي ياسر أحمد حداد | C21: 2 | D21: 3 | E21: 2 | F21: 3 | H21: 25 | I21: 23 | J21: 12 | K21: 8 | L21: 68 | M21: 70 | N21: 15.7 | O21: 0.6977777778 | P21: =IF(AND(O21="غ"),"غ",RANK(O21,$O$4:$O$30)+COUNTIF(O$4:O21,O21)-1) -> 4 | Q21: فوق المتوسط
A22: 19 | B22: عيسى حمد عيسى حسين الماجد | C22: 1 | D22: 1.5 | E22: 1 | F22: 1.5 | H22: 12.5 | I22: 19 | J22: 9 | K22: 7 | L22: 47.5 | M22: 60 | N22: 13.1875 | O22: 0.5861111111 | P22: =IF(AND(O22="غ"),"غ",RANK(O22,$O$4:$O$30)+COUNTIF(O$4:O22,O22)-1) -> 8 | Q22: متوسط
A23: 20 | B23: فهد راشد محمد مطر الكوارى | C23: 2 | E23: 2 | H23: 10 | I23: 18 | J23: 8 | K23: 6 | L23: 42 | M23: 52 | N23: 11.45 | O23: 0.5088888889 | P23: =IF(AND(O23="غ"),"غ",RANK(O23,$O$4:$O$30)+COUNTIF(O$4:O23,O23)-1) -> 20 | Q23: متوسط
A24: 21 | B24: محمد خالد عيسى يوسف المسلمانى | C24: 3 | D24: 3 | E24: 3 | F24: 3 | H24: 30 | I24: 17 | J24: 8 | K24: 7 | L24: 62 | M24: 58 | N24: 13.15 | O24: 0.5844444444 | P24: =IF(AND(O24="غ"),"غ",RANK(O24,$O$4:$O$30)+COUNTIF(O$4:O24,O24)-1) -> 9 | Q24: متوسط | S24: الفرع | T24: الناجحين | U24: الراسبين | V24: التحصيل
A25: 22 | B25: محمد غيث جبر الخويطر العجمى | C25: 4 | D25: 3 | E25: 4 | F25: 3 | H25: 35 | I25: 17 | J25: 7 | K25: 7 | L25: 66 | M25: 58 | N25: 13.25 | O25: 0.5888888889 | P25: =IF(AND(O25="غ"),"غ",RANK(O25,$O$4:$O$30)+COUNTIF(O$4:O25,O25)-1) -> 7 | Q25: متوسط | S25: =H2 -> Quizzes | T25: =COUNTIF(H4:H30,">="&H$3/2)/COUNT(H4:H30) -> 0.5 | U25: =IF(T25="","",100%-T25) -> 0.5 | V25: =IF($U25="","",AVERAGE(H4:H30)/H$3) -> 0.4576923077
A26: 23 | B26: مشعل علي يوسف عبدالرحمن العبدالجبار | C26: 1 | D26: 4.5 | E26: 1 | F26: 4.5 | H26: 27.5 | I26: 19 | J26: 9 | K26: 6 | L26: 61.5 | M26: 56 | N26: 12.7375 | O26: 0.5661111111 | P26: =IF(AND(O26="غ"),"غ",RANK(O26,$O$4:$O$30)+COUNTIF(O$4:O26,O26)-1) -> 11 | Q26: متوسط | S26: =I2 -> الواجب | T26: =COUNTIF(I4:I30,">="&I$3/2)/COUNT(I4:I30) -> 0.9615384615 | U26: 0.03846153846 | V26: =IF($U26="","",AVERAGE(I4:I30)/I$3) -> 0.7215384615
A27: 24 | B27: ناصر ماجد محمد عبدالعزيز الخليفى | C27: 2 | D27: 3 | E27: 2 | F27: 3 | H27: 25 | I27: 17 | J27: 7 | K27: 6 | L27: 55 | M27: 50 | N27: 11.375 | O27: 0.5055555556 | P27: =IF(AND(O27="غ"),"غ",RANK(O27,$O$4:$O$30)+COUNTIF(O$4:O27,O27)-1) -> 21 | Q27: متوسط | S27: =J2 -> المشاركة | T27: =COUNTIF(J4:J30,">="&J$3/2)/COUNT(J4:J30) -> 0.6153846154 | U27: 0.3846153846 | V27: =IF($U27="","",AVERAGE(J4:J30)/J$3) -> 0.558974359
A28: 25 | B28: نايف خالد سلطان جابر | C28: 4 | E28: 4 | H28: 20 | I28: 16 | J28: 5 | K28: 5 | L28: 46 | M28: 44 | N28: 9.95 | O28: 0.4422222222 | P28: =IF(AND(O28="غ"),"غ",RANK(O28,$O$4:$O$30)+COUNTIF(O$4:O28,O28)-1) -> 24 | Q28: دون المتوسط | S28: =K2 -> المشروع | T28: =COUNTIF(K4:K30,">="&K$3/2)/COUNT(K4:K30) -> 0.9615384615 | U28: 0.03846153846 | V28: =IF($U28="","",AVERAGE(K4:K30)/K$3) -> 0.6192307692
A29: 26 | B29: يوسف حسن يوسف علي الباكر | D29: 3.5 | F29: 3.5 | H29: =IF(AND(C29="",D29="",E29="",F29="",G29=""),"غ",$H$3*SUM(C29:G29)/SUM($C$3:$G$3)) -> 17.5 | I29: 15 | J29: 5 | K29: 5 | L29: =IF(AND(C29="",D29="",E29="",F29="",G29="",I29="",J29="",K29=""),"غ",SUM(H29:K29)) -> 42.5 | M29: 54 | N29: =IF(M29="","غ",IF(L29="غ",M29*0.2,SUM(L29*2.5/$L$3,M29*0.2))) -> 11.8625 | O29: 0.5272222222 | P29: =IF(AND(O29="غ"),"غ",RANK(O29,$O$4:$O$30)+COUNTIF(O$4:O29,O29)-1) -> 17 | Q29: =IF(O29="غ","غ",IF(O29>=90%,"ممتاز",IF(O29>=80%,"جيد جداً",IF(O29>=70%,"جيد",IF(O29>=60%,"فوق المتوسط",IF(O29>=50%,"متوسط",IF(O29>=40%,"دون المتوسط",IF(O29>=30%,"ضعيف","دون الضعيف جداً")))))))) -> متوسط | S29: =M2 -> Exam | T29: =COUNTIF(M4:M30,">="&M$3/2)/COUNT(M4:M30) -> 0.8461538462 | U29: 0.1538461538 | V29: =IF($U29="","",AVERAGE(M4:M30)/M$3) -> 0.5576923077

Sheet 9-8
A1: Grade (9-8) كشف درجات الطلاب
A2: م | B2: اسم الطالب | C2: Quiz1 | D2: Quiz2 | E2: Quiz3 | F2: Quiz4 | G2: Quiz5 | H2: Quizzes | I2: الواجب | J2: المشاركة | K2: المشروع | L2: Total | M2: Exam | N2: Final | O2: Percent | P2: Rank | Q2: التقدير | S2: تحليل النتائج على حسب التقدير
C3: 5 | D3: 5 | E3: 5 | F3: 5 | G3: درجة5 | H3: 50 | I3: 25 | J3: 15 | K3: 10 | L3: 100 | M3: 100 | N3: 22.5 | O3: (%) | P3: الترتيب | S3: التقدير | T3: المجال | V3: عدد الطلاب | W3: النسبة
A4: 1 | B4: احمد خالد احمد محمد العبيدلى | C4: 5 | D4: 4 | E4: 5 | F4: 4 | H4: =IF(AND(C4="",D4="",E4="",F4="",G4=""),"غ",$H$3*SUM(C4:G4)/SUM($C$3:$G$3)) -> 45 | I4: 22 | J4: 13 | K4: 8 | L4: =IF(AND(C4="",D4="",E4="",F4="",G4="",I4="",J4="",K4=""),"غ",SUM(H4:K4)) -> 88 | M4: 50 | N4: =IF(M4="","غ",IF(L4="غ",M4*0.2,SUM(L4*2.5/$L$3,M4*0.2))) -> 12.2 | O4: =IF(N4="غ","غ",N4*100/$N$3/100) -> 0.5422222222 | P4: =IF(AND(O4="غ"),"غ",RANK(O4,$O$4:$O$30)+COUNTIF(O$4:O4,O4)-1) -> 17 | Q4: =IF(O4="غ","غ",IF(O4>=90%,"ممتاز",IF(O4>=80%,"جيد جداً",IF(O4>=70%,"جيد",IF(O4>=60%,"فوق المتوسط",IF(O4>=50%,"متوسط",IF(O4>=40%,"دون المتوسط",IF(O4>=30%,"ضعيف","دون الضعيف جداً")))))))) -> متوسط | S4: ممتاز | T4: ≥ 90 | U4: A+ | V4: =COUNTIF(Q4:Q30,"ممتاز") -> 0 | W4: =(V4/$V$12) -> 0 | X4: =SUM(W4:W8) -> 0.875
A5: 2 | B5: جابر راشد جابر راشد الدوسرى | C5: 3 | D5: 4 | E5: 3 | F5: 4 | H5: =IF(AND(C5="",D5="",E5="",F5="",G5=""),"غ",$H$3*SUM(C5:G5)/SUM($C$3:$G$3)) -> 35 | I5: 23 | J5: 13 | K5: 8 | L5: =IF(AND(C5="",D5="",E5="",F5="",G5="",I5="",J5="",K5=""),"غ",SUM(H5:K5)) -> 79 | M5: 50 | N5: =IF(M5="","غ",IF(L5="غ",M5*0.2,SUM(L5*2.5/$L$3,M5*0.2))) -> 11.975 | O5: =IF(N5="غ","غ",N5*100/$N$3/100) -> 0.5322222222 | P5: =IF(AND(O5="غ"),"غ",RANK(O5,$O$4:$O$30)+COUNTIF(O$4:O5,O5)-1) -> 18 | Q5: =IF(O5="غ","غ",IF(O5>=90%,"ممتاز",IF(O5>=80%,"جيد جداً",IF(O5>=70%,"جيد",IF(O5>=60%,"فوق المتوسط",IF(O5>=50%,"متوسط",IF(O5>=40%,"دون المتوسط",IF(O5>=30%,"ضعيف","دون الضعيف جداً")))))))) -> متوسط | S5: جيد جداً | T5: ≥ 80 | U5: A | V5: =COUNTIF(Q4:Q30,"جيد جداً") -> 1 | W5: 0.04166666667
A6: 3 | B6: حمد عادل عبد الله النعيمي | D6: 1 | F6: 1 | H6: 5 | I6: 22 | J6: 13 | K6: 8 | L6: 48 | M6: 46 | N6: 10.4 | O6: 0.4622222222 | P6: =IF(AND(O6="غ"),"غ",RANK(O6,$O$4:$O$30)+COUNTIF(O$4:O6,O6)-1) -> 22 | Q6: دون المتوسط | S6: جيد | T6: ≥ 70 | U6: B+ | V6: =COUNTIF(Q4:Q30,"جيد") -> 6 | W6: 0.25
A7: 4 | B7: حمد فرحان فرج عون المحمد | C7: 3 | D7: 4 | E7: 3 | F7: 4 | H7: 35 | I7: 24 | J7: 13 | K7: 9 | L7: 81 | M7: 72 | N7: 16.425 | O7: 0.73 | P7: =IF(AND(O7="غ"),"غ",RANK(O7,$O$4:$O$30)+COUNTIF(O$4:O7,O7)-1) -> 4 | Q7: جيد | S7: فوق المتوسط | T7: ≥ 60 | U7: B | V7: =COUNTIF(Q4:Q30,"فوق المتوسط") -> 6 | W7: 0.25
A8: 5 | B8: خالد غانم راشد خلف العبدالله | C8: 4 | D8: 4 | E8: 4 | F8: 4 | H8: 40 | I8: 22 | J8: 13 | K8: 9 | L8: 84 | M8: 54 | N8: 12.9 | O8: 0.5733333333 | P8: =IF(AND(O8="غ"),"غ",RANK(O8,$O$4:$O$30)+COUNTIF(O$4:O8,O8)-1) -> 14 | Q8: متوسط | S8: متوسط | T8: ≥ 50 | U8: C | V8: =COUNTIF(Q4:Q30,"متوسط") -> 8 | W8: 0.3333333333
A9: 6 | B9: راشد مبارك سعد احمد السليطى | C9: 3 | D9: 1 | E9: 3 | F9: 1 | H9: 20 | I9: 22 | J9: 13 | K9: 8 | L9: 63 | M9: 50 | N9: 11.575 | O9: 0.5144444444 | P9: =IF(AND(O9="غ"),"غ",RANK(O9,$O$4:$O$30)+COUNTIF(O$4:O9,O9)-1) -> 20 | Q9: متوسط | S9: دون المتوسط | T9: ≥ 40 | U9: D | V9: =COUNTIF(Q4:Q30,"دون المتوسط") -> 3 | W9: 0.125 | X9: =SUM(W9:W11) -> 0.125
A10: 7 | B10: طلال سعد مبارك زايد الكبيسى | C10: 3 | D10: 4 | E10: 3 | F10: 4 | H10: 35 | I10: 22 | J10: 13 | K10: 8 | L10: 78 | N10: غ | O10: غ | P10: =IF(AND(O10="غ"),"غ",RANK(O10,$O$4:$O$30)+COUNTIF(O$4:O10,O10)-1) -> غ | Q10: غ | S10: ضعيف | T10: ≥ 30 | U10: E | V10: =COUNTIF(Q4:Q30,"ضعيف") -> 0 | W10: 0
A11: 8 | B11: عبدالعزيز جوهر مرزوق جوهر العبدالله | C11: 3 | D11: 2 | E11: 3 | F11: 2 | H11: 25 | I11: 22 | J11: 12 | K11: 8 | L11: 67 | M11: 60 | N11: 13.675 | O11: 0.6077777778 | P11: =IF(AND(O11="غ"),"غ",RANK(O11,$O$4:$O$30)+COUNTIF(O$4:O11,O11)-1) -> 13 | Q11: فوق المتوسط | S11: دون الضعيف جداً | T11: < 30 | U11: F | V11: =COUNTIF(Q4:Q30,"دون الضعيف جداً") -> 0 | W11: 0
A12: 9 | B12: عبدالله سالم مبارك المسرورى الهاجرى | C12: 5 | D12: 4 | E12: 5 | F12: 4 | H12: 45 | I12: 24 | J12: 14 | K12: 9 | L12: 92 | M12: 70 | N12: 16.3 | O12: 0.7244444444 | P12: =IF(AND(O12="غ"),"غ",RANK(O12,$O$4:$O$30)+COUNTIF(O$4:O12,O12)-1) -> 5 | Q12: جيد | S12: عدد الطلاب الذي تم اختبارهم | V12: =SUM(V4:V11) -> 24 | W12: =V12/SUM(V12:V13) -> 0.96
A13: 10 | B13: عبدالله محمد عبدالفتاح | C13: 5 | D13: 5 | E13: 5 | F13: 5 | H13: 50 | I13: 23 | J13: 13 | K13: 7 | L13: 93 | M13: 66 | N13: 15.525 | O13: 0.69 | P13: =IF(AND(O13="غ"),"غ",RANK(O13,$O$4:$O$30)+COUNTIF(O$4:O13,O13)-1) -> 8 | Q13: فوق المتوسط | S13: عدد الطلاب الغائبين | V13: =COUNTA(B4:B30)-V12 -> 1 | W13: =V13/SUM(V12:V13) -> 0.04
A14: 11 | B14: عبدالله محمد عبدالله المريخى المهندى | C14: 3 | D14: 3 | E14: 3 | F14: 3 | H14: 30 | I14: 23 | J14: 13 | K14: 8 | L14: 74 | M14: 70 | N14: 15.85 | O14: 0.7044444444 | P14: =IF(AND(O14="غ"),"غ",RANK(O14,$O$4:$O$30)+COUNTIF(O$4:O14,O14)-1) -> 6 | Q14: جيد
A15: 12 | B15: عبدالله نصف عبدالله نصف السليطى | D15: 2 | F15: 2 | H15: 10 | I15: 23 | J15: 13 | K15: 8 | L15: 54 | M15: 72 | N15: 15.75 | O15: 0.7 | P15: =IF(AND(O15="غ"),"غ",RANK(O15,$O$4:$O$30)+COUNTIF(O$4:O15,O15)-1) -> 7 | Q15: جيد | S15: الطلاب | T15: العدد | U15: النسبة
A16: 13 | B16: عتران دبسان حسن حمد القحطاني | D16: 3 | F16: 3 | H16: 15 | I16: 22 | J16: 13 | K16: 8 | L16: 58 | M16: 40 | N16: 9.45 | O16: 0.42 | P16: =IF(AND(O16="غ"),"غ",RANK(O16,$O$4:$O$30)+COUNTIF(O$4:O16,O16)-1) -> 24 | Q16: دون المتوسط | S16: الناجحين | T16: =SUM(V4:V8) -> 21 | U16: =X4 -> 0.875
A17: 14 | B17: فهد جابر محمد علي الكبيسى | C17: 3 | D17: 4 | E17: 3 | F17: 4 | H17: 35 | I17: 22 | J17: 12 | K17: 8 | L17: 77 | M17: 52 | N17: 12.325 | O17: 0.5477777778 | P17: =IF(AND(O17="غ"),"غ",RANK(O17,$O$4:$O$30)+COUNTIF(O$4:O17,O17)-1) -> 16 | Q17: متوسط | S17: الراسبين | T17: =SUM(V9:V11) -> 3 | U17: =X9 -> 0.125
A18: 15 | B18: محمد احمد جاسم العجلان الكعبى | C18: 5 | D18: 3 | E18: 5 | F18: 3 | H18: 40 | I18: 24 | J18: 14 | K18: 9 | L18: 87 | M18: 60 | N18: 14.175 | O18: 0.63 | P18: =IF(AND(O18="غ"),"غ",RANK(O18,$O$4:$O$30)+COUNTIF(O$4:O18,O18)-1) -> 9 | Q18: فوق المتوسط | S18: المجموع | T18: =SUM(T16:T17) -> 24 | U18: =SUM(U16:U17) -> 1
A19: 16 | B19: محمد احمد حمد سالم الكوارى | D19: 1 | F19: 1 | H19: 5 | I19: 22 | J19: 12 | K19: 7 | L19: 46 | M19: 46 | N19: 10.35 | O19: 0.46 | P19: =IF(AND(O19="غ"),"غ",RANK(O19,$O$4:$O$30)+COUNTIF(O$4:O19,O19)-1) -> 23 | Q19: دون المتوسط
A20: 17 | B20: محمد خالد محمد ابوجاسم الكعبى | C20: 3 | E20: 3 | H20: 15 | I20: 22 | J20: 12 | K20: 7 | L20: 56 | M20: 52 | N20: 11.8 | O20: 0.5244444444 | P20: =IF(AND(O20="غ"),"غ",RANK(O20,$O$4:$O$30)+COUNTIF(O$4:O20,O20)-1) -> 19 | Q20: متوسط | S20: التحصيل الأكاديمي | U20: =AVERAGE(M4:M30)/M$3 -> 0.5966666667
A21: 18 | B21: محمد راشد سعود راشد السليطى | C21: 2 | D21: 0 | E21: 2 | F21: 0 | H21: 10 | I21: 22 | J21: 12 | K21: 7 | L21: 51 | M21: 64 | N21: 14.075 | O21: 0.6255555556 | P21: =IF(AND(O21="غ"),"غ",RANK(O21,$O$4:$O$30)+COUNTIF(O$4:O21,O21)-1) -> 11 | Q21: فوق المتوسط
A22: 19 | B22: محمد علي عبداللطيف سلطان النعيمى | C22: 5 | D22: 4 | E22: 5 | F22: 4 | H22: 45 | I22: 24 | J22: 14 | K22: 9 | L22: 92 | M22: 80 | N22: 18.3 | O22: 0.8133333333 | P22: =IF(AND(O22="غ"),"غ",RANK(O22,$O$4:$O$30)+COUNTIF(O$4:O22,O22)-1) -> 1 | Q22: جيد جداً
A23: 20 | B23: محمد مبارك احمد يوسف المطاوعه | C23: 2 | D23: 2 | E23: 2 | F23: 2 | H23: 20 | I23: 22 | J23: 12 | K23: 8 | L23: 62 | M23: 50 | N23: 11.55 | O23: 0.5133333333 | P23: =IF(AND(O23="غ"),"غ",RANK(O23,$O$4:$O$30)+COUNTIF(O$4:O23,O23)-1) -> 21 | Q23: متوسط
A24: 21 | B24: مشعل محمد حسن عبدالله الانصارى | C24: 4 | D24: 4 | E24: 4 | F24: 4 | H24: 40 | I24: 24 | J24: 14 | K24: 9 | L24: 87 | M24: 74 | N24: 16.975 | O24: 0.7544444444 | P24: =IF(AND(O24="غ"),"غ",RANK(O24,$O$4:$O$30)+COUNTIF(O$4:O24,O24)-1) -> 3 | Q24: جيد | S24: الفرع | T24: الناجحين | U24: الراسبين | V24: التحصيل
A25: 22 | B25: ناصر راشد شبيب الرمزانى النعيمى | C25: 3 | D25: 2 | E25: 3 | F25: 2 | H25: 25 | I25: 22 | J25: 13 | K25: 8 | L25: 68 | M25: 62 | N25: 14.1 | O25: 0.6266666667 | P25: =IF(AND(O25="غ"),"غ",RANK(O25,$O$4:$O$30)+COUNTIF(O$4:O25,O25)-1) -> 10 | Q25: فوق المتوسط | S25: =H2 -> Quizzes | T25: =COUNTIF(H4:H30,">="&H$3/2)/COUNT(H4:H30) -> 0.68 | U25: =IF(T25="","",100%-T25) -> 0.32 | V25: =IF($U25="","",AVERAGE(H4:H30)/H$3) -> 0.572
A26: 23 | B26: ناصر عبدالرحمن مالالله عبدالرحمن جابر | C26: 4 | D26: 2 | E26: 4 | F26: 2 | H26: 30 | I26: 23 | J26: 13 | K26: 8 | L26: 74 | M26: 54 | N26: 12.65 | O26: 0.5622222222 | P26: =IF(AND(O26="غ"),"غ",RANK(O26,$O$4:$O$30)+COUNTIF(O$4:O26,O26)-1) -> 15 | Q26: متوسط | S26: =I2 -> الواجب | T26: =COUNTIF(I4:I30,">="&I$3/2)/COUNT(I4:I30) -> 1 | U26: 0 | V26: =IF($U26="","",AVERAGE(I4:I30)/I$3) -> 0.9104
A27: 24 | B27: ياسين عمر عبدالعزيز السيد احمد | C27: 3 | D27: 3 | E27: 3 | F27: 3 | H27: 30 | I27: 24 | J27: 14 | K27: 9 | L27: 77 | M27: 78 | N27: 17.525 | O27: 0.7788888889 | P27: =IF(AND(O27="غ"),"غ",RANK(O27,$O$4:$O$30)+COUNTIF(O$4:O27,O27)-1) -> 2 | Q27: جيد | S27: =J2 -> المشاركة | T27: =COUNTIF(J4:J30,">="&J$3/2)/COUNT(J4:J30) -> 1 | U27: 0 | V27: =IF($U27="","",AVERAGE(J4:J30)/J$3) -> 0.8666666667
A28: 25 | B28: يوسف عبدالله يوسف علي جسيمان | C28: 4 | D28: 2 | E28: 4 | F28: 2 | H28: 30 | I28: 24 | J28: 14 | K28: 9 | L28: 77 | M28: 60 | N28: 13.925 | O28: 0.6188888889 | P28: =IF(AND(O28="غ"),"غ",RANK(O28,$O$4:$O$30)+COUNTIF(O$4:O28,O28)-1) -> 12 | Q28: فوق المتوسط | S28: =K2 -> المشروع | T28: =COUNTIF(K4:K30,">="&K$3/2)/COUNT(K4:K30) -> 1 | U28: 0 | V28: =IF($U28="","",AVERAGE(K4:K30)/K$3) -> 0.816
S29: =M2 -> Exam | T29: =COUNTIF(M4:M30,">="&M$3/2)/COUNT(M4:M30) -> 0.875 | U29: 0.125 | V29: =IF($U29="","",AVERAGE(M4:M30)/M$3) -> 0.5966666667

Sheet 9-9
A1: Grade (9-9) كشف درجات الطلاب
A2: م | B2: اسم الطالب | C2: Quiz1 | D2: Quiz2 | E2: Quiz3 | F2: Quiz4 | G2: Quiz5 | H2: Quizzes | I2: الواجب | J2: المشاركة | K2: المشروع | L2: Total | M2: Exam | N2: Final | O2: Percent | P2: Rank | Q2: التقدير | S2: تحليل النتائج على حسب التقدير
C3: 5 | D3: 5 | E3: 5 | F3: 5 | G3: درجة5 | H3: 50 | I3: 25 | J3: 15 | K3: 10 | L3: 100 | M3: 100 | N3: 22.5 | O3: (%) | P3: الترتيب | S3: التقدير | T3: المجال | V3: عدد الطلاب | W3: النسبة
A4: 1 | B4: احمد طعمه سالم ادريس | C4: 1 | D4: 2 | E4: 1 | F4: 2 | H4: =IF(AND(C4="",D4="",E4="",F4="",G4=""),"غ",$H$3*SUM(C4:G4)/SUM($C$3:$G$3)) -> 15 | I4: 20 | J4: 13 | K4: 9 | L4: =IF(AND(C4="",D4="",E4="",F4="",G4="",I4="",J4="",K4=""),"غ",SUM(H4:K4)) -> 57 | M4: 64 | N4: =IF(M4="","غ",IF(L4="غ",M4*0.2,SUM(L4*2.5/$L$3,M4*0.2))) -> 14.225 | O4: =IF(N4="غ","غ",N4*100/$N$3/100) -> 0.6322222222 | P4: =IF(AND(O4="غ"),"غ",RANK(O4,$O$4:$O$30)+COUNTIF(O$4:O4,O4)-1) -> 7 | Q4: =IF(O4="غ","غ",IF(O4>=90%,"ممتاز",IF(O4>=80%,"جيد جداً",IF(O4>=70%,"جيد",IF(O4>=60%,"فوق المتوسط",IF(O4>=50%,"متوسط",IF(O4>=40%,"دون المتوسط",IF(O4>=30%,"ضعيف","دون الضعيف جداً")))))))) -> فوق المتوسط | S4: ممتاز | T4: ≥ 90 | U4: A+ | V4: =COUNTIF(Q4:Q30,"ممتاز") -> 0 | W4: =(V4/$V$12) -> 0 | X4: =SUM(W4:W8) -> 0.84
A5: 2 | B5: احمد عصام محمود عبدالعظيم شلتوت | C5: 1 | D5: 2.5 | E5: 1 | F5: 2.5 | H5: =IF(AND(C5="",D5="",E5="",F5="",G5=""),"غ",$H$3*SUM(C5:G5)/SUM($C$3:$G$3)) -> 17.5 | I5: 20 | J5: 12 | K5: 8 | L5: =IF(AND(C5="",D5="",E5="",F5="",G5="",I5="",J5="",K5=""),"غ",SUM(H5:K5)) -> 57.5 | M5: 46 | N5: =IF(M5="","غ",IF(L5="غ",M5*0.2,SUM(L5*2.5/$L$3,M5*0.2))) -> 10.6375 | O5: =IF(N5="غ","غ",N5*100/$N$3/100) -> 0.4727777778 | P5: =IF(AND(O5="غ"),"غ",RANK(O5,$O$4:$O$30)+COUNTIF(O$4:O5,O5)-1) -> 23 | Q5: =IF(O5="غ","غ",IF(O5>=90%,"ممتاز",IF(O5>=80%,"جيد جداً",IF(O5>=70%,"جيد",IF(O5>=60%,"فوق المتوسط",IF(O5>=50%,"متوسط",IF(O5>=40%,"دون المتوسط",IF(O5>=30%,"ضعيف","دون الضعيف جداً")))))))) -> دون المتوسط | S5: جيد جداً | T5: ≥ 80 | U5: A | V5: =COUNTIF(Q4:Q30,"جيد جداً") -> 0 | W5: 0
A6: 3 | B6: احمد مجلى محمد مجلى المجلى | C6: 1 | D6: 1 | E6: 1 | F6: 1 | H6: 10 | I6: 22 | J6: 12 | K6: 7 | L6: 51 | M6: 52 | N6: 11.675 | O6: 0.5188888889 | P6: =IF(AND(O6="غ"),"غ",RANK(O6,$O$4:$O$30)+COUNTIF(O$4:O6,O6)-1) -> 19 | Q6: متوسط | S6: جيد | T6: ≥ 70 | U6: B+ | V6: =COUNTIF(Q4:Q30,"جيد") -> 1 | W6: 0.04
A7: 4 | B7: تميم سلطان راشد يوسف الشريم | C7: 2 | D7: 2.5 | E7: 2 | F7: 2.5 | H7: 22.5 | I7: 20 | J7: 12 | K7: 8 | L7: 62.5 | M7: 50 | N7: 11.5625 | O7: 0.5138888889 | P7: =IF(AND(O7="غ"),"غ",RANK(O7,$O$4:$O$30)+COUNTIF(O$4:O7,O7)-1) -> 20 | Q7: متوسط | S7: فوق المتوسط | T7: ≥ 60 | U7: B | V7: =COUNTIF(Q4:Q30,"فوق المتوسط") -> 8 | W7: 0.32
A8: 5 | B8: ثامر الماس سليمان عبدالله الخاطر | C8: 3.5 | D8: 3 | E8: 3.5 | F8: 3 | H8: 32.5 | I8: 24 | J8: 13 | K8: 10 | L8: 79.5 | M8: 64 | N8: 14.7875 | O8: 0.6572222222 | P8: =IF(AND(O8="غ"),"غ",RANK(O8,$O$4:$O$30)+COUNTIF(O$4:O8,O8)-1) -> 6 | Q8: فوق المتوسط | S8: متوسط | T8: ≥ 50 | U8: C | V8: =COUNTIF(Q4:Q30,"متوسط") -> 12 | W8: 0.48
A9: 6 | B9: جاسم خالد جاسم حسن الجابر | C9: 2.5 | D9: 2.5 | E9: 2.5 | F9: 2.5 | H9: 25 | I9: 21 | J9: 13 | K9: 8 | L9: 67 | N9: غ | O9: غ | P9: =IF(AND(O9="غ"),"غ",RANK(O9,$O$4:$O$30)+COUNTIF(O$4:O9,O9)-1) -> غ | Q9: غ | S9: دون المتوسط | T9: ≥ 40 | U9: D | V9: =COUNTIF(Q4:Q30,"دون المتوسط") -> 4 | W9: 0.16 | X9: =SUM(W9:W11) -> 0.16
A10: 7 | B10: جاسم عبدالله صالح جابر اليافعى | C10: 3.5 | D10: 2.5 | E10: 2.5 | F10: 3.5 | H10: 30 | I10: 22 | J10: 12 | K10: 8 | L10: 72 | M10: 68 | N10: 15.4 | O10: 0.6844444444 | P10: =IF(AND(O10="غ"),"غ",RANK(O10,$O$4:$O$30)+COUNTIF(O$4:O10,O10)-1) -> 3 | Q10: فوق المتوسط | S10: ضعيف | T10: ≥ 30 | U10: E | V10: =COUNTIF(Q4:Q30,"ضعيف") -> 0 | W10: 0
A11: 8 | B11: جبر خالد محمد عبدالله المسلمانى | C11: 2 | D11: 2 | E11: 2.5 | F11: 2.5 | H11: 22.5 | I11: 22 | J11: 13 | K11: 8 | L11: 65.5 | M11: 52 | N11: 12.0375 | O11: 0.535 | P11: =IF(AND(O11="غ"),"غ",RANK(O11,$O$4:$O$30)+COUNTIF(O$4:O11,O11)-1) -> 16 | Q11: متوسط | S11: دون الضعيف جداً | T11: < 30 | U11: F | V11: =COUNTIF(Q4:Q30,"دون الضعيف جداً") -> 0 | W11: 0
A12: 9 | B12: جمعه عيسى محمد محمد الكعبى | C12: 2.5 | D12: 2.5 | E12: 3 | F12: 3 | H12: 27.5 | I12: 22 | J12: 12 | K12: 8 | L12: 69.5 | M12: 52 | N12: 12.1375 | O12: 0.5394444444 | P12: =IF(AND(O12="غ"),"غ",RANK(O12,$O$4:$O$30)+COUNTIF(O$4:O12,O12)-1) -> 15 | Q12: متوسط | S12: عدد الطلاب الذي تم اختبارهم | V12: =SUM(V4:V11) -> 25 | W12: =V12/SUM(V12:V13) -> 0.9615384615
A13: 10 | B13: جمعه محمد جمعه عبدالله السليطى | C13: 2 | D13: 2 | E13: 3 | F13: 3 | H13: 25 | I13: 22 | J13: 10 | K13: 6 | L13: 63 | M13: 42 | N13: 9.975 | O13: 0.4433333333 | P13: =IF(AND(O13="غ"),"غ",RANK(O13,$O$4:$O$30)+COUNTIF(O$4:O13,O13)-1) -> 25 | Q13: دون المتوسط | S13: عدد الطلاب الغائبين | V13: =COUNTA(B4:B30)-V12 -> 1 | W13: =V13/SUM(V12:V13) -> 0.03846153846
A14: 11 | B14: حمد علي عبدالعزيز محمد الهيدوس | C14: 2 | D14: 2 | E14: 3 | F14: 3 | H14: 25 | I14: 22 | J14: 13 | K14: 8 | L14: 68 | M14: 56 | N14: 12.9 | O14: 0.5733333333 | P14: =IF(AND(O14="غ"),"غ",RANK(O14,$O$4:$O$30)+COUNTIF(O$4:O14,O14)-1) -> 11 | Q14: متوسط
A15: 12 | B15: خالد عبدالله محمد عبدالله البوعينين | C15: 2 | D15: 2 | E15: 4 | F15: 4 | H15: 30 | I15: 22 | J15: 12 | K15: 6 | L15: 70 | M15: 62 | N15: 14.15 | O15: 0.6288888889 | P15: =IF(AND(O15="غ"),"غ",RANK(O15,$O$4:$O$30)+COUNTIF(O$4:O15,O15)-1) -> 8 | Q15: فوق المتوسط | S15: الطلاب | T15: العدد | U15: النسبة
A16: 13 | B16: سعود احمد يوسف سهل السهل | C16: 1.5 | D16: 1.5 | E16: 3.5 | F16: 3.5 | H16: 25 | I16: 22 | J16: 13 | K16: 8 | L16: 68 | M16: 68 | N16: 15.3 | O16: 0.68 | P16: =IF(AND(O16="غ"),"غ",RANK(O16,$O$4:$O$30)+COUNTIF(O$4:O16,O16)-1) -> 5 | Q16: فوق المتوسط | S16: الناجحين | T16: =SUM(V4:V8) -> 21 | U16: =X4 -> 0.84
A17: 14 | B17: سعود عبدالرحمن سعيد محمد الشعيبى | C17: 3.5 | D17: 2 | E17: 2 | F17: 3.5 | H17: 27.5 | I17: 22 | J17: 12 | K17: 7 | L17: 68.5 | M17: 50 | N17: 11.7125 | O17: 0.5205555556 | P17: =IF(AND(O17="غ"),"غ",RANK(O17,$O$4:$O$30)+COUNTIF(O$4:O17,O17)-1) -> 18 | Q17: متوسط | S17: الراسبين | T17: =SUM(V9:V11) -> 4 | U17: =X9 -> 0.16
A18: 15 | B18: عبدالرحمن احمد قويدر | C18: 4.5 | D18: 3 | E18: 3 | F18: 4.5 | H18: 37.5 | I18: 22 | J18: 13 | K18: 8 | L18: 80.5 | M18: 70 | N18: 16.0125 | O18: 0.7116666667 | P18: =IF(AND(O18="غ"),"غ",RANK(O18,$O$4:$O$30)+COUNTIF(O$4:O18,O18)-1) -> 1 | Q18: جيد | S18: المجموع | T18: =SUM(T16:T17) -> 25 | U18: =SUM(U16:U17) -> 1
A19: 16 | B19: عبدالرحمن عبدالله جبر محمد المسلم | C19: 4.5 | D19: 4.5 | E19: 4.5 | F19: 4.5 | H19: 45 | I19: 22 | J19: 14 | K19: 8 | L19: 89 | M19: 54 | N19: 13.025 | O19: 0.5788888889 | P19: =IF(AND(O19="غ"),"غ",RANK(O19,$O$4:$O$30)+COUNTIF(O$4:O19,O19)-1) -> 10 | Q19: متوسط
A20: 17 | B20: عبدالعزيز مرزوق حمد ال شويرب المرى | C20: 4.5 | D20: 2.5 | E20: 2.5 | F20: 4.5 | H20: 35 | I20: 22 | J20: 13 | K20: 8 | L20: 78 | M20: 54 | N20: 12.75 | O20: 0.5666666667 | P20: =IF(AND(O20="غ"),"غ",RANK(O20,$O$4:$O$30)+COUNTIF(O$4:O20,O20)-1) -> 13 | Q20: متوسط | S20: التحصيل الأكاديمي | U20: =AVERAGE(M4:M30)/M$3 -> 0.5568
A21: 18 | B21: علي عبدالله علي سلطان الكوارى | C21: 4.5 | D21: 4.5 | E21: 4.5 | F21: 4.5 | H21: 45 | I21: 22 | J21: 13 | K21: 7 | L21: 87 | M21: 66 | N21: 15.375 | O21: 0.6833333333 | P21: =IF(AND(O21="غ"),"غ",RANK(O21,$O$4:$O$30)+COUNTIF(O$4:O21,O21)-1) -> 4 | Q21: فوق المتوسط
A22: 19 | B22: فهد ربيعه حمد العجلان الكعبى | C22: 4.5 | D22: 4.5 | E22: 4.5 | F22: 4.5 | H22: 45 | I22: 22 | J22: 12 | K22: 7 | L22: 86 | M22: 46 | N22: 11.35 | O22: 0.5044444444 | P22: =IF(AND(O22="غ"),"غ",RANK(O22,$O$4:$O$30)+COUNTIF(O$4:O22,O22)-1) -> 21 | Q22: متوسط
A23: 20 | B23: فيصل محمد راشد النفيحى الكبيسى | C23: 3 | D23: 2.5 | E23: 2.5 | F23: 3 | H23: 27.5 | I23: 22 | J23: 12 | K23: 8 | L23: 69.5 | M23: 50 | N23: 11.7375 | O23: 0.5216666667 | P23: =IF(AND(O23="غ"),"غ",RANK(O23,$O$4:$O$30)+COUNTIF(O$4:O23,O23)-1) -> 17 | Q23: متوسط
A24: 21 | B24: محمد جاسم محمد احمد المناعى | C24: 2.5 | D24: 2.5 | E24: 2.5 | F24: 2.5 | H24: 25 | I24: 22 | J24: 14 | K24: 9 | L24: 70 | M24: 42 | N24: 10.15 | O24: 0.4511111111 | P24: =IF(AND(O24="غ"),"غ",RANK(O24,$O$4:$O$30)+COUNTIF(O$4:O24,O24)-1) -> 24 | Q24: دون المتوسط | S24: الفرع | T24: الناجحين | U24: الراسبين | V24: التحصيل
A25: 22 | B25: محمد سالم محمد سعيد الكوارى | C25: 3 | D25: 2 | E25: 2 | F25: 3 | H25: 25 | I25: 22 | J25: 12 | K25: 7 | L25: 66 | M25: 56 | N25: 12.85 | O25: 0.5711111111 | P25: =IF(AND(O25="غ"),"غ",RANK(O25,$O$4:$O$30)+COUNTIF(O$4:O25,O25)-1) -> 12 | Q25: متوسط | S25: =H2 -> Quizzes | T25: =COUNTIF(H4:H30,">="&H$3/2)/COUNT(H4:H30) -> 0.7692307692 | U25: =IF(T25="","",100%-T25) -> 0.2307692308 | V25: =IF($U25="","",AVERAGE(H4:H30)/H$3) -> 0.5692307692
A26: 23 | B26: محمد علي محمد ناصر حسن | C26: 4.5 | D26: 2.5 | E26: 2.5 | F26: 4.5 | H26: 35 | I26: 22 | J26: 12 | K26: 7 | L26: 76 | M26: 46 | N26: 11.1 | O26: 0.4933333333 | P26: =IF(AND(O26="غ"),"غ",RANK(O26,$O$4:$O$30)+COUNTIF(O$4:O26,O26)-1) -> 22 | Q26: دون المتوسط | S26: =I2 -> الواجب | T26: =COUNTIF(I4:I30,">="&I$3/2)/COUNT(I4:I30) -> 1 | U26: 0 | V26: =IF($U26="","",AVERAGE(I4:I30)/I$3) -> 0.8723076923
A27: 24 | B27: محمد محمود يوسف عبدالله الغزال | C27: 3.5 | D27: 2 | E27: 2 | F27: 3.5 | H27: 27.5 | I27: 22 | J27: 13 | K27: 8 | L27: 70.5 | M27: 52 | N27: 12.1625 | O27: 0.5405555556 | P27: =IF(AND(O27="غ"),"غ",RANK(O27,$O$4:$O$30)+COUNTIF(O$4:O27,O27)-1) -> 14 | Q27: متوسط | S27: =J2 -> المشاركة | T27: =COUNTIF(J4:J30,">="&J$3/2)/COUNT(J4:J30) -> 1 | U27: 0 | V27: =IF($U27="","",AVERAGE(J4:J30)/J$3) -> 0.8384615385
A28: 25 | B28: مسلم عادل سليم المهرى الكثيرى | C28: 2 | D28: 2 | E28: 2.5 | F28: 2.5 | H28: 22.5 | I28: 22 | J28: 13 | K28: 8 | L28: 65.5 | M28: 62 | N28: 14.0375 | O28: 0.6238888889 | P28: =IF(AND(O28="غ"),"غ",RANK(O28,$O$4:$O$30)+COUNTIF(O$4:O28,O28)-1) -> 9 | Q28: فوق المتوسط | S28: =K2 -> المشروع | T28: =COUNTIF(K4:K30,">="&K$3/2)/COUNT(K4:K30) -> 1 | U28: 0 | V28: =IF($U28="","",AVERAGE(K4:K30)/K$3) -> 0.7807692308
A29: 26 | B29: ناصر خالد علي حيدره السعدى | C29: 4 | D29: 3 | E29: 3 | F29: 4 | H29: =IF(AND(C29="",D29="",E29="",F29="",G29=""),"غ",$H$3*SUM(C29:G29)/SUM($C$3:$G$3)) -> 35 | I29: 22 | J29: 14 | K29: 9 | L29: =IF(AND(C29="",D29="",E29="",F29="",G29="",I29="",J29="",K29=""),"غ",SUM(H29:K29)) -> 80 | M29: 68 | N29: =IF(M29="","غ",IF(L29="غ",M29*0.2,SUM(L29*2.5/$L$3,M29*0.2))) -> 15.6 | O29: 0.6933333333 | P29: =IF(AND(O29="غ"),"غ",RANK(O29,$O$4:$O$30)+COUNTIF(O$4:O29,O29)-1) -> 2 | Q29: =IF(O29="غ","غ",IF(O29>=90%,"ممتاز",IF(O29>=80%,"جيد جداً",IF(O29>=70%,"جيد",IF(O29>=60%,"فوق المتوسط",IF(O29>=50%,"متوسط",IF(O29>=40%,"دون المتوسط",IF(O29>=30%,"ضعيف","دون الضعيف جداً")))))))) -> فوق المتوسط | S29: =M2 -> Exam | T29: =COUNTIF(M4:M30,">="&M$3/2)/COUNT(M4:M30) -> 0.8 | U29: 0.2 | V29: =IF($U29="","",AVERAGE(M4:M30)/M$3) -> 0.5568

Sheet All-Grades
A1: عدد الطلاب الغائبين | B1: =SUM(Grade7!B1,Grade8!B1,Grade9!B1) -> 18
B3: تحليل نتائج جميع المراحل (طلاب المدرسة) All-Grades
B4: التقدير | C4: المجال | E4: عدد الطلاب | F4: النسبة
B5: ممتاز | C5: ≥ 90 | D5: A+ | E5: =SUM(Grade7!E5,Grade8!E5,Grade9!E5) -> 9 | F5: =(E5/$E$13) -> 0.01468189233 | G5: =SUM(F5:F9) -> 0.7308319739
B6: جيد جداً | C6: ≥ 80 | D6: A | E6: =SUM(Grade7!E6,Grade8!E6,Grade9!E6) -> 54 | F6: 0.088091354
B7: جيد | C7: ≥ 70 | D7: B+ | E7: =SUM(Grade7!E7,Grade8!E7,Grade9!E7) -> 87 | F7: 0.1419249592
B8: فوق المتوسط | C8: ≥ 60 | D8: B | E8: =SUM(Grade7!E8,Grade8!E8,Grade9!E8) -> 124 | F8: 0.2022838499
B9: متوسط | C9: ≥ 50 | D9: C | E9: =SUM(Grade7!E9,Grade8!E9,Grade9!E9) -> 174 | F9: 0.2838499184
B10: دون المتوسط | C10: ≥ 40 | D10: D | E10: =SUM(Grade7!E10,Grade8!E10,Grade9!E10) -> 96 | F10: 0.1566068515 | G10: =SUM(F10:F12) -> 0.2691680261
B11: ضعيف | C11: ≥ 30 | D11: E | E11: =SUM(Grade7!E11,Grade8!E11,Grade9!E11) -> 56 | F11: 0.09135399674
B12: دون الضعيف جداً | C12: < 30 | D12: F | E12: =SUM(Grade7!E12,Grade8!E12,Grade9!E12) -> 13 | F12: 0.02120717781
B13: عدد طلاب المدرسة الذي تم اختبارهم | E13: =SUM(E5:E12) -> 613 | F13: =E13/SUM(E13,B1) -> 0.971473851
C15: الطلاب | D15: العدد | E15: النسبة
C16: الناجحين | D16: =SUM(E5:E9) -> 448 | E16: =G5 -> 0.7308319739
C17: الراسبين | D17: =SUM(E10:E12) -> 165 | E17: =G10 -> 0.2691680261
C18: المجموع | D18: =SUM(D16:D17) -> 613 | E18: =SUM(E16:E17) -> 1
C19: نسبة التحصيل | E19: =AVERAGE(Grade7!E19,Grade8!E19,Grade9!E19) -> 0.5845823163
B24: الصف / النسبة | C24: الناجحين | D24: الراسبين | E24: التحصيل
B25: الصف السابع | C25: =Grade7!E16 -> 0.6212121212 | D25: =Grade7!E17 -> 0.3787878788 | E25: =Grade7!E19 -> 0.5585269328
B26: الصف الثامن | C26: =Grade8!E16 -> 0.7210526316 | D26: =Grade8!E17 -> 0.2789473684 | E26: =Grade8!E19 -> 0.5788376153
B27: الصف التاسع | C27: =Grade9!E16 -> 0.8355555556 | D27: =Grade9!E17 -> 0.1644444444 | E27: =Grade9!E19 -> 0.6163824009
A32: تحليل نتائج فرع | C32: ='7-1'!H2 -> Quizzes
B34: الصف / النسبة | C34: الناجحين | D34: الراسبين | E34: التحصيل
B35: الصف السابع | C35: =Grade7!C109 -> 0.3615276159 | D35: =Grade7!D109 -> 0.6384723841 | E35: =Grade7!E109 -> 0.3955377019
B36: الصف الثامن | C36: =Grade8!C109 -> 0.4692800678 | D36: =Grade8!D109 -> 0.5307199322 | E36: =Grade8!E109 -> 0.431022492
B37: الصف التاسع | C37: =Grade9!C109 -> 0.6153642258 | D37: =Grade9!D109 -> 0.3846357742 | E37: =Grade9!E109 -> 0.5610198273
B38: المتوسط | C38: =AVERAGE(C35:C37) -> 0.4820573031 | D38: =AVERAGE(D35:D37) -> 0.5179426969 | E38: =AVERAGE(E35:E37) -> 0.4625266737
A46: تحليل نتائج فرع | C46: ='7-1'!I2 -> الواجب
B48: الصف / النسبة | C48: الناجحين | D48: الراسبين | E48: التحصيل
B49: الصف السابع | C49: =Grade7!C110 -> 0.9945652174 | D49: =Grade7!D110 -> 0.005434782609 | E49: =Grade7!E110 -> 0.9142580149
B50: الصف الثامن | C50: =Grade8!C110 -> 0.7889130435 | D50: =Grade8!D110 -> 0.2110869565 | E50: =Grade8!E110 -> 0.7149264493
B51: الصف التاسع | C51: =Grade9!C110 -> 0.9951923077 | D51: =Grade9!D110 -> 0.004807692308 | E51: =Grade9!E110 -> 0.8557913818
B52: المتوسط | C52: =AVERAGE(C49:C51) -> 0.9262235229 | D52: =AVERAGE(D49:D51) -> 0.07377647715 | E52: =AVERAGE(E49:E51) -> 0.828325282
A61: تحليل نتائج فرع | C61: ='7-1'!J2 -> المشاركة
B63: الصف / النسبة | C63: الناجحين | D63: الراسبين | E63: التحصيل
B64: الصف السابع | C64: =Grade7!C111 -> 1 | D64: =Grade7!D111 -> 0 | E64: =Grade7!E111 -> 0.8985382814
B65: الصف الثامن | C65: =Grade8!C111 -> 0.8239130435 | D65: =Grade8!D111 -> 0.1760869565 | E65: =Grade8!E111 -> 0.7101268116
B66: الصف التاسع | C66: =Grade9!C111 -> 0.9519230769 | D66: =Grade9!D111 -> 0.04807692308 | E66: =Grade9!E111 -> 0.7886690408
B67: المتوسط | C67: =AVERAGE(C64:C66) -> 0.9252787068 | D67: =AVERAGE(D64:D66) -> 0.0747212932 | E67: =AVERAGE(E64:E66) -> 0.7991113779
A75: تحليل نتائج فرع | C75: ='7-1'!K2 -> المشروع
B77: الصف / النسبة | C77: الناجحين | D77: الراسبين | E77: التحصيل
B78: الصف السابع | C78: =Grade7!C112 -> 0.9351851852 | D78: =Grade7!D112 -> 0.06481481481 | E78: =Grade7!E112 -> 0.8590950446
B79: الصف الثامن | C79: =Grade8!C112 -> 0.8352173913 | D79: =Grade8!D112 -> 0.1647826087 | E79: =Grade8!E112 -> 0.6785163043
B80: الصف التاسع | C80: =Grade9!C112 -> 0.9951923077 | D80: =Grade9!D112 -> 0.004807692308 | E80: =Grade9!E112 -> 0.7987594373
B81: المتوسط | C81: =AVERAGE(C78:C80) -> 0.9218649614 | D81: =AVERAGE(D78:D80) -> 0.07813503861 | E81: =AVERAGE(E78:E80) -> 0.7787902621
A89: تحليل نتائج فرع | C89: ='7-1'!M2 -> Exam
B91: الصف / النسبة | C91: الناجحين | D91: الراسبين | E91: التحصيل
B92: الصف السابع | C92: =Grade7!C113 -> 0.6329922624 | D92: =Grade7!D113 -> 0.3670077376 | E92: =Grade7!E113 -> 0.5585269328
B93: الصف الثامن | C93: =Grade8!C113 -> 0.7626062253 | D93: =Grade8!D113 -> 0.2373937747 | E93: =Grade8!E113 -> 0.5788376153
B94: الصف التاسع | C94: =Grade9!C113 -> 0.846852985 | D94: =Grade9!D113 -> 0.153147015 | E94: =Grade9!E113 -> 0.6163824009
B95: المتوسط | C95: =AVERAGE(C92:C94) -> 0.7474838242 | D95: =AVERAGE(D92:D94) -> 0.2525161758 | E95: =AVERAGE(E92:E94) -> 0.5845823163
A103: مقارنة تحليل نتائج | C103: جميع الفروع
A105: الفرع | C105: الناجحين | D105: الراسبين | E105: التحصيل
A106: =C32 -> Quizzes | C106: =C38 -> 0.4820573031 | D106: =D38 -> 0.5179426969 | E106: =E38 -> 0.4625266737
A107: =C46 -> الواجب | C107: =C52 -> 0.9262235229 | D107: =D52 -> 0.07377647715 | E107: =E52 -> 0.828325282
A108: =C61 -> المشاركة | C108: =C67 -> 0.9252787068 | D108: =D67 -> 0.0747212932 | E108: =E67 -> 0.7991113779
A109: =C75 -> المشروع | C109: =C81 -> 0.9218649614 | D109: =D81 -> 0.07813503861 | E109: =E81 -> 0.7787902621
A110: =C89 -> Exam | C110: =C95 -> 0.7474838242 | D110: =D95 -> 0.2525161758 | E110: =E95 -> 0.5845823163
